Workbook

Sheet Weather data
A1: TIME | B1: Dry bulb temperature [°C] | C1: Wet bulb temperature [°C] | D1: Dew point temperature [°C] | E1: Relative humidity [%] | F1: Wind speed [m/s] | G1: Wind direction [°] | H1: Extraterrestrial Horizontal Radiation [Wh/m²] | I1: Global Horizontal Radiation [Wh/m²] | K1: Wet bulb temperature check [1 = input,0 = to be calculated] | L1: Wet bulb temperature calc | M1: Hour Kt | N1: Diffuse on Horizontal [W/m²] | O1: Beam on Horizontal [W/m²] | R1: Beam Radiation on E-oriented surface | S1: Beam Radiation on N-oriented | T1: Beam Radiation on NE-oriented | U1: Beam Radiation on NW-oriented | V1: Beam Radiation on S-oriented | W1: Beam Radiation on SE-oriented | X1: Beam Radiation on SW-oriented | Y1: Beam Radiation on W-oriented | AA1: Beam Radiation on E-oriented surface | AB1: Beam Radiation on N-oriented | AC1: Beam Radiation on NE-oriented | AD1: Beam Radiation on NW-oriented | AE1: Beam Radiation on S-oriented | AF1: Beam Radiation on SE-oriented | AG1: Beam Radiation on SW-oriented | AH1: Beam Radiation on W-oriented | AJ1: Diffuse Radiation | AL1: GR(E) [W/m²] | AM1: GR(N) [W/m²] | AN1: GR(NE) [W/m²] | AO1: GR(NW) [W/m²] | AP1: GR(S) [W/m²] | AQ1: GR(SE) [W/m²] | AR1: GR(SW) [W/m²] | AS1: GR(W) [W/m²] | AV1: E | AW1: N | AX1: NE | AY1: NW | AZ1: S | BA1: SE | BB1: SW | BC1: W
A2: 0 | B2: 9.7 | C2: 8.403704 | D2: 7.4 | E2: 85 | F2: 7.2 | G2: 250 | H2: 0 | I2: 0 | K2: =IF(SUM('Weather data'!C2:C8762)<1,0,1) -> 1 | L2: =IF($K$2=0,D2*ATAN(0.151977*(E2+8.313659)^0.5)+ATAN(D2+E2)-ATAN(E2-1.676331)+0.00391838*(E2)^(3/2)*ATAN(0.023101*E2)-4.686035,'Weather data'!C2) -> 8.403704 | M2: =IF(IFERROR(I2/H2,0)>1,0,IFERROR(I2/H2,0)) -> 0 | N2: =IF(M2<=0.22,((1-0.09*M2)*I2),(0.9511-0.1604*M2+(4.388*(M2)^2)-(16.638*(M2)^3)+(12.336*(M2)^(4)))*I2) -> 0 | O2: =I2-N2 -> 0 | R2: =O3*'Qsol calculation'!N2 -> 0 | S2: =O3*'Qsol calculation'!O2 -> 0 | T2: =O3*'Qsol calculation'!P2 -> 0 | U2: =O3*'Qsol calculation'!Q2 -> 0 | V2: =O3*'Qsol calculation'!R2 -> 0 | W2: =O3*'Qsol calculation'!S2 -> 0 | X2: =O3*'Qsol calculation'!T2 -> 0 | Y2: =O3*'Qsol calculation'!U2 -> 0 | AA2: =IF(R2<=0,0,R2) -> 0 | AB2: =IF(S2<=0,0,S2) -> 0 | AC2: 0 | AD2: 0 | AE2: =IF(V2<=0,0,V2) -> 0 | AF2: 0 | AG2: 0 | AH2: 0 | AJ2: =N2*(1+COS(VCP!$N$22))/2 -> 0 | AL2: =AA2+AJ2 -> 0 | AM2: =AB2+AJ2 -> 0 | AN2: =AC2+AJ2 -> 0 | AO2: =AD2+AJ2 -> 0 | AP2: =AE2+AJ2 -> 0 | AQ2: =AF2+AJ2 -> 0 | AR2: =AG2+AJ2 -> 0 | AS2: =AH2+AJ2 -> 0 | AV2: =IF(AL2>VCP!$E$29,AL2*VCP!$E$28,AL2) -> 0 | AW2: =IF(AM2>VCP!$E$29,AM2*VCP!$E$28,AM2) -> 0 | AX2: =IF(AN2>VCP!$E$29,AN2*VCP!$E$28,AN2) -> 0 | AY2: =IF(AO2>VCP!$E$29,AO2*VCP!$E$28,AO2) -> 0 | AZ2: =IF(AP2>VCP!$E$29,AP2*VCP!$E$28,AP2) -> 0 | BA2: =IF(AQ2>VCP!$E$29,AQ2*VCP!$E$28,AQ2) -> 0 | BB2: =IF(AR2>VCP!$E$29,AR2*VCP!$E$28,AR2) -> 0 | BC2: =IF(AS2>VCP!$E$29,AS2*VCP!$E$28,AS2) -> 0
A3: 1 | B3: 9.7 | C3: 8.125926 | D3: 6.9 | E3: 82 | F3: 7.4 | G3: 250 | H3: 0 | I3: 0 | L3: =IF($K$2=0,D3*ATAN(0.151977*(E3+8.313659)^0.5)+ATAN(D3+E3)-ATAN(E3-1.676331)+0.00391838*(E3)^(3/2)*ATAN(0.023101*E3)-4.686035,'Weather data'!C3) -> 8.125926 | M3: =IF(IFERROR(I3/H3,0)>1,0,IFERROR(I3/H3,0)) -> 0 | N3: 0 | O3: 0 | R3: =O4*'Qsol calculation'!N3 -> 0 | S3: =O4*'Qsol calculation'!O3 -> 0 | T3: =O4*'Qsol calculation'!P3 -> 0 | U3: =O4*'Qsol calculation'!Q3 -> 0 | V3: =O4*'Qsol calculation'!R3 -> 0 | W3: =O4*'Qsol calculation'!S3 -> 0 | X3: =O4*'Qsol calculation'!T3 -> 0 | Y3: =O4*'Qsol calculation'!U3 -> 0 | AA3: =IF(R3<=0,0,R3) -> 0 | AB3: =IF(S3<=0,0,S3) -> 0 | AC3: =IF(T3<=0,0,T3) -> 0 | AD3: =IF(U3<=0,0,U3) -> 0 | AE3: =IF(V3<=0,0,V3) -> 0 | AF3: =IF(W3<=0,0,W3) -> 0 | AG3: =IF(X3<=0,0,X3) -> 0 | AH3: =IF(Y3<=0,0,Y3) -> 0 | AJ3: =N3*(1+COS(VCP!$N$22))/2 -> 0 | AL3: =AA3+AJ3 -> 0 | AM3: 0 | AN3: 0 | AO3: 0 | AP3: 0 | AQ3: 0 | AR3: 0 | AS3: 0 | AV3: =IF(AL3>VCP!$E$29,AL3*VCP!$E$28,AL3) -> 0 | AW3: =IF(AM3>VCP!$E$29,AM3*VCP!$E$28,AM3) -> 0 | AX3: =IF(AN3>VCP!$E$29,AN3*VCP!$E$28,AN3) -> 0 | AY3: =IF(AO3>VCP!$E$29,AO3*VCP!$E$28,AO3) -> 0 | AZ3: =IF(AP3>VCP!$E$29,AP3*VCP!$E$28,AP3) -> 0 | BA3: =IF(AQ3>VCP!$E$29,AQ3*VCP!$E$28,AQ3) -> 0 | BB3: =IF(AR3>VCP!$E$29,AR3*VCP!$E$28,AR3) -> 0 | BC3: =IF(AS3>VCP!$E$29,AS3*VCP!$E$28,AS3) -> 0
A4: 2 | B4: 9.5 | C4: 7.8333325 | D4: 6.2 | E4: 80 | F4: 7.7 | G4: 270 | H4: 0 | I4: 0 | L4: =IF($K$2=0,D4*ATAN(0.151977*(E4+8.313659)^0.5)+ATAN(D4+E4)-ATAN(E4-1.676331)+0.00391838*(E4)^(3/2)*ATAN(0.023101*E4)-4.686035,'Weather data'!C4) -> 7.8333325 | M4: 0 | N4: 0 | O4: 0 | R4: =O5*'Qsol calculation'!N4 -> 0 | S4: =O5*'Qsol calculation'!O4 -> 0 | T4: =O5*'Qsol calculation'!P4 -> 0 | U4: =O5*'Qsol calculation'!Q4 -> 0 | V4: =O5*'Qsol calculation'!R4 -> 0 | W4: =O5*'Qsol calculation'!S4 -> 0 | X4: =O5*'Qsol calculation'!T4 -> 0 | Y4: =O5*'Qsol calculation'!U4 -> 0 | AA4: 0 | AB4: 0 | AC4: 0 | AD4: 0 | AE4: 0 | AF4: 0 | AG4: 0 | AH4: 0 | AJ4: =N4*(1+COS(VCP!$N$22))/2 -> 0 | AL4: 0 | AM4: 0 | AN4: 0 | AO4: 0 | AP4: 0 | AQ4: 0 | AR4: 0 | AS4: 0 | AV4: =IF(AL4>VCP!$E$29,AL4*VCP!$E$28,AL4) -> 0 | AW4: =IF(AM4>VCP!$E$29,AM4*VCP!$E$28,AM4) -> 0 | AX4: =IF(AN4>VCP!$E$29,AN4*VCP!$E$28,AN4) -> 0 | AY4: =IF(AO4>VCP!$E$29,AO4*VCP!$E$28,AO4) -> 0 | AZ4: =IF(AP4>VCP!$E$29,AP4*VCP!$E$28,AP4) -> 0 | BA4: =IF(AQ4>VCP!$E$29,AQ4*VCP!$E$28,AQ4) -> 0 | BB4: =IF(AR4>VCP!$E$29,AR4*VCP!$E$28,AR4) -> 0 | BC4: =IF(AS4>VCP!$E$29,AS4*VCP!$E$28,AS4) -> 0
A5: 3 | B5: 9.2 | C5: 7.255554 | D5: 5.4 | E5: 77 | F5: 7.2 | G5: 270 | H5: 0 | I5: 0 | L5: =IF($K$2=0,D5*ATAN(0.151977*(E5+8.313659)^0.5)+ATAN(D5+E5)-ATAN(E5-1.676331)+0.00391838*(E5)^(3/2)*ATAN(0.023101*E5)-4.686035,'Weather data'!C5) -> 7.255554 | M5: 0 | N5: 0 | O5: 0 | R5: =O6*'Qsol calculation'!N5 -> 0 | S5: =O6*'Qsol calculation'!O5 -> 0 | T5: =O6*'Qsol calculation'!P5 -> 0 | U5: =O6*'Qsol calculation'!Q5 -> 0 | V5: =O6*'Qsol calculation'!R5 -> 0 | W5: =O6*'Qsol calculation'!S5 -> 0 | X5: =O6*'Qsol calculation'!T5 -> 0 | Y5: =O6*'Qsol calculation'!U5 -> 0 | AA5: 0 | AB5: 0 | AC5: 0 | AD5: 0 | AE5: 0 | AF5: 0 | AG5: 0 | AH5: 0 | AJ5: =N5*(1+COS(VCP!$N$22))/2 -> 0 | AL5: 0 | AM5: 0 | AN5: 0 | AO5: 0 | AP5: 0 | AQ5: 0 | AR5: 0 | AS5: 0 | AV5: =IF(AL5>VCP!$E$29,AL5*VCP!$E$28,AL5) -> 0 | AW5: =IF(AM5>VCP!$E$29,AM5*VCP!$E$28,AM5) -> 0 | AX5: =IF(AN5>VCP!$E$29,AN5*VCP!$E$28,AN5) -> 0 | AY5: =IF(AO5>VCP!$E$29,AO5*VCP!$E$28,AO5) -> 0 | AZ5: =IF(AP5>VCP!$E$29,AP5*VCP!$E$28,AP5) -> 0 | BA5: =IF(AQ5>VCP!$E$29,AQ5*VCP!$E$28,AQ5) -> 0 | BB5: =IF(AR5>VCP!$E$29,AR5*VCP!$E$28,AR5) -> 0 | BC5: =IF(AS5>VCP!$E$29,AS5*VCP!$E$28,AS5) -> 0
A6: 4 | B6: 8.8 | C6: 6.670371 | D6: 4.6 | E6: 75 | F6: 4.8 | G6: 270 | H6: 0 | I6: 0 | L6: =IF($K$2=0,D6*ATAN(0.151977*(E6+8.313659)^0.5)+ATAN(D6+E6)-ATAN(E6-1.676331)+0.00391838*(E6)^(3/2)*ATAN(0.023101*E6)-4.686035,'Weather data'!C6) -> 6.670371 | M6: 0 | N6: 0 | O6: 0 | R6: =O7*'Qsol calculation'!N6 -> 0 | S6: =O7*'Qsol calculation'!O6 -> 0 | T6: =O7*'Qsol calculation'!P6 -> 0 | U6: =O7*'Qsol calculation'!Q6 -> 0 | V6: =O7*'Qsol calculation'!R6 -> 0 | W6: =O7*'Qsol calculation'!S6 -> 0 | X6: =O7*'Qsol calculation'!T6 -> 0 | Y6: =O7*'Qsol calculation'!U6 -> 0 | AA6: 0 | AB6: 0 | AC6: 0 | AD6: 0 | AE6: 0 | AF6: 0 | AG6: 0 | AH6: 0 | AJ6: =N6*(1+COS(VCP!$N$22))/2 -> 0 | AL6: 0 | AM6: 0 | AN6: 0 | AO6: 0 | AP6: 0 | AQ6: 0 | AR6: 0 | AS6: 0 | AV6: =IF(AL6>VCP!$E$29,AL6*VCP!$E$28,AL6) -> 0 | AW6: =IF(AM6>VCP!$E$29,AM6*VCP!$E$28,AM6) -> 0 | AX6: =IF(AN6>VCP!$E$29,AN6*VCP!$E$28,AN6) -> 0 | AY6: =IF(AO6>VCP!$E$29,AO6*VCP!$E$28,AO6) -> 0 | AZ6: =IF(AP6>VCP!$E$29,AP6*VCP!$E$28,AP6) -> 0 | BA6: =IF(AQ6>VCP!$E$29,AQ6*VCP!$E$28,AQ6) -> 0 | BB6: =IF(AR6>VCP!$E$29,AR6*VCP!$E$28,AR6) -> 0 | BC6: =IF(AS6>VCP!$E$29,AS6*VCP!$E$28,AS6) -> 0
A7: 5 | B7: 8.3 | C7: 6.0777793 | D7: 3.7 | E7: 73 | F7: 2.4 | G7: 270 | H7: 0 | I7: 0 | L7: =IF($K$2=0,D7*ATAN(0.151977*(E7+8.313659)^0.5)+ATAN(D7+E7)-ATAN(E7-1.676331)+0.00391838*(E7)^(3/2)*ATAN(0.023101*E7)-4.686035,'Weather data'!C7) -> 6.0777793 | M7: 0 | N7: 0 | O7: 0 | R7: =O8*'Qsol calculation'!N7 -> 0 | S7: =O8*'Qsol calculation'!O7 -> 0 | T7: =O8*'Qsol calculation'!P7 -> 0 | U7: =O8*'Qsol calculation'!Q7 -> 0 | V7: =O8*'Qsol calculation'!R7 -> 0 | W7: =O8*'Qsol calculation'!S7 -> 0 | X7: =O8*'Qsol calculation'!T7 -> 0 | Y7: =O8*'Qsol calculation'!U7 -> 0 | AA7: 0 | AB7: 0 | AC7: 0 | AD7: 0 | AE7: 0 | AF7: 0 | AG7: 0 | AH7: 0 | AJ7: =N7*(1+COS(VCP!$N$22))/2 -> 0 | AL7: 0 | AM7: 0 | AN7: 0 | AO7: 0 | AP7: 0 | AQ7: 0 | AR7: 0 | AS7: 0 | AV7: =IF(AL7>VCP!$E$29,AL7*VCP!$E$28,AL7) -> 0 | AW7: =IF(AM7>VCP!$E$29,AM7*VCP!$E$28,AM7) -> 0 | AX7: =IF(AN7>VCP!$E$29,AN7*VCP!$E$28,AN7) -> 0 | AY7: =IF(AO7>VCP!$E$29,AO7*VCP!$E$28,AO7) -> 0 | AZ7: =IF(AP7>VCP!$E$29,AP7*VCP!$E$28,AP7) -> 0 | BA7: =IF(AQ7>VCP!$E$29,AQ7*VCP!$E$28,AQ7) -> 0 | BB7: =IF(AR7>VCP!$E$29,AR7*VCP!$E$28,AR7) -> 0 | BC7: =IF(AS7>VCP!$E$29,AS7*VCP!$E$28,AS7) -> 0
A8: 6 | B8: 7 | C8: 4.3148146 | D8: 1 | E8: 66 | F8: 0 | G8: 0 | H8: 0 | I8: 0 | L8: =IF($K$2=0,D8*ATAN(0.151977*(E8+8.313659)^0.5)+ATAN(D8+E8)-ATAN(E8-1.676331)+0.00391838*(E8)^(3/2)*ATAN(0.023101*E8)-4.686035,'Weather data'!C8) -> 4.3148146 | M8: 0 | N8: 0 | O8: 0 | R8: =O9*'Qsol calculation'!N8 -> 0 | S8: =O9*'Qsol calculation'!O8 -> 0 | T8: =O9*'Qsol calculation'!P8 -> 0 | U8: =O9*'Qsol calculation'!Q8 -> 0 | V8: =O9*'Qsol calculation'!R8 -> 0 | W8: =O9*'Qsol calculation'!S8 -> 0 | X8: =O9*'Qsol calculation'!T8 -> 0 | Y8: =O9*'Qsol calculation'!U8 -> 0 | AA8: 0 | AB8: 0 | AC8: 0 | AD8: 0 | AE8: 0 | AF8: 0 | AG8: 0 | AH8: 0 | AJ8: =N8*(1+COS(VCP!$N$22))/2 -> 0 | AL8: 0 | AM8: 0 | AN8: 0 | AO8: 0 | AP8: 0 | AQ8: 0 | AR8: 0 | AS8: 0 | AV8: =IF(AL8>VCP!$E$29,AL8*VCP!$E$28,AL8) -> 0 | AW8: =IF(AM8>VCP!$E$29,AM8*VCP!$E$28,AM8) -> 0 | AX8: =IF(AN8>VCP!$E$29,AN8*VCP!$E$28,AN8) -> 0 | AY8: =IF(AO8>VCP!$E$29,AO8*VCP!$E$28,AO8) -> 0 | AZ8: =IF(AP8>VCP!$E$29,AP8*VCP!$E$28,AP8) -> 0 | BA8: =IF(AQ8>VCP!$E$29,AQ8*VCP!$E$28,AQ8) -> 0 | BB8: =IF(AR8>VCP!$E$29,AR8*VCP!$E$28,AR8) -> 0 | BC8: =IF(AS8>VCP!$E$29,AS8*VCP!$E$28,AS8) -> 0
A9: 7 | B9: 7.3 | C9: 4.522222 | D9: 1.1 | E9: 65 | F9: 1.7 | G9: 0 | H9: 0 | I9: 0 | L9: =IF($K$2=0,D9*ATAN(0.151977*(E9+8.313659)^0.5)+ATAN(D9+E9)-ATAN(E9-1.676331)+0.00391838*(E9)^(3/2)*ATAN(0.023101*E9)-4.686035,'Weather data'!C9) -> 4.522222 | M9: 0 | N9: 0 | O9: 0 | R9: =O10*'Qsol calculation'!N9 -> -0.02771357944 | S9: =O10*'Qsol calculation'!O9 -> -0.02248754061 | T9: =O10*'Qsol calculation'!P9 -> -0.03549755241 | U9: =O10*'Qsol calculation'!Q9 -> 0.0036953675 | V9: =O10*'Qsol calculation'!R9 -> 0.006120343032 | W9: =O10*'Qsol calculation'!S9 -> -0.0036953675 | X9: =O10*'Qsol calculation'!T9 -> 0.03549755241 | Y9: =O10*'Qsol calculation'!U9 -> 0.02771357944 | AA9: 0 | AB9: 0 | AC9: 0 | AD9: 0.0036953675 | AE9: 0.006120343032 | AF9: 0 | AG9: 0.03549755241 | AH9: 0.02771357944 | AJ9: =N9*(1+COS(VCP!$N$22))/2 -> 0 | AL9: 0 | AM9: 0 | AN9: 0 | AO9: 0.0036953675 | AP9: 0.006120343032 | AQ9: 0 | AR9: 0.03549755241 | AS9: 0.02771357944 | AV9: =IF(AL9>VCP!$E$29,AL9*VCP!$E$28,AL9) -> 0 | AW9: =IF(AM9>VCP!$E$29,AM9*VCP!$E$28,AM9) -> 0 | AX9: =IF(AN9>VCP!$E$29,AN9*VCP!$E$28,AN9) -> 0 | AY9: =IF(AO9>VCP!$E$29,AO9*VCP!$E$28,AO9) -> 0.0036953675 | AZ9: =IF(AP9>VCP!$E$29,AP9*VCP!$E$28,AP9) -> 0.006120343032 | BA9: =IF(AQ9>VCP!$E$29,AQ9*VCP!$E$28,AQ9) -> 0 | BB9: =IF(AR9>VCP!$E$29,AR9*VCP!$E$28,AR9) -> 0.03549755241 | BC9: =IF(AS9>VCP!$E$29,AS9*VCP!$E$28,AS9) -> 0.02771357944
A10: 8 | B10: 7.7 | C10: 4.737038 | D10: 1.3 | E10: 64 | F10: 3.4 | G10: 0 | H10: 10 | I10: 2 | L10: =IF($K$2=0,D10*ATAN(0.151977*(E10+8.313659)^0.5)+ATAN(D10+E10)-ATAN(E10-1.676331)+0.00391838*(E10)^(3/2)*ATAN(0.023101*E10)-4.686035,'Weather data'!C10) -> 4.737038 | M10: 0.2 | N10: 1.964 | O10: 0.036 | R10: =O11*'Qsol calculation'!N10 -> -0.1212540932 | S10: =O11*'Qsol calculation'!O10 -> -0.1468874294 | T10: =O11*'Qsol calculation'!P10 -> -0.1896046889 | U10: =O11*'Qsol calculation'!Q10 -> -0.01812550586 | V10: =O11*'Qsol calculation'!R10 -> 0.02450832975 | W10: =O11*'Qsol calculation'!S10 -> 0.01812550586 | X10: =O11*'Qsol calculation'!T10 -> 0.1896046889 | Y10: =O11*'Qsol calculation'!U10 -> 0.1212540932 | AA10: 0 | AB10: 0 | AC10: 0 | AD10: 0 | AE10: 0.02450832975 | AF10: 0.01812550586 | AG10: 0.1896046889 | AH10: 0.1212540932 | AJ10: =N10*(1+COS(VCP!$N$22))/2 -> 1.730052737 | AL10: 1.730052737 | AM10: 1.730052737 | AN10: 1.730052737 | AO10: 1.730052737 | AP10: 1.754561066 | AQ10: 1.748178243 | AR10: 1.919657426 | AS10: 1.85130683 | AV10: =IF(AL10>VCP!$E$29,AL10*VCP!$E$28,AL10) -> 1.730052737 | AW10: =IF(AM10>VCP!$E$29,AM10*VCP!$E$28,AM10) -> 1.730052737 | AX10: =IF(AN10>VCP!$E$29,AN10*VCP!$E$28,AN10) -> 1.730052737 | AY10: =IF(AO10>VCP!$E$29,AO10*VCP!$E$28,AO10) -> 1.730052737 | AZ10: =IF(AP10>VCP!$E$29,AP10*VCP!$E$28,AP10) -> 1.754561066 | BA10: =IF(AQ10>VCP!$E$29,AQ10*VCP!$E$28,AQ10) -> 1.748178243 | BB10: =IF(AR10>VCP!$E$29,AR10*VCP!$E$28,AR10) -> 1.919657426 | BC10: =IF(AS10>VCP!$E$29,AS10*VCP!$E$28,AS10) -> 1.85130683
A11: 9 | B11: 8 | C11: 4.944445 | D11: 1.4 | E11: 63 | F11: 5.1 | G11: 290 | H11: 182 | I11: 20 | L11: =IF($K$2=0,D11*ATAN(0.151977*(E11+8.313659)^0.5)+ATAN(D11+E11)-ATAN(E11-1.676331)+0.00391838*(E11)^(3/2)*ATAN(0.023101*E11)-4.686035,'Weather data'!C11) -> 4.944445 | M11: 0.1098901099 | N11: 19.8021978 | O11: 0.1978021978 | R11: =O12*'Qsol calculation'!N11 -> -4.155557859 | S11: =O12*'Qsol calculation'!O11 -> -8.325104371 | T11: =O12*'Qsol calculation'!P11 -> -8.825160897 | U11: =O12*'Qsol calculation'!Q11 -> -2.948314613 | V11: =O12*'Qsol calculation'!R11 -> 0.8989328218 | W11: =O12*'Qsol calculation'!S11 -> 2.948314613 | X11: =O12*'Qsol calculation'!T11 -> 8.825160897 | Y11: =O12*'Qsol calculation'!U11 -> 4.155557859 | AA11: 0 | AB11: 0 | AC11: 0 | AD11: 0 | AE11: 0.8989328218 | AF11: 2.948314613 | AG11: 8.825160897 | AH11: 4.155557859 | AJ11: =N11*(1+COS(VCP!$N$22))/2 -> 17.44340453 | AL11: 17.44340453 | AM11: 17.44340453 | AN11: 17.44340453 | AO11: 17.44340453 | AP11: 18.34233735 | AQ11: 20.39171914 | AR11: 26.26856543 | AS11: 21.59896239 | AV11: =IF(AL11>VCP!$E$29,AL11*VCP!$E$28,AL11) -> 17.44340453 | AW11: =IF(AM11>VCP!$E$29,AM11*VCP!$E$28,AM11) -> 17.44340453 | AX11: =IF(AN11>VCP!$E$29,AN11*VCP!$E$28,AN11) -> 17.44340453 | AY11: =IF(AO11>VCP!$E$29,AO11*VCP!$E$28,AO11) -> 17.44340453 | AZ11: =IF(AP11>VCP!$E$29,AP11*VCP!$E$28,AP11) -> 18.34233735 | BA11: =IF(AQ11>VCP!$E$29,AQ11*VCP!$E$28,AQ11) -> 20.39171914 | BB11: =IF(AR11>VCP!$E$29,AR11*VCP!$E$28,AR11) -> 26.26856543 | BC11: =IF(AS11>VCP!$E$29,AS11*VCP!$E$28,AS11) -> 21.59896239
A12: 10 | B12: 9.3 | C12: 6.522223 | D12: 3.6 | E12: 67 | F12: 4.8 | G12: 290 | H12: 377 | I12: 126 | L12: =IF($K$2=0,D12*ATAN(0.151977*(E12+8.313659)^0.5)+ATAN(D12+E12)-ATAN(E12-1.676331)+0.00391838*(E12)^(3/2)*ATAN(0.023101*E12)-4.686035,'Weather data'!C12) -> 6.522223 | M12: 0.3342175066 | N12: 115.97251 | O12: 10.02748995 | R12: =O13*'Qsol calculation'!N12 -> -17.2109279 | S12: =O13*'Qsol calculation'!O12 -> -80.88462682 | T12: =O13*'Qsol calculation'!P12 -> -69.36403195 | U12: =O13*'Qsol calculation'!Q12 -> -45.02410429 | V12: =O13*'Qsol calculation'!R12 -> 6.383516052 | W12: =O13*'Qsol calculation'!S12 -> 45.02410429 | X12: =O13*'Qsol calculation'!T12 -> 69.36403195 | Y12: =O13*'Qsol calculation'!U12 -> 17.2109279 | AA12: 0 | AB12: 0 | AC12: 0 | AD12: 0 | AE12: 6.383516052 | AF12: 45.02410429 | AG12: 69.36403195 | AH12: 17.2109279 | AJ12: =N12*(1+COS(VCP!$N$22))/2 -> 102.1581255 | AL12: 102.1581255 | AM12: 102.1581255 | AN12: 102.1581255 | AO12: 102.1581255 | AP12: 108.5416415 | AQ12: 147.1822297 | AR12: 171.5221574 | AS12: 119.3690533 | AV12: =IF(AL12>VCP!$E$29,AL12*VCP!$E$28,AL12) -> 61.29487527 | AW12: =IF(AM12>VCP!$E$29,AM12*VCP!$E$28,AM12) -> 61.29487527 | AX12: =IF(AN12>VCP!$E$29,AN12*VCP!$E$28,AN12) -> 61.29487527 | AY12: =IF(AO12>VCP!$E$29,AO12*VCP!$E$28,AO12) -> 61.29487527 | AZ12: =IF(AP12>VCP!$E$29,AP12*VCP!$E$28,AP12) -> 65.1249849 | BA12: =IF(AQ12>VCP!$E$29,AQ12*VCP!$E$28,AQ12) -> 88.30933785 | BB12: =IF(AR12>VCP!$E$29,AR12*VCP!$E$28,AR12) -> 102.9132944 | BC12: =IF(AS12>VCP!$E$29,AS12*VCP!$E$28,AS12) -> 71.62143201
A13: 11 | B13: 10.7 | C13: 8.014814 | D13: 5.5 | E13: 70 | F13: 4.4 | G13: 290 | H13: 522 | I13: 263 | L13: =IF($K$2=0,D13*ATAN(0.151977*(E13+8.313659)^0.5)+ATAN(D13+E13)-ATAN(E13-1.676331)+0.00391838*(E13)^(3/2)*ATAN(0.023101*E13)-4.686035,'Weather data'!C13) -> 8.014814 | M13: 0.5038314176 | N13: 171.2497361 | O13: 91.75026388 | R13: =O14*'Qsol calculation'!N13 -> 10.9542289 | S13: =O14*'Qsol calculation'!O13 -> -188.0337979 | T13: =O14*'Qsol calculation'!P13 -> -125.214164 | U13: =O14*'Qsol calculation'!Q13 -> -140.7057831 | V13: =O14*'Qsol calculation'!R13 -> 13.69623518 | W13: =O14*'Qsol calculation'!S13 -> 140.7057831 | X13: =O14*'Qsol calculation'!T13 -> 125.214164 | Y13: =O14*'Qsol calculation'!U13 -> -10.9542289 | AA13: 10.9542289 | AB13: 0 | AC13: 0 | AD13: 0 | AE13: 13.69623518 | AF13: 140.7057831 | AG13: 125.214164 | AH13: 0 | AJ13: =N13*(1+COS(VCP!$N$22))/2 -> 150.8508527 | AL13: 161.8050816 | AM13: 150.8508527 | AN13: 150.8508527 | AO13: 150.8508527 | AP13: 164.5470878 | AQ13: 291.5566358 | AR13: 276.0650167 | AS13: 150.8508527 | AV13: =IF(AL13>VCP!$E$29,AL13*VCP!$E$28,AL13) -> 97.08304894 | AW13: =IF(AM13>VCP!$E$29,AM13*VCP!$E$28,AM13) -> 90.5105116 | AX13: =IF(AN13>VCP!$E$29,AN13*VCP!$E$28,AN13) -> 90.5105116 | AY13: =IF(AO13>VCP!$E$29,AO13*VCP!$E$28,AO13) -> 90.5105116 | AZ13: =IF(AP13>VCP!$E$29,AP13*VCP!$E$28,AP13) -> 98.7282527 | BA13: =IF(AQ13>VCP!$E$29,AQ13*VCP!$E$28,AQ13) -> 174.9339815 | BB13: =IF(AR13>VCP!$E$29,AR13*VCP!$E$28,AR13) -> 165.63901 | BC13: =IF(AS13>VCP!$E$29,AS13*VCP!$E$28,AS13) -> 90.5105116
A14: 12 | B14: 12 | C14: 9.361111 | D14: 7.2 | E14: 72 | F14: 4.1 | G14: 240 | H14: 608 | I14: 368 | L14: =IF($K$2=0,D14*ATAN(0.151977*(E14+8.313659)^0.5)+ATAN(D14+E14)-ATAN(E14-1.676331)+0.00391838*(E14)^(3/2)*ATAN(0.023101*E14)-4.686035,'Weather data'!C14) -> 9.361111 | M14: 0.6052631579 | N14: 157.4677451 | O14: 210.5322549 | R14: =O15*'Qsol calculation'!N14 -> 48.1195499 | S14: =O15*'Qsol calculation'!O14 -> -144.3289545 | T14: =O15*'Qsol calculation'!P14 -> -68.0303224 | U14: =O15*'Qsol calculation'!Q14 -> -136.0816425 | V14: =O15*'Qsol calculation'!R14 -> 12.75990372 | W14: =O15*'Qsol calculation'!S14 -> 136.0816425 | X14: =O15*'Qsol calculation'!T14 -> 68.0303224 | Y14: =O15*'Qsol calculation'!U14 -> -48.1195499 | AA14: 48.1195499 | AB14: 0 | AC14: 0 | AD14: 0 | AE14: 12.75990372 | AF14: 136.0816425 | AG14: 68.0303224 | AH14: 0 | AJ14: =N14*(1+COS(VCP!$N$22))/2 -> 138.7105415 | AL14: 186.8300914 | AM14: 138.7105415 | AN14: 138.7105415 | AO14: 138.7105415 | AP14: 151.4704452 | AQ14: 274.7921839 | AR14: 206.7408638 | AS14: 138.7105415 | AV14: =IF(AL14>VCP!$E$29,AL14*VCP!$E$28,AL14) -> 112.0980548 | AW14: =IF(AM14>VCP!$E$29,AM14*VCP!$E$28,AM14) -> 83.22632487 | AX14: =IF(AN14>VCP!$E$29,AN14*VCP!$E$28,AN14) -> 83.22632487 | AY14: =IF(AO14>VCP!$E$29,AO14*VCP!$E$28,AO14) -> 83.22632487 | AZ14: =IF(AP14>VCP!$E$29,AP14*VCP!$E$28,AP14) -> 90.8822671 | BA14: =IF(AQ14>VCP!$E$29,AQ14*VCP!$E$28,AQ14) -> 164.8753104 | BB14: =IF(AR14>VCP!$E$29,AR14*VCP!$E$28,AR14) -> 124.0445183 | BC14: =IF(AS14>VCP!$E$29,AS14*VCP!$E$28,AS14) -> 83.22632487
A15: 13 | B15: 12.2 | C15: 8.866666 | D15: 5.7 | E15: 65 | F15: 3.8 | G15: 240 | H15: 627 | I15: 352 | L15: =IF($K$2=0,D15*ATAN(0.151977*(E15+8.313659)^0.5)+ATAN(D15+E15)-ATAN(E15-1.676331)+0.00391838*(E15)^(3/2)*ATAN(0.023101*E15)-4.686035,'Weather data'!C15) -> 8.866666 | M15: 0.5614035088 | N15: 184.9767513 | O15: 167.0232487 | R15: =O16*'Qsol calculation'!N15 -> 37.82695716 | S15: =O16*'Qsol calculation'!O15 -> -59.71793118 | T15: =O16*'Qsol calculation'!P15 -> -15.47925618 | U15: =O16*'Qsol calculation'!Q15 -> -68.97465201 | V15: =O16*'Qsol calculation'!R15 -> 7.709094293 | W15: =O16*'Qsol calculation'!S15 -> 68.97465201 | X15: =O16*'Qsol calculation'!T15 -> 15.47925618 | Y15: =O16*'Qsol calculation'!U15 -> -37.82695716 | AA15: 37.82695716 | AB15: 0 | AC15: 0 | AD15: 0 | AE15: 7.709094293 | AF15: 68.97465201 | AG15: 15.47925618 | AH15: 0 | AJ15: =N15*(1+COS(VCP!$N$22))/2 -> 162.9427367 | AL15: 200.7696938 | AM15: 162.9427367 | AN15: 162.9427367 | AO15: 162.9427367 | AP15: 170.651831 | AQ15: 231.9173887 | AR15: 178.4219929 | AS15: 162.9427367 | AV15: =IF(AL15>VCP!$E$29,AL15*VCP!$E$28,AL15) -> 120.4618163 | AW15: =IF(AM15>VCP!$E$29,AM15*VCP!$E$28,AM15) -> 97.76564201 | AX15: =IF(AN15>VCP!$E$29,AN15*VCP!$E$28,AN15) -> 97.76564201 | AY15: =IF(AO15>VCP!$E$29,AO15*VCP!$E$28,AO15) -> 97.76564201 | AZ15: =IF(AP15>VCP!$E$29,AP15*VCP!$E$28,AP15) -> 102.3910986 | BA15: =IF(AQ15>VCP!$E$29,AQ15*VCP!$E$28,AQ15) -> 139.1504332 | BB15: =IF(AR15>VCP!$E$29,AR15*VCP!$E$28,AR15) -> 107.0531957 | BC15: =IF(AS15>VCP!$E$29,AS15*VCP!$E$28,AS15) -> 97.76564201
A16: 14 | B16: 12.5 | C16: 8.333333 | D16: 4.1 | E16: 57 | F16: 3.4 | G16: 240 | H16: 579 | I16: 271 | L16: =IF($K$2=0,D16*ATAN(0.151977*(E16+8.313659)^0.5)+ATAN(D16+E16)-ATAN(E16-1.676331)+0.00391838*(E16)^(3/2)*ATAN(0.023101*E16)-4.686035,'Weather data'!C16) -> 8.333333 | M16: 0.4680483592 | N16: 196.0264109 | O16: 74.97358909 | R16: =O17*'Qsol calculation'!N16 -> 7.461709158 | S16: =O17*'Qsol calculation'!O16 -> -7.552308664 | T16: =O17*'Qsol calculation'!P16 -> -0.06406352548 | U16: =O17*'Qsol calculation'!Q16 -> -10.61651381 | V16: =O17*'Qsol calculation'!R16 -> 1.549079696 | W16: =O17*'Qsol calculation'!S16 -> 10.61651381 | X16: =O17*'Qsol calculation'!T16 -> 0.06406352548 | Y16: =O17*'Qsol calculation'!U16 -> -7.461709158 | AA16: 7.461709158 | AB16: 0 | AC16: 0 | AD16: 0 | AE16: 1.549079696 | AF16: 10.61651381 | AG16: 0.06406352548 | AH16: 0 | AJ16: =N16*(1+COS(VCP!$N$22))/2 -> 172.6761857 | AL16: 180.1378948 | AM16: 172.6761857 | AN16: 172.6761857 | AO16: 172.6761857 | AP16: 174.2252654 | AQ16: 183.2926995 | AR16: 172.7402492 | AS16: 172.6761857 | AV16: =IF(AL16>VCP!$E$29,AL16*VCP!$E$28,AL16) -> 108.0827369 | AW16: =IF(AM16>VCP!$E$29,AM16*VCP!$E$28,AM16) -> 103.6057114 | AX16: =IF(AN16>VCP!$E$29,AN16*VCP!$E$28,AN16) -> 103.6057114 | AY16: =IF(AO16>VCP!$E$29,AO16*VCP!$E$28,AO16) -> 103.6057114 | AZ16: =IF(AP16>VCP!$E$29,AP16*VCP!$E$28,AP16) -> 104.5351592 | BA16: =IF(AQ16>VCP!$E$29,AQ16*VCP!$E$28,AQ16) -> 109.9756197 | BB16: =IF(AR16>VCP!$E$29,AR16*VCP!$E$28,AR16) -> 103.6441495 | BC16: =IF(AS16>VCP!$E$29,AS16*VCP!$E$28,AS16) -> 103.6057114
A17: 15 | B17: 12.7 | C17: 7.5611115 | D17: 2.3 | E17: 49 | F17: 3.1 | G17: 240 | H17: 467 | I17: 152 | L17: =IF($K$2=0,D17*ATAN(0.151977*(E17+8.313659)^0.5)+ATAN(D17+E17)-ATAN(E17-1.676331)+0.00391838*(E17)^(3/2)*ATAN(0.023101*E17)-4.686035,'Weather data'!C17) -> 7.5611115 | M17: 0.3254817987 | N17: 141.1322186 | O17: 10.86778141 | R17: =O18*'Qsol calculation'!N17 -> 8.372797621 | S17: =O18*'Qsol calculation'!O17 -> -5.768983784 | T17: =O18*'Qsol calculation'!P17 -> 1.841174421 | U17: =O18*'Qsol calculation'!Q17 -> -9.999749529 | V17: =O18*'Qsol calculation'!R17 -> 1.964529352 | W17: =O18*'Qsol calculation'!S17 -> 9.999749529 | X17: =O18*'Qsol calculation'!T17 -> -1.841174421 | Y17: =O18*'Qsol calculation'!U17 -> -8.372797621 | AA17: 8.372797621 | AB17: 0 | AC17: 1.841174421 | AD17: 0 | AE17: 1.964529352 | AF17: 9.999749529 | AG17: 0 | AH17: 0 | AJ17: =N17*(1+COS(VCP!$N$22))/2 -> 124.3208661 | AL17: 132.6936637 | AM17: 124.3208661 | AN17: 126.1620405 | AO17: 124.3208661 | AP17: 126.2853954 | AQ17: 134.3206156 | AR17: 124.3208661 | AS17: 124.3208661 | AV17: =IF(AL17>VCP!$E$29,AL17*VCP!$E$28,AL17) -> 79.61619823 | AW17: =IF(AM17>VCP!$E$29,AM17*VCP!$E$28,AM17) -> 74.59251966 | AX17: =IF(AN17>VCP!$E$29,AN17*VCP!$E$28,AN17) -> 75.69722431 | AY17: =IF(AO17>VCP!$E$29,AO17*VCP!$E$28,AO17) -> 74.59251966 | AZ17: =IF(AP17>VCP!$E$29,AP17*VCP!$E$28,AP17) -> 75.77123727 | BA17: =IF(AQ17>VCP!$E$29,AQ17*VCP!$E$28,AQ17) -> 80.59236938 | BB17: =IF(AR17>VCP!$E$29,AR17*VCP!$E$28,AR17) -> 74.59251966 | BC17: =IF(AS17>VCP!$E$29,AS17*VCP!$E$28,AS17) -> 74.59251966
A18: 16 | B18: 11.9 | C18: 7.733332 | D18: 3.4 | E18: 56 | F18: 3.1 | G18: 240 | H18: 299 | I18: 105 | L18: =IF($K$2=0,D18*ATAN(0.151977*(E18+8.313659)^0.5)+ATAN(D18+E18)-ATAN(E18-1.676331)+0.00391838*(E18)^(3/2)*ATAN(0.023101*E18)-4.686035,'Weather data'!C18) -> 7.733332 | M18: 0.3511705686 | N18: 94.81229008 | O18: 10.18770992 | R18: =O19*'Qsol calculation'!N18 -> 0.3803992272 | S18: =O19*'Qsol calculation'!O18 -> -0.177012201 | T18: =O19*'Qsol calculation'!P18 -> 0.1438163454 | U18: =O19*'Qsol calculation'!Q18 -> -0.3941494008 | V18: =O19*'Qsol calculation'!R18 -> 0.1056548697 | W18: =O19*'Qsol calculation'!S18 -> 0.3941494008 | X18: =O19*'Qsol calculation'!T18 -> -0.1438163454 | Y18: =O19*'Qsol calculation'!U18 -> -0.3803992272 | AA18: 0.3803992272 | AB18: 0 | AC18: 0.1438163454 | AD18: 0 | AE18: 0.1056548697 | AF18: 0.3941494008 | AG18: 0 | AH18: 0 | AJ18: =N18*(1+COS(VCP!$N$22))/2 -> 83.51846331 | AL18: 83.89886253 | AM18: 83.51846331 | AN18: 83.66227965 | AO18: 83.51846331 | AP18: 83.62411818 | AQ18: 83.91261271 | AR18: 83.51846331 | AS18: 83.51846331 | AV18: =IF(AL18>VCP!$E$29,AL18*VCP!$E$28,AL18) -> 50.33931752 | AW18: =IF(AM18>VCP!$E$29,AM18*VCP!$E$28,AM18) -> 50.11107798 | AX18: =IF(AN18>VCP!$E$29,AN18*VCP!$E$28,AN18) -> 50.19736779 | AY18: =IF(AO18>VCP!$E$29,AO18*VCP!$E$28,AO18) -> 50.11107798 | AZ18: =IF(AP18>VCP!$E$29,AP18*VCP!$E$28,AP18) -> 50.17447091 | BA18: =IF(AQ18>VCP!$E$29,AQ18*VCP!$E$28,AQ18) -> 50.34756762 | BB18: =IF(AR18>VCP!$E$29,AR18*VCP!$E$28,AR18) -> 50.11107798 | BC18: =IF(AS18>VCP!$E$29,AS18*VCP!$E$28,AS18) -> 50.11107798
A19: 17 | B19: 11 | C19: 7.555555 | D19: 4.4 | E19: 63 | F19: 3.1 | G19: 240 | H19: 88 | I19: 20 | L19: =IF($K$2=0,D19*ATAN(0.151977*(E19+8.313659)^0.5)+ATAN(D19+E19)-ATAN(E19-1.676331)+0.00391838*(E19)^(3/2)*ATAN(0.023101*E19)-4.686035,'Weather data'!C19) -> 7.555555 | M19: 0.2272727273 | N19: 19.57785377 | O19: 0.4221462332 | R19: =O20*'Qsol calculation'!N19 -> 0 | S19: =O20*'Qsol calculation'!O19 -> 0 | T19: =O20*'Qsol calculation'!P19 -> 0 | U19: =O20*'Qsol calculation'!Q19 -> 0 | V19: =O20*'Qsol calculation'!R19 -> 0 | W19: =O20*'Qsol calculation'!S19 -> 0 | X19: =O20*'Qsol calculation'!T19 -> 0 | Y19: =O20*'Qsol calculation'!U19 -> 0 | AA19: 0 | AB19: 0 | AC19: 0 | AD19: 0 | AE19: 0 | AF19: 0 | AG19: 0 | AH19: 0 | AJ19: =N19*(1+COS(VCP!$N$22))/2 -> 17.24578385 | AL19: 17.24578385 | AM19: 17.24578385 | AN19: 17.24578385 | AO19: 17.24578385 | AP19: 17.24578385 | AQ19: 17.24578385 | AR19: 17.24578385 | AS19: 17.24578385 | AV19: =IF(AL19>VCP!$E$29,AL19*VCP!$E$28,AL19) -> 17.24578385 | AW19: =IF(AM19>VCP!$E$29,AM19*VCP!$E$28,AM19) -> 17.24578385 | AX19: =IF(AN19>VCP!$E$29,AN19*VCP!$E$28,AN19) -> 17.24578385 | AY19: =IF(AO19>VCP!$E$29,AO19*VCP!$E$28,AO19) -> 17.24578385 | AZ19: =IF(AP19>VCP!$E$29,AP19*VCP!$E$28,AP19) -> 17.24578385 | BA19: =IF(AQ19>VCP!$E$29,AQ19*VCP!$E$28,AQ19) -> 17.24578385 | BB19: =IF(AR19>VCP!$E$29,AR19*VCP!$E$28,AR19) -> 17.24578385 | BC19: =IF(AS19>VCP!$E$29,AS19*VCP!$E$28,AS19) -> 17.24578385
A20: 18 | B20: 10.2 | C20: 7.7000003 | D20: 5.3 | E20: 72 | F20: 3.1 | G20: 250 | H20: 0 | I20: 0 | L20: =IF($K$2=0,D20*ATAN(0.151977*(E20+8.313659)^0.5)+ATAN(D20+E20)-ATAN(E20-1.676331)+0.00391838*(E20)^(3/2)*ATAN(0.023101*E20)-4.686035,'Weather data'!C20) -> 7.7000003 | M20: 0 | N20: 0 | O20: 0 | R20: =O21*'Qsol calculation'!N20 -> 0 | S20: =O21*'Qsol calculation'!O20 -> 0 | T20: =O21*'Qsol calculation'!P20 -> 0 | U20: =O21*'Qsol calculation'!Q20 -> 0 | V20: =O21*'Qsol calculation'!R20 -> 0 | W20: =O21*'Qsol calculation'!S20 -> 0 | X20: =O21*'Qsol calculation'!T20 -> 0 | Y20: =O21*'Qsol calculation'!U20 -> 0 | AA20: 0 | AB20: 0 | AC20: 0 | AD20: 0 | AE20: 0 | AF20: 0 | AG20: 0 | AH20: 0 | AJ20: =N20*(1+COS(VCP!$N$22))/2 -> 0 | AL20: 0 | AM20: 0 | AN20: 0 | AO20: 0 | AP20: 0 | AQ20: 0 | AR20: 0 | AS20: 0 | AV20: =IF(AL20>VCP!$E$29,AL20*VCP!$E$28,AL20) -> 0 | AW20: =IF(AM20>VCP!$E$29,AM20*VCP!$E$28,AM20) -> 0 | AX20: =IF(AN20>VCP!$E$29,AN20*VCP!$E$28,AN20) -> 0 | AY20: =IF(AO20>VCP!$E$29,AO20*VCP!$E$28,AO20) -> 0 | AZ20: =IF(AP20>VCP!$E$29,AP20*VCP!$E$28,AP20) -> 0 | BA20: =IF(AQ20>VCP!$E$29,AQ20*VCP!$E$28,AQ20) -> 0 | BB20: =IF(AR20>VCP!$E$29,AR20*VCP!$E$28,AR20) -> 0 | BC20: =IF(AS20>VCP!$E$29,AS20*VCP!$E$28,AS20) -> 0
A21: 19 | B21: 10 | C21: 6.9444447 | D21: 4 | E21: 66 | F21: 0 | G21: 0 | H21: 0 | I21: 0 | L21: =IF($K$2=0,D21*ATAN(0.151977*(E21+8.313659)^0.5)+ATAN(D21+E21)-ATAN(E21-1.676331)+0.00391838*(E21)^(3/2)*ATAN(0.023101*E21)-4.686035,'Weather data'!C21) -> 6.9444447 | M21: 0 | N21: 0 | O21: 0 | R21: =O22*'Qsol calculation'!N21 -> 0 | S21: =O22*'Qsol calculation'!O21 -> 0 | T21: =O22*'Qsol calculation'!P21 -> 0 | U21: =O22*'Qsol calculation'!Q21 -> 0 | V21: =O22*'Qsol calculation'!R21 -> 0 | W21: =O22*'Qsol calculation'!S21 -> 0 | X21: =O22*'Qsol calculation'!T21 -> 0 | Y21: =O22*'Qsol calculation'!U21 -> 0 | AA21: 0 | AB21: 0 | AC21: 0 | AD21: 0 | AE21: 0 | AF21: 0 | AG21: 0 | AH21: 0 | AJ21: =N21*(1+COS(VCP!$N$22))/2 -> 0 | AL21: 0 | AM21: 0 | AN21: 0 | AO21: 0 | AP21: 0 | AQ21: 0 | AR21: 0 | AS21: 0 | AV21: =IF(AL21>VCP!$E$29,AL21*VCP!$E$28,AL21) -> 0 | AW21: =IF(AM21>VCP!$E$29,AM21*VCP!$E$28,AM21) -> 0 | AX21: =IF(AN21>VCP!$E$29,AN21*VCP!$E$28,AN21) -> 0 | AY21: =IF(AO21>VCP!$E$29,AO21*VCP!$E$28,AO21) -> 0 | AZ21: =IF(AP21>VCP!$E$29,AP21*VCP!$E$28,AP21) -> 0 | BA21: =IF(AQ21>VCP!$E$29,AQ21*VCP!$E$28,AQ21) -> 0 | BB21: =IF(AR21>VCP!$E$29,AR21*VCP!$E$28,AR21) -> 0 | BC21: =IF(AS21>VCP!$E$29,AS21*VCP!$E$28,AS21) -> 0
A22: 20 | B22: 9.3 | C22: 7.077779 | D22: 4.8 | E22: 74 | F22: 1.6 | G22: 0 | H22: 0 | I22: 0 | L22: =IF($K$2=0,D22*ATAN(0.151977*(E22+8.313659)^0.5)+ATAN(D22+E22)-ATAN(E22-1.676331)+0.00391838*(E22)^(3/2)*ATAN(0.023101*E22)-4.686035,'Weather data'!C22) -> 7.077779 | M22: 0 | N22: 0 | O22: 0 | R22: =O23*'Qsol calculation'!N22 -> 0 | S22: =O23*'Qsol calculation'!O22 -> 0 | T22: =O23*'Qsol calculation'!P22 -> 0 | U22: =O23*'Qsol calculation'!Q22 -> 0 | V22: =O23*'Qsol calculation'!R22 -> 0 | W22: =O23*'Qsol calculation'!S22 -> 0 | X22: =O23*'Qsol calculation'!T22 -> 0 | Y22: =O23*'Qsol calculation'!U22 -> 0 | AA22: 0 | AB22: 0 | AC22: 0 | AD22: 0 | AE22: 0 | AF22: 0 | AG22: 0 | AH22: 0 | AJ22: =N22*(1+COS(VCP!$N$22))/2 -> 0 | AL22: 0 | AM22: 0 | AN22: 0 | AO22: 0 | AP22: 0 | AQ22: 0 | AR22: 0 | AS22: 0 | AV22: =IF(AL22>VCP!$E$29,AL22*VCP!$E$28,AL22) -> 0 | AW22: =IF(AM22>VCP!$E$29,AM22*VCP!$E$28,AM22) -> 0 | AX22: =IF(AN22>VCP!$E$29,AN22*VCP!$E$28,AN22) -> 0 | AY22: =IF(AO22>VCP!$E$29,AO22*VCP!$E$28,AO22) -> 0 | AZ22: =IF(AP22>VCP!$E$29,AP22*VCP!$E$28,AP22) -> 0 | BA22: =IF(AQ22>VCP!$E$29,AQ22*VCP!$E$28,AQ22) -> 0 | BB22: =IF(AR22>VCP!$E$29,AR22*VCP!$E$28,AR22) -> 0 | BC22: =IF(AS22>VCP!$E$29,AS22*VCP!$E$28,AS22) -> 0
A23: 21 | B23: 8.6 | C23: 6.6555552 | D23: 4.5 | E23: 76 | F23: 3.3 | G23: 0 | H23: 0 | I23: 0 | L23: =IF($K$2=0,D23*ATAN(0.151977*(E23+8.313659)^0.5)+ATAN(D23+E23)-ATAN(E23-1.676331)+0.00391838*(E23)^(3/2)*ATAN(0.023101*E23)-4.686035,'Weather data'!C23) -> 6.6555552 | M23: 0 | N23: 0 | O23: 0 | R23: =O24*'Qsol calculation'!N23 -> 0 | S23: =O24*'Qsol calculation'!O23 -> 0 | T23: =O24*'Qsol calculation'!P23 -> 0 | U23: =O24*'Qsol calculation'!Q23 -> 0 | V23: =O24*'Qsol calculation'!R23 -> 0 | W23: =O24*'Qsol calculation'!S23 -> 0 | X23: =O24*'Qsol calculation'!T23 -> 0 | Y23: =O24*'Qsol calculation'!U23 -> 0 | AA23: 0 | AB23: 0 | AC23: 0 | AD23: 0 | AE23: 0 | AF23: 0 | AG23: 0 | AH23: 0 | AJ23: =N23*(1+COS(VCP!$N$22))/2 -> 0 | AL23: 0 | AM23: 0 | AN23: 0 | AO23: 0 | AP23: 0 | AQ23: 0 | AR23: 0 | AS23: 0 | AV23: =IF(AL23>VCP!$E$29,AL23*VCP!$E$28,AL23) -> 0 | AW23: =IF(AM23>VCP!$E$29,AM23*VCP!$E$28,AM23) -> 0 | AX23: =IF(AN23>VCP!$E$29,AN23*VCP!$E$28,AN23) -> 0 | AY23: =IF(AO23>VCP!$E$29,AO23*VCP!$E$28,AO23) -> 0 | AZ23: =IF(AP23>VCP!$E$29,AP23*VCP!$E$28,AP23) -> 0 | BA23: =IF(AQ23>VCP!$E$29,AQ23*VCP!$E$28,AQ23) -> 0 | BB23: =IF(AR23>VCP!$E$29,AR23*VCP!$E$28,AR23) -> 0 | BC23: =IF(AS23>VCP!$E$29,AS23*VCP!$E$28,AS23) -> 0
A24: 22 | B24: 7.8 | C24: 5.994445 | D24: 4.3 | E24: 78 | F24: 4.9 | G24: 0 | H24: 0 | I24: 0 | L24: =IF($K$2=0,D24*ATAN(0.151977*(E24+8.313659)^0.5)+ATAN(D24+E24)-ATAN(E24-1.676331)+0.00391838*(E24)^(3/2)*ATAN(0.023101*E24)-4.686035,'Weather data'!C24) -> 5.994445 | M24: 0 | N24: 0 | O24: 0 | R24: =O25*'Qsol calculation'!N24 -> 0 | S24: =O25*'Qsol calculation'!O24 -> 0 | T24: =O25*'Qsol calculation'!P24 -> 0 | U24: =O25*'Qsol calculation'!Q24 -> 0 | V24: =O25*'Qsol calculation'!R24 -> 0 | W24: =O25*'Qsol calculation'!S24 -> 0 | X24: =O25*'Qsol calculation'!T24 -> 0 | Y24: =O25*'Qsol calculation'!U24 -> 0 | AA24: 0 | AB24: 0 | AC24: 0 | AD24: 0 | AE24: 0 | AF24: 0 | AG24: 0 | AH24: 0 | AJ24: =N24*(1+COS(VCP!$N$22))/2 -> 0 | AL24: 0 | AM24: 0 | AN24: 0 | AO24: 0 | AP24: 0 | AQ24: 0 | AR24: 0 | AS24: 0 | AV24: =IF(AL24>VCP!$E$29,AL24*VCP!$E$28,AL24) -> 0 | AW24: =IF(AM24>VCP!$E$29,AM24*VCP!$E$28,AM24) -> 0 | AX24: =IF(AN24>VCP!$E$29,AN24*VCP!$E$28,AN24) -> 0 | AY24: =IF(AO24>VCP!$E$29,AO24*VCP!$E$28,AO24) -> 0 | AZ24: =IF(AP24>VCP!$E$29,AP24*VCP!$E$28,AP24) -> 0 | BA24: =IF(AQ24>VCP!$E$29,AQ24*VCP!$E$28,AQ24) -> 0 | BB24: =IF(AR24>VCP!$E$29,AR24*VCP!$E$28,AR24) -> 0 | BC24: =IF(AS24>VCP!$E$29,AS24*VCP!$E$28,AS24) -> 0
A25: 23 | B25: 7.1 | C25: 5.525926 | D25: 4 | E25: 80 | F25: 6.6 | G25: 0 | H25: 0 | I25: 0 | L25: =IF($K$2=0,D25*ATAN(0.151977*(E25+8.313659)^0.5)+ATAN(D25+E25)-ATAN(E25-1.676331)+0.00391838*(E25)^(3/2)*ATAN(0.023101*E25)-4.686035,'Weather data'!C25) -> 5.525926 | M25: 0 | N25: 0 | O25: 0 | R25: =O26*'Qsol calculation'!N25 -> 0 | S25: =O26*'Qsol calculation'!O25 -> 0 | T25: =O26*'Qsol calculation'!P25 -> 0 | U25: =O26*'Qsol calculation'!Q25 -> 0 | V25: =O26*'Qsol calculation'!R25 -> 0 | W25: =O26*'Qsol calculation'!S25 -> 0 | X25: =O26*'Qsol calculation'!T25 -> 0 | Y25: =O26*'Qsol calculation'!U25 -> 0 | AA25: 0 | AB25: 0 | AC25: 0 | AD25: 0 | AE25: 0 | AF25: 0 | AG25: 0 | AH25: 0 | AJ25: =N25*(1+COS(VCP!$N$22))/2 -> 0 | AL25: 0 | AM25: 0 | AN25: 0 | AO25: 0 | AP25: 0 | AQ25: 0 | AR25: 0 | AS25: 0 | AV25: =IF(AL25>VCP!$E$29,AL25*VCP!$E$28,AL25) -> 0 | AW25: =IF(AM25>VCP!$E$29,AM25*VCP!$E$28,AM25) -> 0 | AX25: =IF(AN25>VCP!$E$29,AN25*VCP!$E$28,AN25) -> 0 | AY25: =IF(AO25>VCP!$E$29,AO25*VCP!$E$28,AO25) -> 0 | AZ25: =IF(AP25>VCP!$E$29,AP25*VCP!$E$28,AP25) -> 0 | BA25: =IF(AQ25>VCP!$E$29,AQ25*VCP!$E$28,AQ25) -> 0 | BB25: =IF(AR25>VCP!$E$29,AR25*VCP!$E$28,AR25) -> 0 | BC25: =IF(AS25>VCP!$E$29,AS25*VCP!$E$28,AS25) -> 0
A26: 24 | B26: 6.4 | C26: 5.1037045 | D26: 3.7 | E26: 83 | F26: 8.2 | G26: 260 | H26: 0 | I26: 0 | L26: =IF($K$2=0,D26*ATAN(0.151977*(E26+8.313659)^0.5)+ATAN(D26+E26)-ATAN(E26-1.676331)+0.00391838*(E26)^(3/2)*ATAN(0.023101*E26)-4.686035,'Weather data'!C26) -> 5.1037045 | M26: 0 | N26: 0 | O26: 0 | R26: =O27*'Qsol calculation'!N26 -> 0 | S26: =O27*'Qsol calculation'!O26 -> 0 | T26: =O27*'Qsol calculation'!P26 -> 0 | U26: =O27*'Qsol calculation'!Q26 -> 0 | V26: =O27*'Qsol calculation'!R26 -> 0 | W26: =O27*'Qsol calculation'!S26 -> 0 | X26: =O27*'Qsol calculation'!T26 -> 0 | Y26: =O27*'Qsol calculation'!U26 -> 0 | AA26: 0 | AB26: 0 | AC26: 0 | AD26: 0 | AE26: 0 | AF26: 0 | AG26: 0 | AH26: 0 | AJ26: =N26*(1+COS(VCP!$N$22))/2 -> 0 | AL26: 0 | AM26: 0 | AN26: 0 | AO26: 0 | AP26: 0 | AQ26: 0 | AR26: 0 | AS26: 0 | AV26: =IF(AL26>VCP!$E$29,AL26*VCP!$E$28,AL26) -> 0 | AW26: =IF(AM26>VCP!$E$29,AM26*VCP!$E$28,AM26) -> 0 | AX26: =IF(AN26>VCP!$E$29,AN26*VCP!$E$28,AN26) -> 0 | AY26: =IF(AO26>VCP!$E$29,AO26*VCP!$E$28,AO26) -> 0 | AZ26: =IF(AP26>VCP!$E$29,AP26*VCP!$E$28,AP26) -> 0 | BA26: =IF(AQ26>VCP!$E$29,AQ26*VCP!$E$28,AQ26) -> 0 | BB26: =IF(AR26>VCP!$E$29,AR26*VCP!$E$28,AR26) -> 0 | BC26: =IF(AS26>VCP!$E$29,AS26*VCP!$E$28,AS26) -> 0
A27: 25 | B27: 6.2 | C27: 5.1814823 | D27: 4.1 | E27: 87 | F27: 6.8 | G27: 260 | H27: 0 | I27: 0 | L27: =IF($K$2=0,D27*ATAN(0.151977*(E27+8.313659)^0.5)+ATAN(D27+E27)-ATAN(E27-1.676331)+0.00391838*(E27)^(3/2)*ATAN(0.023101*E27)-4.686035,'Weather data'!C27) -> 5.1814823 | M27: 0 | N27: 0 | O27: 0 | R27: =O28*'Qsol calculation'!N27 -> 0 | S27: =O28*'Qsol calculation'!O27 -> 0 | T27: =O28*'Qsol calculation'!P27 -> 0 | U27: =O28*'Qsol calculation'!Q27 -> 0 | V27: =O28*'Qsol calculation'!R27 -> 0 | W27: =O28*'Qsol calculation'!S27 -> 0 | X27: =O28*'Qsol calculation'!T27 -> 0 | Y27: =O28*'Qsol calculation'!U27 -> 0 | AA27: 0 | AB27: 0 | AC27: 0 | AD27: 0 | AE27: 0 | AF27: 0 | AG27: 0 | AH27: 0 | AJ27: =N27*(1+COS(VCP!$N$22))/2 -> 0 | AL27: 0 | AM27: 0 | AN27: 0 | AO27: 0 | AP27: 0 | AQ27: 0 | AR27: 0 | AS27: 0 | AV27: =IF(AL27>VCP!$E$29,AL27*VCP!$E$28,AL27) -> 0 | AW27: =IF(AM27>VCP!$E$29,AM27*VCP!$E$28,AM27) -> 0 | AX27: =IF(AN27>VCP!$E$29,AN27*VCP!$E$28,AN27) -> 0 | AY27: =IF(AO27>VCP!$E$29,AO27*VCP!$E$28,AO27) -> 0 | AZ27: =IF(AP27>VCP!$E$29,AP27*VCP!$E$28,AP27) -> 0 | BA27: =IF(AQ27>VCP!$E$29,AQ27*VCP!$E$28,AQ27) -> 0 | BB27: =IF(AR27>VCP!$E$29,AR27*VCP!$E$28,AR27) -> 0 | BC27: =IF(AS27>VCP!$E$29,AS27*VCP!$E$28,AS27) -> 0
A28: 26 | B28: 6 | C28: 5.2592597 | D28: 4.5 | E28: 90 | F28: 5.5 | G28: 260 | H28: 0 | I28: 0 | L28: =IF($K$2=0,D28*ATAN(0.151977*(E28+8.313659)^0.5)+ATAN(D28+E28)-ATAN(E28-1.676331)+0.00391838*(E28)^(3/2)*ATAN(0.023101*E28)-4.686035,'Weather data'!C28) -> 5.2592597 | M28: 0 | N28: 0 | O28: 0 | R28: =O29*'Qsol calculation'!N28 -> 0 | S28: =O29*'Qsol calculation'!O28 -> 0 | T28: =O29*'Qsol calculation'!P28 -> 0 | U28: =O29*'Qsol calculation'!Q28 -> 0 | V28: =O29*'Qsol calculation'!R28 -> 0 | W28: =O29*'Qsol calculation'!S28 -> 0 | X28: =O29*'Qsol calculation'!T28 -> 0 | Y28: =O29*'Qsol calculation'!U28 -> 0 | AA28: 0 | AB28: 0 | AC28: 0 | AD28: 0 | AE28: 0 | AF28: 0 | AG28: 0 | AH28: 0 | AJ28: =N28*(1+COS(VCP!$N$22))/2 -> 0 | AL28: 0 | AM28: 0 | AN28: 0 | AO28: 0 | AP28: 0 | AQ28: 0 | AR28: 0 | AS28: 0 | AV28: =IF(AL28>VCP!$E$29,AL28*VCP!$E$28,AL28) -> 0 | AW28: =IF(AM28>VCP!$E$29,AM28*VCP!$E$28,AM28) -> 0 | AX28: =IF(AN28>VCP!$E$29,AN28*VCP!$E$28,AN28) -> 0 | AY28: =IF(AO28>VCP!$E$29,AO28*VCP!$E$28,AO28) -> 0 | AZ28: =IF(AP28>VCP!$E$29,AP28*VCP!$E$28,AP28) -> 0 | BA28: =IF(AQ28>VCP!$E$29,AQ28*VCP!$E$28,AQ28) -> 0 | BB28: =IF(AR28>VCP!$E$29,AR28*VCP!$E$28,AR28) -> 0 | BC28: =IF(AS28>VCP!$E$29,AS28*VCP!$E$28,AS28) -> 0
A29: 27 | B29: 5.8 | C29: 5.337039 | D29: 4.9 | E29: 94 | F29: 4.1 | G29: 160 | H29: 0 | I29: 0 | L29: =IF($K$2=0,D29*ATAN(0.151977*(E29+8.313659)^0.5)+ATAN(D29+E29)-ATAN(E29-1.676331)+0.00391838*(E29)^(3/2)*ATAN(0.023101*E29)-4.686035,'Weather data'!C29) -> 5.337039 | M29: 0 | N29: 0 | O29: 0 | R29: =O30*'Qsol calculation'!N29 -> 0 | S29: =O30*'Qsol calculation'!O29 -> 0 | T29: =O30*'Qsol calculation'!P29 -> 0 | U29: =O30*'Qsol calculation'!Q29 -> 0 | V29: =O30*'Qsol calculation'!R29 -> 0 | W29: =O30*'Qsol calculation'!S29 -> 0 | X29: =O30*'Qsol calculation'!T29 -> 0 | Y29: =O30*'Qsol calculation'!U29 -> 0 | AA29: 0 | AB29: 0 | AC29: 0 | AD29: 0 | AE29: 0 | AF29: 0 | AG29: 0 | AH29: 0 | AJ29: =N29*(1+COS(VCP!$N$22))/2 -> 0 | AL29: 0 | AM29: 0 | AN29: 0 | AO29: 0 | AP29: 0 | AQ29: 0 | AR29: 0 | AS29: 0 | AV29: =IF(AL29>VCP!$E$29,AL29*VCP!$E$28,AL29) -> 0 | AW29: =IF(AM29>VCP!$E$29,AM29*VCP!$E$28,AM29) -> 0 | AX29: =IF(AN29>VCP!$E$29,AN29*VCP!$E$28,AN29) -> 0 | AY29: =IF(AO29>VCP!$E$29,AO29*VCP!$E$28,AO29) -> 0 | AZ29: =IF(AP29>VCP!$E$29,AP29*VCP!$E$28,AP29) -> 0 | BA29: =IF(AQ29>VCP!$E$29,AQ29*VCP!$E$28,AQ29) -> 0 | BB29: =IF(AR29>VCP!$E$29,AR29*VCP!$E$28,AR29) -> 0 | BC29: =IF(AS29>VCP!$E$29,AS29*VCP!$E$28,AS29) -> 0
A30: 28 | B30: 6 | C30: 5.444444 | D30: 5 | E30: 93 | F30: 3.1 | G30: 170 | H30: 0 | I30: 0 | L30: =IF($K$2=0,D30*ATAN(0.151977*(E30+8.313659)^0.5)+ATAN(D30+E30)-ATAN(E30-1.676331)+0.00391838*(E30)^(3/2)*ATAN(0.023101*E30)-4.686035,'Weather data'!C30) -> 5.444444 | M30: 0 | N30: 0 | O30: 0 | R30: =O31*'Qsol calculation'!N30 -> 0 | S30: =O31*'Qsol calculation'!O30 -> 0 | T30: =O31*'Qsol calculation'!P30 -> 0 | U30: =O31*'Qsol calculation'!Q30 -> 0 | V30: =O31*'Qsol calculation'!R30 -> 0 | W30: =O31*'Qsol calculation'!S30 -> 0 | X30: =O31*'Qsol calculation'!T30 -> 0 | Y30: =O31*'Qsol calculation'!U30 -> 0 | AA30: 0 | AB30: 0 | AC30: 0 | AD30: 0 | AE30: 0 | AF30: 0 | AG30: 0 | AH30: 0 | AJ30: =N30*(1+COS(VCP!$N$22))/2 -> 0 | AL30: 0 | AM30: 0 | AN30: 0 | AO30: 0 | AP30: 0 | AQ30: 0 | AR30: 0 | AS30: 0 | AV30: =IF(AL30>VCP!$E$29,AL30*VCP!$E$28,AL30) -> 0 | AW30: =IF(AM30>VCP!$E$29,AM30*VCP!$E$28,AM30) -> 0 | AX30: =IF(AN30>VCP!$E$29,AN30*VCP!$E$28,AN30) -> 0 | AY30: =IF(AO30>VCP!$E$29,AO30*VCP!$E$28,AO30) -> 0 | AZ30: =IF(AP30>VCP!$E$29,AP30*VCP!$E$28,AP30) -> 0 | BA30: =IF(AQ30>VCP!$E$29,AQ30*VCP!$E$28,AQ30) -> 0 | BB30: =IF(AR30>VCP!$E$29,AR30*VCP!$E$28,AR30) -> 0 | BC30: =IF(AS30>VCP!$E$29,AS30*VCP!$E$28,AS30) -> 0
A31: 29 | B31: 5.7 | C31: 5.2833347 | D31: 5 | E31: 95 | F31: 2.6 | G31: 170 | H31: 0 | I31: 0 | L31: =IF($K$2=0,D31*ATAN(0.151977*(E31+8.313659)^0.5)+ATAN(D31+E31)-ATAN(E31-1.676331)+0.00391838*(E31)^(3/2)*ATAN(0.023101*E31)-4.686035,'Weather data'!C31) -> 5.2833347 | M31: 0 | N31: 0 | O31: 0 | R31: =O32*'Qsol calculation'!N31 -> 0 | S31: =O32*'Qsol calculation'!O31 -> 0 | T31: =O32*'Qsol calculation'!P31 -> 0 | U31: =O32*'Qsol calculation'!Q31 -> 0 | V31: =O32*'Qsol calculation'!R31 -> 0 | W31: =O32*'Qsol calculation'!S31 -> 0 | X31: =O32*'Qsol calculation'!T31 -> 0 | Y31: =O32*'Qsol calculation'!U31 -> 0 | AA31: 0 | AB31: 0 | AC31: 0 | AD31: 0 | AE31: 0 | AF31: 0 | AG31: 0 | AH31: 0 | AJ31: =N31*(1+COS(VCP!$N$22))/2 -> 0 | AL31: 0 | AM31: 0 | AN31: 0 | AO31: 0 | AP31: 0 | AQ31: 0 | AR31: 0 | AS31: 0 | AV31: =IF(AL31>VCP!$E$29,AL31*VCP!$E$28,AL31) -> 0 | AW31: =IF(AM31>VCP!$E$29,AM31*VCP!$E$28,AM31) -> 0 | AX31: =IF(AN31>VCP!$E$29,AN31*VCP!$E$28,AN31) -> 0 | AY31: =IF(AO31>VCP!$E$29,AO31*VCP!$E$28,AO31) -> 0 | AZ31: =IF(AP31>VCP!$E$29,AP31*VCP!$E$28,AP31) -> 0 | BA31: =IF(AQ31>VCP!$E$29,AQ31*VCP!$E$28,AQ31) -> 0 | BB31: =IF(AR31>VCP!$E$29,AR31*VCP!$E$28,AR31) -> 0 | BC31: =IF(AS31>VCP!$E$29,AS31*VCP!$E$28,AS31) -> 0
A32: 30 | B32: 5.4 | C32: 5.214816 | D32: 5 | E32: 97 | F32: 2.1 | G32: 190 | H32: 0 | I32: 0 | L32: =IF($K$2=0,D32*ATAN(0.151977*(E32+8.313659)^0.5)+ATAN(D32+E32)-ATAN(E32-1.676331)+0.00391838*(E32)^(3/2)*ATAN(0.023101*E32)-4.686035,'Weather data'!C32) -> 5.214816 | M32: 0 | N32: 0 | O32: 0 | R32: =O33*'Qsol calculation'!N32 -> 0 | S32: =O33*'Qsol calculation'!O32 -> 0 | T32: =O33*'Qsol calculation'!P32 -> 0 | U32: =O33*'Qsol calculation'!Q32 -> 0 | V32: =O33*'Qsol calculation'!R32 -> 0 | W32: =O33*'Qsol calculation'!S32 -> 0 | X32: =O33*'Qsol calculation'!T32 -> 0 | Y32: =O33*'Qsol calculation'!U32 -> 0 | AA32: 0 | AB32: 0 | AC32: 0 | AD32: 0 | AE32: 0 | AF32: 0 | AG32: 0 | AH32: 0 | AJ32: =N32*(1+COS(VCP!$N$22))/2 -> 0 | AL32: 0 | AM32: 0 | AN32: 0 | AO32: 0 | AP32: 0 | AQ32: 0 | AR32: 0 | AS32: 0 | AV32: =IF(AL32>VCP!$E$29,AL32*VCP!$E$28,AL32) -> 0 | AW32: =IF(AM32>VCP!$E$29,AM32*VCP!$E$28,AM32) -> 0 | AX32: =IF(AN32>VCP!$E$29,AN32*VCP!$E$28,AN32) -> 0 | AY32: =IF(AO32>VCP!$E$29,AO32*VCP!$E$28,AO32) -> 0 | AZ32: =IF(AP32>VCP!$E$29,AP32*VCP!$E$28,AP32) -> 0 | BA32: =IF(AQ32>VCP!$E$29,AQ32*VCP!$E$28,AQ32) -> 0 | BB32: =IF(AR32>VCP!$E$29,AR32*VCP!$E$28,AR32) -> 0 | BC32: =IF(AS32>VCP!$E$29,AS32*VCP!$E$28,AS32) -> 0
A33: 31 | B33: 5.9 | C33: 5.714817 | D33: 5.6 | E33: 98 | F33: 2.1 | G33: 190 | H33: 0 | I33: 0 | L33: =IF($K$2=0,D33*ATAN(0.151977*(E33+8.313659)^0.5)+ATAN(D33+E33)-ATAN(E33-1.676331)+0.00391838*(E33)^(3/2)*ATAN(0.023101*E33)-4.686035,'Weather data'!C33) -> 5.714817 | M33: 0 | N33: 0 | O33: 0 | R33: =O34*'Qsol calculation'!N33 -> -0.006941405071 | S33: =O34*'Qsol calculation'!O33 -> -0.005605947439 | T33: =O34*'Qsol calculation'!P33 -> -0.008872318046 | U33: =O34*'Qsol calculation'!Q33 -> 0.0009443111474 | V33: =O34*'Qsol calculation'!R33 -> 0.001527714056 | W33: =O34*'Qsol calculation'!S33 -> -0.0009443111474 | X33: =O34*'Qsol calculation'!T33 -> 0.008872318046 | Y33: =O34*'Qsol calculation'!U33 -> 0.006941405071 | AA33: 0 | AB33: 0 | AC33: 0 | AD33: 0.0009443111474 | AE33: 0.001527714056 | AF33: 0 | AG33: 0.008872318046 | AH33: 0.006941405071 | AJ33: =N33*(1+COS(VCP!$N$22))/2 -> 0 | AL33: 0 | AM33: 0 | AN33: 0 | AO33: 0.0009443111474 | AP33: 0.001527714056 | AQ33: 0 | AR33: 0.008872318046 | AS33: 0.006941405071 | AV33: =IF(AL33>VCP!$E$29,AL33*VCP!$E$28,AL33) -> 0 | AW33: =IF(AM33>VCP!$E$29,AM33*VCP!$E$28,AM33) -> 0 | AX33: =IF(AN33>VCP!$E$29,AN33*VCP!$E$28,AN33) -> 0 | AY33: =IF(AO33>VCP!$E$29,AO33*VCP!$E$28,AO33) -> 0.0009443111474 | AZ33: =IF(AP33>VCP!$E$29,AP33*VCP!$E$28,AP33) -> 0.001527714056 | BA33: =IF(AQ33>VCP!$E$29,AQ33*VCP!$E$28,AQ33) -> 0 | BB33: =IF(AR33>VCP!$E$29,AR33*VCP!$E$28,AR33) -> 0.008872318046 | BC33: =IF(AS33>VCP!$E$29,AS33*VCP!$E$28,AS33) -> 0.006941405071
A34: 32 | B34: 6.5 | C34: 6.314816 | D34: 6.2 | E34: 98 | F34: 2.1 | G34: 190 | H34: 10 | I34: 1 | L34: =IF($K$2=0,D34*ATAN(0.151977*(E34+8.313659)^0.5)+ATAN(D34+E34)-ATAN(E34-1.676331)+0.00391838*(E34)^(3/2)*ATAN(0.023101*E34)-4.686035,'Weather data'!C34) -> 6.314816 | M34: 0.1 | N34: 0.991 | O34: 0.009 | R34: =O35*'Qsol calculation'!N34 -> -0.1215917836 | S34: =O35*'Qsol calculation'!O34 -> -0.1465903403 | T34: =O35*'Qsol calculation'!P34 -> -0.1896333984 | U34: =O35*'Qsol calculation'!Q34 -> -0.01767664897 | V34: =O35*'Qsol calculation'!R34 -> 0.02446588155 | W34: =O35*'Qsol calculation'!S34 -> 0.01767664897 | X34: =O35*'Qsol calculation'!T34 -> 0.1896333984 | Y34: =O35*'Qsol calculation'!U34 -> 0.1215917836 | AA34: 0 | AB34: 0 | AC34: 0 | AD34: 0 | AE34: 0.02446588155 | AF34: 0.01767664897 | AG34: 0.1896333984 | AH34: 0.1215917836 | AJ34: =N34*(1+COS(VCP!$N$22))/2 -> 0.8729543086 | AL34: 0.8729543086 | AM34: 0.8729543086 | AN34: 0.8729543086 | AO34: 0.8729543086 | AP34: 0.8974201901 | AQ34: 0.8906309576 | AR34: 1.062587707 | AS34: 0.9945460922 | AV34: =IF(AL34>VCP!$E$29,AL34*VCP!$E$28,AL34) -> 0.8729543086 | AW34: =IF(AM34>VCP!$E$29,AM34*VCP!$E$28,AM34) -> 0.8729543086 | AX34: =IF(AN34>VCP!$E$29,AN34*VCP!$E$28,AN34) -> 0.8729543086 | AY34: =IF(AO34>VCP!$E$29,AO34*VCP!$E$28,AO34) -> 0.8729543086 | AZ34: =IF(AP34>VCP!$E$29,AP34*VCP!$E$28,AP34) -> 0.8974201901 | BA34: =IF(AQ34>VCP!$E$29,AQ34*VCP!$E$28,AQ34) -> 0.8906309576 | BB34: =IF(AR34>VCP!$E$29,AR34*VCP!$E$28,AR34) -> 1.062587707 | BC34: =IF(AS34>VCP!$E$29,AS34*VCP!$E$28,AS34) -> 0.9945460922
A35: 33 | B35: 7 | C35: 6.8148146 | D35: 6.7 | E35: 98 | F35: 2.1 | G35: 190 | H35: 182 | I35: 20 | L35: =IF($K$2=0,D35*ATAN(0.151977*(E35+8.313659)^0.5)+ATAN(D35+E35)-ATAN(E35-1.676331)+0.00391838*(E35)^(3/2)*ATAN(0.023101*E35)-4.686035,'Weather data'!C35) -> 6.8148146 | M35: 0.1098901099 | N35: 19.8021978 | O35: 0.1978021978 | R35: =O36*'Qsol calculation'!N35 -> -0.3819958724 | S35: =O36*'Qsol calculation'!O35 -> -0.7607722868 | T35: =O36*'Qsol calculation'!P35 -> -0.8080591147 | U35: =O36*'Qsol calculation'!Q35 -> -0.2678353712 | V35: =O36*'Qsol calculation'!R35 -> 0.08206514756 | W35: =O36*'Qsol calculation'!S35 -> 0.2678353712 | X35: =O36*'Qsol calculation'!T35 -> 0.8080591147 | Y35: =O36*'Qsol calculation'!U35 -> 0.3819958724 | AA35: 0 | AB35: 0 | AC35: 0 | AD35: 0 | AE35: 0.08206514756 | AF35: 0.2678353712 | AG35: 0.8080591147 | AH35: 0.3819958724 | AJ35: =N35*(1+COS(VCP!$N$22))/2 -> 17.44340453 | AL35: 17.44340453 | AM35: 17.44340453 | AN35: 17.44340453 | AO35: 17.44340453 | AP35: 17.52546968 | AQ35: 17.7112399 | AR35: 18.25146365 | AS35: 17.8254004 | AV35: =IF(AL35>VCP!$E$29,AL35*VCP!$E$28,AL35) -> 17.44340453 | AW35: =IF(AM35>VCP!$E$29,AM35*VCP!$E$28,AM35) -> 17.44340453 | AX35: =IF(AN35>VCP!$E$29,AN35*VCP!$E$28,AN35) -> 17.44340453 | AY35: =IF(AO35>VCP!$E$29,AO35*VCP!$E$28,AO35) -> 17.44340453 | AZ35: =IF(AP35>VCP!$E$29,AP35*VCP!$E$28,AP35) -> 17.52546968 | BA35: =IF(AQ35>VCP!$E$29,AQ35*VCP!$E$28,AQ35) -> 17.7112399 | BB35: =IF(AR35>VCP!$E$29,AR35*VCP!$E$28,AR35) -> 18.25146365 | BC35: =IF(AS35>VCP!$E$29,AS35*VCP!$E$28,AS35) -> 17.8254004
A36: 34 | B36: 8.1 | C36: 7.5444455 | D36: 7 | E36: 93 | F36: 2.8 | G36: 190 | H36: 377 | I36: 62 | L36: =IF($K$2=0,D36*ATAN(0.151977*(E36+8.313659)^0.5)+ATAN(D36+E36)-ATAN(E36-1.676331)+0.00391838*(E36)^(3/2)*ATAN(0.023101*E36)-4.686035,'Weather data'!C36) -> 7.5444455 | M36: 0.1644562334 | N36: 61.08233422 | O36: 0.9176657825 | R36: =O37*'Qsol calculation'!N36 -> -0.3131132593 | S36: =O37*'Qsol calculation'!O36 -> -1.455517905 | T36: =O37*'Qsol calculation'!P36 -> -1.250611089 | U36: =O37*'Qsol calculation'!Q36 -> -0.8078020715 | V36: =O37*'Qsol calculation'!R36 -> 0.1145307781 | W36: =O37*'Qsol calculation'!S36 -> 0.8078020715 | X36: =O37*'Qsol calculation'!T36 -> 1.250611089 | Y36: =O37*'Qsol calculation'!U36 -> 0.3131132593 | AA36: 0 | AB36: 0 | AC36: 0 | AD36: 0 | AE36: 0.1145307781 | AF36: 0.8078020715 | AG36: 1.250611089 | AH36: 0.3131132593 | AJ36: =N36*(1+COS(VCP!$N$22))/2 -> 53.80634393 | AL36: 53.80634393 | AM36: 53.80634393 | AN36: 53.80634393 | AO36: 53.80634393 | AP36: 53.92087471 | AQ36: 54.614146 | AR36: 55.05695502 | AS36: 54.11945719 | AV36: =IF(AL36>VCP!$E$29,AL36*VCP!$E$28,AL36) -> 32.28380636 | AW36: =IF(AM36>VCP!$E$29,AM36*VCP!$E$28,AM36) -> 32.28380636 | AX36: =IF(AN36>VCP!$E$29,AN36*VCP!$E$28,AN36) -> 32.28380636 | AY36: =IF(AO36>VCP!$E$29,AO36*VCP!$E$28,AO36) -> 32.28380636 | AZ36: =IF(AP36>VCP!$E$29,AP36*VCP!$E$28,AP36) -> 32.35252482 | BA36: =IF(AQ36>VCP!$E$29,AQ36*VCP!$E$28,AQ36) -> 32.7684876 | BB36: =IF(AR36>VCP!$E$29,AR36*VCP!$E$28,AR36) -> 33.03417301 | BC36: =IF(AS36>VCP!$E$29,AS36*VCP!$E$28,AS36) -> 32.47167431
A37: 35 | B37: 9.3 | C37: 8.18889 | D37: 7.3 | E37: 87 | F37: 3.4 | G37: 190 | H37: 523 | I37: 98 | L37: =IF($K$2=0,D37*ATAN(0.151977*(E37+8.313659)^0.5)+ATAN(D37+E37)-ATAN(E37-1.676331)+0.00391838*(E37)^(3/2)*ATAN(0.023101*E37)-4.686035,'Weather data'!C37) -> 8.18889 | M37: 0.1873804971 | N37: 96.34730402 | O37: 1.652695985 | R37: =O38*'Qsol calculation'!N37 -> 0.1069744132 | S37: =O38*'Qsol calculation'!O37 -> -1.899447901 | T37: =O38*'Qsol calculation'!P37 -> -1.267470158 | U37: =O38*'Qsol calculation'!Q37 -> -1.418754824 | V37: =O38*'Qsol calculation'!R37 -> 0.1376314177 | W37: =O38*'Qsol calculation'!S37 -> 1.418754824 | X37: =O38*'Qsol calculation'!T37 -> 1.267470158 | Y37: =O38*'Qsol calculation'!U37 -> -0.1069744132 | AA37: 0.1069744132 | AB37: 0 | AC37: 0 | AD37: 0 | AE37: 0.1376314177 | AF37: 1.418754824 | AG37: 1.267470158 | AH37: 0 | AJ37: =N37*(1+COS(VCP!$N$22))/2 -> 84.87062983 | AL37: 84.97760424 | AM37: 84.87062983 | AN37: 84.87062983 | AO37: 84.87062983 | AP37: 85.00826125 | AQ37: 86.28938465 | AR37: 86.13809999 | AS37: 84.87062983 | AV37: =IF(AL37>VCP!$E$29,AL37*VCP!$E$28,AL37) -> 50.98656255 | AW37: =IF(AM37>VCP!$E$29,AM37*VCP!$E$28,AM37) -> 50.9223779 | AX37: =IF(AN37>VCP!$E$29,AN37*VCP!$E$28,AN37) -> 50.9223779 | AY37: =IF(AO37>VCP!$E$29,AO37*VCP!$E$28,AO37) -> 50.9223779 | AZ37: =IF(AP37>VCP!$E$29,AP37*VCP!$E$28,AP37) -> 51.00495675 | BA37: =IF(AQ37>VCP!$E$29,AQ37*VCP!$E$28,AQ37) -> 51.77363079 | BB37: =IF(AR37>VCP!$E$29,AR37*VCP!$E$28,AR37) -> 51.68285999 | BC37: =IF(AS37>VCP!$E$29,AS37*VCP!$E$28,AS37) -> 50.9223779
A38: 36 | B38: 10.4 | C38: 8.825928 | D38: 7.5 | E38: 82 | F38: 4.1 | G38: 240 | H38: 609 | I38: 120 | L38: =IF($K$2=0,D38*ATAN(0.151977*(E38+8.313659)^0.5)+ATAN(D38+E38)-ATAN(E38-1.676331)+0.00391838*(E38)^(3/2)*ATAN(0.023101*E38)-4.686035,'Weather data'!C38) -> 8.825928 | M38: 0.197044335 | N38: 117.8719212 | O38: 2.128078818 | R38: =O39*'Qsol calculation'!N38 -> 0.6406743233 | S38: =O39*'Qsol calculation'!O38 -> -1.9312697 | T38: =O39*'Qsol calculation'!P38 -> -0.9125887424 | U38: =O39*'Qsol calculation'!Q38 -> -1.81863906 | V38: =O39*'Qsol calculation'!R38 -> 0.1696159583 | W38: =O39*'Qsol calculation'!S38 -> 1.81863906 | X38: =O39*'Qsol calculation'!T38 -> 0.9125887424 | Y38: =O39*'Qsol calculation'!U38 -> -0.6406743233 | AA38: 0.6406743233 | AB38: 0 | AC38: 0 | AD38: 0 | AE38: 0.1696159583 | AF38: 1.81863906 | AG38: 0.9125887424 | AH38: 0 | AJ38: =N38*(1+COS(VCP!$N$22))/2 -> 103.831283 | AL38: 104.4719573 | AM38: 103.831283 | AN38: 103.831283 | AO38: 103.831283 | AP38: 104.000899 | AQ38: 105.6499221 | AR38: 104.7438717 | AS38: 103.831283 | AV38: =IF(AL38>VCP!$E$29,AL38*VCP!$E$28,AL38) -> 62.6831744 | AW38: =IF(AM38>VCP!$E$29,AM38*VCP!$E$28,AM38) -> 62.2987698 | AX38: =IF(AN38>VCP!$E$29,AN38*VCP!$E$28,AN38) -> 62.2987698 | AY38: =IF(AO38>VCP!$E$29,AO38*VCP!$E$28,AO38) -> 62.2987698 | AZ38: =IF(AP38>VCP!$E$29,AP38*VCP!$E$28,AP38) -> 62.40053938 | BA38: =IF(AQ38>VCP!$E$29,AQ38*VCP!$E$28,AQ38) -> 63.38995324 | BB38: =IF(AR38>VCP!$E$29,AR38*VCP!$E$28,AR38) -> 62.84632305 | BC38: =IF(AS38>VCP!$E$29,AS38*VCP!$E$28,AS38) -> 62.2987698
A39: 37 | B39: 10.9 | C39: 9.048148 | D39: 7.4 | E39: 79 | F39: 4.1 | G39: 240 | H39: 629 | I39: 125 | L39: =IF($K$2=0,D39*ATAN(0.151977*(E39+8.313659)^0.5)+ATAN(D39+E39)-ATAN(E39-1.676331)+0.00391838*(E39)^(3/2)*ATAN(0.023101*E39)-4.686035,'Weather data'!C39) -> 9.048148 | M39: 0.1987281399 | N39: 122.7643084 | O39: 2.235691574 | R39: =O40*'Qsol calculation'!N39 -> 0.9955914983 | S39: =O40*'Qsol calculation'!O39 -> -1.575393709 | T39: =O40*'Qsol calculation'!P39 -> -0.4099820752 | U39: =O40*'Qsol calculation'!Q39 -> -1.817961075 | V39: =O40*'Qsol calculation'!R39 -> 0.2019850102 | W39: =O40*'Qsol calculation'!S39 -> 1.817961075 | X39: =O40*'Qsol calculation'!T39 -> 0.4099820752 | Y39: =O40*'Qsol calculation'!U39 -> -0.9955914983 | AA39: 0.9955914983 | AB39: 0 | AC39: 0 | AD39: 0 | AE39: 0.2019850102 | AF39: 1.817961075 | AG39: 0.4099820752 | AH39: 0 | AJ39: =N39*(1+COS(VCP!$N$22))/2 -> 108.1409001 | AL39: 109.1364916 | AM39: 108.1409001 | AN39: 108.1409001 | AO39: 108.1409001 | AP39: 108.3428851 | AQ39: 109.9588612 | AR39: 108.5508822 | AS39: 108.1409001 | AV39: =IF(AL39>VCP!$E$29,AL39*VCP!$E$28,AL39) -> 65.48189495 | AW39: =IF(AM39>VCP!$E$29,AM39*VCP!$E$28,AM39) -> 64.88454005 | AX39: =IF(AN39>VCP!$E$29,AN39*VCP!$E$28,AN39) -> 64.88454005 | AY39: =IF(AO39>VCP!$E$29,AO39*VCP!$E$28,AO39) -> 64.88454005 | AZ39: =IF(AP39>VCP!$E$29,AP39*VCP!$E$28,AP39) -> 65.00573106 | BA39: =IF(AQ39>VCP!$E$29,AQ39*VCP!$E$28,AQ39) -> 65.97531669 | BB39: =IF(AR39>VCP!$E$29,AR39*VCP!$E$28,AR39) -> 65.13052929 | BC39: =IF(AS39>VCP!$E$29,AS39*VCP!$E$28,AS39) -> 64.88454005
A40: 38 | B40: 11.3 | C40: 9.077778 | D40: 7.2 | E40: 76 | F40: 4.1 | G40: 240 | H40: 581 | I40: 113 | L40: =IF($K$2=0,D40*ATAN(0.151977*(E40+8.313659)^0.5)+ATAN(D40+E40)-ATAN(E40-1.676331)+0.00391838*(E40)^(3/2)*ATAN(0.023101*E40)-4.686035,'Weather data'!C40) -> 9.077778 | M40: 0.1944922547 | N40: 111.0220138 | O40: 1.977986231 | R40: =O41*'Qsol calculation'!N40 -> 0.9266230778 | S40: =O41*'Qsol calculation'!O40 -> -0.9391022934 | T40: =O41*'Qsol calculation'!P40 -> -0.00882413794 | U40: =O41*'Qsol calculation'!Q40 -> -1.319267062 | V40: =O41*'Qsol calculation'!R40 -> 0.1913668097 | W40: =O41*'Qsol calculation'!S40 -> 1.319267062 | X40: =O41*'Qsol calculation'!T40 -> 0.00882413794 | Y40: =O41*'Qsol calculation'!U40 -> -0.9266230778 | AA40: 0.9266230778 | AB40: 0 | AC40: 0 | AD40: 0 | AE40: 0.1913668097 | AF40: 1.319267062 | AG40: 0.00882413794 | AH40: 0 | AJ40: =N40*(1+COS(VCP!$N$22))/2 -> 97.79732116 | AL40: 98.72394424 | AM40: 97.79732116 | AN40: 97.79732116 | AO40: 97.79732116 | AP40: 97.98868797 | AQ40: 99.11658822 | AR40: 97.8061453 | AS40: 97.79732116 | AV40: =IF(AL40>VCP!$E$29,AL40*VCP!$E$28,AL40) -> 59.23436654 | AW40: =IF(AM40>VCP!$E$29,AM40*VCP!$E$28,AM40) -> 58.6783927 | AX40: =IF(AN40>VCP!$E$29,AN40*VCP!$E$28,AN40) -> 58.6783927 | AY40: =IF(AO40>VCP!$E$29,AO40*VCP!$E$28,AO40) -> 58.6783927 | AZ40: =IF(AP40>VCP!$E$29,AP40*VCP!$E$28,AP40) -> 58.79321278 | BA40: =IF(AQ40>VCP!$E$29,AQ40*VCP!$E$28,AQ40) -> 59.46995293 | BB40: =IF(AR40>VCP!$E$29,AR40*VCP!$E$28,AR40) -> 58.68368718 | BC40: =IF(AS40>VCP!$E$29,AS40*VCP!$E$28,AS40) -> 58.6783927
A41: 39 | B41: 11.8 | C41: 9.161113 | D41: 7 | E41: 72 | F41: 4.1 | G41: 240 | H41: 470 | I41: 84 | L41: =IF($K$2=0,D41*ATAN(0.151977*(E41+8.313659)^0.5)+ATAN(D41+E41)-ATAN(E41-1.676331)+0.00391838*(E41)^(3/2)*ATAN(0.023101*E41)-4.686035,'Weather data'!C41) -> 9.161113 | M41: 0.1787234043 | N41: 82.64885106 | O41: 1.351148936 | R41: =O42*'Qsol calculation'!N41 -> 0.4739877833 | S41: =O42*'Qsol calculation'!O41 -> -0.3268306447 | T41: =O42*'Qsol calculation'!P41 -> 0.1040558106 | U41: =O42*'Qsol calculation'!Q41 -> -0.5662641409 | V41: =O42*'Qsol calculation'!R41 -> 0.1106152056 | W41: =O42*'Qsol calculation'!S41 -> 0.5662641409 | X41: =O42*'Qsol calculation'!T41 -> -0.1040558106 | Y41: =O42*'Qsol calculation'!U41 -> -0.4739877833 | AA41: 0.4739877833 | AB41: 0 | AC41: 0.1040558106 | AD41: 0 | AE41: 0.1106152056 | AF41: 0.5662641409 | AG41: 0 | AH41: 0 | AJ41: =N41*(1+COS(VCP!$N$22))/2 -> 72.80390579 | AL41: 73.27789357 | AM41: 72.80390579 | AN41: 72.9079616 | AO41: 72.80390579 | AP41: 72.91452099 | AQ41: 73.37016993 | AR41: 72.80390579 | AS41: 72.80390579 | AV41: =IF(AL41>VCP!$E$29,AL41*VCP!$E$28,AL41) -> 43.96673614 | AW41: =IF(AM41>VCP!$E$29,AM41*VCP!$E$28,AM41) -> 43.68234347 | AX41: =IF(AN41>VCP!$E$29,AN41*VCP!$E$28,AN41) -> 43.74477696 | AY41: =IF(AO41>VCP!$E$29,AO41*VCP!$E$28,AO41) -> 43.68234347 | AZ41: =IF(AP41>VCP!$E$29,AP41*VCP!$E$28,AP41) -> 43.7487126 | BA41: =IF(AQ41>VCP!$E$29,AQ41*VCP!$E$28,AQ41) -> 44.02210196 | BB41: =IF(AR41>VCP!$E$29,AR41*VCP!$E$28,AR41) -> 43.68234347 | BC41: =IF(AS41>VCP!$E$29,AS41*VCP!$E$28,AS41) -> 43.68234347
A42: 40 | B42: 11.1 | C42: 8.970371 | D42: 7.1 | E42: 76 | F42: 4.8 | G42: 240 | H42: 302 | I42: 44 | L42: =IF($K$2=0,D42*ATAN(0.151977*(E42+8.313659)^0.5)+ATAN(D42+E42)-ATAN(E42-1.676331)+0.00391838*(E42)^(3/2)*ATAN(0.023101*E42)-4.686035,'Weather data'!C42) -> 8.970371 | M42: 0.1456953642 | N42: 43.42304636 | O42: 0.5769536424 | R42: =O43*'Qsol calculation'!N42 -> 0.04416274564 | S42: =O43*'Qsol calculation'!O42 -> -0.02055720118 | T42: =O43*'Qsol calculation'!P42 -> 0.01669164056 | U42: =O43*'Qsol calculation'!Q42 -> -0.04576391327 | V42: =O43*'Qsol calculation'!R42 -> 0.0121997044 | W42: =O43*'Qsol calculation'!S42 -> 0.04576391327 | X42: =O43*'Qsol calculation'!T42 -> -0.01669164056 | Y42: =O43*'Qsol calculation'!U42 -> -0.04416274564 | AA42: 0.04416274564 | AB42: 0 | AC42: 0.01669164056 | AD42: 0 | AE42: 0.0121997044 | AF42: 0.04576391327 | AG42: 0 | AH42: 0 | AJ42: =N42*(1+COS(VCP!$N$22))/2 -> 38.25059073 | AL42: 38.29475347 | AM42: 38.25059073 | AN42: 38.26728237 | AO42: 38.25059073 | AP42: 38.26279043 | AQ42: 38.29635464 | AR42: 38.25059073 | AS42: 38.25059073 | AV42: =IF(AL42>VCP!$E$29,AL42*VCP!$E$28,AL42) -> 38.29475347 | AW42: =IF(AM42>VCP!$E$29,AM42*VCP!$E$28,AM42) -> 38.25059073 | AX42: =IF(AN42>VCP!$E$29,AN42*VCP!$E$28,AN42) -> 38.26728237 | AY42: =IF(AO42>VCP!$E$29,AO42*VCP!$E$28,AO42) -> 38.25059073 | AZ42: =IF(AP42>VCP!$E$29,AP42*VCP!$E$28,AP42) -> 38.26279043 | BA42: =IF(AQ42>VCP!$E$29,AQ42*VCP!$E$28,AQ42) -> 38.29635464 | BB42: =IF(AR42>VCP!$E$29,AR42*VCP!$E$28,AR42) -> 38.25059073 | BC42: =IF(AS42>VCP!$E$29,AS42*VCP!$E$28,AS42) -> 38.25059073
A43: 41 | B43: 10.5 | C43: 8.694446 | D43: 7.2 | E43: 80 | F43: 5.5 | G43: 240 | H43: 90 | I43: 7 | L43: =IF($K$2=0,D43*ATAN(0.151977*(E43+8.313659)^0.5)+ATAN(D43+E43)-ATAN(E43-1.676331)+0.00391838*(E43)^(3/2)*ATAN(0.023101*E43)-4.686035,'Weather data'!C43) -> 8.694446 | M43: 0.07777777778 | N43: 6.951 | O43: 0.049 | R43: =O44*'Qsol calculation'!N43 -> 0 | S43: =O44*'Qsol calculation'!O43 -> 0 | T43: =O44*'Qsol calculation'!P43 -> 0 | U43: =O44*'Qsol calculation'!Q43 -> 0 | V43: =O44*'Qsol calculation'!R43 -> 0 | W43: =O44*'Qsol calculation'!S43 -> 0 | X43: =O44*'Qsol calculation'!T43 -> 0 | Y43: =O44*'Qsol calculation'!U43 -> 0 | AA43: 0 | AB43: 0 | AC43: 0 | AD43: 0 | AE43: 0 | AF43: 0 | AG43: 0 | AH43: 0 | AJ43: =N43*(1+COS(VCP!$N$22))/2 -> 6.123012512 | AL43: 6.123012512 | AM43: 6.123012512 | AN43: 6.123012512 | AO43: 6.123012512 | AP43: 6.123012512 | AQ43: 6.123012512 | AR43: 6.123012512 | AS43: 6.123012512 | AV43: =IF(AL43>VCP!$E$29,AL43*VCP!$E$28,AL43) -> 6.123012512 | AW43: =IF(AM43>VCP!$E$29,AM43*VCP!$E$28,AM43) -> 6.123012512 | AX43: =IF(AN43>VCP!$E$29,AN43*VCP!$E$28,AN43) -> 6.123012512 | AY43: =IF(AO43>VCP!$E$29,AO43*VCP!$E$28,AO43) -> 6.123012512 | AZ43: =IF(AP43>VCP!$E$29,AP43*VCP!$E$28,AP43) -> 6.123012512 | BA43: =IF(AQ43>VCP!$E$29,AQ43*VCP!$E$28,AQ43) -> 6.123012512 | BB43: =IF(AR43>VCP!$E$29,AR43*VCP!$E$28,AR43) -> 6.123012512 | BC43: =IF(AS43>VCP!$E$29,AS43*VCP!$E$28,AS43) -> 6.123012512
A44: 42 | B44: 9.8 | C44: 8.411111 | D44: 7.3 | E44: 84 | F44: 6.2 | G44: 240 | H44: 0 | I44: 0 | L44: =IF($K$2=0,D44*ATAN(0.151977*(E44+8.313659)^0.5)+ATAN(D44+E44)-ATAN(E44-1.676331)+0.00391838*(E44)^(3/2)*ATAN(0.023101*E44)-4.686035,'Weather data'!C44) -> 8.411111 | M44: 0 | N44: 0 | O44: 0 | R44: =O45*'Qsol calculation'!N44 -> 0 | S44: =O45*'Qsol calculation'!O44 -> 0 | T44: =O45*'Qsol calculation'!P44 -> 0 | U44: =O45*'Qsol calculation'!Q44 -> 0 | V44: =O45*'Qsol calculation'!R44 -> 0 | W44: =O45*'Qsol calculation'!S44 -> 0 | X44: =O45*'Qsol calculation'!T44 -> 0 | Y44: =O45*'Qsol calculation'!U44 -> 0 | AA44: 0 | AB44: 0 | AC44: 0 | AD44: 0 | AE44: 0 | AF44: 0 | AG44: 0 | AH44: 0 | AJ44: =N44*(1+COS(VCP!$N$22))/2 -> 0 | AL44: 0 | AM44: 0 | AN44: 0 | AO44: 0 | AP44: 0 | AQ44: 0 | AR44: 0 | AS44: 0 | AV44: =IF(AL44>VCP!$E$29,AL44*VCP!$E$28,AL44) -> 0 | AW44: =IF(AM44>VCP!$E$29,AM44*VCP!$E$28,AM44) -> 0 | AX44: =IF(AN44>VCP!$E$29,AN44*VCP!$E$28,AN44) -> 0 | AY44: =IF(AO44>VCP!$E$29,AO44*VCP!$E$28,AO44) -> 0 | AZ44: =IF(AP44>VCP!$E$29,AP44*VCP!$E$28,AP44) -> 0 | BA44: =IF(AQ44>VCP!$E$29,AQ44*VCP!$E$28,AQ44) -> 0 | BB44: =IF(AR44>VCP!$E$29,AR44*VCP!$E$28,AR44) -> 0 | BC44: =IF(AS44>VCP!$E$29,AS44*VCP!$E$28,AS44) -> 0
A45: 43 | B45: 9.9 | C45: 8.6037035 | D45: 7.4 | E45: 85 | F45: 4.8 | G45: 240 | H45: 0 | I45: 0 | L45: =IF($K$2=0,D45*ATAN(0.151977*(E45+8.313659)^0.5)+ATAN(D45+E45)-ATAN(E45-1.676331)+0.00391838*(E45)^(3/2)*ATAN(0.023101*E45)-4.686035,'Weather data'!C45) -> 8.6037035 | M45: 0 | N45: 0 | O45: 0 | R45: =O46*'Qsol calculation'!N45 -> 0 | S45: =O46*'Qsol calculation'!O45 -> 0 | T45: =O46*'Qsol calculation'!P45 -> 0 | U45: =O46*'Qsol calculation'!Q45 -> 0 | V45: =O46*'Qsol calculation'!R45 -> 0 | W45: =O46*'Qsol calculation'!S45 -> 0 | X45: =O46*'Qsol calculation'!T45 -> 0 | Y45: =O46*'Qsol calculation'!U45 -> 0 | AA45: 0 | AB45: 0 | AC45: 0 | AD45: 0 | AE45: 0 | AF45: 0 | AG45: 0 | AH45: 0 | AJ45: =N45*(1+COS(VCP!$N$22))/2 -> 0 | AL45: 0 | AM45: 0 | AN45: 0 | AO45: 0 | AP45: 0 | AQ45: 0 | AR45: 0 | AS45: 0 | AV45: =IF(AL45>VCP!$E$29,AL45*VCP!$E$28,AL45) -> 0 | AW45: =IF(AM45>VCP!$E$29,AM45*VCP!$E$28,AM45) -> 0 | AX45: =IF(AN45>VCP!$E$29,AN45*VCP!$E$28,AN45) -> 0 | AY45: =IF(AO45>VCP!$E$29,AO45*VCP!$E$28,AO45) -> 0 | AZ45: =IF(AP45>VCP!$E$29,AP45*VCP!$E$28,AP45) -> 0 | BA45: =IF(AQ45>VCP!$E$29,AQ45*VCP!$E$28,AQ45) -> 0 | BB45: =IF(AR45>VCP!$E$29,AR45*VCP!$E$28,AR45) -> 0 | BC45: =IF(AS45>VCP!$E$29,AS45*VCP!$E$28,AS45) -> 0
A46: 44 | B46: 9.9 | C46: 8.6037035 | D46: 7.6 | E46: 85 | F46: 3.5 | G46: 240 | H46: 0 | I46: 0 | L46: =IF($K$2=0,D46*ATAN(0.151977*(E46+8.313659)^0.5)+ATAN(D46+E46)-ATAN(E46-1.676331)+0.00391838*(E46)^(3/2)*ATAN(0.023101*E46)-4.686035,'Weather data'!C46) -> 8.6037035 | M46: 0 | N46: 0 | O46: 0 | R46: =O47*'Qsol calculation'!N46 -> 0 | S46: =O47*'Qsol calculation'!O46 -> 0 | T46: =O47*'Qsol calculation'!P46 -> 0 | U46: =O47*'Qsol calculation'!Q46 -> 0 | V46: =O47*'Qsol calculation'!R46 -> 0 | W46: =O47*'Qsol calculation'!S46 -> 0 | X46: =O47*'Qsol calculation'!T46 -> 0 | Y46: =O47*'Qsol calculation'!U46 -> 0 | AA46: 0 | AB46: 0 | AC46: 0 | AD46: 0 | AE46: 0 | AF46: 0 | AG46: 0 | AH46: 0 | AJ46: =N46*(1+COS(VCP!$N$22))/2 -> 0 | AL46: 0 | AM46: 0 | AN46: 0 | AO46: 0 | AP46: 0 | AQ46: 0 | AR46: 0 | AS46: 0 | AV46: =IF(AL46>VCP!$E$29,AL46*VCP!$E$28,AL46) -> 0 | AW46: =IF(AM46>VCP!$E$29,AM46*VCP!$E$28,AM46) -> 0 | AX46: =IF(AN46>VCP!$E$29,AN46*VCP!$E$28,AN46) -> 0 | AY46: =IF(AO46>VCP!$E$29,AO46*VCP!$E$28,AO46) -> 0 | AZ46: =IF(AP46>VCP!$E$29,AP46*VCP!$E$28,AP46) -> 0 | BA46: =IF(AQ46>VCP!$E$29,AQ46*VCP!$E$28,AQ46) -> 0 | BB46: =IF(AR46>VCP!$E$29,AR46*VCP!$E$28,AR46) -> 0 | BC46: =IF(AS46>VCP!$E$29,AS46*VCP!$E$28,AS46) -> 0
A47: 45 | B47: 10 | C47: 8.888889 | D47: 8 | E47: 87 | F47: 2.1 | G47: 240 | H47: 0 | I47: 0 | L47: =IF($K$2=0,D47*ATAN(0.151977*(E47+8.313659)^0.5)+ATAN(D47+E47)-ATAN(E47-1.676331)+0.00391838*(E47)^(3/2)*ATAN(0.023101*E47)-4.686035,'Weather data'!C47) -> 8.888889 | M47: 0 | N47: 0 | O47: 0 | R47: =O48*'Qsol calculation'!N47 -> 0 | S47: =O48*'Qsol calculation'!O47 -> 0 | T47: =O48*'Qsol calculation'!P47 -> 0 | U47: =O48*'Qsol calculation'!Q47 -> 0 | V47: =O48*'Qsol calculation'!R47 -> 0 | W47: =O48*'Qsol calculation'!S47 -> 0 | X47: =O48*'Qsol calculation'!T47 -> 0 | Y47: =O48*'Qsol calculation'!U47 -> 0 | AA47: 0 | AB47: 0 | AC47: 0 | AD47: 0 | AE47: 0 | AF47: 0 | AG47: 0 | AH47: 0 | AJ47: =N47*(1+COS(VCP!$N$22))/2 -> 0 | AL47: 0 | AM47: 0 | AN47: 0 | AO47: 0 | AP47: 0 | AQ47: 0 | AR47: 0 | AS47: 0 | AV47: =IF(AL47>VCP!$E$29,AL47*VCP!$E$28,AL47) -> 0 | AW47: =IF(AM47>VCP!$E$29,AM47*VCP!$E$28,AM47) -> 0 | AX47: =IF(AN47>VCP!$E$29,AN47*VCP!$E$28,AN47) -> 0 | AY47: =IF(AO47>VCP!$E$29,AO47*VCP!$E$28,AO47) -> 0 | AZ47: =IF(AP47>VCP!$E$29,AP47*VCP!$E$28,AP47) -> 0 | BA47: =IF(AQ47>VCP!$E$29,AQ47*VCP!$E$28,AQ47) -> 0 | BB47: =IF(AR47>VCP!$E$29,AR47*VCP!$E$28,AR47) -> 0 | BC47: =IF(AS47>VCP!$E$29,AS47*VCP!$E$28,AS47) -> 0
A48: 46 | B48: 10 | C48: 8.888889 | D48: 8 | E48: 87 | F48: 2.1 | G48: 290 | H48: 0 | I48: 0 | L48: =IF($K$2=0,D48*ATAN(0.151977*(E48+8.313659)^0.5)+ATAN(D48+E48)-ATAN(E48-1.676331)+0.00391838*(E48)^(3/2)*ATAN(0.023101*E48)-4.686035,'Weather data'!C48) -> 8.888889 | M48: 0 | N48: 0 | O48: 0 | R48: =O49*'Qsol calculation'!N48 -> 0 | S48: =O49*'Qsol calculation'!O48 -> 0 | T48: =O49*'Qsol calculation'!P48 -> 0 | U48: =O49*'Qsol calculation'!Q48 -> 0 | V48: =O49*'Qsol calculation'!R48 -> 0 | W48: =O49*'Qsol calculation'!S48 -> 0 | X48: =O49*'Qsol calculation'!T48 -> 0 | Y48: =O49*'Qsol calculation'!U48 -> 0 | AA48: 0 | AB48: 0 | AC48: 0 | AD48: 0 | AE48: 0 | AF48: 0 | AG48: 0 | AH48: 0 | AJ48: =N48*(1+COS(VCP!$N$22))/2 -> 0 | AL48: 0 | AM48: 0 | AN48: 0 | AO48: 0 | AP48: 0 | AQ48: 0 | AR48: 0 | AS48: 0 | AV48: =IF(AL48>VCP!$E$29,AL48*VCP!$E$28,AL48) -> 0 | AW48: =IF(AM48>VCP!$E$29,AM48*VCP!$E$28,AM48) -> 0 | AX48: =IF(AN48>VCP!$E$29,AN48*VCP!$E$28,AN48) -> 0 | AY48: =IF(AO48>VCP!$E$29,AO48*VCP!$E$28,AO48) -> 0 | AZ48: =IF(AP48>VCP!$E$29,AP48*VCP!$E$28,AP48) -> 0 | BA48: =IF(AQ48>VCP!$E$29,AQ48*VCP!$E$28,AQ48) -> 0 | BB48: =IF(AR48>VCP!$E$29,AR48*VCP!$E$28,AR48) -> 0 | BC48: =IF(AS48>VCP!$E$29,AS48*VCP!$E$28,AS48) -> 0
A49: 47 | B49: 9.6 | C49: 8.627777 | D49: 7.9 | E49: 89 | F49: 1.5 | G49: 290 | H49: 0 | I49: 0 | L49: =IF($K$2=0,D49*ATAN(0.151977*(E49+8.313659)^0.5)+ATAN(D49+E49)-ATAN(E49-1.676331)+0.00391838*(E49)^(3/2)*ATAN(0.023101*E49)-4.686035,'Weather data'!C49) -> 8.627777 | M49: 0 | N49: 0 | O49: 0 | R49: =O50*'Qsol calculation'!N49 -> 0 | S49: =O50*'Qsol calculation'!O49 -> 0 | T49: =O50*'Qsol calculation'!P49 -> 0 | U49: =O50*'Qsol calculation'!Q49 -> 0 | V49: =O50*'Qsol calculation'!R49 -> 0 | W49: =O50*'Qsol calculation'!S49 -> 0 | X49: =O50*'Qsol calculation'!T49 -> 0 | Y49: =O50*'Qsol calculation'!U49 -> 0 | AA49: 0 | AB49: 0 | AC49: 0 | AD49: 0 | AE49: 0 | AF49: 0 | AG49: 0 | AH49: 0 | AJ49: =N49*(1+COS(VCP!$N$22))/2 -> 0 | AL49: 0 | AM49: 0 | AN49: 0 | AO49: 0 | AP49: 0 | AQ49: 0 | AR49: 0 | AS49: 0 | AV49: =IF(AL49>VCP!$E$29,AL49*VCP!$E$28,AL49) -> 0 | AW49: =IF(AM49>VCP!$E$29,AM49*VCP!$E$28,AM49) -> 0 | AX49: =IF(AN49>VCP!$E$29,AN49*VCP!$E$28,AN49) -> 0 | AY49: =IF(AO49>VCP!$E$29,AO49*VCP!$E$28,AO49) -> 0 | AZ49: =IF(AP49>VCP!$E$29,AP49*VCP!$E$28,AP49) -> 0 | BA49: =IF(AQ49>VCP!$E$29,AQ49*VCP!$E$28,AQ49) -> 0 | BB49: =IF(AR49>VCP!$E$29,AR49*VCP!$E$28,AR49) -> 0 | BC49: =IF(AS49>VCP!$E$29,AS49*VCP!$E$28,AS49) -> 0
A50: 48 | B50: 9.2 | C50: 8.505554 | D50: 8 | E50: 92 | F50: 1 | G50: 300 | H50: 0 | I50: 0 | L50: =IF($K$2=0,D50*ATAN(0.151977*(E50+8.313659)^0.5)+ATAN(D50+E50)-ATAN(E50-1.676331)+0.00391838*(E50)^(3/2)*ATAN(0.023101*E50)-4.686035,'Weather data'!C50) -> 8.505554 | M50: 0 | N50: 0 | O50: 0 | R50: =O51*'Qsol calculation'!N50 -> 0 | S50: =O51*'Qsol calculation'!O50 -> 0 | T50: =O51*'Qsol calculation'!P50 -> 0 | U50: =O51*'Qsol calculation'!Q50 -> 0 | V50: =O51*'Qsol calculation'!R50 -> 0 | W50: =O51*'Qsol calculation'!S50 -> 0 | X50: =O51*'Qsol calculation'!T50 -> 0 | Y50: =O51*'Qsol calculation'!U50 -> 0 | AA50: 0 | AB50: 0 | AC50: 0 | AD50: 0 | AE50: 0 | AF50: 0 | AG50: 0 | AH50: 0 | AJ50: =N50*(1+COS(VCP!$N$22))/2 -> 0 | AL50: 0 | AM50: 0 | AN50: 0 | AO50: 0 | AP50: 0 | AQ50: 0 | AR50: 0 | AS50: 0 | AV50: =IF(AL50>VCP!$E$29,AL50*VCP!$E$28,AL50) -> 0 | AW50: =IF(AM50>VCP!$E$29,AM50*VCP!$E$28,AM50) -> 0 | AX50: =IF(AN50>VCP!$E$29,AN50*VCP!$E$28,AN50) -> 0 | AY50: =IF(AO50>VCP!$E$29,AO50*VCP!$E$28,AO50) -> 0 | AZ50: =IF(AP50>VCP!$E$29,AP50*VCP!$E$28,AP50) -> 0 | BA50: =IF(AQ50>VCP!$E$29,AQ50*VCP!$E$28,AQ50) -> 0 | BB50: =IF(AR50>VCP!$E$29,AR50*VCP!$E$28,AR50) -> 0 | BC50: =IF(AS50>VCP!$E$29,AS50*VCP!$E$28,AS50) -> 0
A51: 49 | B51: 9.6 | C51: 8.85926 | D51: 8.2 | E51: 91 | F51: 1 | G51: 300 | H51: 0 | I51: 0 | L51: =IF($K$2=0,D51*ATAN(0.151977*(E51+8.313659)^0.5)+ATAN(D51+E51)-ATAN(E51-1.676331)+0.00391838*(E51)^(3/2)*ATAN(0.023101*E51)-4.686035,'Weather data'!C51) -> 8.85926 | M51: 0 | N51: 0 | O51: 0 | R51: =O52*'Qsol calculation'!N51 -> 0 | S51: =O52*'Qsol calculation'!O51 -> 0 | T51: =O52*'Qsol calculation'!P51 -> 0 | U51: =O52*'Qsol calculation'!Q51 -> 0 | V51: =O52*'Qsol calculation'!R51 -> 0 | W51: =O52*'Qsol calculation'!S51 -> 0 | X51: =O52*'Qsol calculation'!T51 -> 0 | Y51: =O52*'Qsol calculation'!U51 -> 0 | AA51: 0 | AB51: 0 | AC51: 0 | AD51: 0 | AE51: 0 | AF51: 0 | AG51: 0 | AH51: 0 | AJ51: =N51*(1+COS(VCP!$N$22))/2 -> 0 | AL51: 0 | AM51: 0 | AN51: 0 | AO51: 0 | AP51: 0 | AQ51: 0 | AR51: 0 | AS51: 0 | AV51: =IF(AL51>VCP!$E$29,AL51*VCP!$E$28,AL51) -> 0 | AW51: =IF(AM51>VCP!$E$29,AM51*VCP!$E$28,AM51) -> 0 | AX51: =IF(AN51>VCP!$E$29,AN51*VCP!$E$28,AN51) -> 0 | AY51: =IF(AO51>VCP!$E$29,AO51*VCP!$E$28,AO51) -> 0 | AZ51: =IF(AP51>VCP!$E$29,AP51*VCP!$E$28,AP51) -> 0 | BA51: =IF(AQ51>VCP!$E$29,AQ51*VCP!$E$28,AQ51) -> 0 | BB51: =IF(AR51>VCP!$E$29,AR51*VCP!$E$28,AR51) -> 0 | BC51: =IF(AS51>VCP!$E$29,AS51*VCP!$E$28,AS51) -> 0
A52: 50 | B52: 10 | C52: 8.888889 | D52: 8 | E52: 87 | F52: 1 | G52: 150 | H52: 0 | I52: 0 | L52: =IF($K$2=0,D52*ATAN(0.151977*(E52+8.313659)^0.5)+ATAN(D52+E52)-ATAN(E52-1.676331)+0.00391838*(E52)^(3/2)*ATAN(0.023101*E52)-4.686035,'Weather data'!C52) -> 8.888889 | M52: 0 | N52: 0 | O52: 0 | R52: =O53*'Qsol calculation'!N52 -> 0 | S52: =O53*'Qsol calculation'!O52 -> 0 | T52: =O53*'Qsol calculation'!P52 -> 0 | U52: =O53*'Qsol calculation'!Q52 -> 0 | V52: =O53*'Qsol calculation'!R52 -> 0 | W52: =O53*'Qsol calculation'!S52 -> 0 | X52: =O53*'Qsol calculation'!T52 -> 0 | Y52: =O53*'Qsol calculation'!U52 -> 0 | AA52: 0 | AB52: 0 | AC52: 0 | AD52: 0 | AE52: 0 | AF52: 0 | AG52: 0 | AH52: 0 | AJ52: =N52*(1+COS(VCP!$N$22))/2 -> 0 | AL52: 0 | AM52: 0 | AN52: 0 | AO52: 0 | AP52: 0 | AQ52: 0 | AR52: 0 | AS52: 0 | AV52: =IF(AL52>VCP!$E$29,AL52*VCP!$E$28,AL52) -> 0 | AW52: =IF(AM52>VCP!$E$29,AM52*VCP!$E$28,AM52) -> 0 | AX52: =IF(AN52>VCP!$E$29,AN52*VCP!$E$28,AN52) -> 0 | AY52: =IF(AO52>VCP!$E$29,AO52*VCP!$E$28,AO52) -> 0 | AZ52: =IF(AP52>VCP!$E$29,AP52*VCP!$E$28,AP52) -> 0 | BA52: =IF(AQ52>VCP!$E$29,AQ52*VCP!$E$28,AQ52) -> 0 | BB52: =IF(AR52>VCP!$E$29,AR52*VCP!$E$28,AR52) -> 0 | BC52: =IF(AS52>VCP!$E$29,AS52*VCP!$E$28,AS52) -> 0
A53: 51 | B53: 8.8 | C53: 8.688889 | D53: 8.6 | E53: 99 | F53: 2.1 | G53: 180 | H53: 0 | I53: 0 | L53: =IF($K$2=0,D53*ATAN(0.151977*(E53+8.313659)^0.5)+ATAN(D53+E53)-ATAN(E53-1.676331)+0.00391838*(E53)^(3/2)*ATAN(0.023101*E53)-4.686035,'Weather data'!C53) -> 8.688889 | M53: 0 | N53: 0 | O53: 0 | R53: =O54*'Qsol calculation'!N53 -> 0 | S53: =O54*'Qsol calculation'!O53 -> 0 | T53: =O54*'Qsol calculation'!P53 -> 0 | U53: =O54*'Qsol calculation'!Q53 -> 0 | V53: =O54*'Qsol calculation'!R53 -> 0 | W53: =O54*'Qsol calculation'!S53 -> 0 | X53: =O54*'Qsol calculation'!T53 -> 0 | Y53: =O54*'Qsol calculation'!U53 -> 0 | AA53: 0 | AB53: 0 | AC53: 0 | AD53: 0 | AE53: 0 | AF53: 0 | AG53: 0 | AH53: 0 | AJ53: =N53*(1+COS(VCP!$N$22))/2 -> 0 | AL53: 0 | AM53: 0 | AN53: 0 | AO53: 0 | AP53: 0 | AQ53: 0 | AR53: 0 | AS53: 0 | AV53: =IF(AL53>VCP!$E$29,AL53*VCP!$E$28,AL53) -> 0 | AW53: =IF(AM53>VCP!$E$29,AM53*VCP!$E$28,AM53) -> 0 | AX53: =IF(AN53>VCP!$E$29,AN53*VCP!$E$28,AN53) -> 0 | AY53: =IF(AO53>VCP!$E$29,AO53*VCP!$E$28,AO53) -> 0 | AZ53: =IF(AP53>VCP!$E$29,AP53*VCP!$E$28,AP53) -> 0 | BA53: =IF(AQ53>VCP!$E$29,AQ53*VCP!$E$28,AQ53) -> 0 | BB53: =IF(AR53>VCP!$E$29,AR53*VCP!$E$28,AR53) -> 0 | BC53: =IF(AS53>VCP!$E$29,AS53*VCP!$E$28,AS53) -> 0
A54: 52 | B54: 8.9 | C54: 8.714816 | D54: 8.5 | E54: 98 | F54: 3.1 | G54: 180 | H54: 0 | I54: 0 | L54: =IF($K$2=0,D54*ATAN(0.151977*(E54+8.313659)^0.5)+ATAN(D54+E54)-ATAN(E54-1.676331)+0.00391838*(E54)^(3/2)*ATAN(0.023101*E54)-4.686035,'Weather data'!C54) -> 8.714816 | M54: 0 | N54: 0 | O54: 0 | R54: =O55*'Qsol calculation'!N54 -> 0 | S54: =O55*'Qsol calculation'!O54 -> 0 | T54: =O55*'Qsol calculation'!P54 -> 0 | U54: =O55*'Qsol calculation'!Q54 -> 0 | V54: =O55*'Qsol calculation'!R54 -> 0 | W54: =O55*'Qsol calculation'!S54 -> 0 | X54: =O55*'Qsol calculation'!T54 -> 0 | Y54: =O55*'Qsol calculation'!U54 -> 0 | AA54: 0 | AB54: 0 | AC54: 0 | AD54: 0 | AE54: 0 | AF54: 0 | AG54: 0 | AH54: 0 | AJ54: =N54*(1+COS(VCP!$N$22))/2 -> 0 | AL54: 0 | AM54: 0 | AN54: 0 | AO54: 0 | AP54: 0 | AQ54: 0 | AR54: 0 | AS54: 0 | AV54: =IF(AL54>VCP!$E$29,AL54*VCP!$E$28,AL54) -> 0 | AW54: =IF(AM54>VCP!$E$29,AM54*VCP!$E$28,AM54) -> 0 | AX54: =IF(AN54>VCP!$E$29,AN54*VCP!$E$28,AN54) -> 0 | AY54: =IF(AO54>VCP!$E$29,AO54*VCP!$E$28,AO54) -> 0 | AZ54: =IF(AP54>VCP!$E$29,AP54*VCP!$E$28,AP54) -> 0 | BA54: =IF(AQ54>VCP!$E$29,AQ54*VCP!$E$28,AQ54) -> 0 | BB54: =IF(AR54>VCP!$E$29,AR54*VCP!$E$28,AR54) -> 0 | BC54: =IF(AS54>VCP!$E$29,AS54*VCP!$E$28,AS54) -> 0
A55: 53 | B55: 8.9 | C55: 8.622223 | D55: 8.4 | E55: 96 | F55: 4.1 | G55: 180 | H55: 0 | I55: 0 | L55: =IF($K$2=0,D55*ATAN(0.151977*(E55+8.313659)^0.5)+ATAN(D55+E55)-ATAN(E55-1.676331)+0.00391838*(E55)^(3/2)*ATAN(0.023101*E55)-4.686035,'Weather data'!C55) -> 8.622223 | M55: 0 | N55: 0 | O55: 0 | R55: =O56*'Qsol calculation'!N55 -> 0 | S55: =O56*'Qsol calculation'!O55 -> 0 | T55: =O56*'Qsol calculation'!P55 -> 0 | U55: =O56*'Qsol calculation'!Q55 -> 0 | V55: =O56*'Qsol calculation'!R55 -> 0 | W55: =O56*'Qsol calculation'!S55 -> 0 | X55: =O56*'Qsol calculation'!T55 -> 0 | Y55: =O56*'Qsol calculation'!U55 -> 0 | AA55: 0 | AB55: 0 | AC55: 0 | AD55: 0 | AE55: 0 | AF55: 0 | AG55: 0 | AH55: 0 | AJ55: =N55*(1+COS(VCP!$N$22))/2 -> 0 | AL55: 0 | AM55: 0 | AN55: 0 | AO55: 0 | AP55: 0 | AQ55: 0 | AR55: 0 | AS55: 0 | AV55: =IF(AL55>VCP!$E$29,AL55*VCP!$E$28,AL55) -> 0 | AW55: =IF(AM55>VCP!$E$29,AM55*VCP!$E$28,AM55) -> 0 | AX55: =IF(AN55>VCP!$E$29,AN55*VCP!$E$28,AN55) -> 0 | AY55: =IF(AO55>VCP!$E$29,AO55*VCP!$E$28,AO55) -> 0 | AZ55: =IF(AP55>VCP!$E$29,AP55*VCP!$E$28,AP55) -> 0 | BA55: =IF(AQ55>VCP!$E$29,AQ55*VCP!$E$28,AQ55) -> 0 | BB55: =IF(AR55>VCP!$E$29,AR55*VCP!$E$28,AR55) -> 0 | BC55: =IF(AS55>VCP!$E$29,AS55*VCP!$E$28,AS55) -> 0
A56: 54 | B56: 9 | C56: 8.537038 | D56: 8.2 | E56: 95 | F56: 5.1 | G56: 230 | H56: 0 | I56: 0 | L56: =IF($K$2=0,D56*ATAN(0.151977*(E56+8.313659)^0.5)+ATAN(D56+E56)-ATAN(E56-1.676331)+0.00391838*(E56)^(3/2)*ATAN(0.023101*E56)-4.686035,'Weather data'!C56) -> 8.537038 | M56: 0 | N56: 0 | O56: 0 | R56: =O57*'Qsol calculation'!N56 -> 0 | S56: =O57*'Qsol calculation'!O56 -> 0 | T56: =O57*'Qsol calculation'!P56 -> 0 | U56: =O57*'Qsol calculation'!Q56 -> 0 | V56: =O57*'Qsol calculation'!R56 -> 0 | W56: =O57*'Qsol calculation'!S56 -> 0 | X56: =O57*'Qsol calculation'!T56 -> 0 | Y56: =O57*'Qsol calculation'!U56 -> 0 | AA56: 0 | AB56: 0 | AC56: 0 | AD56: 0 | AE56: 0 | AF56: 0 | AG56: 0 | AH56: 0 | AJ56: =N56*(1+COS(VCP!$N$22))/2 -> 0 | AL56: 0 | AM56: 0 | AN56: 0 | AO56: 0 | AP56: 0 | AQ56: 0 | AR56: 0 | AS56: 0 | AV56: =IF(AL56>VCP!$E$29,AL56*VCP!$E$28,AL56) -> 0 | AW56: =IF(AM56>VCP!$E$29,AM56*VCP!$E$28,AM56) -> 0 | AX56: =IF(AN56>VCP!$E$29,AN56*VCP!$E$28,AN56) -> 0 | AY56: =IF(AO56>VCP!$E$29,AO56*VCP!$E$28,AO56) -> 0 | AZ56: =IF(AP56>VCP!$E$29,AP56*VCP!$E$28,AP56) -> 0 | BA56: =IF(AQ56>VCP!$E$29,AQ56*VCP!$E$28,AQ56) -> 0 | BB56: =IF(AR56>VCP!$E$29,AR56*VCP!$E$28,AR56) -> 0 | BC56: =IF(AS56>VCP!$E$29,AS56*VCP!$E$28,AS56) -> 0
A57: 55 | B57: 8.9 | C57: 8.622223 | D57: 8.3 | E57: 96 | F57: 4.4 | G57: 230 | H57: 0 | I57: 0 | L57: =IF($K$2=0,D57*ATAN(0.151977*(E57+8.313659)^0.5)+ATAN(D57+E57)-ATAN(E57-1.676331)+0.00391838*(E57)^(3/2)*ATAN(0.023101*E57)-4.686035,'Weather data'!C57) -> 8.622223 | M57: 0 | N57: 0 | O57: 0 | R57: =O58*'Qsol calculation'!N57 -> -0.006954648993 | S57: =O58*'Qsol calculation'!O57 -> -0.005589457589 | T57: =O58*'Qsol calculation'!P57 -> -0.008870022828 | U57: =O58*'Qsol calculation'!Q57 -> 0.0009653360996 | V57: =O58*'Qsol calculation'!R57 -> 0.001524813135 | W57: =O58*'Qsol calculation'!S57 -> -0.0009653360996 | X57: =O58*'Qsol calculation'!T57 -> 0.008870022828 | Y57: =O58*'Qsol calculation'!U57 -> 0.006954648993 | AA57: 0 | AB57: 0 | AC57: 0 | AD57: 0.0009653360996 | AE57: 0.001524813135 | AF57: 0 | AG57: 0.008870022828 | AH57: 0.006954648993 | AJ57: =N57*(1+COS(VCP!$N$22))/2 -> 0 | AL57: 0 | AM57: 0 | AN57: 0 | AO57: 0.0009653360996 | AP57: 0.001524813135 | AQ57: 0 | AR57: 0.008870022828 | AS57: 0.006954648993 | AV57: =IF(AL57>VCP!$E$29,AL57*VCP!$E$28,AL57) -> 0 | AW57: =IF(AM57>VCP!$E$29,AM57*VCP!$E$28,AM57) -> 0 | AX57: =IF(AN57>VCP!$E$29,AN57*VCP!$E$28,AN57) -> 0 | AY57: =IF(AO57>VCP!$E$29,AO57*VCP!$E$28,AO57) -> 0.0009653360996 | AZ57: =IF(AP57>VCP!$E$29,AP57*VCP!$E$28,AP57) -> 0.001524813135 | BA57: =IF(AQ57>VCP!$E$29,AQ57*VCP!$E$28,AQ57) -> 0 | BB57: =IF(AR57>VCP!$E$29,AR57*VCP!$E$28,AR57) -> 0.008870022828 | BC57: =IF(AS57>VCP!$E$29,AS57*VCP!$E$28,AS57) -> 0.006954648993
A58: 56 | B58: 8.9 | C58: 8.622223 | D58: 8.4 | E58: 97 | F58: 3.8 | G58: 230 | H58: 10 | I58: 1 | L58: =IF($K$2=0,D58*ATAN(0.151977*(E58+8.313659)^0.5)+ATAN(D58+E58)-ATAN(E58-1.676331)+0.00391838*(E58)^(3/2)*ATAN(0.023101*E58)-4.686035,'Weather data'!C58) -> 8.622223 | M58: 0.1 | N58: 0.991 | O58: 0.009 | R58: =O59*'Qsol calculation'!N58 -> -0.1219326577 | S58: =O59*'Qsol calculation'!O58 -> -0.146281826 | T58: =O59*'Qsol calculation'!P58 -> -0.1896562802 | U58: =O59*'Qsol calculation'!Q58 -> -0.01721746201 | V58: =O59*'Qsol calculation'!R58 -> 0.02441424489 | W58: =O59*'Qsol calculation'!S58 -> 0.01721746201 | X58: =O59*'Qsol calculation'!T58 -> 0.1896562802 | Y58: =O59*'Qsol calculation'!U58 -> 0.1219326577 | AA58: 0 | AB58: 0 | AC58: 0 | AD58: 0 | AE58: 0.02441424489 | AF58: 0.01721746201 | AG58: 0.1896562802 | AH58: 0.1219326577 | AJ58: =N58*(1+COS(VCP!$N$22))/2 -> 0.8729543086 | AL58: 0.8729543086 | AM58: 0.8729543086 | AN58: 0.8729543086 | AO58: 0.8729543086 | AP58: 0.8973685535 | AQ58: 0.8901717706 | AR58: 1.062610589 | AS58: 0.9948869663 | AV58: =IF(AL58>VCP!$E$29,AL58*VCP!$E$28,AL58) -> 0.8729543086 | AW58: =IF(AM58>VCP!$E$29,AM58*VCP!$E$28,AM58) -> 0.8729543086 | AX58: =IF(AN58>VCP!$E$29,AN58*VCP!$E$28,AN58) -> 0.8729543086 | AY58: =IF(AO58>VCP!$E$29,AO58*VCP!$E$28,AO58) -> 0.8729543086 | AZ58: =IF(AP58>VCP!$E$29,AP58*VCP!$E$28,AP58) -> 0.8973685535 | BA58: =IF(AQ58>VCP!$E$29,AQ58*VCP!$E$28,AQ58) -> 0.8901717706 | BB58: =IF(AR58>VCP!$E$29,AR58*VCP!$E$28,AR58) -> 1.062610589 | BC58: =IF(AS58>VCP!$E$29,AS58*VCP!$E$28,AS58) -> 0.9948869663
A59: 57 | B59: 8.8 | C59: 8.522222 | D59: 8.4 | E59: 97 | F59: 3.1 | G59: 200 | H59: 182 | I59: 20 | L59: =IF($K$2=0,D59*ATAN(0.151977*(E59+8.313659)^0.5)+ATAN(D59+E59)-ATAN(E59-1.676331)+0.00391838*(E59)^(3/2)*ATAN(0.023101*E59)-4.686035,'Weather data'!C59) -> 8.522222 | M59: 0.1098901099 | N59: 19.8021978 | O59: 0.1978021978 | R59: =O60*'Qsol calculation'!N59 -> -0.3826854735 | S59: =O60*'Qsol calculation'!O59 -> -0.75761169 | T59: =O60*'Qsol calculation'!P59 -> -0.8063118569 | U59: =O60*'Qsol calculation'!Q59 -> -0.2651128701 | V59: =O60*'Qsol calculation'!R59 -> 0.08161433658 | W59: =O60*'Qsol calculation'!S59 -> 0.2651128701 | X59: =O60*'Qsol calculation'!T59 -> 0.8063118569 | Y59: =O60*'Qsol calculation'!U59 -> 0.3826854735 | AA59: 0 | AB59: 0 | AC59: 0 | AD59: 0 | AE59: 0.08161433658 | AF59: 0.2651128701 | AG59: 0.8063118569 | AH59: 0.3826854735 | AJ59: =N59*(1+COS(VCP!$N$22))/2 -> 17.44340453 | AL59: 17.44340453 | AM59: 17.44340453 | AN59: 17.44340453 | AO59: 17.44340453 | AP59: 17.52501887 | AQ59: 17.7085174 | AR59: 18.24971639 | AS59: 17.82609001 | AV59: =IF(AL59>VCP!$E$29,AL59*VCP!$E$28,AL59) -> 17.44340453 | AW59: =IF(AM59>VCP!$E$29,AM59*VCP!$E$28,AM59) -> 17.44340453 | AX59: =IF(AN59>VCP!$E$29,AN59*VCP!$E$28,AN59) -> 17.44340453 | AY59: =IF(AO59>VCP!$E$29,AO59*VCP!$E$28,AO59) -> 17.44340453 | AZ59: =IF(AP59>VCP!$E$29,AP59*VCP!$E$28,AP59) -> 17.52501887 | BA59: =IF(AQ59>VCP!$E$29,AQ59*VCP!$E$28,AQ59) -> 17.7085174 | BB59: =IF(AR59>VCP!$E$29,AR59*VCP!$E$28,AR59) -> 18.24971639 | BC59: =IF(AS59>VCP!$E$29,AS59*VCP!$E$28,AS59) -> 17.82609001
A60: 58 | B60: 9 | C60: 8.722222 | D60: 8.4 | E60: 96 | F60: 3.8 | G60: 200 | H60: 378 | I60: 62 | L60: =IF($K$2=0,D60*ATAN(0.151977*(E60+8.313659)^0.5)+ATAN(D60+E60)-ATAN(E60-1.676331)+0.00391838*(E60)^(3/2)*ATAN(0.023101*E60)-4.686035,'Weather data'!C60) -> 8.722222 | M60: 0.164021164 | N60: 61.0847619 | O60: 0.9152380952 | R60: =O61*'Qsol calculation'!N60 -> -0.3155926955 | S60: =O61*'Qsol calculation'!O60 -> -1.451194993 | T60: =O61*'Qsol calculation'!P60 -> -1.249307555 | U60: =O61*'Qsol calculation'!Q60 -> -0.8029920852 | V60: =O61*'Qsol calculation'!R60 -> 0.1138080891 | W60: =O61*'Qsol calculation'!S60 -> 0.8029920852 | X60: =O61*'Qsol calculation'!T60 -> 1.249307555 | Y60: =O61*'Qsol calculation'!U60 -> 0.3155926955 | AA60: 0 | AB60: 0 | AC60: 0 | AD60: 0 | AE60: 0.1138080891 | AF60: 0.8029920852 | AG60: 1.249307555 | AH60: 0.3155926955 | AJ60: =N60*(1+COS(VCP!$N$22))/2 -> 53.80848244 | AL60: 53.80848244 | AM60: 53.80848244 | AN60: 53.80848244 | AO60: 53.80848244 | AP60: 53.92229052 | AQ60: 54.61147452 | AR60: 55.05778999 | AS60: 54.12407513 | AV60: =IF(AL60>VCP!$E$29,AL60*VCP!$E$28,AL60) -> 32.28508946 | AW60: =IF(AM60>VCP!$E$29,AM60*VCP!$E$28,AM60) -> 32.28508946 | AX60: =IF(AN60>VCP!$E$29,AN60*VCP!$E$28,AN60) -> 32.28508946 | AY60: =IF(AO60>VCP!$E$29,AO60*VCP!$E$28,AO60) -> 32.28508946 | AZ60: =IF(AP60>VCP!$E$29,AP60*VCP!$E$28,AP60) -> 32.35337431 | BA60: =IF(AQ60>VCP!$E$29,AQ60*VCP!$E$28,AQ60) -> 32.76688471 | BB60: =IF(AR60>VCP!$E$29,AR60*VCP!$E$28,AR60) -> 33.03467399 | BC60: =IF(AS60>VCP!$E$29,AS60*VCP!$E$28,AS60) -> 32.47444508
A61: 59 | B61: 9.2 | C61: 8.737037 | D61: 8.3 | E61: 94 | F61: 4.4 | G61: 200 | H61: 524 | I61: 98 | L61: =IF($K$2=0,D61*ATAN(0.151977*(E61+8.313659)^0.5)+ATAN(D61+E61)-ATAN(E61-1.676331)+0.00391838*(E61)^(3/2)*ATAN(0.023101*E61)-4.686035,'Weather data'!C61) -> 8.737037 | M61: 0.1870229008 | N61: 96.35045802 | O61: 1.649541985 | R61: =O62*'Qsol calculation'!N61 -> 0.1030895962 | S61: =O62*'Qsol calculation'!O61 -> -1.894998251 | T61: =O62*'Qsol calculation'!P61 -> -1.267070761 | U61: =O62*'Qsol calculation'!Q61 -> -1.412861466 | V61: =O62*'Qsol calculation'!R61 -> 0.1365380955 | W61: =O62*'Qsol calculation'!S61 -> 1.412861466 | X61: =O62*'Qsol calculation'!T61 -> 1.267070761 | Y61: =O62*'Qsol calculation'!U61 -> -0.1030895962 | AA61: 0.1030895962 | AB61: 0 | AC61: 0 | AD61: 0 | AE61: 0.1365380955 | AF61: 1.412861466 | AG61: 1.267070761 | AH61: 0 | AJ61: =N61*(1+COS(VCP!$N$22))/2 -> 84.87340813 | AL61: 84.97649773 | AM61: 84.87340813 | AN61: 84.87340813 | AO61: 84.87340813 | AP61: 85.00994623 | AQ61: 86.2862696 | AR61: 86.14047889 | AS61: 84.87340813 | AV61: =IF(AL61>VCP!$E$29,AL61*VCP!$E$28,AL61) -> 50.98589864 | AW61: =IF(AM61>VCP!$E$29,AM61*VCP!$E$28,AM61) -> 50.92404488 | AX61: =IF(AN61>VCP!$E$29,AN61*VCP!$E$28,AN61) -> 50.92404488 | AY61: =IF(AO61>VCP!$E$29,AO61*VCP!$E$28,AO61) -> 50.92404488 | AZ61: =IF(AP61>VCP!$E$29,AP61*VCP!$E$28,AP61) -> 51.00596774 | BA61: =IF(AQ61>VCP!$E$29,AQ61*VCP!$E$28,AQ61) -> 51.77176176 | BB61: =IF(AR61>VCP!$E$29,AR61*VCP!$E$28,AR61) -> 51.68428734 | BC61: =IF(AS61>VCP!$E$29,AS61*VCP!$E$28,AS61) -> 50.92404488
A62: 60 | B62: 9.4 | C62: 8.705555 | D62: 8.2 | E62: 92 | F62: 5.1 | G62: 200 | H62: 610 | I62: 120 | L62: =IF($K$2=0,D62*ATAN(0.151977*(E62+8.313659)^0.5)+ATAN(D62+E62)-ATAN(E62-1.676331)+0.00391838*(E62)^(3/2)*ATAN(0.023101*E62)-4.686035,'Weather data'!C62) -> 8.705555 | M62: 0.1967213115 | N62: 117.8754098 | O62: 2.124590164 | R62: =O63*'Qsol calculation'!N62 -> 0.6454890568 | S62: =O63*'Qsol calculation'!O62 -> -1.955278649 | T62: =O63*'Qsol calculation'!P62 -> -0.9261611026 | U62: =O63*'Qsol calculation'!Q62 -> -1.839020481 | V62: =O63*'Qsol calculation'!R62 -> 0.1705337558 | W62: =O63*'Qsol calculation'!S62 -> 1.839020481 | X62: =O63*'Qsol calculation'!T62 -> 0.9261611026 | Y62: =O63*'Qsol calculation'!U62 -> -0.6454890568 | AA62: 0.6454890568 | AB62: 0 | AC62: 0 | AD62: 0 | AE62: 0.1705337558 | AF62: 1.839020481 | AG62: 0.9261611026 | AH62: 0 | AJ62: =N62*(1+COS(VCP!$N$22))/2 -> 103.8343561 | AL62: 104.4798452 | AM62: 103.8343561 | AN62: 103.8343561 | AO62: 103.8343561 | AP62: 104.0048899 | AQ62: 105.6733766 | AR62: 104.7605172 | AS62: 103.8343561 | AV62: =IF(AL62>VCP!$E$29,AL62*VCP!$E$28,AL62) -> 62.68790709 | AW62: =IF(AM62>VCP!$E$29,AM62*VCP!$E$28,AM62) -> 62.30061366 | AX62: =IF(AN62>VCP!$E$29,AN62*VCP!$E$28,AN62) -> 62.30061366 | AY62: =IF(AO62>VCP!$E$29,AO62*VCP!$E$28,AO62) -> 62.30061366 | AZ62: =IF(AP62>VCP!$E$29,AP62*VCP!$E$28,AP62) -> 62.40293391 | BA62: =IF(AQ62>VCP!$E$29,AQ62*VCP!$E$28,AQ62) -> 63.40402595 | BB62: =IF(AR62>VCP!$E$29,AR62*VCP!$E$28,AR62) -> 62.85631032 | BC62: =IF(AS62>VCP!$E$29,AS62*VCP!$E$28,AS62) -> 62.30061366
A63: 61 | B63: 9.9 | C63: 9.066667 | D63: 8.3 | E63: 90 | F63: 5.6 | G63: 200 | H63: 631 | I63: 126 | L63: =IF($K$2=0,D63*ATAN(0.151977*(E63+8.313659)^0.5)+ATAN(D63+E63)-ATAN(E63-1.676331)+0.00391838*(E63)^(3/2)*ATAN(0.023101*E63)-4.686035,'Weather data'!C63) -> 9.066667 | M63: 0.1996830428 | N63: 123.7355943 | O63: 2.264405705 | R63: =O64*'Qsol calculation'!N63 -> 0.9881817633 | S63: =O64*'Qsol calculation'!O63 -> -1.567058575 | T63: =O64*'Qsol calculation'!P63 -> -0.4093277193 | U63: =O64*'Qsol calculation'!Q63 -> -1.806827771 | V63: =O64*'Qsol calculation'!R63 -> 0.1994902824 | W63: =O64*'Qsol calculation'!S63 -> 1.806827771 | X63: =O64*'Qsol calculation'!T63 -> 0.4093277193 | Y63: =O64*'Qsol calculation'!U63 -> -0.9881817633 | AA63: 0.9881817633 | AB63: 0 | AC63: 0 | AD63: 0 | AE63: 0.1994902824 | AF63: 1.806827771 | AG63: 0.4093277193 | AH63: 0 | AJ63: =N63*(1+COS(VCP!$N$22))/2 -> 108.9964886 | AL63: 109.9846703 | AM63: 108.9964886 | AN63: 108.9964886 | AO63: 108.9964886 | AP63: 109.1959788 | AQ63: 110.8033163 | AR63: 109.4058163 | AS63: 108.9964886 | AV63: =IF(AL63>VCP!$E$29,AL63*VCP!$E$28,AL63) -> 65.9908022 | AW63: =IF(AM63>VCP!$E$29,AM63*VCP!$E$28,AM63) -> 65.39789314 | AX63: =IF(AN63>VCP!$E$29,AN63*VCP!$E$28,AN63) -> 65.39789314 | AY63: =IF(AO63>VCP!$E$29,AO63*VCP!$E$28,AO63) -> 65.39789314 | AZ63: =IF(AP63>VCP!$E$29,AP63*VCP!$E$28,AP63) -> 65.51758731 | BA63: =IF(AQ63>VCP!$E$29,AQ63*VCP!$E$28,AQ63) -> 66.4819898 | BB63: =IF(AR63>VCP!$E$29,AR63*VCP!$E$28,AR63) -> 65.64348977 | BC63: =IF(AS63>VCP!$E$29,AS63*VCP!$E$28,AS63) -> 65.39789314
A64: 62 | B64: 10.3 | C64: 9.281483 | D64: 8.4 | E64: 88 | F64: 6.2 | G64: 200 | H64: 584 | I64: 113 | L64: =IF($K$2=0,D64*ATAN(0.151977*(E64+8.313659)^0.5)+ATAN(D64+E64)-ATAN(E64-1.676331)+0.00391838*(E64)^(3/2)*ATAN(0.023101*E64)-4.686035,'Weather data'!C64) -> 9.281483 | M64: 0.1934931507 | N64: 111.0321747 | O64: 1.967825342 | R64: =O65*'Qsol calculation'!N64 -> 0.9437689238 | S64: =O65*'Qsol calculation'!O64 -> -0.9575754384 | T64: =O65*'Qsol calculation'!P64 -> -0.009762680111 | U64: =O65*'Qsol calculation'!Q64 -> -1.344453492 | V64: =O65*'Qsol calculation'!R64 -> 0.193815179 | W64: =O65*'Qsol calculation'!S64 -> 1.344453492 | X64: =O65*'Qsol calculation'!T64 -> 0.009762680111 | Y64: =O65*'Qsol calculation'!U64 -> -0.9437689238 | AA64: 0.9437689238 | AB64: 0 | AC64: 0 | AD64: 0 | AE64: 0.193815179 | AF64: 1.344453492 | AG64: 0.009762680111 | AH64: 0 | AJ64: =N64*(1+COS(VCP!$N$22))/2 -> 97.8062717 | AL64: 98.75004063 | AM64: 97.8062717 | AN64: 97.8062717 | AO64: 97.8062717 | AP64: 98.00008688 | AQ64: 99.1507252 | AR64: 97.81603438 | AS64: 97.8062717 | AV64: =IF(AL64>VCP!$E$29,AL64*VCP!$E$28,AL64) -> 59.25002438 | AW64: =IF(AM64>VCP!$E$29,AM64*VCP!$E$28,AM64) -> 58.68376302 | AX64: =IF(AN64>VCP!$E$29,AN64*VCP!$E$28,AN64) -> 58.68376302 | AY64: =IF(AO64>VCP!$E$29,AO64*VCP!$E$28,AO64) -> 58.68376302 | AZ64: =IF(AP64>VCP!$E$29,AP64*VCP!$E$28,AP64) -> 58.80005213 | BA64: =IF(AQ64>VCP!$E$29,AQ64*VCP!$E$28,AQ64) -> 59.49043512 | BB64: =IF(AR64>VCP!$E$29,AR64*VCP!$E$28,AR64) -> 58.68962063 | BC64: =IF(AS64>VCP!$E$29,AS64*VCP!$E$28,AS64) -> 58.68376302
A65: 63 | B65: 10.8 | C65: 9.503706 | D65: 8.4 | E65: 85 | F65: 6.7 | G65: 210 | H65: 472 | I65: 85 | L65: =IF($K$2=0,D65*ATAN(0.151977*(E65+8.313659)^0.5)+ATAN(D65+E65)-ATAN(E65-1.676331)+0.00391838*(E65)^(3/2)*ATAN(0.023101*E65)-4.686035,'Weather data'!C65) -> 9.503706 | M65: 0.1800847458 | N65: 83.62235169 | O65: 1.377648305 | R65: =O66*'Qsol calculation'!N65 -> 0.4907370378 | S65: =O66*'Qsol calculation'!O65 -> -0.3385687547 | T65: =O66*'Qsol calculation'!P65 -> 0.1075992248 | U65: =O66*'Qsol calculation'!Q65 -> -0.5864077496 | V65: =O66*'Qsol calculation'!R65 -> 0.1138675744 | W65: =O66*'Qsol calculation'!S65 -> 0.5864077496 | X65: =O66*'Qsol calculation'!T65 -> -0.1075992248 | Y65: =O66*'Qsol calculation'!U65 -> -0.4907370378 | AA65: 0.4907370378 | AB65: 0 | AC65: 0.1075992248 | AD65: 0 | AE65: 0.1138675744 | AF65: 0.5864077496 | AG65: 0 | AH65: 0 | AJ65: =N65*(1+COS(VCP!$N$22))/2 -> 73.66144521 | AL65: 74.15218225 | AM65: 73.66144521 | AN65: 73.76904444 | AO65: 73.66144521 | AP65: 73.77531279 | AQ65: 74.24785296 | AR65: 73.66144521 | AS65: 73.66144521 | AV65: =IF(AL65>VCP!$E$29,AL65*VCP!$E$28,AL65) -> 44.49130935 | AW65: =IF(AM65>VCP!$E$29,AM65*VCP!$E$28,AM65) -> 44.19686713 | AX65: =IF(AN65>VCP!$E$29,AN65*VCP!$E$28,AN65) -> 44.26142666 | AY65: =IF(AO65>VCP!$E$29,AO65*VCP!$E$28,AO65) -> 44.19686713 | AZ65: =IF(AP65>VCP!$E$29,AP65*VCP!$E$28,AP65) -> 44.26518767 | BA65: =IF(AQ65>VCP!$E$29,AQ65*VCP!$E$28,AQ65) -> 44.54871178 | BB65: =IF(AR65>VCP!$E$29,AR65*VCP!$E$28,AR65) -> 44.19686713 | BC65: =IF(AS65>VCP!$E$29,AS65*VCP!$E$28,AS65) -> 44.19686713
A66: 64 | B66: 11 | C66: 9.425926 | D66: 8 | E66: 82 | F66: 6.2 | G66: 220 | H66: 305 | I66: 45 | L66: =IF($K$2=0,D66*ATAN(0.151977*(E66+8.313659)^0.5)+ATAN(D66+E66)-ATAN(E66-1.676331)+0.00391838*(E66)^(3/2)*ATAN(0.023101*E66)-4.686035,'Weather data'!C66) -> 9.425926 | M66: =IF(IFERROR(I66/H66,0)>1,0,IFERROR(I66/H66,0)) -> 0.1475409836 | N66: =IF(M66<=0.22,((1-0.09*M66)*I66),(0.9511-0.1604*M66+(4.388*(M66)^2)-(16.638*(M66)^3)+(12.336*(M66)^(4)))*I66) -> 44.40245902 | O66: =I66-N66 -> 0.5975409836 | R66: =O67*'Qsol calculation'!N66 -> 0.05583460647 | S66: =O67*'Qsol calculation'!O66 -> -0.02599225935 | T66: =O67*'Qsol calculation'!P66 -> 0.02110172602 | U66: =O67*'Qsol calculation'!Q66 -> -0.05786033171 | V66: =O67*'Qsol calculation'!R66 -> 0.01533531074 | W66: =O67*'Qsol calculation'!S66 -> 0.05786033171 | X66: =O67*'Qsol calculation'!T66 -> -0.02110172602 | Y66: =O67*'Qsol calculation'!U66 -> -0.05583460647 | AA66: 0.05583460647 | AB66: 0 | AC66: 0.02110172602 | AD66: 0 | AE66: 0.01533531074 | AF66: 0.05786033171 | AG66: 0 | AH66: 0 | AJ66: =N66*(1+COS(VCP!$N$22))/2 -> 39.11333795 | AL66: =AA66+AJ66 -> 39.16917256 | AM66: =AB66+AJ66 -> 39.11333795 | AN66: =AC66+AJ66 -> 39.13443968 | AO66: =AD66+AJ66 -> 39.11333795 | AP66: =AE66+AJ66 -> 39.12867326 | AQ66: =AF66+AJ66 -> 39.17119828 | AR66: =AG66+AJ66 -> 39.11333795 | AS66: =AH66+AJ66 -> 39.11333795 | AV66: =IF(AL66>VCP!$E$29,AL66*VCP!$E$28,AL66) -> 39.16917256 | AW66: =IF(AM66>VCP!$E$29,AM66*VCP!$E$28,AM66) -> 39.11333795 | AX66: =IF(AN66>VCP!$E$29,AN66*VCP!$E$28,AN66) -> 39.13443968 | AY66: =IF(AO66>VCP!$E$29,AO66*VCP!$E$28,AO66) -> 39.11333795 | AZ66: =IF(AP66>VCP!$E$29,AP66*VCP!$E$28,AP66) -> 39.12867326 | BA66: =IF(AQ66>VCP!$E$29,AQ66*VCP!$E$28,AQ66) -> 39.17119828 | BB66: =IF(AR66>VCP!$E$29,AR66*VCP!$E$28,AR66) -> 39.11333795 | BC66: =IF(AS66>VCP!$E$29,AS66*VCP!$E$28,AS66) -> 39.11333795
A67: 65 | B67: 10.4 | C67: 9.381483 | D67: 8.6 | E67: 88 | F67: 4.6 | G67: 220 | H67: 93 | I67: 8 | L67: =IF($K$2=0,D67*ATAN(0.151977*(E67+8.313659)^0.5)+ATAN(D67+E67)-ATAN(E67-1.676331)+0.00391838*(E67)^(3/2)*ATAN(0.023101*E67)-4.686035,'Weather data'!C67) -> 9.381483 | M67: 0.08602150538 | N67: 7.938064516 | O67: 0.06193548387 | R67: =O68*'Qsol calculation'!N67 -> 0 | S67: =O68*'Qsol calculation'!O67 -> 0 | T67: =O68*'Qsol calculation'!P67 -> 0 | U67: =O68*'Qsol calculation'!Q67 -> 0 | V67: =O68*'Qsol calculation'!R67 -> 0 | W67: =O68*'Qsol calculation'!S67 -> 0 | X67: =O68*'Qsol calculation'!T67 -> 0 | Y67: =O68*'Qsol calculation'!U67 -> 0 | AA67: =IF(R67<=0,0,R67) -> 0 | AB67: =IF(S67<=0,0,S67) -> 0 | AC67: =IF(T67<=0,0,T67) -> 0 | AD67: =IF(U67<=0,0,U67) -> 0 | AE67: =IF(V67<=0,0,V67) -> 0 | AF67: =IF(W67<=0,0,W67) -> 0 | AG67: =IF(X67<=0,0,X67) -> 0 | AH67: =IF(Y67<=0,0,Y67) -> 0 | AJ67: =N67*(1+COS(VCP!$N$22))/2 -> 6.992500122 | AL67: 6.992500122 | AM67: 6.992500122 | AN67: 6.992500122 | AO67: 6.992500122 | AP67: 6.992500122 | AQ67: 6.992500122 | AR67: 6.992500122 | AS67: 6.992500122 | AV67: =IF(AL67>VCP!$E$29,AL67*VCP!$E$28,AL67) -> 6.992500122 | AW67: =IF(AM67>VCP!$E$29,AM67*VCP!$E$28,AM67) -> 6.992500122 | AX67: =IF(AN67>VCP!$E$29,AN67*VCP!$E$28,AN67) -> 6.992500122 | AY67: =IF(AO67>VCP!$E$29,AO67*VCP!$E$28,AO67) -> 6.992500122 | AZ67: =IF(AP67>VCP!$E$29,AP67*VCP!$E$28,AP67) -> 6.992500122 | BA67: =IF(AQ67>VCP!$E$29,AQ67*VCP!$E$28,AQ67) -> 6.992500122 | BB67: =IF(AR67>VCP!$E$29,AR67*VCP!$E$28,AR67) -> 6.992500122 | BC67: =IF(AS67>VCP!$E$29,AS67*VCP!$E$28,AS67) -> 6.992500122
A68: 66 | B68: 9.8 | C68: 9.105556 | D68: 8.6 | E68: 92 | F68: 3.1 | G68: 200 | H68: 0 | I68: 0 | L68: =IF($K$2=0,D68*ATAN(0.151977*(E68+8.313659)^0.5)+ATAN(D68+E68)-ATAN(E68-1.676331)+0.00391838*(E68)^(3/2)*ATAN(0.023101*E68)-4.686035,'Weather data'!C68) -> 9.105556 | M68: 0 | N68: 0 | O68: 0 | R68: =O69*'Qsol calculation'!N68 -> 0 | S68: =O69*'Qsol calculation'!O68 -> 0 | T68: =O69*'Qsol calculation'!P68 -> 0 | U68: =O69*'Qsol calculation'!Q68 -> 0 | V68: =O69*'Qsol calculation'!R68 -> 0 | W68: =O69*'Qsol calculation'!S68 -> 0 | X68: =O69*'Qsol calculation'!T68 -> 0 | Y68: =O69*'Qsol calculation'!U68 -> 0 | AA68: 0 | AB68: 0 | AC68: 0 | AD68: 0 | AE68: 0 | AF68: 0 | AG68: 0 | AH68: 0 | AJ68: =N68*(1+COS(VCP!$N$22))/2 -> 0 | AL68: 0 | AM68: 0 | AN68: 0 | AO68: 0 | AP68: 0 | AQ68: 0 | AR68: 0 | AS68: 0 | AV68: =IF(AL68>VCP!$E$29,AL68*VCP!$E$28,AL68) -> 0 | AW68: =IF(AM68>VCP!$E$29,AM68*VCP!$E$28,AM68) -> 0 | AX68: =IF(AN68>VCP!$E$29,AN68*VCP!$E$28,AN68) -> 0 | AY68: =IF(AO68>VCP!$E$29,AO68*VCP!$E$28,AO68) -> 0 | AZ68: =IF(AP68>VCP!$E$29,AP68*VCP!$E$28,AP68) -> 0 | BA68: =IF(AQ68>VCP!$E$29,AQ68*VCP!$E$28,AQ68) -> 0 | BB68: =IF(AR68>VCP!$E$29,AR68*VCP!$E$28,AR68) -> 0 | BC68: =IF(AS68>VCP!$E$29,AS68*VCP!$E$28,AS68) -> 0
A69: 67 | B69: 9.9 | C69: 9.066667 | D69: 8.3 | E69: 90 | F69: 3.8 | G69: 200 | H69: 0 | I69: 0 | L69: =IF($K$2=0,D69*ATAN(0.151977*(E69+8.313659)^0.5)+ATAN(D69+E69)-ATAN(E69-1.676331)+0.00391838*(E69)^(3/2)*ATAN(0.023101*E69)-4.686035,'Weather data'!C69) -> 9.066667 | M69: 0 | N69: 0 | O69: 0 | R69: =O70*'Qsol calculation'!N69 -> 0 | S69: =O70*'Qsol calculation'!O69 -> 0 | T69: =O70*'Qsol calculation'!P69 -> 0 | U69: =O70*'Qsol calculation'!Q69 -> 0 | V69: =O70*'Qsol calculation'!R69 -> 0 | W69: =O70*'Qsol calculation'!S69 -> 0 | X69: =O70*'Qsol calculation'!T69 -> 0 | Y69: =O70*'Qsol calculation'!U69 -> 0 | AA69: 0 | AB69: 0 | AC69: 0 | AD69: 0 | AE69: 0 | AF69: 0 | AG69: 0 | AH69: 0 | AJ69: =N69*(1+COS(VCP!$N$22))/2 -> 0 | AL69: 0 | AM69: 0 | AN69: 0 | AO69: 0 | AP69: 0 | AQ69: 0 | AR69: 0 | AS69: 0 | AV69: =IF(AL69>VCP!$E$29,AL69*VCP!$E$28,AL69) -> 0 | AW69: =IF(AM69>VCP!$E$29,AM69*VCP!$E$28,AM69) -> 0 | AX69: =IF(AN69>VCP!$E$29,AN69*VCP!$E$28,AN69) -> 0 | AY69: =IF(AO69>VCP!$E$29,AO69*VCP!$E$28,AO69) -> 0 | AZ69: =IF(AP69>VCP!$E$29,AP69*VCP!$E$28,AP69) -> 0 | BA69: =IF(AQ69>VCP!$E$29,AQ69*VCP!$E$28,AQ69) -> 0 | BB69: =IF(AR69>VCP!$E$29,AR69*VCP!$E$28,AR69) -> 0 | BC69: =IF(AS69>VCP!$E$29,AS69*VCP!$E$28,AS69) -> 0
A70: 68 | B70: 9.9 | C70: 8.881481 | D70: 8 | E70: 88 | F70: 4.4 | G70: 200 | H70: 0 | I70: 0 | L70: =IF($K$2=0,D70*ATAN(0.151977*(E70+8.313659)^0.5)+ATAN(D70+E70)-ATAN(E70-1.676331)+0.00391838*(E70)^(3/2)*ATAN(0.023101*E70)-4.686035,'Weather data'!C70) -> 8.881481 | M70: 0 | N70: 0 | O70: 0 | R70: =O71*'Qsol calculation'!N70 -> 0 | S70: =O71*'Qsol calculation'!O70 -> 0 | T70: =O71*'Qsol calculation'!P70 -> 0 | U70: =O71*'Qsol calculation'!Q70 -> 0 | V70: =O71*'Qsol calculation'!R70 -> 0 | W70: =O71*'Qsol calculation'!S70 -> 0 | X70: =O71*'Qsol calculation'!T70 -> 0 | Y70: =O71*'Qsol calculation'!U70 -> 0 | AA70: 0 | AB70: 0 | AC70: 0 | AD70: 0 | AE70: 0 | AF70: 0 | AG70: 0 | AH70: 0 | AJ70: =N70*(1+COS(VCP!$N$22))/2 -> 0 | AL70: 0 | AM70: 0 | AN70: 0 | AO70: 0 | AP70: 0 | AQ70: 0 | AR70: 0 | AS70: 0 | AV70: =IF(AL70>VCP!$E$29,AL70*VCP!$E$28,AL70) -> 0 | AW70: =IF(AM70>VCP!$E$29,AM70*VCP!$E$28,AM70) -> 0 | AX70: =IF(AN70>VCP!$E$29,AN70*VCP!$E$28,AN70) -> 0 | AY70: =IF(AO70>VCP!$E$29,AO70*VCP!$E$28,AO70) -> 0 | AZ70: =IF(AP70>VCP!$E$29,AP70*VCP!$E$28,AP70) -> 0 | BA70: =IF(AQ70>VCP!$E$29,AQ70*VCP!$E$28,AQ70) -> 0 | BB70: =IF(AR70>VCP!$E$29,AR70*VCP!$E$28,AR70) -> 0 | BC70: =IF(AS70>VCP!$E$29,AS70*VCP!$E$28,AS70) -> 0
A71: 69 | B71: 10 | C71: 9.444445 | D71: 9 | E71: 93 | F71: 5.1 | G71: 200 | H71: 0 | I71: 0 | L71: =IF($K$2=0,D71*ATAN(0.151977*(E71+8.313659)^0.5)+ATAN(D71+E71)-ATAN(E71-1.676331)+0.00391838*(E71)^(3/2)*ATAN(0.023101*E71)-4.686035,'Weather data'!C71) -> 9.444445 | M71: 0 | N71: 0 | O71: 0 | R71: =O72*'Qsol calculation'!N71 -> 0 | S71: =O72*'Qsol calculation'!O71 -> 0 | T71: =O72*'Qsol calculation'!P71 -> 0 | U71: =O72*'Qsol calculation'!Q71 -> 0 | V71: =O72*'Qsol calculation'!R71 -> 0 | W71: =O72*'Qsol calculation'!S71 -> 0 | X71: =O72*'Qsol calculation'!T71 -> 0 | Y71: =O72*'Qsol calculation'!U71 -> 0 | AA71: 0 | AB71: 0 | AC71: 0 | AD71: 0 | AE71: 0 | AF71: 0 | AG71: 0 | AH71: 0 | AJ71: =N71*(1+COS(VCP!$N$22))/2 -> 0 | AL71: 0 | AM71: 0 | AN71: 0 | AO71: 0 | AP71: 0 | AQ71: 0 | AR71: 0 | AS71: 0 | AV71: =IF(AL71>VCP!$E$29,AL71*VCP!$E$28,AL71) -> 0 | AW71: =IF(AM71>VCP!$E$29,AM71*VCP!$E$28,AM71) -> 0 | AX71: =IF(AN71>VCP!$E$29,AN71*VCP!$E$28,AN71) -> 0 | AY71: =IF(AO71>VCP!$E$29,AO71*VCP!$E$28,AO71) -> 0 | AZ71: =IF(AP71>VCP!$E$29,AP71*VCP!$E$28,AP71) -> 0 | BA71: =IF(AQ71>VCP!$E$29,AQ71*VCP!$E$28,AQ71) -> 0 | BB71: =IF(AR71>VCP!$E$29,AR71*VCP!$E$28,AR71) -> 0 | BC71: =IF(AS71>VCP!$E$29,AS71*VCP!$E$28,AS71) -> 0
A72: 70 | B72: 9.7 | C72: 8.588888 | D72: 7.6 | E72: 87 | F72: 4.6 | G72: 200 | H72: 0 | I72: 0 | L72: =IF($K$2=0,D72*ATAN(0.151977*(E72+8.313659)^0.5)+ATAN(D72+E72)-ATAN(E72-1.676331)+0.00391838*(E72)^(3/2)*ATAN(0.023101*E72)-4.686035,'Weather data'!C72) -> 8.588888 | M72: 0 | N72: 0 | O72: 0 | R72: =O73*'Qsol calculation'!N72 -> 0 | S72: =O73*'Qsol calculation'!O72 -> 0 | T72: =O73*'Qsol calculation'!P72 -> 0 | U72: =O73*'Qsol calculation'!Q72 -> 0 | V72: =O73*'Qsol calculation'!R72 -> 0 | W72: =O73*'Qsol calculation'!S72 -> 0 | X72: =O73*'Qsol calculation'!T72 -> 0 | Y72: =O73*'Qsol calculation'!U72 -> 0 | AA72: 0 | AB72: 0 | AC72: 0 | AD72: 0 | AE72: 0 | AF72: 0 | AG72: 0 | AH72: 0 | AJ72: =N72*(1+COS(VCP!$N$22))/2 -> 0 | AL72: 0 | AM72: 0 | AN72: 0 | AO72: 0 | AP72: 0 | AQ72: 0 | AR72: 0 | AS72: 0 | AV72: =IF(AL72>VCP!$E$29,AL72*VCP!$E$28,AL72) -> 0 | AW72: =IF(AM72>VCP!$E$29,AM72*VCP!$E$28,AM72) -> 0 | AX72: =IF(AN72>VCP!$E$29,AN72*VCP!$E$28,AN72) -> 0 | AY72: =IF(AO72>VCP!$E$29,AO72*VCP!$E$28,AO72) -> 0 | AZ72: =IF(AP72>VCP!$E$29,AP72*VCP!$E$28,AP72) -> 0 | BA72: =IF(AQ72>VCP!$E$29,AQ72*VCP!$E$28,AQ72) -> 0 | BB72: =IF(AR72>VCP!$E$29,AR72*VCP!$E$28,AR72) -> 0 | BC72: =IF(AS72>VCP!$E$29,AS72*VCP!$E$28,AS72) -> 0
A73: 71 | B73: 9.3 | C73: 8.281483 | D73: 7.5 | E73: 88 | F73: 4.1 | G73: 200 | H73: 0 | I73: 0 | L73: =IF($K$2=0,D73*ATAN(0.151977*(E73+8.313659)^0.5)+ATAN(D73+E73)-ATAN(E73-1.676331)+0.00391838*(E73)^(3/2)*ATAN(0.023101*E73)-4.686035,'Weather data'!C73) -> 8.281483 | M73: 0 | N73: 0 | O73: 0 | R73: =O74*'Qsol calculation'!N73 -> 0 | S73: =O74*'Qsol calculation'!O73 -> 0 | T73: =O74*'Qsol calculation'!P73 -> 0 | U73: =O74*'Qsol calculation'!Q73 -> 0 | V73: =O74*'Qsol calculation'!R73 -> 0 | W73: =O74*'Qsol calculation'!S73 -> 0 | X73: =O74*'Qsol calculation'!T73 -> 0 | Y73: =O74*'Qsol calculation'!U73 -> 0 | AA73: 0 | AB73: 0 | AC73: 0 | AD73: 0 | AE73: 0 | AF73: 0 | AG73: 0 | AH73: 0 | AJ73: =N73*(1+COS(VCP!$N$22))/2 -> 0 | AL73: 0 | AM73: 0 | AN73: 0 | AO73: 0 | AP73: 0 | AQ73: 0 | AR73: 0 | AS73: 0 | AV73: =IF(AL73>VCP!$E$29,AL73*VCP!$E$28,AL73) -> 0 | AW73: =IF(AM73>VCP!$E$29,AM73*VCP!$E$28,AM73) -> 0 | AX73: =IF(AN73>VCP!$E$29,AN73*VCP!$E$28,AN73) -> 0 | AY73: =IF(AO73>VCP!$E$29,AO73*VCP!$E$28,AO73) -> 0 | AZ73: =IF(AP73>VCP!$E$29,AP73*VCP!$E$28,AP73) -> 0 | BA73: =IF(AQ73>VCP!$E$29,AQ73*VCP!$E$28,AQ73) -> 0 | BB73: =IF(AR73>VCP!$E$29,AR73*VCP!$E$28,AR73) -> 0 | BC73: =IF(AS73>VCP!$E$29,AS73*VCP!$E$28,AS73) -> 0
A74: 72 | B74: 9 | C74: 8.055555 | D74: 7.3 | E74: 89 | F74: 3.6 | G74: 200 | H74: 0 | I74: 0 | L74: =IF($K$2=0,D74*ATAN(0.151977*(E74+8.313659)^0.5)+ATAN(D74+E74)-ATAN(E74-1.676331)+0.00391838*(E74)^(3/2)*ATAN(0.023101*E74)-4.686035,'Weather data'!C74) -> 8.055555 | M74: 0 | N74: 0 | O74: 0 | R74: =O75*'Qsol calculation'!N74 -> 0 | S74: =O75*'Qsol calculation'!O74 -> 0 | T74: =O75*'Qsol calculation'!P74 -> 0 | U74: =O75*'Qsol calculation'!Q74 -> 0 | V74: =O75*'Qsol calculation'!R74 -> 0 | W74: =O75*'Qsol calculation'!S74 -> 0 | X74: =O75*'Qsol calculation'!T74 -> 0 | Y74: =O75*'Qsol calculation'!U74 -> 0 | AA74: 0 | AB74: 0 | AC74: 0 | AD74: 0 | AE74: 0 | AF74: 0 | AG74: 0 | AH74: 0 | AJ74: =N74*(1+COS(VCP!$N$22))/2 -> 0 | AL74: 0 | AM74: 0 | AN74: 0 | AO74: 0 | AP74: 0 | AQ74: 0 | AR74: 0 | AS74: 0 | AV74: =IF(AL74>VCP!$E$29,AL74*VCP!$E$28,AL74) -> 0 | AW74: =IF(AM74>VCP!$E$29,AM74*VCP!$E$28,AM74) -> 0 | AX74: =IF(AN74>VCP!$E$29,AN74*VCP!$E$28,AN74) -> 0 | AY74: =IF(AO74>VCP!$E$29,AO74*VCP!$E$28,AO74) -> 0 | AZ74: =IF(AP74>VCP!$E$29,AP74*VCP!$E$28,AP74) -> 0 | BA74: =IF(AQ74>VCP!$E$29,AQ74*VCP!$E$28,AQ74) -> 0 | BB74: =IF(AR74>VCP!$E$29,AR74*VCP!$E$28,AR74) -> 0 | BC74: =IF(AS74>VCP!$E$29,AS74*VCP!$E$28,AS74) -> 0
A75: 73 | B75: 8.7 | C75: 7.6814823 | D75: 6.8 | E75: 88 | F75: 3.1 | G75: 200 | H75: 0 | I75: 0 | L75: =IF($K$2=0,D75*ATAN(0.151977*(E75+8.313659)^0.5)+ATAN(D75+E75)-ATAN(E75-1.676331)+0.00391838*(E75)^(3/2)*ATAN(0.023101*E75)-4.686035,'Weather data'!C75) -> 7.6814823 | M75: 0 | N75: 0 | O75: 0 | R75: =O76*'Qsol calculation'!N75 -> 0 | S75: =O76*'Qsol calculation'!O75 -> 0 | T75: =O76*'Qsol calculation'!P75 -> 0 | U75: =O76*'Qsol calculation'!Q75 -> 0 | V75: =O76*'Qsol calculation'!R75 -> 0 | W75: =O76*'Qsol calculation'!S75 -> 0 | X75: =O76*'Qsol calculation'!T75 -> 0 | Y75: =O76*'Qsol calculation'!U75 -> 0 | AA75: 0 | AB75: 0 | AC75: 0 | AD75: 0 | AE75: 0 | AF75: 0 | AG75: 0 | AH75: 0 | AJ75: =N75*(1+COS(VCP!$N$22))/2 -> 0 | AL75: 0 | AM75: 0 | AN75: 0 | AO75: 0 | AP75: 0 | AQ75: 0 | AR75: 0 | AS75: 0 | AV75: =IF(AL75>VCP!$E$29,AL75*VCP!$E$28,AL75) -> 0 | AW75: =IF(AM75>VCP!$E$29,AM75*VCP!$E$28,AM75) -> 0 | AX75: =IF(AN75>VCP!$E$29,AN75*VCP!$E$28,AN75) -> 0 | AY75: =IF(AO75>VCP!$E$29,AO75*VCP!$E$28,AO75) -> 0 | AZ75: =IF(AP75>VCP!$E$29,AP75*VCP!$E$28,AP75) -> 0 | BA75: =IF(AQ75>VCP!$E$29,AQ75*VCP!$E$28,AQ75) -> 0 | BB75: =IF(AR75>VCP!$E$29,AR75*VCP!$E$28,AR75) -> 0 | BC75: =IF(AS75>VCP!$E$29,AS75*VCP!$E$28,AS75) -> 0
A76: 74 | B76: 8.3 | C76: 7.281484 | D76: 6.3 | E76: 87 | F76: 2.6 | G76: 200 | H76: 0 | I76: 0 | L76: =IF($K$2=0,D76*ATAN(0.151977*(E76+8.313659)^0.5)+ATAN(D76+E76)-ATAN(E76-1.676331)+0.00391838*(E76)^(3/2)*ATAN(0.023101*E76)-4.686035,'Weather data'!C76) -> 7.281484 | M76: 0 | N76: 0 | O76: 0 | R76: =O77*'Qsol calculation'!N76 -> 0 | S76: =O77*'Qsol calculation'!O76 -> 0 | T76: =O77*'Qsol calculation'!P76 -> 0 | U76: =O77*'Qsol calculation'!Q76 -> 0 | V76: =O77*'Qsol calculation'!R76 -> 0 | W76: =O77*'Qsol calculation'!S76 -> 0 | X76: =O77*'Qsol calculation'!T76 -> 0 | Y76: =O77*'Qsol calculation'!U76 -> 0 | AA76: 0 | AB76: 0 | AC76: 0 | AD76: 0 | AE76: 0 | AF76: 0 | AG76: 0 | AH76: 0 | AJ76: =N76*(1+COS(VCP!$N$22))/2 -> 0 | AL76: 0 | AM76: 0 | AN76: 0 | AO76: 0 | AP76: 0 | AQ76: 0 | AR76: 0 | AS76: 0 | AV76: =IF(AL76>VCP!$E$29,AL76*VCP!$E$28,AL76) -> 0 | AW76: =IF(AM76>VCP!$E$29,AM76*VCP!$E$28,AM76) -> 0 | AX76: =IF(AN76>VCP!$E$29,AN76*VCP!$E$28,AN76) -> 0 | AY76: =IF(AO76>VCP!$E$29,AO76*VCP!$E$28,AO76) -> 0 | AZ76: =IF(AP76>VCP!$E$29,AP76*VCP!$E$28,AP76) -> 0 | BA76: =IF(AQ76>VCP!$E$29,AQ76*VCP!$E$28,AQ76) -> 0 | BB76: =IF(AR76>VCP!$E$29,AR76*VCP!$E$28,AR76) -> 0 | BC76: =IF(AS76>VCP!$E$29,AS76*VCP!$E$28,AS76) -> 0
A77: 75 | B77: 8 | C77: 6.88889 | D77: 5.8 | E77: 86 | F77: 2.1 | G77: 250 | H77: 0 | I77: 0 | L77: =IF($K$2=0,D77*ATAN(0.151977*(E77+8.313659)^0.5)+ATAN(D77+E77)-ATAN(E77-1.676331)+0.00391838*(E77)^(3/2)*ATAN(0.023101*E77)-4.686035,'Weather data'!C77) -> 6.88889 | M77: 0 | N77: 0 | O77: 0 | R77: =O78*'Qsol calculation'!N77 -> 0 | S77: =O78*'Qsol calculation'!O77 -> 0 | T77: =O78*'Qsol calculation'!P77 -> 0 | U77: =O78*'Qsol calculation'!Q77 -> 0 | V77: =O78*'Qsol calculation'!R77 -> 0 | W77: =O78*'Qsol calculation'!S77 -> 0 | X77: =O78*'Qsol calculation'!T77 -> 0 | Y77: =O78*'Qsol calculation'!U77 -> 0 | AA77: 0 | AB77: 0 | AC77: 0 | AD77: 0 | AE77: 0 | AF77: 0 | AG77: 0 | AH77: 0 | AJ77: =N77*(1+COS(VCP!$N$22))/2 -> 0 | AL77: 0 | AM77: 0 | AN77: 0 | AO77: 0 | AP77: 0 | AQ77: 0 | AR77: 0 | AS77: 0 | AV77: =IF(AL77>VCP!$E$29,AL77*VCP!$E$28,AL77) -> 0 | AW77: =IF(AM77>VCP!$E$29,AM77*VCP!$E$28,AM77) -> 0 | AX77: =IF(AN77>VCP!$E$29,AN77*VCP!$E$28,AN77) -> 0 | AY77: =IF(AO77>VCP!$E$29,AO77*VCP!$E$28,AO77) -> 0 | AZ77: =IF(AP77>VCP!$E$29,AP77*VCP!$E$28,AP77) -> 0 | BA77: =IF(AQ77>VCP!$E$29,AQ77*VCP!$E$28,AQ77) -> 0 | BB77: =IF(AR77>VCP!$E$29,AR77*VCP!$E$28,AR77) -> 0 | BC77: =IF(AS77>VCP!$E$29,AS77*VCP!$E$28,AS77) -> 0
A78: 76 | B78: 7.6 | C78: 6.211111 | D78: 4.8 | E78: 82 | F78: 3.1 | G78: 250 | H78: 0 | I78: 0 | L78: =IF($K$2=0,D78*ATAN(0.151977*(E78+8.313659)^0.5)+ATAN(D78+E78)-ATAN(E78-1.676331)+0.00391838*(E78)^(3/2)*ATAN(0.023101*E78)-4.686035,'Weather data'!C78) -> 6.211111 | M78: 0 | N78: 0 | O78: 0 | R78: =O79*'Qsol calculation'!N78 -> 0 | S78: =O79*'Qsol calculation'!O78 -> 0 | T78: =O79*'Qsol calculation'!P78 -> 0 | U78: =O79*'Qsol calculation'!Q78 -> 0 | V78: =O79*'Qsol calculation'!R78 -> 0 | W78: =O79*'Qsol calculation'!S78 -> 0 | X78: =O79*'Qsol calculation'!T78 -> 0 | Y78: =O79*'Qsol calculation'!U78 -> 0 | AA78: 0 | AB78: 0 | AC78: 0 | AD78: 0 | AE78: 0 | AF78: 0 | AG78: 0 | AH78: 0 | AJ78: =N78*(1+COS(VCP!$N$22))/2 -> 0 | AL78: 0 | AM78: 0 | AN78: 0 | AO78: 0 | AP78: 0 | AQ78: 0 | AR78: 0 | AS78: 0 | AV78: =IF(AL78>VCP!$E$29,AL78*VCP!$E$28,AL78) -> 0 | AW78: =IF(AM78>VCP!$E$29,AM78*VCP!$E$28,AM78) -> 0 | AX78: =IF(AN78>VCP!$E$29,AN78*VCP!$E$28,AN78) -> 0 | AY78: =IF(AO78>VCP!$E$29,AO78*VCP!$E$28,AO78) -> 0 | AZ78: =IF(AP78>VCP!$E$29,AP78*VCP!$E$28,AP78) -> 0 | BA78: =IF(AQ78>VCP!$E$29,AQ78*VCP!$E$28,AQ78) -> 0 | BB78: =IF(AR78>VCP!$E$29,AR78*VCP!$E$28,AR78) -> 0 | BC78: =IF(AS78>VCP!$E$29,AS78*VCP!$E$28,AS78) -> 0
A79: 77 | B79: 7.2 | C79: 5.533333 | D79: 3.6 | E79: 78 | F79: 4.1 | G79: 250 | H79: 0 | I79: 0 | L79: =IF($K$2=0,D79*ATAN(0.151977*(E79+8.313659)^0.5)+ATAN(D79+E79)-ATAN(E79-1.676331)+0.00391838*(E79)^(3/2)*ATAN(0.023101*E79)-4.686035,'Weather data'!C79) -> 5.533333 | M79: 0 | N79: 0 | O79: 0 | R79: =O80*'Qsol calculation'!N79 -> 0 | S79: =O80*'Qsol calculation'!O79 -> 0 | T79: =O80*'Qsol calculation'!P79 -> 0 | U79: =O80*'Qsol calculation'!Q79 -> 0 | V79: =O80*'Qsol calculation'!R79 -> 0 | W79: =O80*'Qsol calculation'!S79 -> 0 | X79: =O80*'Qsol calculation'!T79 -> 0 | Y79: =O80*'Qsol calculation'!U79 -> 0 | AA79: 0 | AB79: 0 | AC79: 0 | AD79: 0 | AE79: 0 | AF79: 0 | AG79: 0 | AH79: 0 | AJ79: =N79*(1+COS(VCP!$N$22))/2 -> 0 | AL79: 0 | AM79: 0 | AN79: 0 | AO79: 0 | AP79: 0 | AQ79: 0 | AR79: 0 | AS79: 0 | AV79: =IF(AL79>VCP!$E$29,AL79*VCP!$E$28,AL79) -> 0 | AW79: =IF(AM79>VCP!$E$29,AM79*VCP!$E$28,AM79) -> 0 | AX79: =IF(AN79>VCP!$E$29,AN79*VCP!$E$28,AN79) -> 0 | AY79: =IF(AO79>VCP!$E$29,AO79*VCP!$E$28,AO79) -> 0 | AZ79: =IF(AP79>VCP!$E$29,AP79*VCP!$E$28,AP79) -> 0 | BA79: =IF(AQ79>VCP!$E$29,AQ79*VCP!$E$28,AQ79) -> 0 | BB79: =IF(AR79>VCP!$E$29,AR79*VCP!$E$28,AR79) -> 0 | BC79: =IF(AS79>VCP!$E$29,AS79*VCP!$E$28,AS79) -> 0
A80: 78 | B80: 6.8 | C80: 4.67037 | D80: 2.4 | E80: 73 | F80: 5.1 | G80: 300 | H80: 0 | I80: 0 | L80: =IF($K$2=0,D80*ATAN(0.151977*(E80+8.313659)^0.5)+ATAN(D80+E80)-ATAN(E80-1.676331)+0.00391838*(E80)^(3/2)*ATAN(0.023101*E80)-4.686035,'Weather data'!C80) -> 4.67037 | M80: 0 | N80: 0 | O80: 0 | R80: =O81*'Qsol calculation'!N80 -> 0 | S80: =O81*'Qsol calculation'!O80 -> 0 | T80: =O81*'Qsol calculation'!P80 -> 0 | U80: =O81*'Qsol calculation'!Q80 -> 0 | V80: =O81*'Qsol calculation'!R80 -> 0 | W80: =O81*'Qsol calculation'!S80 -> 0 | X80: =O81*'Qsol calculation'!T80 -> 0 | Y80: =O81*'Qsol calculation'!U80 -> 0 | AA80: 0 | AB80: 0 | AC80: 0 | AD80: 0 | AE80: 0 | AF80: 0 | AG80: 0 | AH80: 0 | AJ80: =N80*(1+COS(VCP!$N$22))/2 -> 0 | AL80: 0 | AM80: 0 | AN80: 0 | AO80: 0 | AP80: 0 | AQ80: 0 | AR80: 0 | AS80: 0 | AV80: =IF(AL80>VCP!$E$29,AL80*VCP!$E$28,AL80) -> 0 | AW80: =IF(AM80>VCP!$E$29,AM80*VCP!$E$28,AM80) -> 0 | AX80: =IF(AN80>VCP!$E$29,AN80*VCP!$E$28,AN80) -> 0 | AY80: =IF(AO80>VCP!$E$29,AO80*VCP!$E$28,AO80) -> 0 | AZ80: =IF(AP80>VCP!$E$29,AP80*VCP!$E$28,AP80) -> 0 | BA80: =IF(AQ80>VCP!$E$29,AQ80*VCP!$E$28,AQ80) -> 0 | BB80: =IF(AR80>VCP!$E$29,AR80*VCP!$E$28,AR80) -> 0 | BC80: =IF(AS80>VCP!$E$29,AS80*VCP!$E$28,AS80) -> 0
A81: 79 | B81: 6.5 | C81: 4.833334 | D81: 3 | E81: 78 | F81: 5.8 | G81: 300 | H81: 0 | I81: 0 | L81: =IF($K$2=0,D81*ATAN(0.151977*(E81+8.313659)^0.5)+ATAN(D81+E81)-ATAN(E81-1.676331)+0.00391838*(E81)^(3/2)*ATAN(0.023101*E81)-4.686035,'Weather data'!C81) -> 4.833334 | M81: 0 | N81: 0 | O81: 0 | R81: =O82*'Qsol calculation'!N81 -> -0.02787246055 | S81: =O82*'Qsol calculation'!O81 -> -0.02228968899 | T81: =O82*'Qsol calculation'!P81 -> -0.0354699961 | U81: =O82*'Qsol calculation'!Q81 -> 0.003947615627 | V81: =O82*'Qsol calculation'!R81 -> 0.006085521694 | W81: =O82*'Qsol calculation'!S81 -> -0.003947615627 | X81: =O82*'Qsol calculation'!T81 -> 0.0354699961 | Y81: =O82*'Qsol calculation'!U81 -> 0.02787246055 | AA81: 0 | AB81: 0 | AC81: 0 | AD81: 0.003947615627 | AE81: 0.006085521694 | AF81: 0 | AG81: 0.0354699961 | AH81: 0.02787246055 | AJ81: =N81*(1+COS(VCP!$N$22))/2 -> 0 | AL81: 0 | AM81: 0 | AN81: 0 | AO81: 0.003947615627 | AP81: 0.006085521694 | AQ81: 0 | AR81: 0.0354699961 | AS81: 0.02787246055 | AV81: =IF(AL81>VCP!$E$29,AL81*VCP!$E$28,AL81) -> 0 | AW81: =IF(AM81>VCP!$E$29,AM81*VCP!$E$28,AM81) -> 0 | AX81: =IF(AN81>VCP!$E$29,AN81*VCP!$E$28,AN81) -> 0 | AY81: =IF(AO81>VCP!$E$29,AO81*VCP!$E$28,AO81) -> 0.003947615627 | AZ81: =IF(AP81>VCP!$E$29,AP81*VCP!$E$28,AP81) -> 0.006085521694 | BA81: =IF(AQ81>VCP!$E$29,AQ81*VCP!$E$28,AQ81) -> 0 | BB81: =IF(AR81>VCP!$E$29,AR81*VCP!$E$28,AR81) -> 0.0354699961 | BC81: =IF(AS81>VCP!$E$29,AS81*VCP!$E$28,AS81) -> 0.02787246055
A82: 80 | B82: 6.1 | C82: 4.8037043 | D82: 3.5 | E82: 83 | F82: 6.5 | G82: 300 | H82: 10 | I82: 2 | L82: =IF($K$2=0,D82*ATAN(0.151977*(E82+8.313659)^0.5)+ATAN(D82+E82)-ATAN(E82-1.676331)+0.00391838*(E82)^(3/2)*ATAN(0.023101*E82)-4.686035,'Weather data'!C82) -> 4.8037043 | M82: 0.2 | N82: 1.964 | O82: 0.036 | R82: =O83*'Qsol calculation'!N82 -> -3.56827484 | S82: =O83*'Qsol calculation'!O82 -> -4.259467674 | T82: =O83*'Qsol calculation'!P82 -> -5.535049813 | U82: =O83*'Qsol calculation'!Q82 -> -0.4887471402 | V82: =O83*'Qsol calculation'!R82 -> 0.7106816629 | W82: =O83*'Qsol calculation'!S82 -> 0.4887471402 | X82: =O83*'Qsol calculation'!T82 -> 5.535049813 | Y82: =O83*'Qsol calculation'!U82 -> 3.56827484 | AA82: 0 | AB82: 0 | AC82: 0 | AD82: 0 | AE82: 0.7106816629 | AF82: 0.4887471402 | AG82: 5.535049813 | AH82: 3.56827484 | AJ82: =N82*(1+COS(VCP!$N$22))/2 -> 1.730052737 | AL82: 1.730052737 | AM82: 1.730052737 | AN82: 1.730052737 | AO82: 1.730052737 | AP82: 2.4407344 | AQ82: 2.218799877 | AR82: 7.26510255 | AS82: 5.298327577 | AV82: =IF(AL82>VCP!$E$29,AL82*VCP!$E$28,AL82) -> 1.730052737 | AW82: =IF(AM82>VCP!$E$29,AM82*VCP!$E$28,AM82) -> 1.730052737 | AX82: =IF(AN82>VCP!$E$29,AN82*VCP!$E$28,AN82) -> 1.730052737 | AY82: =IF(AO82>VCP!$E$29,AO82*VCP!$E$28,AO82) -> 1.730052737 | AZ82: =IF(AP82>VCP!$E$29,AP82*VCP!$E$28,AP82) -> 2.4407344 | BA82: =IF(AQ82>VCP!$E$29,AQ82*VCP!$E$28,AQ82) -> 2.218799877 | BB82: =IF(AR82>VCP!$E$29,AR82*VCP!$E$28,AR82) -> 7.26510255 | BC82: =IF(AS82>VCP!$E$29,AS82*VCP!$E$28,AS82) -> 5.298327577
A83: 81 | B83: 5.8 | C83: 4.966668 | D83: 4 | E83: 88 | F83: 7.2 | G83: 290 | H83: 182 | I83: 63 | L83: =IF($K$2=0,D83*ATAN(0.151977*(E83+8.313659)^0.5)+ATAN(D83+E83)-ATAN(E83-1.676331)+0.00391838*(E83)^(3/2)*ATAN(0.023101*E83)-4.686035,'Weather data'!C83) -> 4.966668 | M83: 0.3461538462 | N83: 57.2277295 | O83: 5.7722705 | R83: =O84*'Qsol calculation'!N83 -> -32.94845417 | S83: =O84*'Qsol calculation'!O83 -> -64.83701614 | T83: =O84*'Qsol calculation'!P83 -> -69.14476916 | U83: =O84*'Qsol calculation'!Q83 -> -22.54861841 | V83: =O84*'Qsol calculation'!R83 -> 6.972789245 | W83: =O84*'Qsol calculation'!S83 -> 22.54861841 | X83: =O84*'Qsol calculation'!T83 -> 69.14476916 | Y83: =O84*'Qsol calculation'!U83 -> 32.94845417 | AA83: 0 | AB83: 0 | AC83: 0 | AD83: 0 | AE83: 6.972789245 | AF83: 22.54861841 | AG83: 69.14476916 | AH83: 32.94845417 | AJ83: =N83*(1+COS(VCP!$N$22))/2 -> 50.41089106 | AL83: 50.41089106 | AM83: 50.41089106 | AN83: 50.41089106 | AO83: 50.41089106 | AP83: 57.3836803 | AQ83: 72.95950947 | AR83: 119.5556602 | AS83: 83.35934523 | AV83: =IF(AL83>VCP!$E$29,AL83*VCP!$E$28,AL83) -> 30.24653463 | AW83: =IF(AM83>VCP!$E$29,AM83*VCP!$E$28,AM83) -> 30.24653463 | AX83: =IF(AN83>VCP!$E$29,AN83*VCP!$E$28,AN83) -> 30.24653463 | AY83: =IF(AO83>VCP!$E$29,AO83*VCP!$E$28,AO83) -> 30.24653463 | AZ83: =IF(AP83>VCP!$E$29,AP83*VCP!$E$28,AP83) -> 34.43020818 | BA83: =IF(AQ83>VCP!$E$29,AQ83*VCP!$E$28,AQ83) -> 43.77570568 | BB83: =IF(AR83>VCP!$E$29,AR83*VCP!$E$28,AR83) -> 71.73339613 | BC83: =IF(AS83>VCP!$E$29,AS83*VCP!$E$28,AS83) -> 50.01560714
A84: 82 | B84: 6.9 | C84: 5.0944433 | D84: 3.2 | E84: 77 | F84: 7.2 | G84: 290 | H84: 379 | I84: 199 | L84: =IF($K$2=0,D84*ATAN(0.151977*(E84+8.313659)^0.5)+ATAN(D84+E84)-ATAN(E84-1.676331)+0.00391838*(E84)^(3/2)*ATAN(0.023101*E84)-4.686035,'Weather data'!C84) -> 5.0944433 | M84: 0.5250659631 | N84: 120.5490376 | O84: 78.45096242 | R84: =O85*'Qsol calculation'!N84 -> -37.05323319 | S84: =O85*'Qsol calculation'!O84 -> -168.5536399 | T84: =O85*'Qsol calculation'!P84 -> -145.3860142 | U84: =O85*'Qsol calculation'!Q84 -> -92.98482931 | V84: =O85*'Qsol calculation'!R84 -> 13.16920101 | W84: =O85*'Qsol calculation'!S84 -> 92.98482931 | X84: =O85*'Qsol calculation'!T84 -> 145.3860142 | Y84: =O85*'Qsol calculation'!U84 -> 37.05323319 | AA84: 0 | AB84: 0 | AC84: 0 | AD84: 0 | AE84: 13.16920101 | AF84: 92.98482931 | AG84: 145.3860142 | AH84: 37.05323319 | AJ84: =N84*(1+COS(VCP!$N$22))/2 -> 106.1895073 | AL84: 106.1895073 | AM84: 106.1895073 | AN84: 106.1895073 | AO84: 106.1895073 | AP84: 119.3587083 | AQ84: 199.1743366 | AR84: 251.5755215 | AS84: 143.2427405 | AV84: =IF(AL84>VCP!$E$29,AL84*VCP!$E$28,AL84) -> 63.71370439 | AW84: =IF(AM84>VCP!$E$29,AM84*VCP!$E$28,AM84) -> 63.71370439 | AX84: =IF(AN84>VCP!$E$29,AN84*VCP!$E$28,AN84) -> 63.71370439 | AY84: =IF(AO84>VCP!$E$29,AO84*VCP!$E$28,AO84) -> 63.71370439 | AZ84: =IF(AP84>VCP!$E$29,AP84*VCP!$E$28,AP84) -> 71.615225 | BA84: =IF(AQ84>VCP!$E$29,AQ84*VCP!$E$28,AQ84) -> 119.504602 | BB84: =IF(AR84>VCP!$E$29,AR84*VCP!$E$28,AR84) -> 150.9453129 | BC84: =IF(AS84>VCP!$E$29,AS84*VCP!$E$28,AS84) -> 85.9456443
A85: 83 | B85: 8.1 | C85: 5.4148164 | D85: 2.4 | E85: 67 | F85: 7.2 | G85: 290 | H85: 525 | I85: 323 | L85: =IF($K$2=0,D85*ATAN(0.151977*(E85+8.313659)^0.5)+ATAN(D85+E85)-ATAN(E85-1.676331)+0.00391838*(E85)^(3/2)*ATAN(0.023101*E85)-4.686035,'Weather data'!C85) -> 5.4148164 | M85: 0.6152380952 | N85: 131.1922651 | O85: 191.8077349 | R85: =O86*'Qsol calculation'!N85 -> 12.88177992 | S85: =O86*'Qsol calculation'!O85 -> -245.3458149 | T85: =O86*'Qsol calculation'!P85 -> -164.3768955 | U85: =O86*'Qsol calculation'!Q85 -> -182.5944834 | V85: =O86*'Qsol calculation'!R85 -> 17.57146749 | W85: =O86*'Qsol calculation'!S85 -> 182.5944834 | X85: =O86*'Qsol calculation'!T85 -> 164.3768955 | Y85: =O86*'Qsol calculation'!U85 -> -12.88177992 | AA85: 12.88177992 | AB85: 0 | AC85: 0 | AD85: 0 | AE85: 17.57146749 | AF85: 182.5944834 | AG85: 164.3768955 | AH85: 0 | AJ85: =N85*(1+COS(VCP!$N$22))/2 -> 115.5649375 | AL85: 128.4467174 | AM85: 115.5649375 | AN85: 115.5649375 | AO85: 115.5649375 | AP85: 133.136405 | AQ85: 298.1594209 | AR85: 279.941833 | AS85: 115.5649375 | AV85: =IF(AL85>VCP!$E$29,AL85*VCP!$E$28,AL85) -> 77.06803046 | AW85: =IF(AM85>VCP!$E$29,AM85*VCP!$E$28,AM85) -> 69.33896251 | AX85: =IF(AN85>VCP!$E$29,AN85*VCP!$E$28,AN85) -> 69.33896251 | AY85: =IF(AO85>VCP!$E$29,AO85*VCP!$E$28,AO85) -> 69.33896251 | AZ85: =IF(AP85>VCP!$E$29,AP85*VCP!$E$28,AP85) -> 79.881843 | BA85: =IF(AQ85>VCP!$E$29,AQ85*VCP!$E$28,AQ85) -> 178.8956525 | BB85: =IF(AR85>VCP!$E$29,AR85*VCP!$E$28,AR85) -> 167.9650998 | BC85: =IF(AS85>VCP!$E$29,AS85*VCP!$E$28,AS85) -> 69.33896251
A86: 84 | B86: 9.2 | C86: 5.681481 | D86: 1.5 | E86: 59 | F86: 7.2 | G86: 300 | H86: 612 | I86: 403 | L86: =IF($K$2=0,D86*ATAN(0.151977*(E86+8.313659)^0.5)+ATAN(D86+E86)-ATAN(E86-1.676331)+0.00391838*(E86)^(3/2)*ATAN(0.023101*E86)-4.686035,'Weather data'!C86) -> 5.681481 | M86: 0.658496732 | N86: 127.7168312 | O86: 275.2831688 | R86: =O87*'Qsol calculation'!N86 -> 82.50167269 | S86: =O87*'Qsol calculation'!O86 -> -251.0929582 | T86: =O87*'Qsol calculation'!P86 -> -119.2120412 | U86: =O87*'Qsol calculation'!Q86 -> -235.8870256 | V86: =O87*'Qsol calculation'!R86 -> 21.74013371 | W86: =O87*'Qsol calculation'!S86 -> 235.8870256 | X86: =O87*'Qsol calculation'!T86 -> 119.2120412 | Y86: =O87*'Qsol calculation'!U86 -> -82.50167269 | AA86: 82.50167269 | AB86: 0 | AC86: 0 | AD86: 0 | AE86: 21.74013371 | AF86: 235.8870256 | AG86: 119.2120412 | AH86: 0 | AJ86: =N86*(1+COS(VCP!$N$22))/2 -> 112.5034895 | AL86: 195.0051622 | AM86: 112.5034895 | AN86: 112.5034895 | AO86: 112.5034895 | AP86: 134.2436232 | AQ86: 348.3905152 | AR86: 231.7155307 | AS86: 112.5034895 | AV86: =IF(AL86>VCP!$E$29,AL86*VCP!$E$28,AL86) -> 117.0030973 | AW86: =IF(AM86>VCP!$E$29,AM86*VCP!$E$28,AM86) -> 67.50209371 | AX86: =IF(AN86>VCP!$E$29,AN86*VCP!$E$28,AN86) -> 67.50209371 | AY86: =IF(AO86>VCP!$E$29,AO86*VCP!$E$28,AO86) -> 67.50209371 | AZ86: =IF(AP86>VCP!$E$29,AP86*VCP!$E$28,AP86) -> 80.54617394 | BA86: =IF(AQ86>VCP!$E$29,AQ86*VCP!$E$28,AQ86) -> 209.0343091 | BB86: =IF(AR86>VCP!$E$29,AR86*VCP!$E$28,AR86) -> 139.0293184 | BC86: =IF(AS86>VCP!$E$29,AS86*VCP!$E$28,AS86) -> 67.50209371
A87: 85 | B87: 9.6 | C87: 5.525926 | D87: 0.8 | E87: 54 | F87: 7.2 | G87: 300 | H87: 633 | I87: 420 | L87: =IF($K$2=0,D87*ATAN(0.151977*(E87+8.313659)^0.5)+ATAN(D87+E87)-ATAN(E87-1.676331)+0.00391838*(E87)^(3/2)*ATAN(0.023101*E87)-4.686035,'Weather data'!C87) -> 5.525926 | M87: 0.663507109 | N87: 129.0702486 | O87: 290.9297514 | R87: =O88*'Qsol calculation'!N87 -> 123.3427778 | S87: =O88*'Qsol calculation'!O87 -> -195.9914485 | T87: =O88*'Qsol calculation'!P87 -> -51.37036764 | U87: =O88*'Qsol calculation'!Q87 -> -225.8033969 | V87: =O88*'Qsol calculation'!R87 -> 24.76597544 | W87: =O88*'Qsol calculation'!S87 -> 225.8033969 | X87: =O88*'Qsol calculation'!T87 -> 51.37036764 | Y87: =O88*'Qsol calculation'!U87 -> -123.3427778 | AA87: 123.3427778 | AB87: 0 | AC87: 0 | AD87: 0 | AE87: 24.76597544 | AF87: 225.8033969 | AG87: 51.37036764 | AH87: 0 | AJ87: =N87*(1+COS(VCP!$N$22))/2 -> 113.6956908 | AL87: 237.0384686 | AM87: 113.6956908 | AN87: 113.6956908 | AO87: 113.6956908 | AP87: 138.4616662 | AQ87: 339.4990877 | AR87: 165.0660585 | AS87: 113.6956908 | AV87: =IF(AL87>VCP!$E$29,AL87*VCP!$E$28,AL87) -> 142.2230812 | AW87: =IF(AM87>VCP!$E$29,AM87*VCP!$E$28,AM87) -> 68.21741449 | AX87: =IF(AN87>VCP!$E$29,AN87*VCP!$E$28,AN87) -> 68.21741449 | AY87: =IF(AO87>VCP!$E$29,AO87*VCP!$E$28,AO87) -> 68.21741449 | AZ87: =IF(AP87>VCP!$E$29,AP87*VCP!$E$28,AP87) -> 83.07699975 | BA87: =IF(AQ87>VCP!$E$29,AQ87*VCP!$E$28,AQ87) -> 203.6994526 | BB87: =IF(AR87>VCP!$E$29,AR87*VCP!$E$28,AR87) -> 99.03963507 | BC87: =IF(AS87>VCP!$E$29,AS87*VCP!$E$28,AS87) -> 68.21741449
A88: 86 | B88: 10 | C88: 5.444444 | D88: 0.1 | E88: 50 | F88: 7.2 | G88: 300 | H88: 586 | I88: 377 | L88: =IF($K$2=0,D88*ATAN(0.151977*(E88+8.313659)^0.5)+ATAN(D88+E88)-ATAN(E88-1.676331)+0.00391838*(E88)^(3/2)*ATAN(0.023101*E88)-4.686035,'Weather data'!C88) -> 5.444444 | M88: 0.6433447099 | N88: 130.8257992 | O88: 246.1742008 | R88: =O89*'Qsol calculation'!N88 -> 102.9378059 | S88: =O89*'Qsol calculation'!O88 -> -104.5461455 | T88: =O89*'Qsol calculation'!P88 -> -1.137267828 | U88: =O89*'Qsol calculation'!Q88 -> -146.7133091 | V88: =O89*'Qsol calculation'!R88 -> 21.01288163 | W88: =O89*'Qsol calculation'!S88 -> 146.7133091 | X88: =O89*'Qsol calculation'!T88 -> 1.137267828 | Y88: =O89*'Qsol calculation'!U88 -> -102.9378059 | AA88: 102.9378059 | AB88: 0 | AC88: 0 | AD88: 0 | AE88: 21.01288163 | AF88: 146.7133091 | AG88: 1.137267828 | AH88: 0 | AJ88: =N88*(1+COS(VCP!$N$22))/2 -> 115.2421242 | AL88: 218.1799301 | AM88: 115.2421242 | AN88: 115.2421242 | AO88: 115.2421242 | AP88: 136.2550058 | AQ88: 261.9554333 | AR88: 116.379392 | AS88: 115.2421242 | AV88: =IF(AL88>VCP!$E$29,AL88*VCP!$E$28,AL88) -> 130.9079581 | AW88: =IF(AM88>VCP!$E$29,AM88*VCP!$E$28,AM88) -> 69.14527451 | AX88: =IF(AN88>VCP!$E$29,AN88*VCP!$E$28,AN88) -> 69.14527451 | AY88: =IF(AO88>VCP!$E$29,AO88*VCP!$E$28,AO88) -> 69.14527451 | AZ88: =IF(AP88>VCP!$E$29,AP88*VCP!$E$28,AP88) -> 81.75300349 | BA88: =IF(AQ88>VCP!$E$29,AQ88*VCP!$E$28,AQ88) -> 157.17326 | BB88: =IF(AR88>VCP!$E$29,AR88*VCP!$E$28,AR88) -> 69.82763521 | BC88: =IF(AS88>VCP!$E$29,AS88*VCP!$E$28,AS88) -> 69.14527451
A89: 87 | B89: 10.4 | C89: 5.4000006 | D89: -0.6 | E89: 46 | F89: 7.2 | G89: 310 | H89: 475 | I89: 280 | L89: =IF($K$2=0,D89*ATAN(0.151977*(E89+8.313659)^0.5)+ATAN(D89+E89)-ATAN(E89-1.676331)+0.00391838*(E89)^(3/2)*ATAN(0.023101*E89)-4.686035,'Weather data'!C89) -> 5.4000006 | M89: 0.5894736842 | N89: 129.5837356 | O89: 150.4162644 | R89: =O90*'Qsol calculation'!N89 -> 37.631522 | S89: =O90*'Qsol calculation'!O89 -> -25.97209944 | T89: =O90*'Qsol calculation'!P89 -> 8.244456757 | U89: =O90*'Qsol calculation'!Q89 -> -44.97455203 | V89: =O90*'Qsol calculation'!R89 -> 8.678606105 | W89: =O90*'Qsol calculation'!S89 -> 44.97455203 | X89: =O90*'Qsol calculation'!T89 -> -8.244456757 | Y89: =O90*'Qsol calculation'!U89 -> -37.631522 | AA89: 37.631522 | AB89: 0 | AC89: 8.244456757 | AD89: 0 | AE89: 8.678606105 | AF89: 44.97455203 | AG89: 0 | AH89: 0 | AJ89: =N89*(1+COS(VCP!$N$22))/2 -> 114.1480124 | AL89: 151.7795344 | AM89: 114.1480124 | AN89: 122.3924692 | AO89: 114.1480124 | AP89: 122.8266185 | AQ89: 159.1225644 | AR89: 114.1480124 | AS89: 114.1480124 | AV89: =IF(AL89>VCP!$E$29,AL89*VCP!$E$28,AL89) -> 91.06772065 | AW89: =IF(AM89>VCP!$E$29,AM89*VCP!$E$28,AM89) -> 68.48880745 | AX89: =IF(AN89>VCP!$E$29,AN89*VCP!$E$28,AN89) -> 73.4354815 | AY89: =IF(AO89>VCP!$E$29,AO89*VCP!$E$28,AO89) -> 68.48880745 | AZ89: =IF(AP89>VCP!$E$29,AP89*VCP!$E$28,AP89) -> 73.69597111 | BA89: =IF(AQ89>VCP!$E$29,AQ89*VCP!$E$28,AQ89) -> 95.47353867 | BB89: =IF(AR89>VCP!$E$29,AR89*VCP!$E$28,AR89) -> 68.48880745 | BC89: =IF(AS89>VCP!$E$29,AS89*VCP!$E$28,AS89) -> 68.48880745
A90: 88 | B90: 9.6 | C90: 5.155555 | D90: -0.3 | E90: 50 | F90: 5.5 | G90: 310 | H90: 308 | I90: 149 | L90: =IF($K$2=0,D90*ATAN(0.151977*(E90+8.313659)^0.5)+ATAN(D90+E90)-ATAN(E90-1.676331)+0.00391838*(E90)^(3/2)*ATAN(0.023101*E90)-4.686035,'Weather data'!C90) -> 5.155555 | M90: 0.4837662338 | N90: 103.165454 | O90: 45.83454597 | R90: =O91*'Qsol calculation'!N90 -> 0.8120281764 | S90: =O91*'Qsol calculation'!O90 -> -0.3779479559 | T90: =O91*'Qsol calculation'!P90 -> 0.3069410675 | U90: =O91*'Qsol calculation'!Q90 -> -0.8414401926 | V90: =O91*'Qsol calculation'!R90 -> 0.221670712 | W90: =O91*'Qsol calculation'!S90 -> 0.8414401926 | X90: =O91*'Qsol calculation'!T90 -> -0.3069410675 | Y90: =O91*'Qsol calculation'!U90 -> -0.8120281764 | AA90: 0.8120281764 | AB90: 0 | AC90: 0.3069410675 | AD90: 0 | AE90: 0.221670712 | AF90: 0.8414401926 | AG90: 0 | AH90: 0 | AJ90: =N90*(1+COS(VCP!$N$22))/2 -> 90.87661715 | AL90: 91.68864532 | AM90: 90.87661715 | AN90: 91.18355821 | AO90: 90.87661715 | AP90: 91.09828786 | AQ90: 91.71805734 | AR90: 90.87661715 | AS90: 90.87661715 | AV90: =IF(AL90>VCP!$E$29,AL90*VCP!$E$28,AL90) -> 55.01318719 | AW90: =IF(AM90>VCP!$E$29,AM90*VCP!$E$28,AM90) -> 54.52597029 | AX90: =IF(AN90>VCP!$E$29,AN90*VCP!$E$28,AN90) -> 54.71013493 | AY90: =IF(AO90>VCP!$E$29,AO90*VCP!$E$28,AO90) -> 54.52597029 | AZ90: =IF(AP90>VCP!$E$29,AP90*VCP!$E$28,AP90) -> 54.65897272 | BA90: =IF(AQ90>VCP!$E$29,AQ90*VCP!$E$28,AQ90) -> 55.0308344 | BB90: =IF(AR90>VCP!$E$29,AR90*VCP!$E$28,AR90) -> 54.52597029 | BC90: =IF(AS90>VCP!$E$29,AS90*VCP!$E$28,AS90) -> 54.52597029
A91: 89 | B91: 8.8 | C91: 4.9111114 | D91: 0.1 | E91: 54 | F91: 3.8 | G91: 310 | H91: 96 | I91: 26 | L91: =IF($K$2=0,D91*ATAN(0.151977*(E91+8.313659)^0.5)+ATAN(D91+E91)-ATAN(E91-1.676331)+0.00391838*(E91)^(3/2)*ATAN(0.023101*E91)-4.686035,'Weather data'!C91) -> 4.9111114 | M91: 0.2708333333 | N91: 25.09950207 | O91: 0.9004979348 | R91: =O92*'Qsol calculation'!N91 -> 0 | S91: =O92*'Qsol calculation'!O91 -> 0 | T91: =O92*'Qsol calculation'!P91 -> 0 | U91: =O92*'Qsol calculation'!Q91 -> 0 | V91: =O92*'Qsol calculation'!R91 -> 0 | W91: =O92*'Qsol calculation'!S91 -> 0 | X91: =O92*'Qsol calculation'!T91 -> 0 | Y91: =O92*'Qsol calculation'!U91 -> 0 | AA91: 0 | AB91: 0 | AC91: 0 | AD91: 0 | AE91: 0 | AF91: 0 | AG91: 0 | AH91: 0 | AJ91: =N91*(1+COS(VCP!$N$22))/2 -> 22.10970582 | AL91: 22.10970582 | AM91: 22.10970582 | AN91: 22.10970582 | AO91: 22.10970582 | AP91: 22.10970582 | AQ91: 22.10970582 | AR91: 22.10970582 | AS91: 22.10970582 | AV91: =IF(AL91>VCP!$E$29,AL91*VCP!$E$28,AL91) -> 22.10970582 | AW91: =IF(AM91>VCP!$E$29,AM91*VCP!$E$28,AM91) -> 22.10970582 | AX91: =IF(AN91>VCP!$E$29,AN91*VCP!$E$28,AN91) -> 22.10970582 | AY91: =IF(AO91>VCP!$E$29,AO91*VCP!$E$28,AO91) -> 22.10970582 | AZ91: =IF(AP91>VCP!$E$29,AP91*VCP!$E$28,AP91) -> 22.10970582 | BA91: =IF(AQ91>VCP!$E$29,AQ91*VCP!$E$28,AQ91) -> 22.10970582 | BB91: =IF(AR91>VCP!$E$29,AR91*VCP!$E$28,AR91) -> 22.10970582 | BC91: =IF(AS91>VCP!$E$29,AS91*VCP!$E$28,AS91) -> 22.10970582
A92: 90 | B92: 8 | C92: 4.6666675 | D92: 0.5 | E92: 59 | F92: 2.1 | G92: 320 | H92: 0 | I92: 0 | L92: =IF($K$2=0,D92*ATAN(0.151977*(E92+8.313659)^0.5)+ATAN(D92+E92)-ATAN(E92-1.676331)+0.00391838*(E92)^(3/2)*ATAN(0.023101*E92)-4.686035,'Weather data'!C92) -> 4.6666675 | M92: 0 | N92: 0 | O92: 0 | R92: =O93*'Qsol calculation'!N92 -> 0 | S92: =O93*'Qsol calculation'!O92 -> 0 | T92: =O93*'Qsol calculation'!P92 -> 0 | U92: =O93*'Qsol calculation'!Q92 -> 0 | V92: =O93*'Qsol calculation'!R92 -> 0 | W92: =O93*'Qsol calculation'!S92 -> 0 | X92: =O93*'Qsol calculation'!T92 -> 0 | Y92: =O93*'Qsol calculation'!U92 -> 0 | AA92: 0 | AB92: 0 | AC92: 0 | AD92: 0 | AE92: 0 | AF92: 0 | AG92: 0 | AH92: 0 | AJ92: =N92*(1+COS(VCP!$N$22))/2 -> 0 | AL92: 0 | AM92: 0 | AN92: 0 | AO92: 0 | AP92: 0 | AQ92: 0 | AR92: 0 | AS92: 0 | AV92: =IF(AL92>VCP!$E$29,AL92*VCP!$E$28,AL92) -> 0 | AW92: =IF(AM92>VCP!$E$29,AM92*VCP!$E$28,AM92) -> 0 | AX92: =IF(AN92>VCP!$E$29,AN92*VCP!$E$28,AN92) -> 0 | AY92: =IF(AO92>VCP!$E$29,AO92*VCP!$E$28,AO92) -> 0 | AZ92: =IF(AP92>VCP!$E$29,AP92*VCP!$E$28,AP92) -> 0 | BA92: =IF(AQ92>VCP!$E$29,AQ92*VCP!$E$28,AQ92) -> 0 | BB92: =IF(AR92>VCP!$E$29,AR92*VCP!$E$28,AR92) -> 0 | BC92: =IF(AS92>VCP!$E$29,AS92*VCP!$E$28,AS92) -> 0
A93: 91 | B93: 7.3 | C93: 4.244444 | D93: 0.5 | E93: 62 | F93: 2.4 | G93: 320 | H93: 0 | I93: 0 | L93: =IF($K$2=0,D93*ATAN(0.151977*(E93+8.313659)^0.5)+ATAN(D93+E93)-ATAN(E93-1.676331)+0.00391838*(E93)^(3/2)*ATAN(0.023101*E93)-4.686035,'Weather data'!C93) -> 4.244444 | M93: 0 | N93: 0 | O93: 0 | R93: =O94*'Qsol calculation'!N93 -> 0 | S93: =O94*'Qsol calculation'!O93 -> 0 | T93: =O94*'Qsol calculation'!P93 -> 0 | U93: =O94*'Qsol calculation'!Q93 -> 0 | V93: =O94*'Qsol calculation'!R93 -> 0 | W93: =O94*'Qsol calculation'!S93 -> 0 | X93: =O94*'Qsol calculation'!T93 -> 0 | Y93: =O94*'Qsol calculation'!U93 -> 0 | AA93: 0 | AB93: 0 | AC93: 0 | AD93: 0 | AE93: 0 | AF93: 0 | AG93: 0 | AH93: 0 | AJ93: =N93*(1+COS(VCP!$N$22))/2 -> 0 | AL93: 0 | AM93: 0 | AN93: 0 | AO93: 0 | AP93: 0 | AQ93: 0 | AR93: 0 | AS93: 0 | AV93: =IF(AL93>VCP!$E$29,AL93*VCP!$E$28,AL93) -> 0 | AW93: =IF(AM93>VCP!$E$29,AM93*VCP!$E$28,AM93) -> 0 | AX93: =IF(AN93>VCP!$E$29,AN93*VCP!$E$28,AN93) -> 0 | AY93: =IF(AO93>VCP!$E$29,AO93*VCP!$E$28,AO93) -> 0 | AZ93: =IF(AP93>VCP!$E$29,AP93*VCP!$E$28,AP93) -> 0 | BA93: =IF(AQ93>VCP!$E$29,AQ93*VCP!$E$28,AQ93) -> 0 | BB93: =IF(AR93>VCP!$E$29,AR93*VCP!$E$28,AR93) -> 0 | BC93: =IF(AS93>VCP!$E$29,AS93*VCP!$E$28,AS93) -> 0
A94: 92 | B94: 6.7 | C94: 3.922221 | D94: 0.6 | E94: 65 | F94: 2.8 | G94: 320 | H94: 0 | I94: 0 | L94: =IF($K$2=0,D94*ATAN(0.151977*(E94+8.313659)^0.5)+ATAN(D94+E94)-ATAN(E94-1.676331)+0.00391838*(E94)^(3/2)*ATAN(0.023101*E94)-4.686035,'Weather data'!C94) -> 3.922221 | M94: 0 | N94: 0 | O94: 0 | R94: =O95*'Qsol calculation'!N94 -> 0 | S94: =O95*'Qsol calculation'!O94 -> 0 | T94: =O95*'Qsol calculation'!P94 -> 0 | U94: =O95*'Qsol calculation'!Q94 -> 0 | V94: =O95*'Qsol calculation'!R94 -> 0 | W94: =O95*'Qsol calculation'!S94 -> 0 | X94: =O95*'Qsol calculation'!T94 -> 0 | Y94: =O95*'Qsol calculation'!U94 -> 0 | AA94: 0 | AB94: 0 | AC94: 0 | AD94: 0 | AE94: 0 | AF94: 0 | AG94: 0 | AH94: 0 | AJ94: =N94*(1+COS(VCP!$N$22))/2 -> 0 | AL94: 0 | AM94: 0 | AN94: 0 | AO94: 0 | AP94: 0 | AQ94: 0 | AR94: 0 | AS94: 0 | AV94: =IF(AL94>VCP!$E$29,AL94*VCP!$E$28,AL94) -> 0 | AW94: =IF(AM94>VCP!$E$29,AM94*VCP!$E$28,AM94) -> 0 | AX94: =IF(AN94>VCP!$E$29,AN94*VCP!$E$28,AN94) -> 0 | AY94: =IF(AO94>VCP!$E$29,AO94*VCP!$E$28,AO94) -> 0 | AZ94: =IF(AP94>VCP!$E$29,AP94*VCP!$E$28,AP94) -> 0 | BA94: =IF(AQ94>VCP!$E$29,AQ94*VCP!$E$28,AQ94) -> 0 | BB94: =IF(AR94>VCP!$E$29,AR94*VCP!$E$28,AR94) -> 0 | BC94: =IF(AS94>VCP!$E$29,AS94*VCP!$E$28,AS94) -> 0
A95: 93 | B95: 6 | C95: 3.6388884 | D95: 0.7 | E95: 69 | F95: 3.1 | G95: 210 | H95: 0 | I95: 0 | L95: =IF($K$2=0,D95*ATAN(0.151977*(E95+8.313659)^0.5)+ATAN(D95+E95)-ATAN(E95-1.676331)+0.00391838*(E95)^(3/2)*ATAN(0.023101*E95)-4.686035,'Weather data'!C95) -> 3.6388884 | M95: 0 | N95: 0 | O95: 0 | R95: =O96*'Qsol calculation'!N95 -> 0 | S95: =O96*'Qsol calculation'!O95 -> 0 | T95: =O96*'Qsol calculation'!P95 -> 0 | U95: =O96*'Qsol calculation'!Q95 -> 0 | V95: =O96*'Qsol calculation'!R95 -> 0 | W95: =O96*'Qsol calculation'!S95 -> 0 | X95: =O96*'Qsol calculation'!T95 -> 0 | Y95: =O96*'Qsol calculation'!U95 -> 0 | AA95: 0 | AB95: 0 | AC95: 0 | AD95: 0 | AE95: 0 | AF95: 0 | AG95: 0 | AH95: 0 | AJ95: =N95*(1+COS(VCP!$N$22))/2 -> 0 | AL95: 0 | AM95: 0 | AN95: 0 | AO95: 0 | AP95: 0 | AQ95: 0 | AR95: 0 | AS95: 0 | AV95: =IF(AL95>VCP!$E$29,AL95*VCP!$E$28,AL95) -> 0 | AW95: =IF(AM95>VCP!$E$29,AM95*VCP!$E$28,AM95) -> 0 | AX95: =IF(AN95>VCP!$E$29,AN95*VCP!$E$28,AN95) -> 0 | AY95: =IF(AO95>VCP!$E$29,AO95*VCP!$E$28,AO95) -> 0 | AZ95: =IF(AP95>VCP!$E$29,AP95*VCP!$E$28,AP95) -> 0 | BA95: =IF(AQ95>VCP!$E$29,AQ95*VCP!$E$28,AQ95) -> 0 | BB95: =IF(AR95>VCP!$E$29,AR95*VCP!$E$28,AR95) -> 0 | BC95: =IF(AS95>VCP!$E$29,AS95*VCP!$E$28,AS95) -> 0
A96: 94 | B96: 5.1 | C96: 3.4333334 | D96: 1.3 | E96: 76 | F96: 3.4 | G96: 210 | H96: 0 | I96: 0 | L96: =IF($K$2=0,D96*ATAN(0.151977*(E96+8.313659)^0.5)+ATAN(D96+E96)-ATAN(E96-1.676331)+0.00391838*(E96)^(3/2)*ATAN(0.023101*E96)-4.686035,'Weather data'!C96) -> 3.4333334 | M96: 0 | N96: 0 | O96: 0 | R96: =O97*'Qsol calculation'!N96 -> 0 | S96: =O97*'Qsol calculation'!O96 -> 0 | T96: =O97*'Qsol calculation'!P96 -> 0 | U96: =O97*'Qsol calculation'!Q96 -> 0 | V96: =O97*'Qsol calculation'!R96 -> 0 | W96: =O97*'Qsol calculation'!S96 -> 0 | X96: =O97*'Qsol calculation'!T96 -> 0 | Y96: =O97*'Qsol calculation'!U96 -> 0 | AA96: 0 | AB96: 0 | AC96: 0 | AD96: 0 | AE96: 0 | AF96: 0 | AG96: 0 | AH96: 0 | AJ96: =N96*(1+COS(VCP!$N$22))/2 -> 0 | AL96: 0 | AM96: 0 | AN96: 0 | AO96: 0 | AP96: 0 | AQ96: 0 | AR96: 0 | AS96: 0 | AV96: =IF(AL96>VCP!$E$29,AL96*VCP!$E$28,AL96) -> 0 | AW96: =IF(AM96>VCP!$E$29,AM96*VCP!$E$28,AM96) -> 0 | AX96: =IF(AN96>VCP!$E$29,AN96*VCP!$E$28,AN96) -> 0 | AY96: =IF(AO96>VCP!$E$29,AO96*VCP!$E$28,AO96) -> 0 | AZ96: =IF(AP96>VCP!$E$29,AP96*VCP!$E$28,AP96) -> 0 | BA96: =IF(AQ96>VCP!$E$29,AQ96*VCP!$E$28,AQ96) -> 0 | BB96: =IF(AR96>VCP!$E$29,AR96*VCP!$E$28,AR96) -> 0 | BC96: =IF(AS96>VCP!$E$29,AS96*VCP!$E$28,AS96) -> 0
A97: 95 | B97: 4.3 | C97: 3.1888897 | D97: 1.8 | E97: 84 | F97: 3.8 | G97: 210 | H97: 0 | I97: 0 | L97: =IF($K$2=0,D97*ATAN(0.151977*(E97+8.313659)^0.5)+ATAN(D97+E97)-ATAN(E97-1.676331)+0.00391838*(E97)^(3/2)*ATAN(0.023101*E97)-4.686035,'Weather data'!C97) -> 3.1888897 | M97: 0 | N97: 0 | O97: 0 | R97: =O98*'Qsol calculation'!N97 -> 0 | S97: =O98*'Qsol calculation'!O97 -> 0 | T97: =O98*'Qsol calculation'!P97 -> 0 | U97: =O98*'Qsol calculation'!Q97 -> 0 | V97: =O98*'Qsol calculation'!R97 -> 0 | W97: =O98*'Qsol calculation'!S97 -> 0 | X97: =O98*'Qsol calculation'!T97 -> 0 | Y97: =O98*'Qsol calculation'!U97 -> 0 | AA97: 0 | AB97: 0 | AC97: 0 | AD97: 0 | AE97: 0 | AF97: 0 | AG97: 0 | AH97: 0 | AJ97: =N97*(1+COS(VCP!$N$22))/2 -> 0 | AL97: 0 | AM97: 0 | AN97: 0 | AO97: 0 | AP97: 0 | AQ97: 0 | AR97: 0 | AS97: 0 | AV97: =IF(AL97>VCP!$E$29,AL97*VCP!$E$28,AL97) -> 0 | AW97: =IF(AM97>VCP!$E$29,AM97*VCP!$E$28,AM97) -> 0 | AX97: =IF(AN97>VCP!$E$29,AN97*VCP!$E$28,AN97) -> 0 | AY97: =IF(AO97>VCP!$E$29,AO97*VCP!$E$28,AO97) -> 0 | AZ97: =IF(AP97>VCP!$E$29,AP97*VCP!$E$28,AP97) -> 0 | BA97: =IF(AQ97>VCP!$E$29,AQ97*VCP!$E$28,AQ97) -> 0 | BB97: =IF(AR97>VCP!$E$29,AR97*VCP!$E$28,AR97) -> 0 | BC97: =IF(AS97>VCP!$E$29,AS97*VCP!$E$28,AS97) -> 0
A98: 96 | B98: 3.4 | C98: 2.9370372 | D98: 2.4 | E98: 93 | F98: 4.1 | G98: 210 | H98: 0 | I98: 0 | L98: =IF($K$2=0,D98*ATAN(0.151977*(E98+8.313659)^0.5)+ATAN(D98+E98)-ATAN(E98-1.676331)+0.00391838*(E98)^(3/2)*ATAN(0.023101*E98)-4.686035,'Weather data'!C98) -> 2.9370372 | M98: 0 | N98: 0 | O98: 0 | R98: =O99*'Qsol calculation'!N98 -> 0 | S98: =O99*'Qsol calculation'!O98 -> 0 | T98: =O99*'Qsol calculation'!P98 -> 0 | U98: =O99*'Qsol calculation'!Q98 -> 0 | V98: =O99*'Qsol calculation'!R98 -> 0 | W98: =O99*'Qsol calculation'!S98 -> 0 | X98: =O99*'Qsol calculation'!T98 -> 0 | Y98: =O99*'Qsol calculation'!U98 -> 0 | AA98: 0 | AB98: 0 | AC98: 0 | AD98: 0 | AE98: 0 | AF98: 0 | AG98: 0 | AH98: 0 | AJ98: =N98*(1+COS(VCP!$N$22))/2 -> 0 | AL98: 0 | AM98: 0 | AN98: 0 | AO98: 0 | AP98: 0 | AQ98: 0 | AR98: 0 | AS98: 0 | AV98: =IF(AL98>VCP!$E$29,AL98*VCP!$E$28,AL98) -> 0 | AW98: =IF(AM98>VCP!$E$29,AM98*VCP!$E$28,AM98) -> 0 | AX98: =IF(AN98>VCP!$E$29,AN98*VCP!$E$28,AN98) -> 0 | AY98: =IF(AO98>VCP!$E$29,AO98*VCP!$E$28,AO98) -> 0 | AZ98: =IF(AP98>VCP!$E$29,AP98*VCP!$E$28,AP98) -> 0 | BA98: =IF(AQ98>VCP!$E$29,AQ98*VCP!$E$28,AQ98) -> 0 | BB98: =IF(AR98>VCP!$E$29,AR98*VCP!$E$28,AR98) -> 0 | BC98: =IF(AS98>VCP!$E$29,AS98*VCP!$E$28,AS98) -> 0
A99: 97 | B99: 3.1 | C99: 2.5444455 | D99: 1.8 | E99: 91 | F99: 3.8 | G99: 210 | H99: 0 | I99: 0 | L99: =IF($K$2=0,D99*ATAN(0.151977*(E99+8.313659)^0.5)+ATAN(D99+E99)-ATAN(E99-1.676331)+0.00391838*(E99)^(3/2)*ATAN(0.023101*E99)-4.686035,'Weather data'!C99) -> 2.5444455 | M99: 0 | N99: 0 | O99: 0 | R99: =O100*'Qsol calculation'!N99 -> 0 | S99: =O100*'Qsol calculation'!O99 -> 0 | T99: =O100*'Qsol calculation'!P99 -> 0 | U99: =O100*'Qsol calculation'!Q99 -> 0 | V99: =O100*'Qsol calculation'!R99 -> 0 | W99: =O100*'Qsol calculation'!S99 -> 0 | X99: =O100*'Qsol calculation'!T99 -> 0 | Y99: =O100*'Qsol calculation'!U99 -> 0 | AA99: 0 | AB99: 0 | AC99: 0 | AD99: 0 | AE99: 0 | AF99: 0 | AG99: 0 | AH99: 0 | AJ99: =N99*(1+COS(VCP!$N$22))/2 -> 0 | AL99: 0 | AM99: 0 | AN99: 0 | AO99: 0 | AP99: 0 | AQ99: 0 | AR99: 0 | AS99: 0 | AV99: =IF(AL99>VCP!$E$29,AL99*VCP!$E$28,AL99) -> 0 | AW99: =IF(AM99>VCP!$E$29,AM99*VCP!$E$28,AM99) -> 0 | AX99: =IF(AN99>VCP!$E$29,AN99*VCP!$E$28,AN99) -> 0 | AY99: =IF(AO99>VCP!$E$29,AO99*VCP!$E$28,AO99) -> 0 | AZ99: =IF(AP99>VCP!$E$29,AP99*VCP!$E$28,AP99) -> 0 | BA99: =IF(AQ99>VCP!$E$29,AQ99*VCP!$E$28,AQ99) -> 0 | BB99: =IF(AR99>VCP!$E$29,AR99*VCP!$E$28,AR99) -> 0 | BC99: =IF(AS99>VCP!$E$29,AS99*VCP!$E$28,AS99) -> 0
A100: 98 | B100: 2.9 | C100: 2.1592607 | D100: 1.3 | E100: 89 | F100: 3.4 | G100: 210 | H100: 0 | I100: 0 | L100: =IF($K$2=0,D100*ATAN(0.151977*(E100+8.313659)^0.5)+ATAN(D100+E100)-ATAN(E100-1.676331)+0.00391838*(E100)^(3/2)*ATAN(0.023101*E100)-4.686035,'Weather data'!C100) -> 2.1592607 | M100: 0 | N100: 0 | O100: 0 | R100: =O101*'Qsol calculation'!N100 -> 0 | S100: =O101*'Qsol calculation'!O100 -> 0 | T100: =O101*'Qsol calculation'!P100 -> 0 | U100: =O101*'Qsol calculation'!Q100 -> 0 | V100: =O101*'Qsol calculation'!R100 -> 0 | W100: =O101*'Qsol calculation'!S100 -> 0 | X100: =O101*'Qsol calculation'!T100 -> 0 | Y100: =O101*'Qsol calculation'!U100 -> 0 | AA100: 0 | AB100: 0 | AC100: 0 | AD100: 0 | AE100: 0 | AF100: 0 | AG100: 0 | AH100: 0 | AJ100: =N100*(1+COS(VCP!$N$22))/2 -> 0 | AL100: 0 | AM100: 0 | AN100: 0 | AO100: 0 | AP100: 0 | AQ100: 0 | AR100: 0 | AS100: 0 | AV100: =IF(AL100>VCP!$E$29,AL100*VCP!$E$28,AL100) -> 0 | AW100: =IF(AM100>VCP!$E$29,AM100*VCP!$E$28,AM100) -> 0 | AX100: =IF(AN100>VCP!$E$29,AN100*VCP!$E$28,AN100) -> 0 | AY100: =IF(AO100>VCP!$E$29,AO100*VCP!$E$28,AO100) -> 0 | AZ100: =IF(AP100>VCP!$E$29,AP100*VCP!$E$28,AP100) -> 0 | BA100: =IF(AQ100>VCP!$E$29,AQ100*VCP!$E$28,AQ100) -> 0 | BB100: =IF(AR100>VCP!$E$29,AR100*VCP!$E$28,AR100) -> 0 | BC100: =IF(AS100>VCP!$E$29,AS100*VCP!$E$28,AS100) -> 0
A101: 99 | B101: 2.6 | C101: 1.7666669 | D101: 0.7 | E101: 87 | F101: 3.1 | G101: 220 | H101: 0 | I101: 0 | L101: =IF($K$2=0,D101*ATAN(0.151977*(E101+8.313659)^0.5)+ATAN(D101+E101)-ATAN(E101-1.676331)+0.00391838*(E101)^(3/2)*ATAN(0.023101*E101)-4.686035,'Weather data'!C101) -> 1.7666669 | M101: 0 | N101: 0 | O101: 0 | R101: =O102*'Qsol calculation'!N101 -> 0 | S101: =O102*'Qsol calculation'!O101 -> 0 | T101: =O102*'Qsol calculation'!P101 -> 0 | U101: =O102*'Qsol calculation'!Q101 -> 0 | V101: =O102*'Qsol calculation'!R101 -> 0 | W101: =O102*'Qsol calculation'!S101 -> 0 | X101: =O102*'Qsol calculation'!T101 -> 0 | Y101: =O102*'Qsol calculation'!U101 -> 0 | AA101: 0 | AB101: 0 | AC101: 0 | AD101: 0 | AE101: 0 | AF101: 0 | AG101: 0 | AH101: 0 | AJ101: =N101*(1+COS(VCP!$N$22))/2 -> 0 | AL101: 0 | AM101: 0 | AN101: 0 | AO101: 0 | AP101: 0 | AQ101: 0 | AR101: 0 | AS101: 0 | AV101: =IF(AL101>VCP!$E$29,AL101*VCP!$E$28,AL101) -> 0 | AW101: =IF(AM101>VCP!$E$29,AM101*VCP!$E$28,AM101) -> 0 | AX101: =IF(AN101>VCP!$E$29,AN101*VCP!$E$28,AN101) -> 0 | AY101: =IF(AO101>VCP!$E$29,AO101*VCP!$E$28,AO101) -> 0 | AZ101: =IF(AP101>VCP!$E$29,AP101*VCP!$E$28,AP101) -> 0 | BA101: =IF(AQ101>VCP!$E$29,AQ101*VCP!$E$28,AQ101) -> 0 | BB101: =IF(AR101>VCP!$E$29,AR101*VCP!$E$28,AR101) -> 0 | BC101: =IF(AS101>VCP!$E$29,AS101*VCP!$E$28,AS101) -> 0
A102: 100 | B102: 3.1 | C102: 2.359261 | D102: 1.5 | E102: 89 | F102: 2.8 | G102: 220 | H102: 0 | I102: 0 | L102: =IF($K$2=0,D102*ATAN(0.151977*(E102+8.313659)^0.5)+ATAN(D102+E102)-ATAN(E102-1.676331)+0.00391838*(E102)^(3/2)*ATAN(0.023101*E102)-4.686035,'Weather data'!C102) -> 2.359261 | M102: 0 | N102: 0 | O102: 0 | R102: =O103*'Qsol calculation'!N102 -> 0 | S102: =O103*'Qsol calculation'!O102 -> 0 | T102: =O103*'Qsol calculation'!P102 -> 0 | U102: =O103*'Qsol calculation'!Q102 -> 0 | V102: =O103*'Qsol calculation'!R102 -> 0 | W102: =O103*'Qsol calculation'!S102 -> 0 | X102: =O103*'Qsol calculation'!T102 -> 0 | Y102: =O103*'Qsol calculation'!U102 -> 0 | AA102: 0 | AB102: 0 | AC102: 0 | AD102: 0 | AE102: 0 | AF102: 0 | AG102: 0 | AH102: 0 | AJ102: =N102*(1+COS(VCP!$N$22))/2 -> 0 | AL102: 0 | AM102: 0 | AN102: 0 | AO102: 0 | AP102: 0 | AQ102: 0 | AR102: 0 | AS102: 0 | AV102: =IF(AL102>VCP!$E$29,AL102*VCP!$E$28,AL102) -> 0 | AW102: =IF(AM102>VCP!$E$29,AM102*VCP!$E$28,AM102) -> 0 | AX102: =IF(AN102>VCP!$E$29,AN102*VCP!$E$28,AN102) -> 0 | AY102: =IF(AO102>VCP!$E$29,AO102*VCP!$E$28,AO102) -> 0 | AZ102: =IF(AP102>VCP!$E$29,AP102*VCP!$E$28,AP102) -> 0 | BA102: =IF(AQ102>VCP!$E$29,AQ102*VCP!$E$28,AQ102) -> 0 | BB102: =IF(AR102>VCP!$E$29,AR102*VCP!$E$28,AR102) -> 0 | BC102: =IF(AS102>VCP!$E$29,AS102*VCP!$E$28,AS102) -> 0
A103: 101 | B103: 3.7 | C103: 3.1444445 | D103: 2.3 | E103: 91 | F103: 2.4 | G103: 220 | H103: 0 | I103: 0 | L103: =IF($K$2=0,D103*ATAN(0.151977*(E103+8.313659)^0.5)+ATAN(D103+E103)-ATAN(E103-1.676331)+0.00391838*(E103)^(3/2)*ATAN(0.023101*E103)-4.686035,'Weather data'!C103) -> 3.1444445 | M103: 0 | N103: 0 | O103: 0 | R103: =O104*'Qsol calculation'!N103 -> 0 | S103: =O104*'Qsol calculation'!O103 -> 0 | T103: =O104*'Qsol calculation'!P103 -> 0 | U103: =O104*'Qsol calculation'!Q103 -> 0 | V103: =O104*'Qsol calculation'!R103 -> 0 | W103: =O104*'Qsol calculation'!S103 -> 0 | X103: =O104*'Qsol calculation'!T103 -> 0 | Y103: =O104*'Qsol calculation'!U103 -> 0 | AA103: 0 | AB103: 0 | AC103: 0 | AD103: 0 | AE103: 0 | AF103: 0 | AG103: 0 | AH103: 0 | AJ103: =N103*(1+COS(VCP!$N$22))/2 -> 0 | AL103: 0 | AM103: 0 | AN103: 0 | AO103: 0 | AP103: 0 | AQ103: 0 | AR103: 0 | AS103: 0 | AV103: =IF(AL103>VCP!$E$29,AL103*VCP!$E$28,AL103) -> 0 | AW103: =IF(AM103>VCP!$E$29,AM103*VCP!$E$28,AM103) -> 0 | AX103: =IF(AN103>VCP!$E$29,AN103*VCP!$E$28,AN103) -> 0 | AY103: =IF(AO103>VCP!$E$29,AO103*VCP!$E$28,AO103) -> 0 | AZ103: =IF(AP103>VCP!$E$29,AP103*VCP!$E$28,AP103) -> 0 | BA103: =IF(AQ103>VCP!$E$29,AQ103*VCP!$E$28,AQ103) -> 0 | BB103: =IF(AR103>VCP!$E$29,AR103*VCP!$E$28,AR103) -> 0 | BC103: =IF(AS103>VCP!$E$29,AS103*VCP!$E$28,AS103) -> 0
A104: 102 | B104: 4.2 | C104: 3.7370386 | D104: 3.1 | E104: 93 | F104: 2.1 | G104: 230 | H104: 0 | I104: 0 | L104: =IF($K$2=0,D104*ATAN(0.151977*(E104+8.313659)^0.5)+ATAN(D104+E104)-ATAN(E104-1.676331)+0.00391838*(E104)^(3/2)*ATAN(0.023101*E104)-4.686035,'Weather data'!C104) -> 3.7370386 | M104: 0 | N104: 0 | O104: 0 | R104: =O105*'Qsol calculation'!N104 -> 0 | S104: =O105*'Qsol calculation'!O104 -> 0 | T104: =O105*'Qsol calculation'!P104 -> 0 | U104: =O105*'Qsol calculation'!Q104 -> 0 | V104: =O105*'Qsol calculation'!R104 -> 0 | W104: =O105*'Qsol calculation'!S104 -> 0 | X104: =O105*'Qsol calculation'!T104 -> 0 | Y104: =O105*'Qsol calculation'!U104 -> 0 | AA104: 0 | AB104: 0 | AC104: 0 | AD104: 0 | AE104: 0 | AF104: 0 | AG104: 0 | AH104: 0 | AJ104: =N104*(1+COS(VCP!$N$22))/2 -> 0 | AL104: 0 | AM104: 0 | AN104: 0 | AO104: 0 | AP104: 0 | AQ104: 0 | AR104: 0 | AS104: 0 | AV104: =IF(AL104>VCP!$E$29,AL104*VCP!$E$28,AL104) -> 0 | AW104: =IF(AM104>VCP!$E$29,AM104*VCP!$E$28,AM104) -> 0 | AX104: =IF(AN104>VCP!$E$29,AN104*VCP!$E$28,AN104) -> 0 | AY104: =IF(AO104>VCP!$E$29,AO104*VCP!$E$28,AO104) -> 0 | AZ104: =IF(AP104>VCP!$E$29,AP104*VCP!$E$28,AP104) -> 0 | BA104: =IF(AQ104>VCP!$E$29,AQ104*VCP!$E$28,AQ104) -> 0 | BB104: =IF(AR104>VCP!$E$29,AR104*VCP!$E$28,AR104) -> 0 | BC104: =IF(AS104>VCP!$E$29,AS104*VCP!$E$28,AS104) -> 0
A105: 103 | B105: 5.1 | C105: 4.127778 | D105: 3.1 | E105: 87 | F105: 4.1 | G105: 230 | H105: 0 | I105: 0 | L105: =IF($K$2=0,D105*ATAN(0.151977*(E105+8.313659)^0.5)+ATAN(D105+E105)-ATAN(E105-1.676331)+0.00391838*(E105)^(3/2)*ATAN(0.023101*E105)-4.686035,'Weather data'!C105) -> 4.127778 | M105: 0 | N105: 0 | O105: 0 | R105: =O106*'Qsol calculation'!N105 -> -0.006981791757 | S105: =O106*'Qsol calculation'!O105 -> -0.005554848032 | T105: =O106*'Qsol calculation'!P105 -> -0.008864743008 | U105: =O106*'Qsol calculation'!Q105 -> 0.001009001584 | V105: =O106*'Qsol calculation'!R105 -> 0.001517413657 | W105: =O106*'Qsol calculation'!S105 -> -0.001009001584 | X105: =O106*'Qsol calculation'!T105 -> 0.008864743008 | Y105: =O106*'Qsol calculation'!U105 -> 0.006981791757 | AA105: 0 | AB105: 0 | AC105: 0 | AD105: 0.001009001584 | AE105: 0.001517413657 | AF105: 0 | AG105: 0.008864743008 | AH105: 0.006981791757 | AJ105: =N105*(1+COS(VCP!$N$22))/2 -> 0 | AL105: 0 | AM105: 0 | AN105: 0 | AO105: 0.001009001584 | AP105: 0.001517413657 | AQ105: 0 | AR105: 0.008864743008 | AS105: 0.006981791757 | AV105: =IF(AL105>VCP!$E$29,AL105*VCP!$E$28,AL105) -> 0 | AW105: =IF(AM105>VCP!$E$29,AM105*VCP!$E$28,AM105) -> 0 | AX105: =IF(AN105>VCP!$E$29,AN105*VCP!$E$28,AN105) -> 0 | AY105: =IF(AO105>VCP!$E$29,AO105*VCP!$E$28,AO105) -> 0.001009001584 | AZ105: =IF(AP105>VCP!$E$29,AP105*VCP!$E$28,AP105) -> 0.001517413657 | BA105: =IF(AQ105>VCP!$E$29,AQ105*VCP!$E$28,AQ105) -> 0 | BB105: =IF(AR105>VCP!$E$29,AR105*VCP!$E$28,AR105) -> 0.008864743008 | BC105: =IF(AS105>VCP!$E$29,AS105*VCP!$E$28,AS105) -> 0.006981791757
A106: 104 | B106: 6 | C106: 4.6111107 | D106: 3 | E106: 81 | F106: 6.2 | G106: 240 | H106: 10 | I106: 1 | L106: =IF($K$2=0,D106*ATAN(0.151977*(E106+8.313659)^0.5)+ATAN(D106+E106)-ATAN(E106-1.676331)+0.00391838*(E106)^(3/2)*ATAN(0.023101*E106)-4.686035,'Weather data'!C106) -> 4.6111107 | M106: 0.1 | N106: 0.991 | O106: 0.009 | R106: =O107*'Qsol calculation'!N106 -> -0.1351916307 | S106: =O107*'Qsol calculation'!O106 -> -0.1605580887 | T106: =O107*'Qsol calculation'!P106 -> -0.2091266321 | U106: =O107*'Qsol calculation'!Q106 -> -0.01793679443 | V106: =O107*'Qsol calculation'!R106 -> 0.02677236225 | W106: =O107*'Qsol calculation'!S106 -> 0.01793679443 | X106: =O107*'Qsol calculation'!T106 -> 0.2091266321 | Y106: =O107*'Qsol calculation'!U106 -> 0.1351916307 | AA106: 0 | AB106: 0 | AC106: 0 | AD106: 0 | AE106: 0.02677236225 | AF106: 0.01793679443 | AG106: 0.2091266321 | AH106: 0.1351916307 | AJ106: =N106*(1+COS(VCP!$N$22))/2 -> 0.8729543086 | AL106: 0.8729543086 | AM106: 0.8729543086 | AN106: 0.8729543086 | AO106: 0.8729543086 | AP106: 0.8997266708 | AQ106: 0.890891103 | AR106: 1.082080941 | AS106: 1.008145939 | AV106: =IF(AL106>VCP!$E$29,AL106*VCP!$E$28,AL106) -> 0.8729543086 | AW106: =IF(AM106>VCP!$E$29,AM106*VCP!$E$28,AM106) -> 0.8729543086 | AX106: =IF(AN106>VCP!$E$29,AN106*VCP!$E$28,AN106) -> 0.8729543086 | AY106: =IF(AO106>VCP!$E$29,AO106*VCP!$E$28,AO106) -> 0.8729543086 | AZ106: =IF(AP106>VCP!$E$29,AP106*VCP!$E$28,AP106) -> 0.8997266708 | BA106: =IF(AQ106>VCP!$E$29,AQ106*VCP!$E$28,AQ106) -> 0.890891103 | BB106: =IF(AR106>VCP!$E$29,AR106*VCP!$E$28,AR106) -> 1.082080941 | BC106: =IF(AS106>VCP!$E$29,AS106*VCP!$E$28,AS106) -> 1.008145939
A107: 105 | B107: 4.4 | C107: 3.8444455 | D107: 3.1 | E107: 91 | F107: 5.1 | G107: 200 | H107: 182 | I107: 21 | L107: =IF($K$2=0,D107*ATAN(0.151977*(E107+8.313659)^0.5)+ATAN(D107+E107)-ATAN(E107-1.676331)+0.00391838*(E107)^(3/2)*ATAN(0.023101*E107)-4.686035,'Weather data'!C107) -> 3.8444455 | M107: 0.1153846154 | N107: 20.78192308 | O107: 0.2180769231 | R107: =O108*'Qsol calculation'!N107 -> -0.3850754812 | S107: =O108*'Qsol calculation'!O107 -> -0.7531705031 | T107: =O108*'Qsol calculation'!P107 -> -0.8048614541 | U107: =O108*'Qsol calculation'!Q107 -> -0.2602824862 | V107: =O108*'Qsol calculation'!R107 -> 0.08083274443 | W107: =O108*'Qsol calculation'!S107 -> 0.2602824862 | X107: =O108*'Qsol calculation'!T107 -> 0.8048614541 | Y107: =O108*'Qsol calculation'!U107 -> 0.3850754812 | AA107: 0 | AB107: 0 | AC107: 0 | AD107: 0 | AE107: 0.08083274443 | AF107: 0.2602824862 | AG107: 0.8048614541 | AH107: 0.3850754812 | AJ107: =N107*(1+COS(VCP!$N$22))/2 -> 18.30642714 | AL107: 18.30642714 | AM107: 18.30642714 | AN107: 18.30642714 | AO107: 18.30642714 | AP107: 18.38725988 | AQ107: 18.56670962 | AR107: 19.11128859 | AS107: 18.69150262 | AV107: =IF(AL107>VCP!$E$29,AL107*VCP!$E$28,AL107) -> 18.30642714 | AW107: =IF(AM107>VCP!$E$29,AM107*VCP!$E$28,AM107) -> 18.30642714 | AX107: =IF(AN107>VCP!$E$29,AN107*VCP!$E$28,AN107) -> 18.30642714 | AY107: =IF(AO107>VCP!$E$29,AO107*VCP!$E$28,AO107) -> 18.30642714 | AZ107: =IF(AP107>VCP!$E$29,AP107*VCP!$E$28,AP107) -> 18.38725988 | BA107: =IF(AQ107>VCP!$E$29,AQ107*VCP!$E$28,AQ107) -> 18.56670962 | BB107: =IF(AR107>VCP!$E$29,AR107*VCP!$E$28,AR107) -> 19.11128859 | BC107: =IF(AS107>VCP!$E$29,AS107*VCP!$E$28,AS107) -> 18.69150262
A108: 106 | B108: 5.2 | C108: 4.088889 | D108: 2.9 | E108: 85 | F108: 5.1 | G108: 200 | H108: 379 | I108: 62 | L108: =IF($K$2=0,D108*ATAN(0.151977*(E108+8.313659)^0.5)+ATAN(D108+E108)-ATAN(E108-1.676331)+0.00391838*(E108)^(3/2)*ATAN(0.023101*E108)-4.686035,'Weather data'!C108) -> 4.088889 | M108: 0.1635883905 | N108: 61.08717678 | O108: 0.912823219 | R108: =O109*'Qsol calculation'!N108 -> -0.3264359 | S108: =O109*'Qsol calculation'!O108 -> -1.469114412 | T108: =O109*'Qsol calculation'!P108 -> -1.269645802 | U108: =O109*'Qsol calculation'!Q108 -> -0.8079957247 | V108: =O109*'Qsol calculation'!R108 -> 0.1143092134 | W108: =O109*'Qsol calculation'!S108 -> 0.8079957247 | X108: =O109*'Qsol calculation'!T108 -> 1.269645802 | Y108: =O109*'Qsol calculation'!U108 -> 0.3264359 | AA108: 0 | AB108: 0 | AC108: 0 | AD108: 0 | AE108: 0.1143092134 | AF108: 0.8079957247 | AG108: 1.269645802 | AH108: 0.3264359 | AJ108: =N108*(1+COS(VCP!$N$22))/2 -> 53.81060966 | AL108: 53.81060966 | AM108: 53.81060966 | AN108: 53.81060966 | AO108: 53.81060966 | AP108: 53.92491887 | AQ108: 54.61860538 | AR108: 55.08025546 | AS108: 54.13704556 | AV108: =IF(AL108>VCP!$E$29,AL108*VCP!$E$28,AL108) -> 32.28636579 | AW108: =IF(AM108>VCP!$E$29,AM108*VCP!$E$28,AM108) -> 32.28636579 | AX108: =IF(AN108>VCP!$E$29,AN108*VCP!$E$28,AN108) -> 32.28636579 | AY108: =IF(AO108>VCP!$E$29,AO108*VCP!$E$28,AO108) -> 32.28636579 | AZ108: =IF(AP108>VCP!$E$29,AP108*VCP!$E$28,AP108) -> 32.35495132 | BA108: =IF(AQ108>VCP!$E$29,AQ108*VCP!$E$28,AQ108) -> 32.77116323 | BB108: =IF(AR108>VCP!$E$29,AR108*VCP!$E$28,AR108) -> 33.04815328 | BC108: =IF(AS108>VCP!$E$29,AS108*VCP!$E$28,AS108) -> 32.48222733
A109: 107 | B109: 6 | C109: 4.425926 | D109: 2.6 | E109: 79 | F109: 5.1 | G109: 200 | H109: 527 | I109: 99 | L109: =IF($K$2=0,D109*ATAN(0.151977*(E109+8.313659)^0.5)+ATAN(D109+E109)-ATAN(E109-1.676331)+0.00391838*(E109)^(3/2)*ATAN(0.023101*E109)-4.686035,'Weather data'!C109) -> 4.425926 | M109: 0.1878557875 | N109: 97.32620493 | O109: 1.673795066 | R109: =O110*'Qsol calculation'!N109 -> 0.09836624097 | S109: =O110*'Qsol calculation'!O109 -> -1.942805485 | T109: =O110*'Qsol calculation'!P109 -> -1.304215497 | U109: =O110*'Qsol calculation'!Q109 -> -1.443326369 | V109: =O110*'Qsol calculation'!R109 -> 0.1382522245 | W109: =O110*'Qsol calculation'!S109 -> 1.443326369 | X109: =O110*'Qsol calculation'!T109 -> 1.304215497 | Y109: =O110*'Qsol calculation'!U109 -> -0.09836624097 | AA109: 0.09836624097 | AB109: 0 | AC109: 0 | AD109: 0 | AE109: 0.1382522245 | AF109: 1.443326369 | AG109: 1.304215497 | AH109: 0 | AJ109: =N109*(1+COS(VCP!$N$22))/2 -> 85.73292627 | AL109: 85.83129251 | AM109: 85.73292627 | AN109: 85.73292627 | AO109: 85.73292627 | AP109: 85.8711785 | AQ109: 87.17625264 | AR109: 87.03714177 | AS109: 85.73292627 | AV109: =IF(AL109>VCP!$E$29,AL109*VCP!$E$28,AL109) -> 51.49877551 | AW109: =IF(AM109>VCP!$E$29,AM109*VCP!$E$28,AM109) -> 51.43975576 | AX109: =IF(AN109>VCP!$E$29,AN109*VCP!$E$28,AN109) -> 51.43975576 | AY109: =IF(AO109>VCP!$E$29,AO109*VCP!$E$28,AO109) -> 51.43975576 | AZ109: =IF(AP109>VCP!$E$29,AP109*VCP!$E$28,AP109) -> 51.5227071 | BA109: =IF(AQ109>VCP!$E$29,AQ109*VCP!$E$28,AQ109) -> 52.30575158 | BB109: =IF(AR109>VCP!$E$29,AR109*VCP!$E$28,AR109) -> 52.22228506 | BC109: =IF(AS109>VCP!$E$29,AS109*VCP!$E$28,AS109) -> 51.43975576
A110: 108 | B110: 6.8 | C110: 4.67037 | D110: 2.4 | E110: 73 | F110: 5.1 | G110: 220 | H110: 614 | I110: 122 | L110: =IF($K$2=0,D110*ATAN(0.151977*(E110+8.313659)^0.5)+ATAN(D110+E110)-ATAN(E110-1.676331)+0.00391838*(E110)^(3/2)*ATAN(0.023101*E110)-4.686035,'Weather data'!C110) -> 4.67037 | M110: 0.1986970684 | N110: 119.8183062 | O110: 2.181693811 | R110: =O111*'Qsol calculation'!N110 -> 0.6551434861 | S110: =O111*'Qsol calculation'!O110 -> -2.003066668 | T110: =O111*'Qsol calculation'!P110 -> -0.9531256222 | U110: =O111*'Qsol calculation'!Q110 -> -1.879638425 | V110: =O111*'Qsol calculation'!R110 -> 0.1721064242 | W110: =O111*'Qsol calculation'!S110 -> 1.879638425 | X110: =O111*'Qsol calculation'!T110 -> 0.9531256222 | Y110: =O111*'Qsol calculation'!U110 -> -0.6551434861 | AA110: 0.6551434861 | AB110: 0 | AC110: 0 | AD110: 0 | AE110: 0.1721064242 | AF110: 1.879638425 | AG110: 0.9531256222 | AH110: 0 | AJ110: =N110*(1+COS(VCP!$N$22))/2 -> 105.545819 | AL110: 106.2009625 | AM110: 105.545819 | AN110: 105.545819 | AO110: 105.545819 | AP110: 105.7179254 | AQ110: 107.4254574 | AR110: 106.4989446 | AS110: 105.545819 | AV110: =IF(AL110>VCP!$E$29,AL110*VCP!$E$28,AL110) -> 63.7205775 | AW110: =IF(AM110>VCP!$E$29,AM110*VCP!$E$28,AM110) -> 63.3274914 | AX110: =IF(AN110>VCP!$E$29,AN110*VCP!$E$28,AN110) -> 63.3274914 | AY110: =IF(AO110>VCP!$E$29,AO110*VCP!$E$28,AO110) -> 63.3274914 | AZ110: =IF(AP110>VCP!$E$29,AP110*VCP!$E$28,AP110) -> 63.43075526 | BA110: =IF(AQ110>VCP!$E$29,AQ110*VCP!$E$28,AQ110) -> 64.45527446 | BB110: =IF(AR110>VCP!$E$29,AR110*VCP!$E$28,AR110) -> 63.89936678 | BC110: =IF(AS110>VCP!$E$29,AS110*VCP!$E$28,AS110) -> 63.3274914
A111: 109 | B111: 7 | C111: 5.148148 | D111: 3 | E111: 76 | F111: 7.2 | G111: 220 | H111: 635 | I111: 128 | L111: =IF($K$2=0,D111*ATAN(0.151977*(E111+8.313659)^0.5)+ATAN(D111+E111)-ATAN(E111-1.676331)+0.00391838*(E111)^(3/2)*ATAN(0.023101*E111)-4.686035,'Weather data'!C111) -> 5.148148 | M111: 0.2015748031 | N111: 125.6778583 | O111: 2.322141732 | R111: =O112*'Qsol calculation'!N111 -> 1.010286313 | S111: =O112*'Qsol calculation'!O111 -> -1.608333322 | T111: =O112*'Qsol calculation'!P111 -> -0.4228830957 | U111: =O112*'Qsol calculation'!Q111 -> -1.851643701 | V111: =O112*'Qsol calculation'!R111 -> 0.2016748377 | W111: =O112*'Qsol calculation'!S111 -> 1.851643701 | X111: =O112*'Qsol calculation'!T111 -> 0.4228830957 | Y111: =O112*'Qsol calculation'!U111 -> -1.010286313 | AA111: 1.010286313 | AB111: 0 | AC111: 0 | AD111: 0 | AE111: 0.2016748377 | AF111: 1.851643701 | AG111: 0.4228830957 | AH111: 0 | AJ111: =N111*(1+COS(VCP!$N$22))/2 -> 110.7073944 | AL111: 111.7176807 | AM111: 110.7073944 | AN111: 110.7073944 | AO111: 110.7073944 | AP111: 110.9090693 | AQ111: 112.5590381 | AR111: 111.1302775 | AS111: 110.7073944 | AV111: =IF(AL111>VCP!$E$29,AL111*VCP!$E$28,AL111) -> 67.03060844 | AW111: =IF(AM111>VCP!$E$29,AM111*VCP!$E$28,AM111) -> 66.42443665 | AX111: =IF(AN111>VCP!$E$29,AN111*VCP!$E$28,AN111) -> 66.42443665 | AY111: =IF(AO111>VCP!$E$29,AO111*VCP!$E$28,AO111) -> 66.42443665 | AZ111: =IF(AP111>VCP!$E$29,AP111*VCP!$E$28,AP111) -> 66.54544155 | BA111: =IF(AQ111>VCP!$E$29,AQ111*VCP!$E$28,AQ111) -> 67.53542287 | BB111: =IF(AR111>VCP!$E$29,AR111*VCP!$E$28,AR111) -> 66.67816651 | BC111: =IF(AS111>VCP!$E$29,AS111*VCP!$E$28,AS111) -> 66.42443665
A112: 110 | B112: 7.3 | C112: 5.633333 | D112: 3.6 | E112: 78 | F112: 7.7 | G112: 220 | H112: 589 | I112: 115 | L112: =IF($K$2=0,D112*ATAN(0.151977*(E112+8.313659)^0.5)+ATAN(D112+E112)-ATAN(E112-1.676331)+0.00391838*(E112)^(3/2)*ATAN(0.023101*E112)-4.686035,'Weather data'!C112) -> 5.633333 | M112: 0.19524618 | N112: 112.979202 | O112: 2.020797963 | R112: =O113*'Qsol calculation'!N112 -> 0.9723087153 | S112: =O113*'Qsol calculation'!O112 -> -0.9883037725 | T112: =O113*'Qsol calculation'!P112 -> -0.01131021344 | U112: =O113*'Qsol calculation'!Q112 -> -1.386362385 | V112: =O113*'Qsol calculation'!R112 -> 0.1972117774 | W112: =O113*'Qsol calculation'!S112 -> 1.386362385 | X112: =O113*'Qsol calculation'!T112 -> 0.01131021344 | Y112: =O113*'Qsol calculation'!U112 -> -0.9723087153 | AA112: 0.9723087153 | AB112: 0 | AC112: 0 | AD112: 0 | AE112: 0.1972117774 | AF112: 1.386362385 | AG112: 0.01131021344 | AH112: 0 | AJ112: =N112*(1+COS(VCP!$N$22))/2 -> 99.52137356 | AL112: 100.4936823 | AM112: 99.52137356 | AN112: 99.52137356 | AO112: 99.52137356 | AP112: 99.71858534 | AQ112: 100.9077359 | AR112: 99.53268378 | AS112: 99.52137356 | AV112: =IF(AL112>VCP!$E$29,AL112*VCP!$E$28,AL112) -> 60.29620937 | AW112: =IF(AM112>VCP!$E$29,AM112*VCP!$E$28,AM112) -> 59.71282414 | AX112: =IF(AN112>VCP!$E$29,AN112*VCP!$E$28,AN112) -> 59.71282414 | AY112: =IF(AO112>VCP!$E$29,AO112*VCP!$E$28,AO112) -> 59.71282414 | AZ112: =IF(AP112>VCP!$E$29,AP112*VCP!$E$28,AP112) -> 59.8311512 | BA112: =IF(AQ112>VCP!$E$29,AQ112*VCP!$E$28,AQ112) -> 60.54464157 | BB112: =IF(AR112>VCP!$E$29,AR112*VCP!$E$28,AR112) -> 59.71961027 | BC112: =IF(AS112>VCP!$E$29,AS112*VCP!$E$28,AS112) -> 59.71282414
A113: 111 | B113: 7.6 | C113: 5.9333334 | D113: 4.2 | E113: 79 | F113: 8.2 | G113: 230 | H113: 479 | I113: 87 | L113: =IF($K$2=0,D113*ATAN(0.151977*(E113+8.313659)^0.5)+ATAN(D113+E113)-ATAN(E113-1.676331)+0.00391838*(E113)^(3/2)*ATAN(0.023101*E113)-4.686035,'Weather data'!C113) -> 5.9333334 | M113: 0.1816283925 | N113: 85.57784969 | O113: 1.422150313 | R113: =O114*'Qsol calculation'!N113 -> 0.883896107 | S113: =O114*'Qsol calculation'!O113 -> -0.6101376836 | T113: =O114*'Qsol calculation'!P113 -> 0.1935764376 | U113: =O114*'Qsol calculation'!Q113 -> -1.056441425 | V113: =O114*'Qsol calculation'!R113 -> 0.202529991 | W113: =O114*'Qsol calculation'!S113 -> 1.056441425 | X113: =O114*'Qsol calculation'!T113 -> -0.1935764376 | Y113: =O114*'Qsol calculation'!U113 -> -0.883896107 | AA113: 0.883896107 | AB113: 0 | AC113: 0.1935764376 | AD113: 0 | AE113: 0.202529991 | AF113: 1.056441425 | AG113: 0 | AH113: 0 | AJ113: =N113*(1+COS(VCP!$N$22))/2 -> 75.38400868 | AL113: 76.26790479 | AM113: 75.38400868 | AN113: 75.57758512 | AO113: 75.38400868 | AP113: 75.58653867 | AQ113: 76.44045011 | AR113: 75.38400868 | AS113: 75.38400868 | AV113: =IF(AL113>VCP!$E$29,AL113*VCP!$E$28,AL113) -> 45.76074287 | AW113: =IF(AM113>VCP!$E$29,AM113*VCP!$E$28,AM113) -> 45.23040521 | AX113: =IF(AN113>VCP!$E$29,AN113*VCP!$E$28,AN113) -> 45.34655107 | AY113: =IF(AO113>VCP!$E$29,AO113*VCP!$E$28,AO113) -> 45.23040521 | AZ113: =IF(AP113>VCP!$E$29,AP113*VCP!$E$28,AP113) -> 45.3519232 | BA113: =IF(AQ113>VCP!$E$29,AQ113*VCP!$E$28,AQ113) -> 45.86427006 | BB113: =IF(AR113>VCP!$E$29,AR113*VCP!$E$28,AR113) -> 45.23040521 | BC113: =IF(AS113>VCP!$E$29,AS113*VCP!$E$28,AS113) -> 45.23040521
A114: 112 | B114: 7.7 | C114: 6.033334 | D114: 4.2 | E114: 79 | F114: 8.9 | G114: 230 | H114: 311 | I114: 61 | L114: =IF($K$2=0,D114*ATAN(0.151977*(E114+8.313659)^0.5)+ATAN(D114+E114)-ATAN(E114-1.676331)+0.00391838*(E114)^(3/2)*ATAN(0.023101*E114)-4.686035,'Weather data'!C114) -> 6.033334 | M114: 0.1961414791 | N114: 59.92318328 | O114: 1.07681672 | R114: =O115*'Qsol calculation'!N114 -> 0.1372026161 | S114: =O115*'Qsol calculation'!O114 -> -0.06383085308 | T114: =O115*'Qsol calculation'!P114 -> 0.05188167115 | U114: =O115*'Qsol calculation'!Q114 -> -0.1421521293 | V114: =O115*'Qsol calculation'!R114 -> 0.03721341588 | W114: =O115*'Qsol calculation'!S114 -> 0.1421521293 | X114: =O115*'Qsol calculation'!T114 -> -0.05188167115 | Y114: =O115*'Qsol calculation'!U114 -> -0.1372026161 | AA114: 0.1372026161 | AB114: 0 | AC114: 0.05188167115 | AD114: 0 | AE114: 0.03721341588 | AF114: 0.1421521293 | AG114: 0 | AH114: 0 | AJ114: =N114*(1+COS(VCP!$N$22))/2 -> 52.78526844 | AL114: 52.92247106 | AM114: 52.78526844 | AN114: 52.83715012 | AO114: 52.78526844 | AP114: 52.82248186 | AQ114: 52.92742057 | AR114: 52.78526844 | AS114: 52.78526844 | AV114: =IF(AL114>VCP!$E$29,AL114*VCP!$E$28,AL114) -> 31.75348264 | AW114: =IF(AM114>VCP!$E$29,AM114*VCP!$E$28,AM114) -> 31.67116107 | AX114: =IF(AN114>VCP!$E$29,AN114*VCP!$E$28,AN114) -> 31.70229007 | AY114: =IF(AO114>VCP!$E$29,AO114*VCP!$E$28,AO114) -> 31.67116107 | AZ114: =IF(AP114>VCP!$E$29,AP114*VCP!$E$28,AP114) -> 31.69348912 | BA114: =IF(AQ114>VCP!$E$29,AQ114*VCP!$E$28,AQ114) -> 31.75645234 | BB114: =IF(AR114>VCP!$E$29,AR114*VCP!$E$28,AR114) -> 31.67116107 | BC114: =IF(AS114>VCP!$E$29,AS114*VCP!$E$28,AS114) -> 31.67116107
A115: 113 | B115: 7.7 | C115: 5.894445 | D115: 4.2 | E115: 78 | F115: 9.6 | G115: 230 | H115: 100 | I115: 13 | L115: =IF($K$2=0,D115*ATAN(0.151977*(E115+8.313659)^0.5)+ATAN(D115+E115)-ATAN(E115-1.676331)+0.00391838*(E115)^(3/2)*ATAN(0.023101*E115)-4.686035,'Weather data'!C115) -> 5.894445 | M115: 0.13 | N115: 12.8479 | O115: 0.1521 | R115: =O116*'Qsol calculation'!N115 -> 0 | S115: =O116*'Qsol calculation'!O115 -> 0 | T115: =O116*'Qsol calculation'!P115 -> 0 | U115: =O116*'Qsol calculation'!Q115 -> 0 | V115: =O116*'Qsol calculation'!R115 -> 0 | W115: =O116*'Qsol calculation'!S115 -> 0 | X115: =O116*'Qsol calculation'!T115 -> 0 | Y115: =O116*'Qsol calculation'!U115 -> 0 | AA115: 0 | AB115: 0 | AC115: 0 | AD115: 0 | AE115: 0 | AF115: 0 | AG115: 0 | AH115: 0 | AJ115: =N115*(1+COS(VCP!$N$22))/2 -> 11.31748704 | AL115: 11.31748704 | AM115: 11.31748704 | AN115: 11.31748704 | AO115: 11.31748704 | AP115: 11.31748704 | AQ115: 11.31748704 | AR115: 11.31748704 | AS115: 11.31748704 | AV115: =IF(AL115>VCP!$E$29,AL115*VCP!$E$28,AL115) -> 11.31748704 | AW115: =IF(AM115>VCP!$E$29,AM115*VCP!$E$28,AM115) -> 11.31748704 | AX115: =IF(AN115>VCP!$E$29,AN115*VCP!$E$28,AN115) -> 11.31748704 | AY115: =IF(AO115>VCP!$E$29,AO115*VCP!$E$28,AO115) -> 11.31748704 | AZ115: =IF(AP115>VCP!$E$29,AP115*VCP!$E$28,AP115) -> 11.31748704 | BA115: =IF(AQ115>VCP!$E$29,AQ115*VCP!$E$28,AQ115) -> 11.31748704 | BB115: =IF(AR115>VCP!$E$29,AR115*VCP!$E$28,AR115) -> 11.31748704 | BC115: =IF(AS115>VCP!$E$29,AS115*VCP!$E$28,AS115) -> 11.31748704
A116: 114 | B116: 7.8 | C116: 5.994445 | D116: 4.2 | E116: 78 | F116: 10.3 | G116: 220 | H116: 0 | I116: 0 | L116: =IF($K$2=0,D116*ATAN(0.151977*(E116+8.313659)^0.5)+ATAN(D116+E116)-ATAN(E116-1.676331)+0.00391838*(E116)^(3/2)*ATAN(0.023101*E116)-4.686035,'Weather data'!C116) -> 5.994445 | M116: 0 | N116: 0 | O116: 0 | R116: =O117*'Qsol calculation'!N116 -> 0 | S116: =O117*'Qsol calculation'!O116 -> 0 | T116: =O117*'Qsol calculation'!P116 -> 0 | U116: =O117*'Qsol calculation'!Q116 -> 0 | V116: =O117*'Qsol calculation'!R116 -> 0 | W116: =O117*'Qsol calculation'!S116 -> 0 | X116: =O117*'Qsol calculation'!T116 -> 0 | Y116: =O117*'Qsol calculation'!U116 -> 0 | AA116: 0 | AB116: 0 | AC116: 0 | AD116: 0 | AE116: 0 | AF116: 0 | AG116: 0 | AH116: 0 | AJ116: =N116*(1+COS(VCP!$N$22))/2 -> 0 | AL116: 0 | AM116: 0 | AN116: 0 | AO116: 0 | AP116: 0 | AQ116: 0 | AR116: 0 | AS116: 0 | AV116: =IF(AL116>VCP!$E$29,AL116*VCP!$E$28,AL116) -> 0 | AW116: =IF(AM116>VCP!$E$29,AM116*VCP!$E$28,AM116) -> 0 | AX116: =IF(AN116>VCP!$E$29,AN116*VCP!$E$28,AN116) -> 0 | AY116: =IF(AO116>VCP!$E$29,AO116*VCP!$E$28,AO116) -> 0 | AZ116: =IF(AP116>VCP!$E$29,AP116*VCP!$E$28,AP116) -> 0 | BA116: =IF(AQ116>VCP!$E$29,AQ116*VCP!$E$28,AQ116) -> 0 | BB116: =IF(AR116>VCP!$E$29,AR116*VCP!$E$28,AR116) -> 0 | BC116: =IF(AS116>VCP!$E$29,AS116*VCP!$E$28,AS116) -> 0
A117: 115 | B117: 8 | C117: 6.0555563 | D117: 4 | E117: 76 | F117: 10.3 | G117: 220 | H117: 0 | I117: 0 | L117: =IF($K$2=0,D117*ATAN(0.151977*(E117+8.313659)^0.5)+ATAN(D117+E117)-ATAN(E117-1.676331)+0.00391838*(E117)^(3/2)*ATAN(0.023101*E117)-4.686035,'Weather data'!C117) -> 6.0555563 | M117: 0 | N117: 0 | O117: 0 | R117: =O118*'Qsol calculation'!N117 -> 0 | S117: =O118*'Qsol calculation'!O117 -> 0 | T117: =O118*'Qsol calculation'!P117 -> 0 | U117: =O118*'Qsol calculation'!Q117 -> 0 | V117: =O118*'Qsol calculation'!R117 -> 0 | W117: =O118*'Qsol calculation'!S117 -> 0 | X117: =O118*'Qsol calculation'!T117 -> 0 | Y117: =O118*'Qsol calculation'!U117 -> 0 | AA117: 0 | AB117: 0 | AC117: 0 | AD117: 0 | AE117: 0 | AF117: 0 | AG117: 0 | AH117: 0 | AJ117: =N117*(1+COS(VCP!$N$22))/2 -> 0 | AL117: 0 | AM117: 0 | AN117: 0 | AO117: 0 | AP117: 0 | AQ117: 0 | AR117: 0 | AS117: 0 | AV117: =IF(AL117>VCP!$E$29,AL117*VCP!$E$28,AL117) -> 0 | AW117: =IF(AM117>VCP!$E$29,AM117*VCP!$E$28,AM117) -> 0 | AX117: =IF(AN117>VCP!$E$29,AN117*VCP!$E$28,AN117) -> 0 | AY117: =IF(AO117>VCP!$E$29,AO117*VCP!$E$28,AO117) -> 0 | AZ117: =IF(AP117>VCP!$E$29,AP117*VCP!$E$28,AP117) -> 0 | BA117: =IF(AQ117>VCP!$E$29,AQ117*VCP!$E$28,AQ117) -> 0 | BB117: =IF(AR117>VCP!$E$29,AR117*VCP!$E$28,AR117) -> 0 | BC117: =IF(AS117>VCP!$E$29,AS117*VCP!$E$28,AS117) -> 0
A118: 116 | B118: 7.8 | C118: 6.2259274 | D118: 4.6 | E118: 80 | F118: 9.7 | G118: 220 | H118: 0 | I118: 0 | L118: =IF($K$2=0,D118*ATAN(0.151977*(E118+8.313659)^0.5)+ATAN(D118+E118)-ATAN(E118-1.676331)+0.00391838*(E118)^(3/2)*ATAN(0.023101*E118)-4.686035,'Weather data'!C118) -> 6.2259274 | M118: 0 | N118: 0 | O118: 0 | R118: =O119*'Qsol calculation'!N118 -> 0 | S118: =O119*'Qsol calculation'!O118 -> 0 | T118: =O119*'Qsol calculation'!P118 -> 0 | U118: =O119*'Qsol calculation'!Q118 -> 0 | V118: =O119*'Qsol calculation'!R118 -> 0 | W118: =O119*'Qsol calculation'!S118 -> 0 | X118: =O119*'Qsol calculation'!T118 -> 0 | Y118: =O119*'Qsol calculation'!U118 -> 0 | AA118: 0 | AB118: 0 | AC118: 0 | AD118: 0 | AE118: 0 | AF118: 0 | AG118: 0 | AH118: 0 | AJ118: =N118*(1+COS(VCP!$N$22))/2 -> 0 | AL118: 0 | AM118: 0 | AN118: 0 | AO118: 0 | AP118: 0 | AQ118: 0 | AR118: 0 | AS118: 0 | AV118: =IF(AL118>VCP!$E$29,AL118*VCP!$E$28,AL118) -> 0 | AW118: =IF(AM118>VCP!$E$29,AM118*VCP!$E$28,AM118) -> 0 | AX118: =IF(AN118>VCP!$E$29,AN118*VCP!$E$28,AN118) -> 0 | AY118: =IF(AO118>VCP!$E$29,AO118*VCP!$E$28,AO118) -> 0 | AZ118: =IF(AP118>VCP!$E$29,AP118*VCP!$E$28,AP118) -> 0 | BA118: =IF(AQ118>VCP!$E$29,AQ118*VCP!$E$28,AQ118) -> 0 | BB118: =IF(AR118>VCP!$E$29,AR118*VCP!$E$28,AR118) -> 0 | BC118: =IF(AS118>VCP!$E$29,AS118*VCP!$E$28,AS118) -> 0
A119: 117 | B119: 7.6 | C119: 6.211111 | D119: 4.8 | E119: 83 | F119: 9.1 | G119: 220 | H119: 0 | I119: 0 | L119: =IF($K$2=0,D119*ATAN(0.151977*(E119+8.313659)^0.5)+ATAN(D119+E119)-ATAN(E119-1.676331)+0.00391838*(E119)^(3/2)*ATAN(0.023101*E119)-4.686035,'Weather data'!C119) -> 6.211111 | M119: 0 | N119: 0 | O119: 0 | R119: =O120*'Qsol calculation'!N119 -> 0 | S119: =O120*'Qsol calculation'!O119 -> 0 | T119: =O120*'Qsol calculation'!P119 -> 0 | U119: =O120*'Qsol calculation'!Q119 -> 0 | V119: =O120*'Qsol calculation'!R119 -> 0 | W119: =O120*'Qsol calculation'!S119 -> 0 | X119: =O120*'Qsol calculation'!T119 -> 0 | Y119: =O120*'Qsol calculation'!U119 -> 0 | AA119: 0 | AB119: 0 | AC119: 0 | AD119: 0 | AE119: 0 | AF119: 0 | AG119: 0 | AH119: 0 | AJ119: =N119*(1+COS(VCP!$N$22))/2 -> 0 | AL119: 0 | AM119: 0 | AN119: 0 | AO119: 0 | AP119: 0 | AQ119: 0 | AR119: 0 | AS119: 0 | AV119: =IF(AL119>VCP!$E$29,AL119*VCP!$E$28,AL119) -> 0 | AW119: =IF(AM119>VCP!$E$29,AM119*VCP!$E$28,AM119) -> 0 | AX119: =IF(AN119>VCP!$E$29,AN119*VCP!$E$28,AN119) -> 0 | AY119: =IF(AO119>VCP!$E$29,AO119*VCP!$E$28,AO119) -> 0 | AZ119: =IF(AP119>VCP!$E$29,AP119*VCP!$E$28,AP119) -> 0 | BA119: =IF(AQ119>VCP!$E$29,AQ119*VCP!$E$28,AQ119) -> 0 | BB119: =IF(AR119>VCP!$E$29,AR119*VCP!$E$28,AR119) -> 0 | BC119: =IF(AS119>VCP!$E$29,AS119*VCP!$E$28,AS119) -> 0
A120: 118 | B120: 7.4 | C120: 6.288889 | D120: 5 | E120: 85 | F120: 8.4 | G120: 220 | H120: 0 | I120: 0 | L120: =IF($K$2=0,D120*ATAN(0.151977*(E120+8.313659)^0.5)+ATAN(D120+E120)-ATAN(E120-1.676331)+0.00391838*(E120)^(3/2)*ATAN(0.023101*E120)-4.686035,'Weather data'!C120) -> 6.288889 | M120: 0 | N120: 0 | O120: 0 | R120: =O121*'Qsol calculation'!N120 -> 0 | S120: =O121*'Qsol calculation'!O120 -> 0 | T120: =O121*'Qsol calculation'!P120 -> 0 | U120: =O121*'Qsol calculation'!Q120 -> 0 | V120: =O121*'Qsol calculation'!R120 -> 0 | W120: =O121*'Qsol calculation'!S120 -> 0 | X120: =O121*'Qsol calculation'!T120 -> 0 | Y120: =O121*'Qsol calculation'!U120 -> 0 | AA120: 0 | AB120: 0 | AC120: 0 | AD120: 0 | AE120: 0 | AF120: 0 | AG120: 0 | AH120: 0 | AJ120: =N120*(1+COS(VCP!$N$22))/2 -> 0 | AL120: 0 | AM120: 0 | AN120: 0 | AO120: 0 | AP120: 0 | AQ120: 0 | AR120: 0 | AS120: 0 | AV120: =IF(AL120>VCP!$E$29,AL120*VCP!$E$28,AL120) -> 0 | AW120: =IF(AM120>VCP!$E$29,AM120*VCP!$E$28,AM120) -> 0 | AX120: =IF(AN120>VCP!$E$29,AN120*VCP!$E$28,AN120) -> 0 | AY120: =IF(AO120>VCP!$E$29,AO120*VCP!$E$28,AO120) -> 0 | AZ120: =IF(AP120>VCP!$E$29,AP120*VCP!$E$28,AP120) -> 0 | BA120: =IF(AQ120>VCP!$E$29,AQ120*VCP!$E$28,AQ120) -> 0 | BB120: =IF(AR120>VCP!$E$29,AR120*VCP!$E$28,AR120) -> 0 | BC120: =IF(AS120>VCP!$E$29,AS120*VCP!$E$28,AS120) -> 0
A121: 119 | B121: 7.2 | C121: 6.181482 | D121: 5.2 | E121: 87 | F121: 7.8 | G121: 220 | H121: 0 | I121: 0 | L121: =IF($K$2=0,D121*ATAN(0.151977*(E121+8.313659)^0.5)+ATAN(D121+E121)-ATAN(E121-1.676331)+0.00391838*(E121)^(3/2)*ATAN(0.023101*E121)-4.686035,'Weather data'!C121) -> 6.181482 | M121: 0 | N121: 0 | O121: 0 | R121: =O122*'Qsol calculation'!N121 -> 0 | S121: =O122*'Qsol calculation'!O121 -> 0 | T121: =O122*'Qsol calculation'!P121 -> 0 | U121: =O122*'Qsol calculation'!Q121 -> 0 | V121: =O122*'Qsol calculation'!R121 -> 0 | W121: =O122*'Qsol calculation'!S121 -> 0 | X121: =O122*'Qsol calculation'!T121 -> 0 | Y121: =O122*'Qsol calculation'!U121 -> 0 | AA121: 0 | AB121: 0 | AC121: 0 | AD121: 0 | AE121: 0 | AF121: 0 | AG121: 0 | AH121: 0 | AJ121: =N121*(1+COS(VCP!$N$22))/2 -> 0 | AL121: 0 | AM121: 0 | AN121: 0 | AO121: 0 | AP121: 0 | AQ121: 0 | AR121: 0 | AS121: 0 | AV121: =IF(AL121>VCP!$E$29,AL121*VCP!$E$28,AL121) -> 0 | AW121: =IF(AM121>VCP!$E$29,AM121*VCP!$E$28,AM121) -> 0 | AX121: =IF(AN121>VCP!$E$29,AN121*VCP!$E$28,AN121) -> 0 | AY121: =IF(AO121>VCP!$E$29,AO121*VCP!$E$28,AO121) -> 0 | AZ121: =IF(AP121>VCP!$E$29,AP121*VCP!$E$28,AP121) -> 0 | BA121: =IF(AQ121>VCP!$E$29,AQ121*VCP!$E$28,AQ121) -> 0 | BB121: =IF(AR121>VCP!$E$29,AR121*VCP!$E$28,AR121) -> 0 | BC121: =IF(AS121>VCP!$E$29,AS121*VCP!$E$28,AS121) -> 0
A122: 120 | B122: 7 | C122: 6.259259 | D122: 5.4 | E122: 90 | F122: 7.2 | G122: 190 | H122: 0 | I122: 0 | L122: =IF($K$2=0,D122*ATAN(0.151977*(E122+8.313659)^0.5)+ATAN(D122+E122)-ATAN(E122-1.676331)+0.00391838*(E122)^(3/2)*ATAN(0.023101*E122)-4.686035,'Weather data'!C122) -> 6.259259 | M122: 0 | N122: 0 | O122: 0 | R122: =O123*'Qsol calculation'!N122 -> 0 | S122: =O123*'Qsol calculation'!O122 -> 0 | T122: =O123*'Qsol calculation'!P122 -> 0 | U122: =O123*'Qsol calculation'!Q122 -> 0 | V122: =O123*'Qsol calculation'!R122 -> 0 | W122: =O123*'Qsol calculation'!S122 -> 0 | X122: =O123*'Qsol calculation'!T122 -> 0 | Y122: =O123*'Qsol calculation'!U122 -> 0 | AA122: 0 | AB122: 0 | AC122: 0 | AD122: 0 | AE122: 0 | AF122: 0 | AG122: 0 | AH122: 0 | AJ122: =N122*(1+COS(VCP!$N$22))/2 -> 0 | AL122: 0 | AM122: 0 | AN122: 0 | AO122: 0 | AP122: 0 | AQ122: 0 | AR122: 0 | AS122: 0 | AV122: =IF(AL122>VCP!$E$29,AL122*VCP!$E$28,AL122) -> 0 | AW122: =IF(AM122>VCP!$E$29,AM122*VCP!$E$28,AM122) -> 0 | AX122: =IF(AN122>VCP!$E$29,AN122*VCP!$E$28,AN122) -> 0 | AY122: =IF(AO122>VCP!$E$29,AO122*VCP!$E$28,AO122) -> 0 | AZ122: =IF(AP122>VCP!$E$29,AP122*VCP!$E$28,AP122) -> 0 | BA122: =IF(AQ122>VCP!$E$29,AQ122*VCP!$E$28,AQ122) -> 0 | BB122: =IF(AR122>VCP!$E$29,AR122*VCP!$E$28,AR122) -> 0 | BC122: =IF(AS122>VCP!$E$29,AS122*VCP!$E$28,AS122) -> 0
A123: 121 | B123: 7.1 | C123: 5.9888883 | D123: 4.9 | E123: 86 | F123: 7.4 | G123: 190 | H123: 0 | I123: 0 | L123: =IF($K$2=0,D123*ATAN(0.151977*(E123+8.313659)^0.5)+ATAN(D123+E123)-ATAN(E123-1.676331)+0.00391838*(E123)^(3/2)*ATAN(0.023101*E123)-4.686035,'Weather data'!C123) -> 5.9888883 | M123: 0 | N123: 0 | O123: 0 | R123: =O124*'Qsol calculation'!N123 -> 0 | S123: =O124*'Qsol calculation'!O123 -> 0 | T123: =O124*'Qsol calculation'!P123 -> 0 | U123: =O124*'Qsol calculation'!Q123 -> 0 | V123: =O124*'Qsol calculation'!R123 -> 0 | W123: =O124*'Qsol calculation'!S123 -> 0 | X123: =O124*'Qsol calculation'!T123 -> 0 | Y123: =O124*'Qsol calculation'!U123 -> 0 | AA123: 0 | AB123: 0 | AC123: 0 | AD123: 0 | AE123: 0 | AF123: 0 | AG123: 0 | AH123: 0 | AJ123: =N123*(1+COS(VCP!$N$22))/2 -> 0 | AL123: 0 | AM123: 0 | AN123: 0 | AO123: 0 | AP123: 0 | AQ123: 0 | AR123: 0 | AS123: 0 | AV123: =IF(AL123>VCP!$E$29,AL123*VCP!$E$28,AL123) -> 0 | AW123: =IF(AM123>VCP!$E$29,AM123*VCP!$E$28,AM123) -> 0 | AX123: =IF(AN123>VCP!$E$29,AN123*VCP!$E$28,AN123) -> 0 | AY123: =IF(AO123>VCP!$E$29,AO123*VCP!$E$28,AO123) -> 0 | AZ123: =IF(AP123>VCP!$E$29,AP123*VCP!$E$28,AP123) -> 0 | BA123: =IF(AQ123>VCP!$E$29,AQ123*VCP!$E$28,AQ123) -> 0 | BB123: =IF(AR123>VCP!$E$29,AR123*VCP!$E$28,AR123) -> 0 | BC123: =IF(AS123>VCP!$E$29,AS123*VCP!$E$28,AS123) -> 0
A124: 122 | B124: 7.3 | C124: 5.911111 | D124: 4.4 | E124: 82 | F124: 7.5 | G124: 190 | H124: 0 | I124: 0 | L124: =IF($K$2=0,D124*ATAN(0.151977*(E124+8.313659)^0.5)+ATAN(D124+E124)-ATAN(E124-1.676331)+0.00391838*(E124)^(3/2)*ATAN(0.023101*E124)-4.686035,'Weather data'!C124) -> 5.911111 | M124: 0 | N124: 0 | O124: 0 | R124: =O125*'Qsol calculation'!N124 -> 0 | S124: =O125*'Qsol calculation'!O124 -> 0 | T124: =O125*'Qsol calculation'!P124 -> 0 | U124: =O125*'Qsol calculation'!Q124 -> 0 | V124: =O125*'Qsol calculation'!R124 -> 0 | W124: =O125*'Qsol calculation'!S124 -> 0 | X124: =O125*'Qsol calculation'!T124 -> 0 | Y124: =O125*'Qsol calculation'!U124 -> 0 | AA124: 0 | AB124: 0 | AC124: 0 | AD124: 0 | AE124: 0 | AF124: 0 | AG124: 0 | AH124: 0 | AJ124: =N124*(1+COS(VCP!$N$22))/2 -> 0 | AL124: 0 | AM124: 0 | AN124: 0 | AO124: 0 | AP124: 0 | AQ124: 0 | AR124: 0 | AS124: 0 | AV124: =IF(AL124>VCP!$E$29,AL124*VCP!$E$28,AL124) -> 0 | AW124: =IF(AM124>VCP!$E$29,AM124*VCP!$E$28,AM124) -> 0 | AX124: =IF(AN124>VCP!$E$29,AN124*VCP!$E$28,AN124) -> 0 | AY124: =IF(AO124>VCP!$E$29,AO124*VCP!$E$28,AO124) -> 0 | AZ124: =IF(AP124>VCP!$E$29,AP124*VCP!$E$28,AP124) -> 0 | BA124: =IF(AQ124>VCP!$E$29,AQ124*VCP!$E$28,AQ124) -> 0 | BB124: =IF(AR124>VCP!$E$29,AR124*VCP!$E$28,AR124) -> 0 | BC124: =IF(AS124>VCP!$E$29,AS124*VCP!$E$28,AS124) -> 0
A125: 123 | B125: 7.4 | C125: 6.65926 | D125: 6.1 | E125: 91 | F125: 7.7 | G125: 200 | H125: 0 | I125: 0 | L125: =IF($K$2=0,D125*ATAN(0.151977*(E125+8.313659)^0.5)+ATAN(D125+E125)-ATAN(E125-1.676331)+0.00391838*(E125)^(3/2)*ATAN(0.023101*E125)-4.686035,'Weather data'!C125) -> 6.65926 | M125: 0 | N125: 0 | O125: 0 | R125: =O126*'Qsol calculation'!N125 -> 0 | S125: =O126*'Qsol calculation'!O125 -> 0 | T125: =O126*'Qsol calculation'!P125 -> 0 | U125: =O126*'Qsol calculation'!Q125 -> 0 | V125: =O126*'Qsol calculation'!R125 -> 0 | W125: =O126*'Qsol calculation'!S125 -> 0 | X125: =O126*'Qsol calculation'!T125 -> 0 | Y125: =O126*'Qsol calculation'!U125 -> 0 | AA125: 0 | AB125: 0 | AC125: 0 | AD125: 0 | AE125: 0 | AF125: 0 | AG125: 0 | AH125: 0 | AJ125: =N125*(1+COS(VCP!$N$22))/2 -> 0 | AL125: 0 | AM125: 0 | AN125: 0 | AO125: 0 | AP125: 0 | AQ125: 0 | AR125: 0 | AS125: 0 | AV125: =IF(AL125>VCP!$E$29,AL125*VCP!$E$28,AL125) -> 0 | AW125: =IF(AM125>VCP!$E$29,AM125*VCP!$E$28,AM125) -> 0 | AX125: =IF(AN125>VCP!$E$29,AN125*VCP!$E$28,AN125) -> 0 | AY125: =IF(AO125>VCP!$E$29,AO125*VCP!$E$28,AO125) -> 0 | AZ125: =IF(AP125>VCP!$E$29,AP125*VCP!$E$28,AP125) -> 0 | BA125: =IF(AQ125>VCP!$E$29,AQ125*VCP!$E$28,AQ125) -> 0 | BB125: =IF(AR125>VCP!$E$29,AR125*VCP!$E$28,AR125) -> 0 | BC125: =IF(AS125>VCP!$E$29,AS125*VCP!$E$28,AS125) -> 0
A126: 124 | B126: 7.3 | C126: 5.633333 | D126: 3.9 | E126: 79 | F126: 7.2 | G126: 200 | H126: 0 | I126: 0 | L126: =IF($K$2=0,D126*ATAN(0.151977*(E126+8.313659)^0.5)+ATAN(D126+E126)-ATAN(E126-1.676331)+0.00391838*(E126)^(3/2)*ATAN(0.023101*E126)-4.686035,'Weather data'!C126) -> 5.633333 | M126: 0 | N126: 0 | O126: 0 | R126: =O127*'Qsol calculation'!N126 -> 0 | S126: =O127*'Qsol calculation'!O126 -> 0 | T126: =O127*'Qsol calculation'!P126 -> 0 | U126: =O127*'Qsol calculation'!Q126 -> 0 | V126: =O127*'Qsol calculation'!R126 -> 0 | W126: =O127*'Qsol calculation'!S126 -> 0 | X126: =O127*'Qsol calculation'!T126 -> 0 | Y126: =O127*'Qsol calculation'!U126 -> 0 | AA126: 0 | AB126: 0 | AC126: 0 | AD126: 0 | AE126: 0 | AF126: 0 | AG126: 0 | AH126: 0 | AJ126: =N126*(1+COS(VCP!$N$22))/2 -> 0 | AL126: 0 | AM126: 0 | AN126: 0 | AO126: 0 | AP126: 0 | AQ126: 0 | AR126: 0 | AS126: 0 | AV126: =IF(AL126>VCP!$E$29,AL126*VCP!$E$28,AL126) -> 0 | AW126: =IF(AM126>VCP!$E$29,AM126*VCP!$E$28,AM126) -> 0 | AX126: =IF(AN126>VCP!$E$29,AN126*VCP!$E$28,AN126) -> 0 | AY126: =IF(AO126>VCP!$E$29,AO126*VCP!$E$28,AO126) -> 0 | AZ126: =IF(AP126>VCP!$E$29,AP126*VCP!$E$28,AP126) -> 0 | BA126: =IF(AQ126>VCP!$E$29,AQ126*VCP!$E$28,AQ126) -> 0 | BB126: =IF(AR126>VCP!$E$29,AR126*VCP!$E$28,AR126) -> 0 | BC126: =IF(AS126>VCP!$E$29,AS126*VCP!$E$28,AS126) -> 0
A127: 125 | B127: 7.3 | C127: 5.7259264 | D127: 4 | E127: 80 | F127: 6.7 | G127: 200 | H127: 0 | I127: 0 | L127: =IF($K$2=0,D127*ATAN(0.151977*(E127+8.313659)^0.5)+ATAN(D127+E127)-ATAN(E127-1.676331)+0.00391838*(E127)^(3/2)*ATAN(0.023101*E127)-4.686035,'Weather data'!C127) -> 5.7259264 | M127: 0 | N127: 0 | O127: 0 | R127: =O128*'Qsol calculation'!N127 -> 0 | S127: =O128*'Qsol calculation'!O127 -> 0 | T127: =O128*'Qsol calculation'!P127 -> 0 | U127: =O128*'Qsol calculation'!Q127 -> 0 | V127: =O128*'Qsol calculation'!R127 -> 0 | W127: =O128*'Qsol calculation'!S127 -> 0 | X127: =O128*'Qsol calculation'!T127 -> 0 | Y127: =O128*'Qsol calculation'!U127 -> 0 | AA127: 0 | AB127: 0 | AC127: 0 | AD127: 0 | AE127: 0 | AF127: 0 | AG127: 0 | AH127: 0 | AJ127: =N127*(1+COS(VCP!$N$22))/2 -> 0 | AL127: 0 | AM127: 0 | AN127: 0 | AO127: 0 | AP127: 0 | AQ127: 0 | AR127: 0 | AS127: 0 | AV127: =IF(AL127>VCP!$E$29,AL127*VCP!$E$28,AL127) -> 0 | AW127: =IF(AM127>VCP!$E$29,AM127*VCP!$E$28,AM127) -> 0 | AX127: =IF(AN127>VCP!$E$29,AN127*VCP!$E$28,AN127) -> 0 | AY127: =IF(AO127>VCP!$E$29,AO127*VCP!$E$28,AO127) -> 0 | AZ127: =IF(AP127>VCP!$E$29,AP127*VCP!$E$28,AP127) -> 0 | BA127: =IF(AQ127>VCP!$E$29,AQ127*VCP!$E$28,AQ127) -> 0 | BB127: =IF(AR127>VCP!$E$29,AR127*VCP!$E$28,AR127) -> 0 | BC127: =IF(AS127>VCP!$E$29,AS127*VCP!$E$28,AS127) -> 0
A128: 126 | B128: 7.2 | C128: 6.088888 | D128: 5 | E128: 86 | F128: 6.2 | G128: 250 | H128: 0 | I128: 0 | L128: =IF($K$2=0,D128*ATAN(0.151977*(E128+8.313659)^0.5)+ATAN(D128+E128)-ATAN(E128-1.676331)+0.00391838*(E128)^(3/2)*ATAN(0.023101*E128)-4.686035,'Weather data'!C128) -> 6.088888 | M128: 0 | N128: 0 | O128: 0 | R128: =O129*'Qsol calculation'!N128 -> 0 | S128: =O129*'Qsol calculation'!O128 -> 0 | T128: =O129*'Qsol calculation'!P128 -> 0 | U128: =O129*'Qsol calculation'!Q128 -> 0 | V128: =O129*'Qsol calculation'!R128 -> 0 | W128: =O129*'Qsol calculation'!S128 -> 0 | X128: =O129*'Qsol calculation'!T128 -> 0 | Y128: =O129*'Qsol calculation'!U128 -> 0 | AA128: 0 | AB128: 0 | AC128: 0 | AD128: 0 | AE128: 0 | AF128: 0 | AG128: 0 | AH128: 0 | AJ128: =N128*(1+COS(VCP!$N$22))/2 -> 0 | AL128: 0 | AM128: 0 | AN128: 0 | AO128: 0 | AP128: 0 | AQ128: 0 | AR128: 0 | AS128: 0 | AV128: =IF(AL128>VCP!$E$29,AL128*VCP!$E$28,AL128) -> 0 | AW128: =IF(AM128>VCP!$E$29,AM128*VCP!$E$28,AM128) -> 0 | AX128: =IF(AN128>VCP!$E$29,AN128*VCP!$E$28,AN128) -> 0 | AY128: =IF(AO128>VCP!$E$29,AO128*VCP!$E$28,AO128) -> 0 | AZ128: =IF(AP128>VCP!$E$29,AP128*VCP!$E$28,AP128) -> 0 | BA128: =IF(AQ128>VCP!$E$29,AQ128*VCP!$E$28,AQ128) -> 0 | BB128: =IF(AR128>VCP!$E$29,AR128*VCP!$E$28,AR128) -> 0 | BC128: =IF(AS128>VCP!$E$29,AS128*VCP!$E$28,AS128) -> 0
A129: 127 | B129: 7.2 | C129: 5.533333 | D129: 3.5 | E129: 78 | F129: 6.2 | G129: 250 | H129: 0 | I129: 0 | L129: =IF($K$2=0,D129*ATAN(0.151977*(E129+8.313659)^0.5)+ATAN(D129+E129)-ATAN(E129-1.676331)+0.00391838*(E129)^(3/2)*ATAN(0.023101*E129)-4.686035,'Weather data'!C129) -> 5.533333 | M129: 0 | N129: 0 | O129: 0 | R129: =O130*'Qsol calculation'!N129 -> -0.00699566685 | S129: =O130*'Qsol calculation'!O129 -> -0.005536741521 | T129: =O130*'Qsol calculation'!P129 -> -0.008861750944 | U129: =O130*'Qsol calculation'!Q129 -> 0.001031615993 | V129: =O130*'Qsol calculation'!R129 -> 0.001512910892 | W129: =O130*'Qsol calculation'!S129 -> -0.001031615993 | X129: =O130*'Qsol calculation'!T129 -> 0.008861750944 | Y129: =O130*'Qsol calculation'!U129 -> 0.00699566685 | AA129: 0 | AB129: 0 | AC129: 0 | AD129: 0.001031615993 | AE129: 0.001512910892 | AF129: 0 | AG129: 0.008861750944 | AH129: 0.00699566685 | AJ129: =N129*(1+COS(VCP!$N$22))/2 -> 0 | AL129: 0 | AM129: 0 | AN129: 0 | AO129: 0.001031615993 | AP129: 0.001512910892 | AQ129: 0 | AR129: 0.008861750944 | AS129: 0.00699566685 | AV129: =IF(AL129>VCP!$E$29,AL129*VCP!$E$28,AL129) -> 0 | AW129: =IF(AM129>VCP!$E$29,AM129*VCP!$E$28,AM129) -> 0 | AX129: =IF(AN129>VCP!$E$29,AN129*VCP!$E$28,AN129) -> 0 | AY129: =IF(AO129>VCP!$E$29,AO129*VCP!$E$28,AO129) -> 0.001031615993 | AZ129: =IF(AP129>VCP!$E$29,AP129*VCP!$E$28,AP129) -> 0.001512910892 | BA129: =IF(AQ129>VCP!$E$29,AQ129*VCP!$E$28,AQ129) -> 0 | BB129: =IF(AR129>VCP!$E$29,AR129*VCP!$E$28,AR129) -> 0.008861750944 | BC129: =IF(AS129>VCP!$E$29,AS129*VCP!$E$28,AS129) -> 0.00699566685
A130: 128 | B130: 7.2 | C130: 5.255555 | D130: 3 | E130: 75 | F130: 6.2 | G130: 250 | H130: 10 | I130: 1 | L130: =IF($K$2=0,D130*ATAN(0.151977*(E130+8.313659)^0.5)+ATAN(D130+E130)-ATAN(E130-1.676331)+0.00391838*(E130)^(3/2)*ATAN(0.023101*E130)-4.686035,'Weather data'!C130) -> 5.255555 | M130: =IF(IFERROR(I130/H130,0)>1,0,IFERROR(I130/H130,0)) -> 0.1 | N130: =IF(M130<=0.22,((1-0.09*M130)*I130),(0.9511-0.1604*M130+(4.388*(M130)^2)-(16.638*(M130)^3)+(12.336*(M130)^(4)))*I130) -> 0.991 | O130: =I130-N130 -> 0.009 | R130: =O131*'Qsol calculation'!N130 -> -0.1348351881 | S130: =O131*'Qsol calculation'!O130 -> -0.1593055114 | T130: =O131*'Qsol calculation'!P130 -> -0.2079888832 | U130: =O131*'Qsol calculation'!Q130 -> -0.01730313149 | V130: =O131*'Qsol calculation'!R130 -> 0.02653910202 | W130: =O131*'Qsol calculation'!S130 -> 0.01730313149 | X130: =O131*'Qsol calculation'!T130 -> 0.2079888832 | Y130: =O131*'Qsol calculation'!U130 -> 0.1348351881 | AA130: 0 | AB130: 0 | AC130: 0 | AD130: 0 | AE130: 0.02653910202 | AF130: 0.01730313149 | AG130: 0.2079888832 | AH130: 0.1348351881 | AJ130: =N130*(1+COS(VCP!$N$22))/2 -> 0.8729543086 | AL130: =AA130+AJ130 -> 0.8729543086 | AM130: =AB130+AJ130 -> 0.8729543086 | AN130: =AC130+AJ130 -> 0.8729543086 | AO130: =AD130+AJ130 -> 0.8729543086 | AP130: =AE130+AJ130 -> 0.8994934106 | AQ130: =AF130+AJ130 -> 0.8902574401 | AR130: =AG130+AJ130 -> 1.080943192 | AS130: =AH130+AJ130 -> 1.007789497 | AV130: =IF(AL130>VCP!$E$29,AL130*VCP!$E$28,AL130) -> 0.8729543086 | AW130: =IF(AM130>VCP!$E$29,AM130*VCP!$E$28,AM130) -> 0.8729543086 | AX130: =IF(AN130>VCP!$E$29,AN130*VCP!$E$28,AN130) -> 0.8729543086 | AY130: =IF(AO130>VCP!$E$29,AO130*VCP!$E$28,AO130) -> 0.8729543086 | AZ130: =IF(AP130>VCP!$E$29,AP130*VCP!$E$28,AP130) -> 0.8994934106 | BA130: =IF(AQ130>VCP!$E$29,AQ130*VCP!$E$28,AQ130) -> 0.8902574401 | BB130: =IF(AR130>VCP!$E$29,AR130*VCP!$E$28,AR130) -> 1.080943192 | BC130: =IF(AS130>VCP!$E$29,AS130*VCP!$E$28,AS130) -> 1.007789497
A131: 129 | B131: 7.2 | C131: 6.2277775 | D131: 5.4 | E131: 88 | F131: 6.2 | G131: 200 | H131: 183 | I131: 21 | L131: =IF($K$2=0,D131*ATAN(0.151977*(E131+8.313659)^0.5)+ATAN(D131+E131)-ATAN(E131-1.676331)+0.00391838*(E131)^(3/2)*ATAN(0.023101*E131)-4.686035,'Weather data'!C131) -> 6.2277775 | M131: 0.1147540984 | N131: 20.78311475 | O131: 0.2168852459 | R131: =O132*'Qsol calculation'!N131 -> -0.3857588307 | S131: =O132*'Qsol calculation'!O131 -> -0.7498950429 | T131: =O132*'Qsol calculation'!P131 -> -0.8030285551 | U131: =O132*'Qsol calculation'!Q131 -> -0.2574831849 | V131: =O132*'Qsol calculation'!R131 -> 0.08028796841 | W131: =O132*'Qsol calculation'!S131 -> 0.2574831849 | X131: =O132*'Qsol calculation'!T131 -> 0.8030285551 | Y131: =O132*'Qsol calculation'!U131 -> 0.3857588307 | AA131: =IF(R131<=0,0,R131) -> 0 | AB131: =IF(S131<=0,0,S131) -> 0 | AC131: =IF(T131<=0,0,T131) -> 0 | AD131: =IF(U131<=0,0,U131) -> 0 | AE131: =IF(V131<=0,0,V131) -> 0.08028796841 | AF131: =IF(W131<=0,0,W131) -> 0.2574831849 | AG131: =IF(X131<=0,0,X131) -> 0.8030285551 | AH131: =IF(Y131<=0,0,Y131) -> 0.3857588307 | AJ131: =N131*(1+COS(VCP!$N$22))/2 -> 18.30747686 | AL131: 18.30747686 | AM131: 18.30747686 | AN131: 18.30747686 | AO131: 18.30747686 | AP131: 18.38776483 | AQ131: 18.56496005 | AR131: 19.11050542 | AS131: 18.69323569 | AV131: =IF(AL131>VCP!$E$29,AL131*VCP!$E$28,AL131) -> 18.30747686 | AW131: =IF(AM131>VCP!$E$29,AM131*VCP!$E$28,AM131) -> 18.30747686 | AX131: =IF(AN131>VCP!$E$29,AN131*VCP!$E$28,AN131) -> 18.30747686 | AY131: =IF(AO131>VCP!$E$29,AO131*VCP!$E$28,AO131) -> 18.30747686 | AZ131: =IF(AP131>VCP!$E$29,AP131*VCP!$E$28,AP131) -> 18.38776483 | BA131: =IF(AQ131>VCP!$E$29,AQ131*VCP!$E$28,AQ131) -> 18.56496005 | BB131: =IF(AR131>VCP!$E$29,AR131*VCP!$E$28,AR131) -> 19.11050542 | BC131: =IF(AS131>VCP!$E$29,AS131*VCP!$E$28,AS131) -> 18.69323569
A132: 130 | B132: 8 | C132: 6.981483 | D132: 6 | E132: 87 | F132: 8.7 | G132: 220 | H132: 380 | I132: 62 | L132: =IF($K$2=0,D132*ATAN(0.151977*(E132+8.313659)^0.5)+ATAN(D132+E132)-ATAN(E132-1.676331)+0.00391838*(E132)^(3/2)*ATAN(0.023101*E132)-4.686035,'Weather data'!C132) -> 6.981483 | M132: 0.1631578947 | N132: 61.08957895 | O132: 0.9104210526 | R132: =O133*'Qsol calculation'!N132 -> -0.3355652867 | S132: =O133*'Qsol calculation'!O132 -> -1.494220931 | T132: =O133*'Qsol calculation'!P132 -> -1.293854242 | U132: =O133*'Qsol calculation'!Q132 -> -0.8192932628 | V132: =O133*'Qsol calculation'!R132 -> 0.1157375426 | W132: =O133*'Qsol calculation'!S132 -> 0.8192932628 | X132: =O133*'Qsol calculation'!T132 -> 1.293854242 | Y132: =O133*'Qsol calculation'!U132 -> 0.3355652867 | AA132: 0 | AB132: 0 | AC132: 0 | AD132: 0 | AE132: 0.1157375426 | AF132: 0.8192932628 | AG132: 1.293854242 | AH132: 0.3355652867 | AJ132: =N132*(1+COS(VCP!$N$22))/2 -> 53.81272568 | AL132: 53.81272568 | AM132: 53.81272568 | AN132: 53.81272568 | AO132: 53.81272568 | AP132: 53.92846323 | AQ132: 54.63201895 | AR132: 55.10657993 | AS132: 54.14829097 | AV132: =IF(AL132>VCP!$E$29,AL132*VCP!$E$28,AL132) -> 32.28763541 | AW132: =IF(AM132>VCP!$E$29,AM132*VCP!$E$28,AM132) -> 32.28763541 | AX132: =IF(AN132>VCP!$E$29,AN132*VCP!$E$28,AN132) -> 32.28763541 | AY132: =IF(AO132>VCP!$E$29,AO132*VCP!$E$28,AO132) -> 32.28763541 | AZ132: =IF(AP132>VCP!$E$29,AP132*VCP!$E$28,AP132) -> 32.35707794 | BA132: =IF(AQ132>VCP!$E$29,AQ132*VCP!$E$28,AQ132) -> 32.77921137 | BB132: =IF(AR132>VCP!$E$29,AR132*VCP!$E$28,AR132) -> 33.06394796 | BC132: =IF(AS132>VCP!$E$29,AS132*VCP!$E$28,AS132) -> 32.48897458
A133: 131 | B133: 6.5 | C133: 4.3703713 | D133: 2 | E133: 73 | F133: 6.9 | G133: 220 | H133: 528 | I133: 100 | L133: =IF($K$2=0,D133*ATAN(0.151977*(E133+8.313659)^0.5)+ATAN(D133+E133)-ATAN(E133-1.676331)+0.00391838*(E133)^(3/2)*ATAN(0.023101*E133)-4.686035,'Weather data'!C133) -> 4.3703713 | M133: 0.1893939394 | N133: 98.29545455 | O133: 1.704545455 | R133: =O134*'Qsol calculation'!N133 -> 0.09593346598 | S133: =O134*'Qsol calculation'!O133 -> -1.966595458 | T133: =O134*'Qsol calculation'!P133 -> -1.32275778 | U133: =O134*'Qsol calculation'!Q133 -> -1.458428189 | V133: =O134*'Qsol calculation'!R133 -> 0.1389952144 | W133: =O134*'Qsol calculation'!S133 -> 1.458428189 | X133: =O134*'Qsol calculation'!T133 -> 1.32275778 | Y133: =O134*'Qsol calculation'!U133 -> -0.09593346598 | AA133: 0.09593346598 | AB133: 0 | AC133: 0 | AD133: 0 | AE133: 0.1389952144 | AF133: 1.458428189 | AG133: 1.32275778 | AH133: 0 | AJ133: =N133*(1+COS(VCP!$N$22))/2 -> 86.58672105 | AL133: 86.68265452 | AM133: 86.58672105 | AN133: 86.58672105 | AO133: 86.58672105 | AP133: 86.72571626 | AQ133: 88.04514924 | AR133: 87.90947883 | AS133: 86.58672105 | AV133: =IF(AL133>VCP!$E$29,AL133*VCP!$E$28,AL133) -> 52.00959271 | AW133: =IF(AM133>VCP!$E$29,AM133*VCP!$E$28,AM133) -> 51.95203263 | AX133: =IF(AN133>VCP!$E$29,AN133*VCP!$E$28,AN133) -> 51.95203263 | AY133: =IF(AO133>VCP!$E$29,AO133*VCP!$E$28,AO133) -> 51.95203263 | AZ133: =IF(AP133>VCP!$E$29,AP133*VCP!$E$28,AP133) -> 52.03542976 | BA133: =IF(AQ133>VCP!$E$29,AQ133*VCP!$E$28,AQ133) -> 52.82708954 | BB133: =IF(AR133>VCP!$E$29,AR133*VCP!$E$28,AR133) -> 52.7456873 | BC133: =IF(AS133>VCP!$E$29,AS133*VCP!$E$28,AS133) -> 51.95203263
A134: 132 | B134: 5 | C134: 2.9166667 | D134: 0.3 | E134: 72 | F134: 5.1 | G134: 310 | H134: 616 | I134: 123 | L134: =IF($K$2=0,D134*ATAN(0.151977*(E134+8.313659)^0.5)+ATAN(D134+E134)-ATAN(E134-1.676331)+0.00391838*(E134)^(3/2)*ATAN(0.023101*E134)-4.686035,'Weather data'!C134) -> 2.9166667 | M134: 0.1996753247 | N134: 120.7895942 | O134: 2.210405844 | R134: =O135*'Qsol calculation'!N134 -> 1.440106119 | S134: =O135*'Qsol calculation'!O134 -> -4.422554549 | T134: =O135*'Qsol calculation'!P134 -> -2.10890951 | U134: =O135*'Qsol calculation'!Q134 -> -4.145527114 | V134: =O135*'Qsol calculation'!R134 -> 0.3769613402 | W134: =O135*'Qsol calculation'!S134 -> 4.145527114 | X134: =O135*'Qsol calculation'!T134 -> 2.10890951 | Y134: =O135*'Qsol calculation'!U134 -> -1.440106119 | AA134: 1.440106119 | AB134: 0 | AC134: 0 | AD134: 0 | AE134: 0.3769613402 | AF134: 4.145527114 | AG134: 2.10890951 | AH134: 0 | AJ134: =N134*(1+COS(VCP!$N$22))/2 -> 106.4014093 | AL134: 107.8415155 | AM134: 106.4014093 | AN134: 106.4014093 | AO134: 106.4014093 | AP134: 106.7783707 | AQ134: 110.5469364 | AR134: 108.5103188 | AS134: 106.4014093 | AV134: =IF(AL134>VCP!$E$29,AL134*VCP!$E$28,AL134) -> 64.70490927 | AW134: =IF(AM134>VCP!$E$29,AM134*VCP!$E$28,AM134) -> 63.8408456 | AX134: =IF(AN134>VCP!$E$29,AN134*VCP!$E$28,AN134) -> 63.8408456 | AY134: =IF(AO134>VCP!$E$29,AO134*VCP!$E$28,AO134) -> 63.8408456 | AZ134: =IF(AP134>VCP!$E$29,AP134*VCP!$E$28,AP134) -> 64.06702241 | BA134: =IF(AQ134>VCP!$E$29,AQ134*VCP!$E$28,AQ134) -> 66.32816187 | BB134: =IF(AR134>VCP!$E$29,AR134*VCP!$E$28,AR134) -> 65.10619131 | BC134: =IF(AS134>VCP!$E$29,AS134*VCP!$E$28,AS134) -> 63.8408456
A135: 133 | B135: 4.9 | C135: 3.6037042 | D135: 2 | E135: 82 | F135: 5.6 | G135: 310 | H135: 638 | I135: 167 | L135: =IF($K$2=0,D135*ATAN(0.151977*(E135+8.313659)^0.5)+ATAN(D135+E135)-ATAN(E135-1.676331)+0.00391838*(E135)^(3/2)*ATAN(0.023101*E135)-4.686035,'Weather data'!C135) -> 3.6037042 | M135: 0.2617554859 | N135: 161.8697534 | O135: 5.130246558 | R135: =O136*'Qsol calculation'!N135 -> 5.29555716 | S135: =O136*'Qsol calculation'!O135 -> -8.44468207 | T135: =O136*'Qsol calculation'!P135 -> -2.226767579 | U135: =O136*'Qsol calculation'!Q135 -> -9.715816335 | V135: =O136*'Qsol calculation'!R135 -> 1.050490217 | W135: =O136*'Qsol calculation'!S135 -> 9.715816335 | X135: =O136*'Qsol calculation'!T135 -> 2.226767579 | Y135: =O136*'Qsol calculation'!U135 -> -5.29555716 | AA135: 5.29555716 | AB135: 0 | AC135: 0 | AD135: 0 | AE135: 1.050490217 | AF135: 9.715816335 | AG135: 2.226767579 | AH135: 0 | AJ135: =N135*(1+COS(VCP!$N$22))/2 -> 142.5881924 | AL135: 147.8837496 | AM135: 142.5881924 | AN135: 142.5881924 | AO135: 142.5881924 | AP135: 143.6386826 | AQ135: 152.3040088 | AR135: 144.81496 | AS135: 142.5881924 | AV135: =IF(AL135>VCP!$E$29,AL135*VCP!$E$28,AL135) -> 88.73024975 | AW135: =IF(AM135>VCP!$E$29,AM135*VCP!$E$28,AM135) -> 85.55291546 | AX135: =IF(AN135>VCP!$E$29,AN135*VCP!$E$28,AN135) -> 85.55291546 | AY135: =IF(AO135>VCP!$E$29,AO135*VCP!$E$28,AO135) -> 85.55291546 | AZ135: =IF(AP135>VCP!$E$29,AP135*VCP!$E$28,AP135) -> 86.18320959 | BA135: =IF(AQ135>VCP!$E$29,AQ135*VCP!$E$28,AQ135) -> 91.38240526 | BB135: =IF(AR135>VCP!$E$29,AR135*VCP!$E$28,AR135) -> 86.88897601 | BC135: =IF(AS135>VCP!$E$29,AS135*VCP!$E$28,AS135) -> 85.55291546
A136: 134 | B136: 4.7 | C136: 3.5888884 | D136: 2.2 | E136: 84 | F136: 6.2 | G136: 310 | H136: 592 | I136: 183 | L136: =IF($K$2=0,D136*ATAN(0.151977*(E136+8.313659)^0.5)+ATAN(D136+E136)-ATAN(E136-1.676331)+0.00391838*(E136)^(3/2)*ATAN(0.023101*E136)-4.686035,'Weather data'!C136) -> 3.5888884 | M136: 0.3091216216 | N136: 172.3852617 | O136: 10.6147383 | R136: =O137*'Qsol calculation'!N136 -> 8.461935331 | S136: =O137*'Qsol calculation'!O136 -> -8.606679145 | T136: =O137*'Qsol calculation'!P136 -> -0.1023493323 | U136: =O137*'Qsol calculation'!Q136 -> -12.06933304 | V136: =O137*'Qsol calculation'!R136 -> 1.704688518 | W136: =O137*'Qsol calculation'!S136 -> 12.06933304 | X136: =O137*'Qsol calculation'!T136 -> 0.1023493323 | Y136: =O137*'Qsol calculation'!U136 -> -8.461935331 | AA136: 8.461935331 | AB136: 0 | AC136: 0 | AD136: 0 | AE136: 1.704688518 | AF136: 12.06933304 | AG136: 0.1023493323 | AH136: 0 | AJ136: =N136*(1+COS(VCP!$N$22))/2 -> 151.851117 | AL136: 160.3130523 | AM136: 151.851117 | AN136: 151.851117 | AO136: 151.851117 | AP136: 153.5558055 | AQ136: 163.92045 | AR136: 151.9534663 | AS136: 151.851117 | AV136: =IF(AL136>VCP!$E$29,AL136*VCP!$E$28,AL136) -> 96.1878314 | AW136: =IF(AM136>VCP!$E$29,AM136*VCP!$E$28,AM136) -> 91.1106702 | AX136: =IF(AN136>VCP!$E$29,AN136*VCP!$E$28,AN136) -> 91.1106702 | AY136: =IF(AO136>VCP!$E$29,AO136*VCP!$E$28,AO136) -> 91.1106702 | AZ136: =IF(AP136>VCP!$E$29,AP136*VCP!$E$28,AP136) -> 92.13348331 | BA136: =IF(AQ136>VCP!$E$29,AQ136*VCP!$E$28,AQ136) -> 98.35227002 | BB136: =IF(AR136>VCP!$E$29,AR136*VCP!$E$28,AR136) -> 91.1720798 | BC136: =IF(AS136>VCP!$E$29,AS136*VCP!$E$28,AS136) -> 91.1106702
A137: 135 | B137: 4.6 | C137: 1.5444437 | D137: -2.8 | E137: 57 | F137: 6.7 | G137: 290 | H137: 482 | I137: 160 | L137: =IF($K$2=0,D137*ATAN(0.151977*(E137+8.313659)^0.5)+ATAN(D137+E137)-ATAN(E137-1.676331)+0.00391838*(E137)^(3/2)*ATAN(0.023101*E137)-4.686035,'Weather data'!C137) -> 1.5444437 | M137: 0.3319502075 | N137: 147.611854 | O137: 12.388146 | R137: =O138*'Qsol calculation'!N137 -> 4.546343827 | S137: =O138*'Qsol calculation'!O137 -> -3.138149901 | T137: =O138*'Qsol calculation'!P137 -> 0.9957434745 | U137: =O138*'Qsol calculation'!Q137 -> -5.433757626 | V137: =O138*'Qsol calculation'!R137 -> 1.034624562 | W137: =O138*'Qsol calculation'!S137 -> 5.433757626 | X137: =O138*'Qsol calculation'!T137 -> -0.9957434745 | Y137: =O138*'Qsol calculation'!U137 -> -4.546343827 | AA137: 4.546343827 | AB137: 0 | AC137: 0.9957434745 | AD137: 0 | AE137: 1.034624562 | AF137: 5.433757626 | AG137: 0 | AH137: 0 | AJ137: =N137*(1+COS(VCP!$N$22))/2 -> 130.0286619 | AL137: 134.5750057 | AM137: 130.0286619 | AN137: 131.0244054 | AO137: 130.0286619 | AP137: 131.0632865 | AQ137: 135.4624195 | AR137: 130.0286619 | AS137: 130.0286619 | AV137: =IF(AL137>VCP!$E$29,AL137*VCP!$E$28,AL137) -> 80.74500344 | AW137: =IF(AM137>VCP!$E$29,AM137*VCP!$E$28,AM137) -> 78.01719714 | AX137: =IF(AN137>VCP!$E$29,AN137*VCP!$E$28,AN137) -> 78.61464323 | AY137: =IF(AO137>VCP!$E$29,AO137*VCP!$E$28,AO137) -> 78.01719714 | AZ137: =IF(AP137>VCP!$E$29,AP137*VCP!$E$28,AP137) -> 78.63797188 | BA137: =IF(AQ137>VCP!$E$29,AQ137*VCP!$E$28,AQ137) -> 81.27745172 | BB137: =IF(AR137>VCP!$E$29,AR137*VCP!$E$28,AR137) -> 78.01719714 | BC137: =IF(AS137>VCP!$E$29,AS137*VCP!$E$28,AS137) -> 78.01719714
A138: 136 | B138: 4.1 | C138: 3.2666674 | D138: 2.1 | E138: 87 | F138: 7 | G138: 290 | H138: 315 | I138: 97 | L138: =IF($K$2=0,D138*ATAN(0.151977*(E138+8.313659)^0.5)+ATAN(D138+E138)-ATAN(E138-1.676331)+0.00391838*(E138)^(3/2)*ATAN(0.023101*E138)-4.686035,'Weather data'!C138) -> 3.2666674 | M138: 0.3079365079 | N138: 91.46038797 | O138: 5.539612025 | R138: =O139*'Qsol calculation'!N138 -> 0.2846496294 | S138: =O139*'Qsol calculation'!O138 -> -0.1323343488 | T138: =O139*'Qsol calculation'!P138 -> 0.1077031678 | U138: =O139*'Qsol calculation'!Q138 -> -0.2948521986 | V138: =O139*'Qsol calculation'!R138 -> 0.07668299399 | W138: =O139*'Qsol calculation'!S138 -> 0.2948521986 | X138: =O139*'Qsol calculation'!T138 -> -0.1077031678 | Y138: =O139*'Qsol calculation'!U138 -> -0.2846496294 | AA138: 0.2846496294 | AB138: 0 | AC138: 0.1077031678 | AD138: 0 | AE138: 0.07668299399 | AF138: 0.2948521986 | AG138: 0 | AH138: 0 | AJ138: =N138*(1+COS(VCP!$N$22))/2 -> 80.56583224 | AL138: 80.85048187 | AM138: 80.56583224 | AN138: 80.67353541 | AO138: 80.56583224 | AP138: 80.64251523 | AQ138: 80.86068444 | AR138: 80.56583224 | AS138: 80.56583224 | AV138: =IF(AL138>VCP!$E$29,AL138*VCP!$E$28,AL138) -> 48.51028912 | AW138: =IF(AM138>VCP!$E$29,AM138*VCP!$E$28,AM138) -> 48.33949934 | AX138: =IF(AN138>VCP!$E$29,AN138*VCP!$E$28,AN138) -> 48.40412124 | AY138: =IF(AO138>VCP!$E$29,AO138*VCP!$E$28,AO138) -> 48.33949934 | AZ138: =IF(AP138>VCP!$E$29,AP138*VCP!$E$28,AP138) -> 48.38550914 | BA138: =IF(AQ138>VCP!$E$29,AQ138*VCP!$E$28,AQ138) -> 48.51641066 | BB138: =IF(AR138>VCP!$E$29,AR138*VCP!$E$28,AR138) -> 48.33949934 | BC138: =IF(AS138>VCP!$E$29,AS138*VCP!$E$28,AS138) -> 48.33949934
A139: 137 | B139: 3.7 | C139: 2.8666666 | D139: 1.8 | E139: 88 | F139: 7.4 | G139: 290 | H139: 103 | I139: 19 | L139: =IF($K$2=0,D139*ATAN(0.151977*(E139+8.313659)^0.5)+ATAN(D139+E139)-ATAN(E139-1.676331)+0.00391838*(E139)^(3/2)*ATAN(0.023101*E139)-4.686035,'Weather data'!C139) -> 2.8666666 | M139: 0.1844660194 | N139: 18.68456311 | O139: 0.3154368932 | R139: =O140*'Qsol calculation'!N139 -> 0 | S139: =O140*'Qsol calculation'!O139 -> 0 | T139: =O140*'Qsol calculation'!P139 -> 0 | U139: =O140*'Qsol calculation'!Q139 -> 0 | V139: =O140*'Qsol calculation'!R139 -> 0 | W139: =O140*'Qsol calculation'!S139 -> 0 | X139: =O140*'Qsol calculation'!T139 -> 0 | Y139: =O140*'Qsol calculation'!U139 -> 0 | AA139: 0 | AB139: 0 | AC139: 0 | AD139: 0 | AE139: 0 | AF139: 0 | AG139: 0 | AH139: 0 | AJ139: =N139*(1+COS(VCP!$N$22))/2 -> 16.45889997 | AL139: 16.45889997 | AM139: 16.45889997 | AN139: 16.45889997 | AO139: 16.45889997 | AP139: 16.45889997 | AQ139: 16.45889997 | AR139: 16.45889997 | AS139: 16.45889997 | AV139: =IF(AL139>VCP!$E$29,AL139*VCP!$E$28,AL139) -> 16.45889997 | AW139: =IF(AM139>VCP!$E$29,AM139*VCP!$E$28,AM139) -> 16.45889997 | AX139: =IF(AN139>VCP!$E$29,AN139*VCP!$E$28,AN139) -> 16.45889997 | AY139: =IF(AO139>VCP!$E$29,AO139*VCP!$E$28,AO139) -> 16.45889997 | AZ139: =IF(AP139>VCP!$E$29,AP139*VCP!$E$28,AP139) -> 16.45889997 | BA139: =IF(AQ139>VCP!$E$29,AQ139*VCP!$E$28,AQ139) -> 16.45889997 | BB139: =IF(AR139>VCP!$E$29,AR139*VCP!$E$28,AR139) -> 16.45889997 | BC139: =IF(AS139>VCP!$E$29,AS139*VCP!$E$28,AS139) -> 16.45889997
A140: 138 | B140: 3.2 | C140: 0.23703893 | D140: -3.9 | E140: 57 | F140: 7.7 | G140: 240 | H140: 0 | I140: 0 | L140: =IF($K$2=0,D140*ATAN(0.151977*(E140+8.313659)^0.5)+ATAN(D140+E140)-ATAN(E140-1.676331)+0.00391838*(E140)^(3/2)*ATAN(0.023101*E140)-4.686035,'Weather data'!C140) -> 0.23703893 | M140: 0 | N140: 0 | O140: 0 | R140: =O141*'Qsol calculation'!N140 -> 0 | S140: =O141*'Qsol calculation'!O140 -> 0 | T140: =O141*'Qsol calculation'!P140 -> 0 | U140: =O141*'Qsol calculation'!Q140 -> 0 | V140: =O141*'Qsol calculation'!R140 -> 0 | W140: =O141*'Qsol calculation'!S140 -> 0 | X140: =O141*'Qsol calculation'!T140 -> 0 | Y140: =O141*'Qsol calculation'!U140 -> 0 | AA140: 0 | AB140: 0 | AC140: 0 | AD140: 0 | AE140: 0 | AF140: 0 | AG140: 0 | AH140: 0 | AJ140: =N140*(1+COS(VCP!$N$22))/2 -> 0 | AL140: 0 | AM140: 0 | AN140: 0 | AO140: 0 | AP140: 0 | AQ140: 0 | AR140: 0 | AS140: 0 | AV140: =IF(AL140>VCP!$E$29,AL140*VCP!$E$28,AL140) -> 0 | AW140: =IF(AM140>VCP!$E$29,AM140*VCP!$E$28,AM140) -> 0 | AX140: =IF(AN140>VCP!$E$29,AN140*VCP!$E$28,AN140) -> 0 | AY140: =IF(AO140>VCP!$E$29,AO140*VCP!$E$28,AO140) -> 0 | AZ140: =IF(AP140>VCP!$E$29,AP140*VCP!$E$28,AP140) -> 0 | BA140: =IF(AQ140>VCP!$E$29,AQ140*VCP!$E$28,AQ140) -> 0 | BB140: =IF(AR140>VCP!$E$29,AR140*VCP!$E$28,AR140) -> 0 | BC140: =IF(AS140>VCP!$E$29,AS140*VCP!$E$28,AS140) -> 0
A141: 139 | B141: 5 | C141: 1.25 | D141: -4 | E141: 50 | F141: 5.1 | G141: 270 | H141: 0 | I141: 0 | L141: =IF($K$2=0,D141*ATAN(0.151977*(E141+8.313659)^0.5)+ATAN(D141+E141)-ATAN(E141-1.676331)+0.00391838*(E141)^(3/2)*ATAN(0.023101*E141)-4.686035,'Weather data'!C141) -> 1.25 | M141: 0 | N141: 0 | O141: 0 | R141: =O142*'Qsol calculation'!N141 -> 0 | S141: =O142*'Qsol calculation'!O141 -> 0 | T141: =O142*'Qsol calculation'!P141 -> 0 | U141: =O142*'Qsol calculation'!Q141 -> 0 | V141: =O142*'Qsol calculation'!R141 -> 0 | W141: =O142*'Qsol calculation'!S141 -> 0 | X141: =O142*'Qsol calculation'!T141 -> 0 | Y141: =O142*'Qsol calculation'!U141 -> 0 | AA141: 0 | AB141: 0 | AC141: 0 | AD141: 0 | AE141: 0 | AF141: 0 | AG141: 0 | AH141: 0 | AJ141: =N141*(1+COS(VCP!$N$22))/2 -> 0 | AL141: 0 | AM141: 0 | AN141: 0 | AO141: 0 | AP141: 0 | AQ141: 0 | AR141: 0 | AS141: 0 | AV141: =IF(AL141>VCP!$E$29,AL141*VCP!$E$28,AL141) -> 0 | AW141: =IF(AM141>VCP!$E$29,AM141*VCP!$E$28,AM141) -> 0 | AX141: =IF(AN141>VCP!$E$29,AN141*VCP!$E$28,AN141) -> 0 | AY141: =IF(AO141>VCP!$E$29,AO141*VCP!$E$28,AO141) -> 0 | AZ141: =IF(AP141>VCP!$E$29,AP141*VCP!$E$28,AP141) -> 0 | BA141: =IF(AQ141>VCP!$E$29,AQ141*VCP!$E$28,AQ141) -> 0 | BB141: =IF(AR141>VCP!$E$29,AR141*VCP!$E$28,AR141) -> 0 | BC141: =IF(AS141>VCP!$E$29,AS141*VCP!$E$28,AS141) -> 0
A142: 140 | B142: 4.5 | C142: 2.8333325 | D142: 0.9 | E142: 77 | F142: 6.4 | G142: 270 | H142: 0 | I142: 0 | L142: =IF($K$2=0,D142*ATAN(0.151977*(E142+8.313659)^0.5)+ATAN(D142+E142)-ATAN(E142-1.676331)+0.00391838*(E142)^(3/2)*ATAN(0.023101*E142)-4.686035,'Weather data'!C142) -> 2.8333325 | M142: 0 | N142: 0 | O142: 0 | R142: =O143*'Qsol calculation'!N142 -> 0 | S142: =O143*'Qsol calculation'!O142 -> 0 | T142: =O143*'Qsol calculation'!P142 -> 0 | U142: =O143*'Qsol calculation'!Q142 -> 0 | V142: =O143*'Qsol calculation'!R142 -> 0 | W142: =O143*'Qsol calculation'!S142 -> 0 | X142: =O143*'Qsol calculation'!T142 -> 0 | Y142: =O143*'Qsol calculation'!U142 -> 0 | AA142: 0 | AB142: 0 | AC142: 0 | AD142: 0 | AE142: 0 | AF142: 0 | AG142: 0 | AH142: 0 | AJ142: =N142*(1+COS(VCP!$N$22))/2 -> 0 | AL142: 0 | AM142: 0 | AN142: 0 | AO142: 0 | AP142: 0 | AQ142: 0 | AR142: 0 | AS142: 0 | AV142: =IF(AL142>VCP!$E$29,AL142*VCP!$E$28,AL142) -> 0 | AW142: =IF(AM142>VCP!$E$29,AM142*VCP!$E$28,AM142) -> 0 | AX142: =IF(AN142>VCP!$E$29,AN142*VCP!$E$28,AN142) -> 0 | AY142: =IF(AO142>VCP!$E$29,AO142*VCP!$E$28,AO142) -> 0 | AZ142: =IF(AP142>VCP!$E$29,AP142*VCP!$E$28,AP142) -> 0 | BA142: =IF(AQ142>VCP!$E$29,AQ142*VCP!$E$28,AQ142) -> 0 | BB142: =IF(AR142>VCP!$E$29,AR142*VCP!$E$28,AR142) -> 0 | BC142: =IF(AS142>VCP!$E$29,AS142*VCP!$E$28,AS142) -> 0
A143: 141 | B143: 4 | C143: 1.5925937 | D143: -1.5 | E143: 66 | F143: 7.7 | G143: 240 | H143: 0 | I143: 0 | L143: =IF($K$2=0,D143*ATAN(0.151977*(E143+8.313659)^0.5)+ATAN(D143+E143)-ATAN(E143-1.676331)+0.00391838*(E143)^(3/2)*ATAN(0.023101*E143)-4.686035,'Weather data'!C143) -> 1.5925937 | M143: 0 | N143: 0 | O143: 0 | R143: =O144*'Qsol calculation'!N143 -> 0 | S143: =O144*'Qsol calculation'!O143 -> 0 | T143: =O144*'Qsol calculation'!P143 -> 0 | U143: =O144*'Qsol calculation'!Q143 -> 0 | V143: =O144*'Qsol calculation'!R143 -> 0 | W143: =O144*'Qsol calculation'!S143 -> 0 | X143: =O144*'Qsol calculation'!T143 -> 0 | Y143: =O144*'Qsol calculation'!U143 -> 0 | AA143: 0 | AB143: 0 | AC143: 0 | AD143: 0 | AE143: 0 | AF143: 0 | AG143: 0 | AH143: 0 | AJ143: =N143*(1+COS(VCP!$N$22))/2 -> 0 | AL143: 0 | AM143: 0 | AN143: 0 | AO143: 0 | AP143: 0 | AQ143: 0 | AR143: 0 | AS143: 0 | AV143: =IF(AL143>VCP!$E$29,AL143*VCP!$E$28,AL143) -> 0 | AW143: =IF(AM143>VCP!$E$29,AM143*VCP!$E$28,AM143) -> 0 | AX143: =IF(AN143>VCP!$E$29,AN143*VCP!$E$28,AN143) -> 0 | AY143: =IF(AO143>VCP!$E$29,AO143*VCP!$E$28,AO143) -> 0 | AZ143: =IF(AP143>VCP!$E$29,AP143*VCP!$E$28,AP143) -> 0 | BA143: =IF(AQ143>VCP!$E$29,AQ143*VCP!$E$28,AQ143) -> 0 | BB143: =IF(AR143>VCP!$E$29,AR143*VCP!$E$28,AR143) -> 0 | BC143: =IF(AS143>VCP!$E$29,AS143*VCP!$E$28,AS143) -> 0
A144: 142 | B144: 3.7 | C144: 2.1722221 | D144: 0.2 | E144: 78 | F144: 6.8 | G144: 240 | H144: 0 | I144: 0 | L144: =IF($K$2=0,D144*ATAN(0.151977*(E144+8.313659)^0.5)+ATAN(D144+E144)-ATAN(E144-1.676331)+0.00391838*(E144)^(3/2)*ATAN(0.023101*E144)-4.686035,'Weather data'!C144) -> 2.1722221 | M144: 0 | N144: 0 | O144: 0 | R144: =O145*'Qsol calculation'!N144 -> 0 | S144: =O145*'Qsol calculation'!O144 -> 0 | T144: =O145*'Qsol calculation'!P144 -> 0 | U144: =O145*'Qsol calculation'!Q144 -> 0 | V144: =O145*'Qsol calculation'!R144 -> 0 | W144: =O145*'Qsol calculation'!S144 -> 0 | X144: =O145*'Qsol calculation'!T144 -> 0 | Y144: =O145*'Qsol calculation'!U144 -> 0 | AA144: 0 | AB144: 0 | AC144: 0 | AD144: 0 | AE144: 0 | AF144: 0 | AG144: 0 | AH144: 0 | AJ144: =N144*(1+COS(VCP!$N$22))/2 -> 0 | AL144: 0 | AM144: 0 | AN144: 0 | AO144: 0 | AP144: 0 | AQ144: 0 | AR144: 0 | AS144: 0 | AV144: =IF(AL144>VCP!$E$29,AL144*VCP!$E$28,AL144) -> 0 | AW144: =IF(AM144>VCP!$E$29,AM144*VCP!$E$28,AM144) -> 0 | AX144: =IF(AN144>VCP!$E$29,AN144*VCP!$E$28,AN144) -> 0 | AY144: =IF(AO144>VCP!$E$29,AO144*VCP!$E$28,AO144) -> 0 | AZ144: =IF(AP144>VCP!$E$29,AP144*VCP!$E$28,AP144) -> 0 | BA144: =IF(AQ144>VCP!$E$29,AQ144*VCP!$E$28,AQ144) -> 0 | BB144: =IF(AR144>VCP!$E$29,AR144*VCP!$E$28,AR144) -> 0 | BC144: =IF(AS144>VCP!$E$29,AS144*VCP!$E$28,AS144) -> 0
A145: 143 | B145: 3.5 | C145: 1.9259262 | D145: -0.2 | E145: 77 | F145: 6 | G145: 240 | H145: 0 | I145: 0 | L145: =IF($K$2=0,D145*ATAN(0.151977*(E145+8.313659)^0.5)+ATAN(D145+E145)-ATAN(E145-1.676331)+0.00391838*(E145)^(3/2)*ATAN(0.023101*E145)-4.686035,'Weather data'!C145) -> 1.9259262 | M145: 0 | N145: 0 | O145: 0 | R145: =O146*'Qsol calculation'!N145 -> 0 | S145: =O146*'Qsol calculation'!O145 -> 0 | T145: =O146*'Qsol calculation'!P145 -> 0 | U145: =O146*'Qsol calculation'!Q145 -> 0 | V145: =O146*'Qsol calculation'!R145 -> 0 | W145: =O146*'Qsol calculation'!S145 -> 0 | X145: =O146*'Qsol calculation'!T145 -> 0 | Y145: =O146*'Qsol calculation'!U145 -> 0 | AA145: 0 | AB145: 0 | AC145: 0 | AD145: 0 | AE145: 0 | AF145: 0 | AG145: 0 | AH145: 0 | AJ145: =N145*(1+COS(VCP!$N$22))/2 -> 0 | AL145: 0 | AM145: 0 | AN145: 0 | AO145: 0 | AP145: 0 | AQ145: 0 | AR145: 0 | AS145: 0 | AV145: =IF(AL145>VCP!$E$29,AL145*VCP!$E$28,AL145) -> 0 | AW145: =IF(AM145>VCP!$E$29,AM145*VCP!$E$28,AM145) -> 0 | AX145: =IF(AN145>VCP!$E$29,AN145*VCP!$E$28,AN145) -> 0 | AY145: =IF(AO145>VCP!$E$29,AO145*VCP!$E$28,AO145) -> 0 | AZ145: =IF(AP145>VCP!$E$29,AP145*VCP!$E$28,AP145) -> 0 | BA145: =IF(AQ145>VCP!$E$29,AQ145*VCP!$E$28,AQ145) -> 0 | BB145: =IF(AR145>VCP!$E$29,AR145*VCP!$E$28,AR145) -> 0 | BC145: =IF(AS145>VCP!$E$29,AS145*VCP!$E$28,AS145) -> 0
A146: 144 | B146: 3.2 | C146: 2.08889 | D146: 0.6 | E146: 83 | F146: 5.1 | G146: 250 | H146: 0 | I146: 0 | L146: =IF($K$2=0,D146*ATAN(0.151977*(E146+8.313659)^0.5)+ATAN(D146+E146)-ATAN(E146-1.676331)+0.00391838*(E146)^(3/2)*ATAN(0.023101*E146)-4.686035,'Weather data'!C146) -> 2.08889 | M146: 0 | N146: 0 | O146: 0 | R146: =O147*'Qsol calculation'!N146 -> 0 | S146: =O147*'Qsol calculation'!O146 -> 0 | T146: =O147*'Qsol calculation'!P146 -> 0 | U146: =O147*'Qsol calculation'!Q146 -> 0 | V146: =O147*'Qsol calculation'!R146 -> 0 | W146: =O147*'Qsol calculation'!S146 -> 0 | X146: =O147*'Qsol calculation'!T146 -> 0 | Y146: =O147*'Qsol calculation'!U146 -> 0 | AA146: 0 | AB146: 0 | AC146: 0 | AD146: 0 | AE146: 0 | AF146: 0 | AG146: 0 | AH146: 0 | AJ146: =N146*(1+COS(VCP!$N$22))/2 -> 0 | AL146: 0 | AM146: 0 | AN146: 0 | AO146: 0 | AP146: 0 | AQ146: 0 | AR146: 0 | AS146: 0 | AV146: =IF(AL146>VCP!$E$29,AL146*VCP!$E$28,AL146) -> 0 | AW146: =IF(AM146>VCP!$E$29,AM146*VCP!$E$28,AM146) -> 0 | AX146: =IF(AN146>VCP!$E$29,AN146*VCP!$E$28,AN146) -> 0 | AY146: =IF(AO146>VCP!$E$29,AO146*VCP!$E$28,AO146) -> 0 | AZ146: =IF(AP146>VCP!$E$29,AP146*VCP!$E$28,AP146) -> 0 | BA146: =IF(AQ146>VCP!$E$29,AQ146*VCP!$E$28,AQ146) -> 0 | BB146: =IF(AR146>VCP!$E$29,AR146*VCP!$E$28,AR146) -> 0 | BC146: =IF(AS146>VCP!$E$29,AS146*VCP!$E$28,AS146) -> 0
A147: 145 | B147: 2.7 | C147: 1.0333337 | D147: -1.3 | E147: 74 | F147: 5.1 | G147: 250 | H147: 0 | I147: 0 | L147: =IF($K$2=0,D147*ATAN(0.151977*(E147+8.313659)^0.5)+ATAN(D147+E147)-ATAN(E147-1.676331)+0.00391838*(E147)^(3/2)*ATAN(0.023101*E147)-4.686035,'Weather data'!C147) -> 1.0333337 | M147: 0 | N147: 0 | O147: 0 | R147: =O148*'Qsol calculation'!N147 -> 0 | S147: =O148*'Qsol calculation'!O147 -> 0 | T147: =O148*'Qsol calculation'!P147 -> 0 | U147: =O148*'Qsol calculation'!Q147 -> 0 | V147: =O148*'Qsol calculation'!R147 -> 0 | W147: =O148*'Qsol calculation'!S147 -> 0 | X147: =O148*'Qsol calculation'!T147 -> 0 | Y147: =O148*'Qsol calculation'!U147 -> 0 | AA147: 0 | AB147: 0 | AC147: 0 | AD147: 0 | AE147: 0 | AF147: 0 | AG147: 0 | AH147: 0 | AJ147: =N147*(1+COS(VCP!$N$22))/2 -> 0 | AL147: 0 | AM147: 0 | AN147: 0 | AO147: 0 | AP147: 0 | AQ147: 0 | AR147: 0 | AS147: 0 | AV147: =IF(AL147>VCP!$E$29,AL147*VCP!$E$28,AL147) -> 0 | AW147: =IF(AM147>VCP!$E$29,AM147*VCP!$E$28,AM147) -> 0 | AX147: =IF(AN147>VCP!$E$29,AN147*VCP!$E$28,AN147) -> 0 | AY147: =IF(AO147>VCP!$E$29,AO147*VCP!$E$28,AO147) -> 0 | AZ147: =IF(AP147>VCP!$E$29,AP147*VCP!$E$28,AP147) -> 0 | BA147: =IF(AQ147>VCP!$E$29,AQ147*VCP!$E$28,AQ147) -> 0 | BB147: =IF(AR147>VCP!$E$29,AR147*VCP!$E$28,AR147) -> 0 | BC147: =IF(AS147>VCP!$E$29,AS147*VCP!$E$28,AS147) -> 0
A148: 146 | B148: 2.3 | C148: 0.44814852 | D148: -2.1 | E148: 71 | F148: 5.1 | G148: 250 | H148: 0 | I148: 0 | L148: =IF($K$2=0,D148*ATAN(0.151977*(E148+8.313659)^0.5)+ATAN(D148+E148)-ATAN(E148-1.676331)+0.00391838*(E148)^(3/2)*ATAN(0.023101*E148)-4.686035,'Weather data'!C148) -> 0.44814852 | M148: 0 | N148: 0 | O148: 0 | R148: =O149*'Qsol calculation'!N148 -> 0 | S148: =O149*'Qsol calculation'!O148 -> 0 | T148: =O149*'Qsol calculation'!P148 -> 0 | U148: =O149*'Qsol calculation'!Q148 -> 0 | V148: =O149*'Qsol calculation'!R148 -> 0 | W148: =O149*'Qsol calculation'!S148 -> 0 | X148: =O149*'Qsol calculation'!T148 -> 0 | Y148: =O149*'Qsol calculation'!U148 -> 0 | AA148: 0 | AB148: 0 | AC148: 0 | AD148: 0 | AE148: 0 | AF148: 0 | AG148: 0 | AH148: 0 | AJ148: =N148*(1+COS(VCP!$N$22))/2 -> 0 | AL148: 0 | AM148: 0 | AN148: 0 | AO148: 0 | AP148: 0 | AQ148: 0 | AR148: 0 | AS148: 0 | AV148: =IF(AL148>VCP!$E$29,AL148*VCP!$E$28,AL148) -> 0 | AW148: =IF(AM148>VCP!$E$29,AM148*VCP!$E$28,AM148) -> 0 | AX148: =IF(AN148>VCP!$E$29,AN148*VCP!$E$28,AN148) -> 0 | AY148: =IF(AO148>VCP!$E$29,AO148*VCP!$E$28,AO148) -> 0 | AZ148: =IF(AP148>VCP!$E$29,AP148*VCP!$E$28,AP148) -> 0 | BA148: =IF(AQ148>VCP!$E$29,AQ148*VCP!$E$28,AQ148) -> 0 | BB148: =IF(AR148>VCP!$E$29,AR148*VCP!$E$28,AR148) -> 0 | BC148: =IF(AS148>VCP!$E$29,AS148*VCP!$E$28,AS148) -> 0
A149: 147 | B149: 1.8 | C149: -0.051853392 | D149: -2.6 | E149: 71 | F149: 5.1 | G149: 290 | H149: 0 | I149: 0 | L149: =IF($K$2=0,D149*ATAN(0.151977*(E149+8.313659)^0.5)+ATAN(D149+E149)-ATAN(E149-1.676331)+0.00391838*(E149)^(3/2)*ATAN(0.023101*E149)-4.686035,'Weather data'!C149) -> -0.051853392 | M149: 0 | N149: 0 | O149: 0 | R149: =O150*'Qsol calculation'!N149 -> 0 | S149: =O150*'Qsol calculation'!O149 -> 0 | T149: =O150*'Qsol calculation'!P149 -> 0 | U149: =O150*'Qsol calculation'!Q149 -> 0 | V149: =O150*'Qsol calculation'!R149 -> 0 | W149: =O150*'Qsol calculation'!S149 -> 0 | X149: =O150*'Qsol calculation'!T149 -> 0 | Y149: =O150*'Qsol calculation'!U149 -> 0 | AA149: 0 | AB149: 0 | AC149: 0 | AD149: 0 | AE149: 0 | AF149: 0 | AG149: 0 | AH149: 0 | AJ149: =N149*(1+COS(VCP!$N$22))/2 -> 0 | AL149: 0 | AM149: 0 | AN149: 0 | AO149: 0 | AP149: 0 | AQ149: 0 | AR149: 0 | AS149: 0 | AV149: =IF(AL149>VCP!$E$29,AL149*VCP!$E$28,AL149) -> 0 | AW149: =IF(AM149>VCP!$E$29,AM149*VCP!$E$28,AM149) -> 0 | AX149: =IF(AN149>VCP!$E$29,AN149*VCP!$E$28,AN149) -> 0 | AY149: =IF(AO149>VCP!$E$29,AO149*VCP!$E$28,AO149) -> 0 | AZ149: =IF(AP149>VCP!$E$29,AP149*VCP!$E$28,AP149) -> 0 | BA149: =IF(AQ149>VCP!$E$29,AQ149*VCP!$E$28,AQ149) -> 0 | BB149: =IF(AR149>VCP!$E$29,AR149*VCP!$E$28,AR149) -> 0 | BC149: =IF(AS149>VCP!$E$29,AS149*VCP!$E$28,AS149) -> 0
A150: 148 | B150: 2 | C150: -0.12963083 | D150: -3 | E150: 67 | F150: 5.1 | G150: 280 | H150: 0 | I150: 0 | L150: =IF($K$2=0,D150*ATAN(0.151977*(E150+8.313659)^0.5)+ATAN(D150+E150)-ATAN(E150-1.676331)+0.00391838*(E150)^(3/2)*ATAN(0.023101*E150)-4.686035,'Weather data'!C150) -> -0.12963083 | M150: 0 | N150: 0 | O150: 0 | R150: =O151*'Qsol calculation'!N150 -> 0 | S150: =O151*'Qsol calculation'!O150 -> 0 | T150: =O151*'Qsol calculation'!P150 -> 0 | U150: =O151*'Qsol calculation'!Q150 -> 0 | V150: =O151*'Qsol calculation'!R150 -> 0 | W150: =O151*'Qsol calculation'!S150 -> 0 | X150: =O151*'Qsol calculation'!T150 -> 0 | Y150: =O151*'Qsol calculation'!U150 -> 0 | AA150: 0 | AB150: 0 | AC150: 0 | AD150: 0 | AE150: 0 | AF150: 0 | AG150: 0 | AH150: 0 | AJ150: =N150*(1+COS(VCP!$N$22))/2 -> 0 | AL150: 0 | AM150: 0 | AN150: 0 | AO150: 0 | AP150: 0 | AQ150: 0 | AR150: 0 | AS150: 0 | AV150: =IF(AL150>VCP!$E$29,AL150*VCP!$E$28,AL150) -> 0 | AW150: =IF(AM150>VCP!$E$29,AM150*VCP!$E$28,AM150) -> 0 | AX150: =IF(AN150>VCP!$E$29,AN150*VCP!$E$28,AN150) -> 0 | AY150: =IF(AO150>VCP!$E$29,AO150*VCP!$E$28,AO150) -> 0 | AZ150: =IF(AP150>VCP!$E$29,AP150*VCP!$E$28,AP150) -> 0 | BA150: =IF(AQ150>VCP!$E$29,AQ150*VCP!$E$28,AQ150) -> 0 | BB150: =IF(AR150>VCP!$E$29,AR150*VCP!$E$28,AR150) -> 0 | BC150: =IF(AS150>VCP!$E$29,AS150*VCP!$E$28,AS150) -> 0
A151: 149 | B151: 1.6 | C151: -0.25185162 | D151: -2.7 | E151: 71 | F151: 4.6 | G151: 280 | H151: 0 | I151: 0 | L151: =IF($K$2=0,D151*ATAN(0.151977*(E151+8.313659)^0.5)+ATAN(D151+E151)-ATAN(E151-1.676331)+0.00391838*(E151)^(3/2)*ATAN(0.023101*E151)-4.686035,'Weather data'!C151) -> -0.25185162 | M151: 0 | N151: 0 | O151: 0 | R151: =O152*'Qsol calculation'!N151 -> 0 | S151: =O152*'Qsol calculation'!O151 -> 0 | T151: =O152*'Qsol calculation'!P151 -> 0 | U151: =O152*'Qsol calculation'!Q151 -> 0 | V151: =O152*'Qsol calculation'!R151 -> 0 | W151: =O152*'Qsol calculation'!S151 -> 0 | X151: =O152*'Qsol calculation'!T151 -> 0 | Y151: =O152*'Qsol calculation'!U151 -> 0 | AA151: 0 | AB151: 0 | AC151: 0 | AD151: 0 | AE151: 0 | AF151: 0 | AG151: 0 | AH151: 0 | AJ151: =N151*(1+COS(VCP!$N$22))/2 -> 0 | AL151: 0 | AM151: 0 | AN151: 0 | AO151: 0 | AP151: 0 | AQ151: 0 | AR151: 0 | AS151: 0 | AV151: =IF(AL151>VCP!$E$29,AL151*VCP!$E$28,AL151) -> 0 | AW151: =IF(AM151>VCP!$E$29,AM151*VCP!$E$28,AM151) -> 0 | AX151: =IF(AN151>VCP!$E$29,AN151*VCP!$E$28,AN151) -> 0 | AY151: =IF(AO151>VCP!$E$29,AO151*VCP!$E$28,AO151) -> 0 | AZ151: =IF(AP151>VCP!$E$29,AP151*VCP!$E$28,AP151) -> 0 | BA151: =IF(AQ151>VCP!$E$29,AQ151*VCP!$E$28,AQ151) -> 0 | BB151: =IF(AR151>VCP!$E$29,AR151*VCP!$E$28,AR151) -> 0 | BC151: =IF(AS151>VCP!$E$29,AS151*VCP!$E$28,AS151) -> 0
A152: 150 | B152: 1.2 | C152: -0.18888897 | D152: -2.2 | E152: 76 | F152: 4.1 | G152: 290 | H152: 0 | I152: 0 | L152: =IF($K$2=0,D152*ATAN(0.151977*(E152+8.313659)^0.5)+ATAN(D152+E152)-ATAN(E152-1.676331)+0.00391838*(E152)^(3/2)*ATAN(0.023101*E152)-4.686035,'Weather data'!C152) -> -0.18888897 | M152: 0 | N152: 0 | O152: 0 | R152: =O153*'Qsol calculation'!N152 -> 0 | S152: =O153*'Qsol calculation'!O152 -> 0 | T152: =O153*'Qsol calculation'!P152 -> 0 | U152: =O153*'Qsol calculation'!Q152 -> 0 | V152: =O153*'Qsol calculation'!R152 -> 0 | W152: =O153*'Qsol calculation'!S152 -> 0 | X152: =O153*'Qsol calculation'!T152 -> 0 | Y152: =O153*'Qsol calculation'!U152 -> 0 | AA152: 0 | AB152: 0 | AC152: 0 | AD152: 0 | AE152: 0 | AF152: 0 | AG152: 0 | AH152: 0 | AJ152: =N152*(1+COS(VCP!$N$22))/2 -> 0 | AL152: 0 | AM152: 0 | AN152: 0 | AO152: 0 | AP152: 0 | AQ152: 0 | AR152: 0 | AS152: 0 | AV152: =IF(AL152>VCP!$E$29,AL152*VCP!$E$28,AL152) -> 0 | AW152: =IF(AM152>VCP!$E$29,AM152*VCP!$E$28,AM152) -> 0 | AX152: =IF(AN152>VCP!$E$29,AN152*VCP!$E$28,AN152) -> 0 | AY152: =IF(AO152>VCP!$E$29,AO152*VCP!$E$28,AO152) -> 0 | AZ152: =IF(AP152>VCP!$E$29,AP152*VCP!$E$28,AP152) -> 0 | BA152: =IF(AQ152>VCP!$E$29,AQ152*VCP!$E$28,AQ152) -> 0 | BB152: =IF(AR152>VCP!$E$29,AR152*VCP!$E$28,AR152) -> 0 | BC152: =IF(AS152>VCP!$E$29,AS152*VCP!$E$28,AS152) -> 0
A153: 151 | B153: 1.4 | C153: -0.45185196 | D153: -3.1 | E153: 70 | F153: 4.4 | G153: 290 | H153: 0 | I153: 0 | L153: =IF($K$2=0,D153*ATAN(0.151977*(E153+8.313659)^0.5)+ATAN(D153+E153)-ATAN(E153-1.676331)+0.00391838*(E153)^(3/2)*ATAN(0.023101*E153)-4.686035,'Weather data'!C153) -> -0.45185196 | M153: 0 | N153: 0 | O153: 0 | R153: =O154*'Qsol calculation'!N153 -> -0.1201102903 | S153: =O154*'Qsol calculation'!O153 -> -0.09455169865 | T153: =O154*'Qsol calculation'!P153 -> -0.151788948 | U153: =O154*'Qsol calculation'!Q153 -> 0.01807265347 | V153: =O154*'Qsol calculation'!R153 -> 0.02583705953 | W153: =O154*'Qsol calculation'!S153 -> -0.01807265347 | X153: =O154*'Qsol calculation'!T153 -> 0.151788948 | Y153: =O154*'Qsol calculation'!U153 -> 0.1201102903 | AA153: 0 | AB153: 0 | AC153: 0 | AD153: 0.01807265347 | AE153: 0.02583705953 | AF153: 0 | AG153: 0.151788948 | AH153: 0.1201102903 | AJ153: =N153*(1+COS(VCP!$N$22))/2 -> 0 | AL153: 0 | AM153: 0 | AN153: 0 | AO153: 0.01807265347 | AP153: 0.02583705953 | AQ153: 0 | AR153: 0.151788948 | AS153: 0.1201102903 | AV153: =IF(AL153>VCP!$E$29,AL153*VCP!$E$28,AL153) -> 0 | AW153: =IF(AM153>VCP!$E$29,AM153*VCP!$E$28,AM153) -> 0 | AX153: =IF(AN153>VCP!$E$29,AN153*VCP!$E$28,AN153) -> 0 | AY153: =IF(AO153>VCP!$E$29,AO153*VCP!$E$28,AO153) -> 0.01807265347 | AZ153: =IF(AP153>VCP!$E$29,AP153*VCP!$E$28,AP153) -> 0.02583705953 | BA153: =IF(AQ153>VCP!$E$29,AQ153*VCP!$E$28,AQ153) -> 0 | BB153: =IF(AR153>VCP!$E$29,AR153*VCP!$E$28,AR153) -> 0.151788948 | BC153: =IF(AS153>VCP!$E$29,AS153*VCP!$E$28,AS153) -> 0.1201102903
A154: 152 | B154: 1.6 | C154: -0.62222165 | D154: -3.7 | E154: 65 | F154: 4.8 | G154: 290 | H154: 10 | I154: 3 | L154: =IF($K$2=0,D154*ATAN(0.151977*(E154+8.313659)^0.5)+ATAN(D154+E154)-ATAN(E154-1.676331)+0.00391838*(E154)^(3/2)*ATAN(0.023101*E154)-4.686035,'Weather data'!C154) -> -0.62222165 | M154: 0.3 | N154: 2.8457868 | O154: 0.1542132 | R154: =O155*'Qsol calculation'!N154 -> -3.80861536 | S154: =O155*'Qsol calculation'!O154 -> -4.476110629 | T154: =O155*'Qsol calculation'!P154 -> -5.858185928 | U154: =O155*'Qsol calculation'!Q154 -> -0.4719904311 | V154: =O155*'Qsol calculation'!R154 -> 0.7447690512 | W154: =O155*'Qsol calculation'!S154 -> 0.4719904311 | X154: =O155*'Qsol calculation'!T154 -> 5.858185928 | Y154: =O155*'Qsol calculation'!U154 -> 3.80861536 | AA154: 0 | AB154: 0 | AC154: 0 | AD154: 0 | AE154: 0.7447690512 | AF154: 0.4719904311 | AG154: 5.858185928 | AH154: 3.80861536 | AJ154: =N154*(1+COS(VCP!$N$22))/2 -> 2.506803076 | AL154: 2.506803076 | AM154: 2.506803076 | AN154: 2.506803076 | AO154: 2.506803076 | AP154: 3.251572127 | AQ154: 2.978793507 | AR154: 8.364989004 | AS154: 6.315418436 | AV154: =IF(AL154>VCP!$E$29,AL154*VCP!$E$28,AL154) -> 2.506803076 | AW154: =IF(AM154>VCP!$E$29,AM154*VCP!$E$28,AM154) -> 2.506803076 | AX154: =IF(AN154>VCP!$E$29,AN154*VCP!$E$28,AN154) -> 2.506803076 | AY154: =IF(AO154>VCP!$E$29,AO154*VCP!$E$28,AO154) -> 2.506803076 | AZ154: =IF(AP154>VCP!$E$29,AP154*VCP!$E$28,AP154) -> 3.251572127 | BA154: =IF(AQ154>VCP!$E$29,AQ154*VCP!$E$28,AQ154) -> 2.978793507 | BB154: =IF(AR154>VCP!$E$29,AR154*VCP!$E$28,AR154) -> 8.364989004 | BC154: =IF(AS154>VCP!$E$29,AS154*VCP!$E$28,AS154) -> 6.315418436
A155: 153 | B155: 1.8 | C155: -0.42222342 | D155: -3.8 | E155: 64 | F155: 5.1 | G155: 210 | H155: 183 | I155: 64 | L155: =IF($K$2=0,D155*ATAN(0.151977*(E155+8.313659)^0.5)+ATAN(D155+E155)-ATAN(E155-1.676331)+0.00391838*(E155)^(3/2)*ATAN(0.023101*E155)-4.686035,'Weather data'!C155) -> -0.42222342 | M155: 0.349726776 | N155: 57.89118208 | O155: 6.108817924 | R155: =O156*'Qsol calculation'!N155 -> -23.95816555 | S155: =O156*'Qsol calculation'!O155 -> -46.28652243 | T155: =O156*'Qsol calculation'!P155 -> -49.67049522 | U155: =O156*'Qsol calculation'!Q155 -> -15.78853256 | V155: =O156*'Qsol calculation'!R155 -> 4.942021042 | W155: =O156*'Qsol calculation'!S155 -> 15.78853256 | X155: =O156*'Qsol calculation'!T155 -> 49.67049522 | Y155: =O156*'Qsol calculation'!U155 -> 23.95816555 | AA155: 0 | AB155: 0 | AC155: 0 | AD155: 0 | AE155: 4.942021042 | AF155: 15.78853256 | AG155: 49.67049522 | AH155: 23.95816555 | AJ155: =N155*(1+COS(VCP!$N$22))/2 -> 50.99531465 | AL155: 50.99531465 | AM155: 50.99531465 | AN155: 50.99531465 | AO155: 50.99531465 | AP155: 55.9373357 | AQ155: 66.78384721 | AR155: 100.6658099 | AS155: 74.95348021 | AV155: =IF(AL155>VCP!$E$29,AL155*VCP!$E$28,AL155) -> 30.59718879 | AW155: =IF(AM155>VCP!$E$29,AM155*VCP!$E$28,AM155) -> 30.59718879 | AX155: =IF(AN155>VCP!$E$29,AN155*VCP!$E$28,AN155) -> 30.59718879 | AY155: =IF(AO155>VCP!$E$29,AO155*VCP!$E$28,AO155) -> 30.59718879 | AZ155: =IF(AP155>VCP!$E$29,AP155*VCP!$E$28,AP155) -> 33.56240142 | BA155: =IF(AQ155>VCP!$E$29,AQ155*VCP!$E$28,AQ155) -> 40.07030833 | BB155: =IF(AR155>VCP!$E$29,AR155*VCP!$E$28,AR155) -> 60.39948592 | BC155: =IF(AS155>VCP!$E$29,AS155*VCP!$E$28,AS155) -> 44.97208813
A156: 154 | B156: 2.8 | C156: 0.11481603 | D156: -3.6 | E156: 60 | F156: 4.7 | G156: 210 | H156: 381 | I156: 184 | L156: =IF($K$2=0,D156*ATAN(0.151977*(E156+8.313659)^0.5)+ATAN(D156+E156)-ATAN(E156-1.676331)+0.00391838*(E156)^(3/2)*ATAN(0.023101*E156)-4.686035,'Weather data'!C156) -> 0.11481603 | M156: 0.4829396325 | N156: 127.7043095 | O156: 56.29569048 | R156: =O157*'Qsol calculation'!N156 -> -18.22255857 | S156: =O157*'Qsol calculation'!O156 -> -80.29037013 | T156: =O157*'Qsol calculation'!P156 -> -69.65915992 | U156: =O157*'Qsol calculation'!Q156 -> -43.88857045 | V156: =O157*'Qsol calculation'!R156 -> 6.188498181 | W156: =O157*'Qsol calculation'!S156 -> 43.88857045 | X156: =O157*'Qsol calculation'!T156 -> 69.65915992 | Y156: =O157*'Qsol calculation'!U156 -> 18.22255857 | AA156: 0 | AB156: 0 | AC156: 0 | AD156: 0 | AE156: 6.188498181 | AF156: 43.88857045 | AG156: 69.65915992 | AH156: 18.22255857 | AJ156: =N156*(1+COS(VCP!$N$22))/2 -> 112.4924594 | AL156: 112.4924594 | AM156: 112.4924594 | AN156: 112.4924594 | AO156: 112.4924594 | AP156: 118.6809575 | AQ156: 156.3810298 | AR156: 182.1516193 | AS156: 130.7150179 | AV156: =IF(AL156>VCP!$E$29,AL156*VCP!$E$28,AL156) -> 67.49547561 | AW156: =IF(AM156>VCP!$E$29,AM156*VCP!$E$28,AM156) -> 67.49547561 | AX156: =IF(AN156>VCP!$E$29,AN156*VCP!$E$28,AN156) -> 67.49547561 | AY156: =IF(AO156>VCP!$E$29,AO156*VCP!$E$28,AO156) -> 67.49547561 | AZ156: =IF(AP156>VCP!$E$29,AP156*VCP!$E$28,AP156) -> 71.20857452 | BA156: =IF(AQ156>VCP!$E$29,AQ156*VCP!$E$28,AQ156) -> 93.82861788 | BB156: =IF(AR156>VCP!$E$29,AR156*VCP!$E$28,AR156) -> 109.2909716 | BC156: =IF(AS156>VCP!$E$29,AS156*VCP!$E$28,AS156) -> 78.42901076
A157: 155 | B157: 3.9 | C157: 0.9833336 | D157: -2.9 | E157: 59 | F157: 4.4 | G157: 210 | H157: 530 | I157: 266 | L157: =IF($K$2=0,D157*ATAN(0.151977*(E157+8.313659)^0.5)+ATAN(D157+E157)-ATAN(E157-1.676331)+0.00391838*(E157)^(3/2)*ATAN(0.023101*E157)-4.686035,'Weather data'!C157) -> 0.9833336 | M157: 0.5018867925 | N157: 174.2865789 | O157: 91.71342107 | R157: =O158*'Qsol calculation'!N157 -> 3.040724717 | S157: =O158*'Qsol calculation'!O157 -> -64.7551748 | T157: =O158*'Qsol calculation'!P157 -> -43.63870615 | U157: =O158*'Qsol calculation'!Q157 -> -47.93894028 | V157: =O158*'Qsol calculation'!R157 -> 4.54390601 | W157: =O158*'Qsol calculation'!S157 -> 47.93894028 | X157: =O158*'Qsol calculation'!T157 -> 43.63870615 | Y157: =O158*'Qsol calculation'!U157 -> -3.040724717 | AA157: 3.040724717 | AB157: 0 | AC157: 0 | AD157: 0 | AE157: 4.54390601 | AF157: 47.93894028 | AG157: 43.63870615 | AH157: 0 | AJ157: =N157*(1+COS(VCP!$N$22))/2 -> 153.5259536 | AL157: 156.5666783 | AM157: 153.5259536 | AN157: 153.5259536 | AO157: 153.5259536 | AP157: 158.0698596 | AQ157: 201.4648939 | AR157: 197.1646597 | AS157: 153.5259536 | AV157: =IF(AL157>VCP!$E$29,AL157*VCP!$E$28,AL157) -> 93.94000698 | AW157: =IF(AM157>VCP!$E$29,AM157*VCP!$E$28,AM157) -> 92.11557215 | AX157: =IF(AN157>VCP!$E$29,AN157*VCP!$E$28,AN157) -> 92.11557215 | AY157: =IF(AO157>VCP!$E$29,AO157*VCP!$E$28,AO157) -> 92.11557215 | AZ157: =IF(AP157>VCP!$E$29,AP157*VCP!$E$28,AP157) -> 94.84191576 | BA157: =IF(AQ157>VCP!$E$29,AQ157*VCP!$E$28,AQ157) -> 120.8789363 | BB157: =IF(AR157>VCP!$E$29,AR157*VCP!$E$28,AR157) -> 118.2987958 | BC157: =IF(AS157>VCP!$E$29,AS157*VCP!$E$28,AS157) -> 92.11557215
A158: 156 | B158: 4.9 | C158: 1.8444443 | D158: -2.2 | E158: 58 | F158: 4 | G158: 210 | H158: 618 | I158: 283 | L158: =IF($K$2=0,D158*ATAN(0.151977*(E158+8.313659)^0.5)+ATAN(D158+E158)-ATAN(E158-1.676331)+0.00391838*(E158)^(3/2)*ATAN(0.023101*E158)-4.686035,'Weather data'!C158) -> 1.8444443 | M158: 0.4579288026 | N158: 210.1460276 | O158: 72.85397244 | R158: =O159*'Qsol calculation'!N158 -> 7.748601695 | S158: =O159*'Qsol calculation'!O158 -> -23.89745315 | T158: =O159*'Qsol calculation'!P158 -> -11.41896238 | U158: =O159*'Qsol calculation'!Q158 -> -22.37713998 | V158: =O159*'Qsol calculation'!R158 -> 2.019970276 | W158: =O159*'Qsol calculation'!S158 -> 22.37713998 | X158: =O159*'Qsol calculation'!T158 -> 11.41896238 | Y158: =O159*'Qsol calculation'!U158 -> -7.748601695 | AA158: 7.748601695 | AB158: 0 | AC158: 0 | AD158: 0 | AE158: 2.019970276 | AF158: 22.37713998 | AG158: 11.41896238 | AH158: 0 | AJ158: =N158*(1+COS(VCP!$N$22))/2 -> 185.1139053 | AL158: 192.862507 | AM158: 185.1139053 | AN158: 185.1139053 | AO158: 185.1139053 | AP158: 187.1338756 | AQ158: 207.4910453 | AR158: 196.5328677 | AS158: 185.1139053 | AV158: =IF(AL158>VCP!$E$29,AL158*VCP!$E$28,AL158) -> 115.7175042 | AW158: =IF(AM158>VCP!$E$29,AM158*VCP!$E$28,AM158) -> 111.0683432 | AX158: =IF(AN158>VCP!$E$29,AN158*VCP!$E$28,AN158) -> 111.0683432 | AY158: =IF(AO158>VCP!$E$29,AO158*VCP!$E$28,AO158) -> 111.0683432 | AZ158: =IF(AP158>VCP!$E$29,AP158*VCP!$E$28,AP158) -> 112.2803254 | BA158: =IF(AQ158>VCP!$E$29,AQ158*VCP!$E$28,AQ158) -> 124.4946272 | BB158: =IF(AR158>VCP!$E$29,AR158*VCP!$E$28,AR158) -> 117.9197206 | BC158: =IF(AS158>VCP!$E$29,AS158*VCP!$E$28,AS158) -> 111.0683432
A159: 157 | B159: 6 | C159: 2.944444 | D159: -1 | E159: 60 | F159: 3.6 | G159: 240 | H159: 640 | I159: 236 | L159: =IF($K$2=0,D159*ATAN(0.151977*(E159+8.313659)^0.5)+ATAN(D159+E159)-ATAN(E159-1.676331)+0.00391838*(E159)^(3/2)*ATAN(0.023101*E159)-4.686035,'Weather data'!C159) -> 2.944444 | M159: 0.36875 | N159: 208.2590902 | O159: 27.74090975 | R159: =O160*'Qsol calculation'!N159 -> 11.36100628 | S159: =O160*'Qsol calculation'!O159 -> -18.14508626 | T159: =O160*'Qsol calculation'!P159 -> -4.797068959 | U159: =O160*'Qsol calculation'!Q159 -> -20.86395812 | V159: =O160*'Qsol calculation'!R159 -> 2.238600665 | W159: =O160*'Qsol calculation'!S159 -> 20.86395812 | X159: =O160*'Qsol calculation'!T159 -> 4.797068959 | Y159: =O160*'Qsol calculation'!U159 -> -11.36100628 | AA159: 11.36100628 | AB159: 0 | AC159: 0 | AD159: 0 | AE159: 2.238600665 | AF159: 20.86395812 | AG159: 4.797068959 | AH159: 0 | AJ159: =N159*(1+COS(VCP!$N$22))/2 -> 183.4517358 | AL159: 194.812742 | AM159: 183.4517358 | AN159: 183.4517358 | AO159: 183.4517358 | AP159: 185.6903364 | AQ159: 204.3156939 | AR159: 188.2488047 | AS159: 183.4517358 | AV159: =IF(AL159>VCP!$E$29,AL159*VCP!$E$28,AL159) -> 116.8876452 | AW159: =IF(AM159>VCP!$E$29,AM159*VCP!$E$28,AM159) -> 110.0710415 | AX159: =IF(AN159>VCP!$E$29,AN159*VCP!$E$28,AN159) -> 110.0710415 | AY159: =IF(AO159>VCP!$E$29,AO159*VCP!$E$28,AO159) -> 110.0710415 | AZ159: =IF(AP159>VCP!$E$29,AP159*VCP!$E$28,AP159) -> 111.4142019 | BA159: =IF(AQ159>VCP!$E$29,AQ159*VCP!$E$28,AQ159) -> 122.5894163 | BB159: =IF(AR159>VCP!$E$29,AR159*VCP!$E$28,AR159) -> 112.9492828 | BC159: =IF(AS159>VCP!$E$29,AS159*VCP!$E$28,AS159) -> 110.0710415
A160: 158 | B160: 6.6 | C160: 3.2666652 | D160: -1 | E160: 58 | F160: 5.4 | G160: 240 | H160: 595 | I160: 214 | L160: =IF($K$2=0,D160*ATAN(0.151977*(E160+8.313659)^0.5)+ATAN(D160+E160)-ATAN(E160-1.676331)+0.00391838*(E160)^(3/2)*ATAN(0.023101*E160)-4.686035,'Weather data'!C160) -> 3.2666652 | M160: 0.3596638655 | N160: 191.1806997 | O160: 22.81930032 | R160: =O161*'Qsol calculation'!N160 -> 8.508480593 | S160: =O161*'Qsol calculation'!O160 -> -8.658111384 | T160: =O161*'Qsol calculation'!P160 -> -0.1058049467 | U160: =O161*'Qsol calculation'!Q160 -> -12.1386136 | V160: =O161*'Qsol calculation'!R160 -> 1.70177444 | W160: =O161*'Qsol calculation'!S160 -> 12.1386136 | X160: =O161*'Qsol calculation'!T160 -> 0.1058049467 | Y160: =O161*'Qsol calculation'!U160 -> -8.508480593 | AA160: 8.508480593 | AB160: 0 | AC160: 0 | AD160: 0 | AE160: 1.70177444 | AF160: 12.1386136 | AG160: 0.1058049467 | AH160: 0 | AJ160: =N160*(1+COS(VCP!$N$22))/2 -> 168.4076847 | AL160: 176.9161653 | AM160: 168.4076847 | AN160: 168.4076847 | AO160: 168.4076847 | AP160: 170.1094591 | AQ160: 180.5462983 | AR160: 168.5134896 | AS160: 168.4076847 | AV160: =IF(AL160>VCP!$E$29,AL160*VCP!$E$28,AL160) -> 106.1496992 | AW160: =IF(AM160>VCP!$E$29,AM160*VCP!$E$28,AM160) -> 101.0446108 | AX160: =IF(AN160>VCP!$E$29,AN160*VCP!$E$28,AN160) -> 101.0446108 | AY160: =IF(AO160>VCP!$E$29,AO160*VCP!$E$28,AO160) -> 101.0446108 | AZ160: =IF(AP160>VCP!$E$29,AP160*VCP!$E$28,AP160) -> 102.0656755 | BA160: =IF(AQ160>VCP!$E$29,AQ160*VCP!$E$28,AQ160) -> 108.327779 | BB160: =IF(AR160>VCP!$E$29,AR160*VCP!$E$28,AR160) -> 101.1080938 | BC160: =IF(AS160>VCP!$E$29,AS160*VCP!$E$28,AS160) -> 101.0446108
A161: 159 | B161: 7.2 | C161: 3.866666 | D161: -0.3 | E161: 59 | F161: 7.2 | G161: 300 | H161: 485 | I161: 161 | L161: =IF($K$2=0,D161*ATAN(0.151977*(E161+8.313659)^0.5)+ATAN(D161+E161)-ATAN(E161-1.676331)+0.00391838*(E161)^(3/2)*ATAN(0.023101*E161)-4.686035,'Weather data'!C161) -> 3.866666 | M161: 0.3319587629 | N161: 148.53313 | O161: 12.46687001 | R161: =O162*'Qsol calculation'!N161 -> 2.676522683 | S161: =O162*'Qsol calculation'!O161 -> -1.847055093 | T161: =O162*'Qsol calculation'!P161 -> 0.5865221578 | U161: =O162*'Qsol calculation'!Q161 -> -3.198652521 | V161: =O162*'Qsol calculation'!R161 -> 0.6047358246 | W161: =O162*'Qsol calculation'!S161 -> 3.198652521 | X161: =O162*'Qsol calculation'!T161 -> -0.5865221578 | Y161: =O162*'Qsol calculation'!U161 -> -2.676522683 | AA161: 2.676522683 | AB161: 0 | AC161: 0.5865221578 | AD161: 0 | AE161: 0.6047358246 | AF161: 3.198652521 | AG161: 0 | AH161: 0 | AJ161: =N161*(1+COS(VCP!$N$22))/2 -> 130.8401976 | AL161: 133.5167203 | AM161: 130.8401976 | AN161: 131.4267197 | AO161: 130.8401976 | AP161: 131.4449334 | AQ161: 134.0388501 | AR161: 130.8401976 | AS161: 130.8401976 | AV161: =IF(AL161>VCP!$E$29,AL161*VCP!$E$28,AL161) -> 80.11003215 | AW161: =IF(AM161>VCP!$E$29,AM161*VCP!$E$28,AM161) -> 78.50411854 | AX161: =IF(AN161>VCP!$E$29,AN161*VCP!$E$28,AN161) -> 78.85603184 | AY161: =IF(AO161>VCP!$E$29,AO161*VCP!$E$28,AO161) -> 78.50411854 | AZ161: =IF(AP161>VCP!$E$29,AP161*VCP!$E$28,AP161) -> 78.86696004 | BA161: =IF(AQ161>VCP!$E$29,AQ161*VCP!$E$28,AQ161) -> 80.42331006 | BB161: =IF(AR161>VCP!$E$29,AR161*VCP!$E$28,AR161) -> 78.50411854 | BC161: =IF(AS161>VCP!$E$29,AS161*VCP!$E$28,AS161) -> 78.50411854
A162: 160 | B162: 7.1 | C162: 3.8592594 | D162: -0.2 | E162: 60 | F162: 6.1 | G162: 300 | H162: 319 | I162: 88 | L162: =IF($K$2=0,D162*ATAN(0.151977*(E162+8.313659)^0.5)+ATAN(D162+E162)-ATAN(E162-1.676331)+0.00391838*(E162)^(3/2)*ATAN(0.023101*E162)-4.686035,'Weather data'!C162) -> 3.8592594 | M162: 0.275862069 | N162: 84.73831839 | O162: 3.261681608 | R162: =O163*'Qsol calculation'!N162 -> 0.1962274002 | S162: =O163*'Qsol calculation'!O162 -> -0.09113830993 | T162: =O163*'Qsol calculation'!P162 -> 0.07430920838 | U162: =O163*'Qsol calculation'!Q162 -> -0.2031982423 | V162: =O163*'Qsol calculation'!R162 -> 0.05248681324 | W162: =O163*'Qsol calculation'!S162 -> 0.2031982423 | X162: =O163*'Qsol calculation'!T162 -> -0.07430920838 | Y162: =O163*'Qsol calculation'!U162 -> -0.1962274002 | AA162: 0.1962274002 | AB162: 0 | AC162: 0.07430920838 | AD162: 0 | AE162: 0.05248681324 | AF162: 0.2031982423 | AG162: 0 | AH162: 0 | AJ162: =N162*(1+COS(VCP!$N$22))/2 -> 74.64448047 | AL162: 74.84070787 | AM162: 74.64448047 | AN162: 74.71878968 | AO162: 74.64448047 | AP162: 74.69696728 | AQ162: 74.84767871 | AR162: 74.64448047 | AS162: 74.64448047 | AV162: =IF(AL162>VCP!$E$29,AL162*VCP!$E$28,AL162) -> 44.90442472 | AW162: =IF(AM162>VCP!$E$29,AM162*VCP!$E$28,AM162) -> 44.78668828 | AX162: =IF(AN162>VCP!$E$29,AN162*VCP!$E$28,AN162) -> 44.83127381 | AY162: =IF(AO162>VCP!$E$29,AO162*VCP!$E$28,AO162) -> 44.78668828 | AZ162: =IF(AP162>VCP!$E$29,AP162*VCP!$E$28,AP162) -> 44.81818037 | BA162: =IF(AQ162>VCP!$E$29,AQ162*VCP!$E$28,AQ162) -> 44.90860723 | BB162: =IF(AR162>VCP!$E$29,AR162*VCP!$E$28,AR162) -> 44.78668828 | BC162: =IF(AS162>VCP!$E$29,AS162*VCP!$E$28,AS162) -> 44.78668828
A163: 161 | B163: 7 | C163: 3.4814813 | D163: -1 | E163: 56 | F163: 5.1 | G163: 290 | H163: 106 | I163: 16 | L163: =IF($K$2=0,D163*ATAN(0.151977*(E163+8.313659)^0.5)+ATAN(D163+E163)-ATAN(E163-1.676331)+0.00391838*(E163)^(3/2)*ATAN(0.023101*E163)-4.686035,'Weather data'!C163) -> 3.4814813 | M163: 0.1509433962 | N163: 15.78264151 | O163: 0.2173584906 | R163: =O164*'Qsol calculation'!N163 -> 0 | S163: =O164*'Qsol calculation'!O163 -> 0 | T163: =O164*'Qsol calculation'!P163 -> 0 | U163: =O164*'Qsol calculation'!Q163 -> 0 | V163: =O164*'Qsol calculation'!R163 -> 0 | W163: =O164*'Qsol calculation'!S163 -> 0 | X163: =O164*'Qsol calculation'!T163 -> 0 | Y163: =O164*'Qsol calculation'!U163 -> 0 | AA163: 0 | AB163: 0 | AC163: 0 | AD163: 0 | AE163: 0 | AF163: 0 | AG163: 0 | AH163: 0 | AJ163: =N163*(1+COS(VCP!$N$22))/2 -> 13.90264875 | AL163: 13.90264875 | AM163: 13.90264875 | AN163: 13.90264875 | AO163: 13.90264875 | AP163: 13.90264875 | AQ163: 13.90264875 | AR163: 13.90264875 | AS163: 13.90264875 | AV163: =IF(AL163>VCP!$E$29,AL163*VCP!$E$28,AL163) -> 13.90264875 | AW163: =IF(AM163>VCP!$E$29,AM163*VCP!$E$28,AM163) -> 13.90264875 | AX163: =IF(AN163>VCP!$E$29,AN163*VCP!$E$28,AN163) -> 13.90264875 | AY163: =IF(AO163>VCP!$E$29,AO163*VCP!$E$28,AO163) -> 13.90264875 | AZ163: =IF(AP163>VCP!$E$29,AP163*VCP!$E$28,AP163) -> 13.90264875 | BA163: =IF(AQ163>VCP!$E$29,AQ163*VCP!$E$28,AQ163) -> 13.90264875 | BB163: =IF(AR163>VCP!$E$29,AR163*VCP!$E$28,AR163) -> 13.90264875 | BC163: =IF(AS163>VCP!$E$29,AS163*VCP!$E$28,AS163) -> 13.90264875
A164: 162 | B164: 6.6 | C164: 3.8222208 | D164: 0.2 | E164: 64 | F164: 4.1 | G164: 280 | H164: 0 | I164: 0 | L164: =IF($K$2=0,D164*ATAN(0.151977*(E164+8.313659)^0.5)+ATAN(D164+E164)-ATAN(E164-1.676331)+0.00391838*(E164)^(3/2)*ATAN(0.023101*E164)-4.686035,'Weather data'!C164) -> 3.8222208 | M164: 0 | N164: 0 | O164: 0 | R164: =O165*'Qsol calculation'!N164 -> 0 | S164: =O165*'Qsol calculation'!O164 -> 0 | T164: =O165*'Qsol calculation'!P164 -> 0 | U164: =O165*'Qsol calculation'!Q164 -> 0 | V164: =O165*'Qsol calculation'!R164 -> 0 | W164: =O165*'Qsol calculation'!S164 -> 0 | X164: =O165*'Qsol calculation'!T164 -> 0 | Y164: =O165*'Qsol calculation'!U164 -> 0 | AA164: 0 | AB164: 0 | AC164: 0 | AD164: 0 | AE164: 0 | AF164: 0 | AG164: 0 | AH164: 0 | AJ164: =N164*(1+COS(VCP!$N$22))/2 -> 0 | AL164: 0 | AM164: 0 | AN164: 0 | AO164: 0 | AP164: 0 | AQ164: 0 | AR164: 0 | AS164: 0 | AV164: =IF(AL164>VCP!$E$29,AL164*VCP!$E$28,AL164) -> 0 | AW164: =IF(AM164>VCP!$E$29,AM164*VCP!$E$28,AM164) -> 0 | AX164: =IF(AN164>VCP!$E$29,AN164*VCP!$E$28,AN164) -> 0 | AY164: =IF(AO164>VCP!$E$29,AO164*VCP!$E$28,AO164) -> 0 | AZ164: =IF(AP164>VCP!$E$29,AP164*VCP!$E$28,AP164) -> 0 | BA164: =IF(AQ164>VCP!$E$29,AQ164*VCP!$E$28,AQ164) -> 0 | BB164: =IF(AR164>VCP!$E$29,AR164*VCP!$E$28,AR164) -> 0 | BC164: =IF(AS164>VCP!$E$29,AS164*VCP!$E$28,AS164) -> 0
A165: 163 | B165: 5.9 | C165: 3.4000015 | D165: 0 | E165: 66 | F165: 3.9 | G165: 280 | H165: 0 | I165: 0 | L165: =IF($K$2=0,D165*ATAN(0.151977*(E165+8.313659)^0.5)+ATAN(D165+E165)-ATAN(E165-1.676331)+0.00391838*(E165)^(3/2)*ATAN(0.023101*E165)-4.686035,'Weather data'!C165) -> 3.4000015 | M165: 0 | N165: 0 | O165: 0 | R165: =O166*'Qsol calculation'!N165 -> 0 | S165: =O166*'Qsol calculation'!O165 -> 0 | T165: =O166*'Qsol calculation'!P165 -> 0 | U165: =O166*'Qsol calculation'!Q165 -> 0 | V165: =O166*'Qsol calculation'!R165 -> 0 | W165: =O166*'Qsol calculation'!S165 -> 0 | X165: =O166*'Qsol calculation'!T165 -> 0 | Y165: =O166*'Qsol calculation'!U165 -> 0 | AA165: 0 | AB165: 0 | AC165: 0 | AD165: 0 | AE165: 0 | AF165: 0 | AG165: 0 | AH165: 0 | AJ165: =N165*(1+COS(VCP!$N$22))/2 -> 0 | AL165: 0 | AM165: 0 | AN165: 0 | AO165: 0 | AP165: 0 | AQ165: 0 | AR165: 0 | AS165: 0 | AV165: =IF(AL165>VCP!$E$29,AL165*VCP!$E$28,AL165) -> 0 | AW165: =IF(AM165>VCP!$E$29,AM165*VCP!$E$28,AM165) -> 0 | AX165: =IF(AN165>VCP!$E$29,AN165*VCP!$E$28,AN165) -> 0 | AY165: =IF(AO165>VCP!$E$29,AO165*VCP!$E$28,AO165) -> 0 | AZ165: =IF(AP165>VCP!$E$29,AP165*VCP!$E$28,AP165) -> 0 | BA165: =IF(AQ165>VCP!$E$29,AQ165*VCP!$E$28,AQ165) -> 0 | BB165: =IF(AR165>VCP!$E$29,AR165*VCP!$E$28,AR165) -> 0 | BC165: =IF(AS165>VCP!$E$29,AS165*VCP!$E$28,AS165) -> 0
A166: 164 | B166: 5.1 | C166: 2.738889 | D166: -0.2 | E166: 68 | F166: 3.8 | G166: 280 | H166: 0 | I166: 0 | L166: =IF($K$2=0,D166*ATAN(0.151977*(E166+8.313659)^0.5)+ATAN(D166+E166)-ATAN(E166-1.676331)+0.00391838*(E166)^(3/2)*ATAN(0.023101*E166)-4.686035,'Weather data'!C166) -> 2.738889 | M166: 0 | N166: 0 | O166: 0 | R166: =O167*'Qsol calculation'!N166 -> 0 | S166: =O167*'Qsol calculation'!O166 -> 0 | T166: =O167*'Qsol calculation'!P166 -> 0 | U166: =O167*'Qsol calculation'!Q166 -> 0 | V166: =O167*'Qsol calculation'!R166 -> 0 | W166: =O167*'Qsol calculation'!S166 -> 0 | X166: =O167*'Qsol calculation'!T166 -> 0 | Y166: =O167*'Qsol calculation'!U166 -> 0 | AA166: 0 | AB166: 0 | AC166: 0 | AD166: 0 | AE166: 0 | AF166: 0 | AG166: 0 | AH166: 0 | AJ166: =N166*(1+COS(VCP!$N$22))/2 -> 0 | AL166: 0 | AM166: 0 | AN166: 0 | AO166: 0 | AP166: 0 | AQ166: 0 | AR166: 0 | AS166: 0 | AV166: =IF(AL166>VCP!$E$29,AL166*VCP!$E$28,AL166) -> 0 | AW166: =IF(AM166>VCP!$E$29,AM166*VCP!$E$28,AM166) -> 0 | AX166: =IF(AN166>VCP!$E$29,AN166*VCP!$E$28,AN166) -> 0 | AY166: =IF(AO166>VCP!$E$29,AO166*VCP!$E$28,AO166) -> 0 | AZ166: =IF(AP166>VCP!$E$29,AP166*VCP!$E$28,AP166) -> 0 | BA166: =IF(AQ166>VCP!$E$29,AQ166*VCP!$E$28,AQ166) -> 0 | BB166: =IF(AR166>VCP!$E$29,AR166*VCP!$E$28,AR166) -> 0 | BC166: =IF(AS166>VCP!$E$29,AS166*VCP!$E$28,AS166) -> 0
A167: 165 | B167: 4.4 | C167: 2.3166678 | D167: -0.4 | E167: 71 | F167: 3.6 | G167: 280 | H167: 0 | I167: 0 | L167: =IF($K$2=0,D167*ATAN(0.151977*(E167+8.313659)^0.5)+ATAN(D167+E167)-ATAN(E167-1.676331)+0.00391838*(E167)^(3/2)*ATAN(0.023101*E167)-4.686035,'Weather data'!C167) -> 2.3166678 | M167: 0 | N167: 0 | O167: 0 | R167: =O168*'Qsol calculation'!N167 -> 0 | S167: =O168*'Qsol calculation'!O167 -> 0 | T167: =O168*'Qsol calculation'!P167 -> 0 | U167: =O168*'Qsol calculation'!Q167 -> 0 | V167: =O168*'Qsol calculation'!R167 -> 0 | W167: =O168*'Qsol calculation'!S167 -> 0 | X167: =O168*'Qsol calculation'!T167 -> 0 | Y167: =O168*'Qsol calculation'!U167 -> 0 | AA167: 0 | AB167: 0 | AC167: 0 | AD167: 0 | AE167: 0 | AF167: 0 | AG167: 0 | AH167: 0 | AJ167: =N167*(1+COS(VCP!$N$22))/2 -> 0 | AL167: 0 | AM167: 0 | AN167: 0 | AO167: 0 | AP167: 0 | AQ167: 0 | AR167: 0 | AS167: 0 | AV167: =IF(AL167>VCP!$E$29,AL167*VCP!$E$28,AL167) -> 0 | AW167: =IF(AM167>VCP!$E$29,AM167*VCP!$E$28,AM167) -> 0 | AX167: =IF(AN167>VCP!$E$29,AN167*VCP!$E$28,AN167) -> 0 | AY167: =IF(AO167>VCP!$E$29,AO167*VCP!$E$28,AO167) -> 0 | AZ167: =IF(AP167>VCP!$E$29,AP167*VCP!$E$28,AP167) -> 0 | BA167: =IF(AQ167>VCP!$E$29,AQ167*VCP!$E$28,AQ167) -> 0 | BB167: =IF(AR167>VCP!$E$29,AR167*VCP!$E$28,AR167) -> 0 | BC167: =IF(AS167>VCP!$E$29,AS167*VCP!$E$28,AS167) -> 0
A168: 166 | B168: 3.7 | C168: 1.8481488 | D168: -0.6 | E168: 73 | F168: 3.4 | G168: 280 | H168: 0 | I168: 0 | L168: =IF($K$2=0,D168*ATAN(0.151977*(E168+8.313659)^0.5)+ATAN(D168+E168)-ATAN(E168-1.676331)+0.00391838*(E168)^(3/2)*ATAN(0.023101*E168)-4.686035,'Weather data'!C168) -> 1.8481488 | M168: 0 | N168: 0 | O168: 0 | R168: =O169*'Qsol calculation'!N168 -> 0 | S168: =O169*'Qsol calculation'!O168 -> 0 | T168: =O169*'Qsol calculation'!P168 -> 0 | U168: =O169*'Qsol calculation'!Q168 -> 0 | V168: =O169*'Qsol calculation'!R168 -> 0 | W168: =O169*'Qsol calculation'!S168 -> 0 | X168: =O169*'Qsol calculation'!T168 -> 0 | Y168: =O169*'Qsol calculation'!U168 -> 0 | AA168: 0 | AB168: 0 | AC168: 0 | AD168: 0 | AE168: 0 | AF168: 0 | AG168: 0 | AH168: 0 | AJ168: =N168*(1+COS(VCP!$N$22))/2 -> 0 | AL168: 0 | AM168: 0 | AN168: 0 | AO168: 0 | AP168: 0 | AQ168: 0 | AR168: 0 | AS168: 0 | AV168: =IF(AL168>VCP!$E$29,AL168*VCP!$E$28,AL168) -> 0 | AW168: =IF(AM168>VCP!$E$29,AM168*VCP!$E$28,AM168) -> 0 | AX168: =IF(AN168>VCP!$E$29,AN168*VCP!$E$28,AN168) -> 0 | AY168: =IF(AO168>VCP!$E$29,AO168*VCP!$E$28,AO168) -> 0 | AZ168: =IF(AP168>VCP!$E$29,AP168*VCP!$E$28,AP168) -> 0 | BA168: =IF(AQ168>VCP!$E$29,AQ168*VCP!$E$28,AQ168) -> 0 | BB168: =IF(AR168>VCP!$E$29,AR168*VCP!$E$28,AR168) -> 0 | BC168: =IF(AS168>VCP!$E$29,AS168*VCP!$E$28,AS168) -> 0
A169: 167 | B169: 2.9 | C169: 1.3259273 | D169: -0.7 | E169: 76 | F169: 3.3 | G169: 280 | H169: 0 | I169: 0 | L169: =IF($K$2=0,D169*ATAN(0.151977*(E169+8.313659)^0.5)+ATAN(D169+E169)-ATAN(E169-1.676331)+0.00391838*(E169)^(3/2)*ATAN(0.023101*E169)-4.686035,'Weather data'!C169) -> 1.3259273 | M169: 0 | N169: 0 | O169: 0 | R169: =O170*'Qsol calculation'!N169 -> 0 | S169: =O170*'Qsol calculation'!O169 -> 0 | T169: =O170*'Qsol calculation'!P169 -> 0 | U169: =O170*'Qsol calculation'!Q169 -> 0 | V169: =O170*'Qsol calculation'!R169 -> 0 | W169: =O170*'Qsol calculation'!S169 -> 0 | X169: =O170*'Qsol calculation'!T169 -> 0 | Y169: =O170*'Qsol calculation'!U169 -> 0 | AA169: 0 | AB169: 0 | AC169: 0 | AD169: 0 | AE169: 0 | AF169: 0 | AG169: 0 | AH169: 0 | AJ169: =N169*(1+COS(VCP!$N$22))/2 -> 0 | AL169: 0 | AM169: 0 | AN169: 0 | AO169: 0 | AP169: 0 | AQ169: 0 | AR169: 0 | AS169: 0 | AV169: =IF(AL169>VCP!$E$29,AL169*VCP!$E$28,AL169) -> 0 | AW169: =IF(AM169>VCP!$E$29,AM169*VCP!$E$28,AM169) -> 0 | AX169: =IF(AN169>VCP!$E$29,AN169*VCP!$E$28,AN169) -> 0 | AY169: =IF(AO169>VCP!$E$29,AO169*VCP!$E$28,AO169) -> 0 | AZ169: =IF(AP169>VCP!$E$29,AP169*VCP!$E$28,AP169) -> 0 | BA169: =IF(AQ169>VCP!$E$29,AQ169*VCP!$E$28,AQ169) -> 0 | BB169: =IF(AR169>VCP!$E$29,AR169*VCP!$E$28,AR169) -> 0 | BC169: =IF(AS169>VCP!$E$29,AS169*VCP!$E$28,AS169) -> 0
A170: 168 | B170: 2.2 | C170: 0.9037039 | D170: -0.8 | E170: 80 | F170: 3.1 | G170: 290 | H170: 0 | I170: 0 | L170: =IF($K$2=0,D170*ATAN(0.151977*(E170+8.313659)^0.5)+ATAN(D170+E170)-ATAN(E170-1.676331)+0.00391838*(E170)^(3/2)*ATAN(0.023101*E170)-4.686035,'Weather data'!C170) -> 0.9037039 | M170: 0 | N170: 0 | O170: 0 | R170: =O171*'Qsol calculation'!N170 -> 0 | S170: =O171*'Qsol calculation'!O170 -> 0 | T170: =O171*'Qsol calculation'!P170 -> 0 | U170: =O171*'Qsol calculation'!Q170 -> 0 | V170: =O171*'Qsol calculation'!R170 -> 0 | W170: =O171*'Qsol calculation'!S170 -> 0 | X170: =O171*'Qsol calculation'!T170 -> 0 | Y170: =O171*'Qsol calculation'!U170 -> 0 | AA170: 0 | AB170: 0 | AC170: 0 | AD170: 0 | AE170: 0 | AF170: 0 | AG170: 0 | AH170: 0 | AJ170: =N170*(1+COS(VCP!$N$22))/2 -> 0 | AL170: 0 | AM170: 0 | AN170: 0 | AO170: 0 | AP170: 0 | AQ170: 0 | AR170: 0 | AS170: 0 | AV170: =IF(AL170>VCP!$E$29,AL170*VCP!$E$28,AL170) -> 0 | AW170: =IF(AM170>VCP!$E$29,AM170*VCP!$E$28,AM170) -> 0 | AX170: =IF(AN170>VCP!$E$29,AN170*VCP!$E$28,AN170) -> 0 | AY170: =IF(AO170>VCP!$E$29,AO170*VCP!$E$28,AO170) -> 0 | AZ170: =IF(AP170>VCP!$E$29,AP170*VCP!$E$28,AP170) -> 0 | BA170: =IF(AQ170>VCP!$E$29,AQ170*VCP!$E$28,AQ170) -> 0 | BB170: =IF(AR170>VCP!$E$29,AR170*VCP!$E$28,AR170) -> 0 | BC170: =IF(AS170>VCP!$E$29,AS170*VCP!$E$28,AS170) -> 0
A171: 169 | B171: 1.9 | C171: 0.64999896 | D171: -0.9 | E171: 81 | F171: 2.7 | G171: 290 | H171: 0 | I171: 0 | L171: =IF($K$2=0,D171*ATAN(0.151977*(E171+8.313659)^0.5)+ATAN(D171+E171)-ATAN(E171-1.676331)+0.00391838*(E171)^(3/2)*ATAN(0.023101*E171)-4.686035,'Weather data'!C171) -> 0.64999896 | M171: 0 | N171: 0 | O171: 0 | R171: =O172*'Qsol calculation'!N171 -> 0 | S171: =O172*'Qsol calculation'!O171 -> 0 | T171: =O172*'Qsol calculation'!P171 -> 0 | U171: =O172*'Qsol calculation'!Q171 -> 0 | V171: =O172*'Qsol calculation'!R171 -> 0 | W171: =O172*'Qsol calculation'!S171 -> 0 | X171: =O172*'Qsol calculation'!T171 -> 0 | Y171: =O172*'Qsol calculation'!U171 -> 0 | AA171: 0 | AB171: 0 | AC171: 0 | AD171: 0 | AE171: 0 | AF171: 0 | AG171: 0 | AH171: 0 | AJ171: =N171*(1+COS(VCP!$N$22))/2 -> 0 | AL171: 0 | AM171: 0 | AN171: 0 | AO171: 0 | AP171: 0 | AQ171: 0 | AR171: 0 | AS171: 0 | AV171: =IF(AL171>VCP!$E$29,AL171*VCP!$E$28,AL171) -> 0 | AW171: =IF(AM171>VCP!$E$29,AM171*VCP!$E$28,AM171) -> 0 | AX171: =IF(AN171>VCP!$E$29,AN171*VCP!$E$28,AN171) -> 0 | AY171: =IF(AO171>VCP!$E$29,AO171*VCP!$E$28,AO171) -> 0 | AZ171: =IF(AP171>VCP!$E$29,AP171*VCP!$E$28,AP171) -> 0 | BA171: =IF(AQ171>VCP!$E$29,AQ171*VCP!$E$28,AQ171) -> 0 | BB171: =IF(AR171>VCP!$E$29,AR171*VCP!$E$28,AR171) -> 0 | BC171: =IF(AS171>VCP!$E$29,AS171*VCP!$E$28,AS171) -> 0
A172: 170 | B172: 1.6 | C172: 0.4888895 | D172: -0.9 | E172: 82 | F172: 2.3 | G172: 290 | H172: 0 | I172: 0 | L172: =IF($K$2=0,D172*ATAN(0.151977*(E172+8.313659)^0.5)+ATAN(D172+E172)-ATAN(E172-1.676331)+0.00391838*(E172)^(3/2)*ATAN(0.023101*E172)-4.686035,'Weather data'!C172) -> 0.4888895 | M172: 0 | N172: 0 | O172: 0 | R172: =O173*'Qsol calculation'!N172 -> 0 | S172: =O173*'Qsol calculation'!O172 -> 0 | T172: =O173*'Qsol calculation'!P172 -> 0 | U172: =O173*'Qsol calculation'!Q172 -> 0 | V172: =O173*'Qsol calculation'!R172 -> 0 | W172: =O173*'Qsol calculation'!S172 -> 0 | X172: =O173*'Qsol calculation'!T172 -> 0 | Y172: =O173*'Qsol calculation'!U172 -> 0 | AA172: 0 | AB172: 0 | AC172: 0 | AD172: 0 | AE172: 0 | AF172: 0 | AG172: 0 | AH172: 0 | AJ172: =N172*(1+COS(VCP!$N$22))/2 -> 0 | AL172: 0 | AM172: 0 | AN172: 0 | AO172: 0 | AP172: 0 | AQ172: 0 | AR172: 0 | AS172: 0 | AV172: =IF(AL172>VCP!$E$29,AL172*VCP!$E$28,AL172) -> 0 | AW172: =IF(AM172>VCP!$E$29,AM172*VCP!$E$28,AM172) -> 0 | AX172: =IF(AN172>VCP!$E$29,AN172*VCP!$E$28,AN172) -> 0 | AY172: =IF(AO172>VCP!$E$29,AO172*VCP!$E$28,AO172) -> 0 | AZ172: =IF(AP172>VCP!$E$29,AP172*VCP!$E$28,AP172) -> 0 | BA172: =IF(AQ172>VCP!$E$29,AQ172*VCP!$E$28,AQ172) -> 0 | BB172: =IF(AR172>VCP!$E$29,AR172*VCP!$E$28,AR172) -> 0 | BC172: =IF(AS172>VCP!$E$29,AS172*VCP!$E$28,AS172) -> 0
A173: 171 | B173: 1.3 | C173: 0.28148228 | D173: -0.9 | E173: 84 | F173: 1.9 | G173: 290 | H173: 0 | I173: 0 | L173: =IF($K$2=0,D173*ATAN(0.151977*(E173+8.313659)^0.5)+ATAN(D173+E173)-ATAN(E173-1.676331)+0.00391838*(E173)^(3/2)*ATAN(0.023101*E173)-4.686035,'Weather data'!C173) -> 0.28148228 | M173: 0 | N173: 0 | O173: 0 | R173: =O174*'Qsol calculation'!N173 -> 0 | S173: =O174*'Qsol calculation'!O173 -> 0 | T173: =O174*'Qsol calculation'!P173 -> 0 | U173: =O174*'Qsol calculation'!Q173 -> 0 | V173: =O174*'Qsol calculation'!R173 -> 0 | W173: =O174*'Qsol calculation'!S173 -> 0 | X173: =O174*'Qsol calculation'!T173 -> 0 | Y173: =O174*'Qsol calculation'!U173 -> 0 | AA173: 0 | AB173: 0 | AC173: 0 | AD173: 0 | AE173: 0 | AF173: 0 | AG173: 0 | AH173: 0 | AJ173: =N173*(1+COS(VCP!$N$22))/2 -> 0 | AL173: 0 | AM173: 0 | AN173: 0 | AO173: 0 | AP173: 0 | AQ173: 0 | AR173: 0 | AS173: 0 | AV173: =IF(AL173>VCP!$E$29,AL173*VCP!$E$28,AL173) -> 0 | AW173: =IF(AM173>VCP!$E$29,AM173*VCP!$E$28,AM173) -> 0 | AX173: =IF(AN173>VCP!$E$29,AN173*VCP!$E$28,AN173) -> 0 | AY173: =IF(AO173>VCP!$E$29,AO173*VCP!$E$28,AO173) -> 0 | AZ173: =IF(AP173>VCP!$E$29,AP173*VCP!$E$28,AP173) -> 0 | BA173: =IF(AQ173>VCP!$E$29,AQ173*VCP!$E$28,AQ173) -> 0 | BB173: =IF(AR173>VCP!$E$29,AR173*VCP!$E$28,AR173) -> 0 | BC173: =IF(AS173>VCP!$E$29,AS173*VCP!$E$28,AS173) -> 0
A174: 172 | B174: 1 | C174: 0.16666624 | D174: -1 | E174: 86 | F174: 1.5 | G174: 290 | H174: 0 | I174: 0 | L174: =IF($K$2=0,D174*ATAN(0.151977*(E174+8.313659)^0.5)+ATAN(D174+E174)-ATAN(E174-1.676331)+0.00391838*(E174)^(3/2)*ATAN(0.023101*E174)-4.686035,'Weather data'!C174) -> 0.16666624 | M174: 0 | N174: 0 | O174: 0 | R174: =O175*'Qsol calculation'!N174 -> 0 | S174: =O175*'Qsol calculation'!O174 -> 0 | T174: =O175*'Qsol calculation'!P174 -> 0 | U174: =O175*'Qsol calculation'!Q174 -> 0 | V174: =O175*'Qsol calculation'!R174 -> 0 | W174: =O175*'Qsol calculation'!S174 -> 0 | X174: =O175*'Qsol calculation'!T174 -> 0 | Y174: =O175*'Qsol calculation'!U174 -> 0 | AA174: 0 | AB174: 0 | AC174: 0 | AD174: 0 | AE174: 0 | AF174: 0 | AG174: 0 | AH174: 0 | AJ174: =N174*(1+COS(VCP!$N$22))/2 -> 0 | AL174: 0 | AM174: 0 | AN174: 0 | AO174: 0 | AP174: 0 | AQ174: 0 | AR174: 0 | AS174: 0 | AV174: =IF(AL174>VCP!$E$29,AL174*VCP!$E$28,AL174) -> 0 | AW174: =IF(AM174>VCP!$E$29,AM174*VCP!$E$28,AM174) -> 0 | AX174: =IF(AN174>VCP!$E$29,AN174*VCP!$E$28,AN174) -> 0 | AY174: =IF(AO174>VCP!$E$29,AO174*VCP!$E$28,AO174) -> 0 | AZ174: =IF(AP174>VCP!$E$29,AP174*VCP!$E$28,AP174) -> 0 | BA174: =IF(AQ174>VCP!$E$29,AQ174*VCP!$E$28,AQ174) -> 0 | BB174: =IF(AR174>VCP!$E$29,AR174*VCP!$E$28,AR174) -> 0 | BC174: =IF(AS174>VCP!$E$29,AS174*VCP!$E$28,AS174) -> 0
A175: 173 | B175: 0.6 | C175: -0.094443426 | D175: -0.9 | E175: 89 | F175: 1.8 | G175: 290 | H175: 0 | I175: 0 | L175: =IF($K$2=0,D175*ATAN(0.151977*(E175+8.313659)^0.5)+ATAN(D175+E175)-ATAN(E175-1.676331)+0.00391838*(E175)^(3/2)*ATAN(0.023101*E175)-4.686035,'Weather data'!C175) -> -0.094443426 | M175: 0 | N175: 0 | O175: 0 | R175: =O176*'Qsol calculation'!N175 -> 0 | S175: =O176*'Qsol calculation'!O175 -> 0 | T175: =O176*'Qsol calculation'!P175 -> 0 | U175: =O176*'Qsol calculation'!Q175 -> 0 | V175: =O176*'Qsol calculation'!R175 -> 0 | W175: =O176*'Qsol calculation'!S175 -> 0 | X175: =O176*'Qsol calculation'!T175 -> 0 | Y175: =O176*'Qsol calculation'!U175 -> 0 | AA175: 0 | AB175: 0 | AC175: 0 | AD175: 0 | AE175: 0 | AF175: 0 | AG175: 0 | AH175: 0 | AJ175: =N175*(1+COS(VCP!$N$22))/2 -> 0 | AL175: 0 | AM175: 0 | AN175: 0 | AO175: 0 | AP175: 0 | AQ175: 0 | AR175: 0 | AS175: 0 | AV175: =IF(AL175>VCP!$E$29,AL175*VCP!$E$28,AL175) -> 0 | AW175: =IF(AM175>VCP!$E$29,AM175*VCP!$E$28,AM175) -> 0 | AX175: =IF(AN175>VCP!$E$29,AN175*VCP!$E$28,AN175) -> 0 | AY175: =IF(AO175>VCP!$E$29,AO175*VCP!$E$28,AO175) -> 0 | AZ175: =IF(AP175>VCP!$E$29,AP175*VCP!$E$28,AP175) -> 0 | BA175: =IF(AQ175>VCP!$E$29,AQ175*VCP!$E$28,AQ175) -> 0 | BB175: =IF(AR175>VCP!$E$29,AR175*VCP!$E$28,AR175) -> 0 | BC175: =IF(AS175>VCP!$E$29,AS175*VCP!$E$28,AS175) -> 0
A176: 174 | B176: 0.2 | C176: -0.26296297 | D176: -0.8 | E176: 92 | F176: 2.1 | G176: 170 | H176: 0 | I176: 0 | L176: =IF($K$2=0,D176*ATAN(0.151977*(E176+8.313659)^0.5)+ATAN(D176+E176)-ATAN(E176-1.676331)+0.00391838*(E176)^(3/2)*ATAN(0.023101*E176)-4.686035,'Weather data'!C176) -> -0.26296297 | M176: 0 | N176: 0 | O176: 0 | R176: =O177*'Qsol calculation'!N176 -> 0 | S176: =O177*'Qsol calculation'!O176 -> 0 | T176: =O177*'Qsol calculation'!P176 -> 0 | U176: =O177*'Qsol calculation'!Q176 -> 0 | V176: =O177*'Qsol calculation'!R176 -> 0 | W176: =O177*'Qsol calculation'!S176 -> 0 | X176: =O177*'Qsol calculation'!T176 -> 0 | Y176: =O177*'Qsol calculation'!U176 -> 0 | AA176: 0 | AB176: 0 | AC176: 0 | AD176: 0 | AE176: 0 | AF176: 0 | AG176: 0 | AH176: 0 | AJ176: =N176*(1+COS(VCP!$N$22))/2 -> 0 | AL176: 0 | AM176: 0 | AN176: 0 | AO176: 0 | AP176: 0 | AQ176: 0 | AR176: 0 | AS176: 0 | AV176: =IF(AL176>VCP!$E$29,AL176*VCP!$E$28,AL176) -> 0 | AW176: =IF(AM176>VCP!$E$29,AM176*VCP!$E$28,AM176) -> 0 | AX176: =IF(AN176>VCP!$E$29,AN176*VCP!$E$28,AN176) -> 0 | AY176: =IF(AO176>VCP!$E$29,AO176*VCP!$E$28,AO176) -> 0 | AZ176: =IF(AP176>VCP!$E$29,AP176*VCP!$E$28,AP176) -> 0 | BA176: =IF(AQ176>VCP!$E$29,AQ176*VCP!$E$28,AQ176) -> 0 | BB176: =IF(AR176>VCP!$E$29,AR176*VCP!$E$28,AR176) -> 0 | BC176: =IF(AS176>VCP!$E$29,AS176*VCP!$E$28,AS176) -> 0
A177: 175 | B177: 0.6 | C177: -0.094443426 | D177: -0.9 | E177: 89 | F177: 1 | G177: 170 | H177: 0 | I177: 0 | L177: =IF($K$2=0,D177*ATAN(0.151977*(E177+8.313659)^0.5)+ATAN(D177+E177)-ATAN(E177-1.676331)+0.00391838*(E177)^(3/2)*ATAN(0.023101*E177)-4.686035,'Weather data'!C177) -> -0.094443426 | M177: 0 | N177: 0 | O177: 0 | R177: =O178*'Qsol calculation'!N177 -> -0.08318160008 | S177: =O178*'Qsol calculation'!O177 -> -0.06512165448 | T177: =O178*'Qsol calculation'!P177 -> -0.104866237 | U177: =O178*'Qsol calculation'!Q177 -> 0.01277031 | V177: =O178*'Qsol calculation'!R177 -> 0.01779095112 | W177: =O178*'Qsol calculation'!S177 -> -0.01277031 | X177: =O178*'Qsol calculation'!T177 -> 0.104866237 | Y177: =O178*'Qsol calculation'!U177 -> 0.08318160008 | AA177: 0 | AB177: 0 | AC177: 0 | AD177: 0.01277031 | AE177: 0.01779095112 | AF177: 0 | AG177: 0.104866237 | AH177: 0.08318160008 | AJ177: =N177*(1+COS(VCP!$N$22))/2 -> 0 | AL177: 0 | AM177: 0 | AN177: 0 | AO177: 0.01277031 | AP177: 0.01779095112 | AQ177: 0 | AR177: 0.104866237 | AS177: 0.08318160008 | AV177: =IF(AL177>VCP!$E$29,AL177*VCP!$E$28,AL177) -> 0 | AW177: =IF(AM177>VCP!$E$29,AM177*VCP!$E$28,AM177) -> 0 | AX177: =IF(AN177>VCP!$E$29,AN177*VCP!$E$28,AN177) -> 0 | AY177: =IF(AO177>VCP!$E$29,AO177*VCP!$E$28,AO177) -> 0.01277031 | AZ177: =IF(AP177>VCP!$E$29,AP177*VCP!$E$28,AP177) -> 0.01779095112 | BA177: =IF(AQ177>VCP!$E$29,AQ177*VCP!$E$28,AQ177) -> 0 | BB177: =IF(AR177>VCP!$E$29,AR177*VCP!$E$28,AR177) -> 0.104866237 | BC177: =IF(AS177>VCP!$E$29,AS177*VCP!$E$28,AS177) -> 0.08318160008
A178: 176 | B178: 1 | C178: 0.16666624 | D178: -1 | E178: 86 | F178: 0 | G178: 0 | H178: 11 | I178: 3 | L178: =IF($K$2=0,D178*ATAN(0.151977*(E178+8.313659)^0.5)+ATAN(D178+E178)-ATAN(E178-1.676331)+0.00391838*(E178)^(3/2)*ATAN(0.023101*E178)-4.686035,'Weather data'!C178) -> 0.16666624 | M178: 0.2727272727 | N178: 2.893417096 | O178: 0.1065829042 | R178: =O179*'Qsol calculation'!N178 -> -0.4416120923 | S178: =O179*'Qsol calculation'!O178 -> -0.5162296008 | T178: =O179*'Qsol calculation'!P178 -> -0.6772963565 | U178: =O179*'Qsol calculation'!Q178 -> -0.05276254625 | V178: =O179*'Qsol calculation'!R178 -> 0.08576137927 | W178: =O179*'Qsol calculation'!S178 -> 0.05276254625 | X178: =O179*'Qsol calculation'!T178 -> 0.6772963565 | Y178: =O179*'Qsol calculation'!U178 -> 0.4416120923 | AA178: 0 | AB178: 0 | AC178: 0 | AD178: 0 | AE178: 0.08576137927 | AF178: 0.05276254625 | AG178: 0.6772963565 | AH178: 0.4416120923 | AJ178: =N178*(1+COS(VCP!$N$22))/2 -> 2.548759758 | AL178: 2.548759758 | AM178: 2.548759758 | AN178: 2.548759758 | AO178: 2.548759758 | AP178: 2.634521137 | AQ178: 2.601522304 | AR178: 3.226056115 | AS178: 2.99037185 | AV178: =IF(AL178>VCP!$E$29,AL178*VCP!$E$28,AL178) -> 2.548759758 | AW178: =IF(AM178>VCP!$E$29,AM178*VCP!$E$28,AM178) -> 2.548759758 | AX178: =IF(AN178>VCP!$E$29,AN178*VCP!$E$28,AN178) -> 2.548759758 | AY178: =IF(AO178>VCP!$E$29,AO178*VCP!$E$28,AO178) -> 2.548759758 | AZ178: =IF(AP178>VCP!$E$29,AP178*VCP!$E$28,AP178) -> 2.634521137 | BA178: =IF(AQ178>VCP!$E$29,AQ178*VCP!$E$28,AQ178) -> 2.601522304 | BB178: =IF(AR178>VCP!$E$29,AR178*VCP!$E$28,AR178) -> 3.226056115 | BC178: =IF(AS178>VCP!$E$29,AS178*VCP!$E$28,AS178) -> 2.99037185
A179: 177 | B179: 0.8 | C179: 0.24444368 | D179: -0.6 | E179: 90 | F179: 0 | G179: 0 | H179: 184 | I179: 38 | L179: =IF($K$2=0,D179*ATAN(0.151977*(E179+8.313659)^0.5)+ATAN(D179+E179)-ATAN(E179-1.676331)+0.00391838*(E179)^(3/2)*ATAN(0.023101*E179)-4.686035,'Weather data'!C179) -> 0.24444368 | M179: 0.2065217391 | N179: 37.29369565 | O179: 0.7063043478 | R179: =O180*'Qsol calculation'!N179 -> -1.301941101 | S179: =O180*'Qsol calculation'!O179 -> -2.499708717 | T179: =O180*'Qsol calculation'!P179 -> -2.688172366 | U179: =O180*'Qsol calculation'!Q179 -> -0.8469496035 | V179: =O180*'Qsol calculation'!R179 -> 0.2660615595 | W179: =O180*'Qsol calculation'!S179 -> 0.8469496035 | X179: =O180*'Qsol calculation'!T179 -> 2.688172366 | Y179: =O180*'Qsol calculation'!U179 -> 1.301941101 | AA179: 0 | AB179: 0 | AC179: 0 | AD179: 0 | AE179: 0.2660615595 | AF179: 0.8469496035 | AG179: 2.688172366 | AH179: 1.301941101 | AJ179: =N179*(1+COS(VCP!$N$22))/2 -> 32.85135449 | AL179: 32.85135449 | AM179: 32.85135449 | AN179: 32.85135449 | AO179: 32.85135449 | AP179: 33.11741605 | AQ179: 33.6983041 | AR179: 35.53952686 | AS179: 34.15329559 | AV179: =IF(AL179>VCP!$E$29,AL179*VCP!$E$28,AL179) -> 32.85135449 | AW179: =IF(AM179>VCP!$E$29,AM179*VCP!$E$28,AM179) -> 32.85135449 | AX179: =IF(AN179>VCP!$E$29,AN179*VCP!$E$28,AN179) -> 32.85135449 | AY179: =IF(AO179>VCP!$E$29,AO179*VCP!$E$28,AO179) -> 32.85135449 | AZ179: =IF(AP179>VCP!$E$29,AP179*VCP!$E$28,AP179) -> 33.11741605 | BA179: =IF(AQ179>VCP!$E$29,AQ179*VCP!$E$28,AQ179) -> 33.6983041 | BB179: =IF(AR179>VCP!$E$29,AR179*VCP!$E$28,AR179) -> 35.53952686 | BC179: =IF(AS179>VCP!$E$29,AS179*VCP!$E$28,AS179) -> 34.15329559
A180: 178 | B180: 2.2 | C180: 1.4592595 | D180: 0.4 | E180: 88 | F180: 1 | G180: 0 | H180: 383 | I180: 100 | L180: =IF($K$2=0,D180*ATAN(0.151977*(E180+8.313659)^0.5)+ATAN(D180+E180)-ATAN(E180-1.676331)+0.00391838*(E180)^(3/2)*ATAN(0.023101*E180)-4.686035,'Weather data'!C180) -> 1.4592595 | M180: 0.2610966057 | N180: 96.95407506 | O180: 3.045924936 | R180: =O181*'Qsol calculation'!N180 -> -0.6670354633 | S180: =O181*'Qsol calculation'!O180 -> -2.908421341 | T180: =O181*'Qsol calculation'!P180 -> -2.528229752 | U180: =O181*'Qsol calculation'!Q180 -> -1.584899153 | V180: =O181*'Qsol calculation'!R180 -> 0.2229815944 | W180: =O181*'Qsol calculation'!S180 -> 1.584899153 | X180: =O181*'Qsol calculation'!T180 -> 2.528229752 | Y180: =O181*'Qsol calculation'!U180 -> 0.6670354633 | AA180: 0 | AB180: 0 | AC180: 0 | AD180: 0 | AE180: 0.2229815944 | AF180: 1.584899153 | AG180: 2.528229752 | AH180: 0.6670354633 | AJ180: =N180*(1+COS(VCP!$N$22))/2 -> 85.40512368 | AL180: 85.40512368 | AM180: 85.40512368 | AN180: 85.40512368 | AO180: 85.40512368 | AP180: 85.62810527 | AQ180: 86.99002283 | AR180: 87.93335343 | AS180: 86.07215914 | AV180: =IF(AL180>VCP!$E$29,AL180*VCP!$E$28,AL180) -> 51.24307421 | AW180: =IF(AM180>VCP!$E$29,AM180*VCP!$E$28,AM180) -> 51.24307421 | AX180: =IF(AN180>VCP!$E$29,AN180*VCP!$E$28,AN180) -> 51.24307421 | AY180: =IF(AO180>VCP!$E$29,AO180*VCP!$E$28,AO180) -> 51.24307421 | AZ180: =IF(AP180>VCP!$E$29,AP180*VCP!$E$28,AP180) -> 51.37686316 | BA180: =IF(AQ180>VCP!$E$29,AQ180*VCP!$E$28,AQ180) -> 52.1940137 | BB180: =IF(AR180>VCP!$E$29,AR180*VCP!$E$28,AR180) -> 52.76001206 | BC180: =IF(AS180>VCP!$E$29,AS180*VCP!$E$28,AS180) -> 51.64329548
A181: 179 | B181: 3.6 | C181: 2.581482 | D181: 1.4 | E181: 85 | F181: 2.1 | G181: 0 | H181: 532 | I181: 131 | L181: =IF($K$2=0,D181*ATAN(0.151977*(E181+8.313659)^0.5)+ATAN(D181+E181)-ATAN(E181-1.676331)+0.00391838*(E181)^(3/2)*ATAN(0.023101*E181)-4.686035,'Weather data'!C181) -> 2.581482 | M181: 0.2462406015 | N181: 127.6731661 | O181: 3.326833883 | R181: =O182*'Qsol calculation'!N181 -> 0.08949809114 | S181: =O182*'Qsol calculation'!O181 -> -1.981819834 | T181: =O182*'Qsol calculation'!P181 -> -1.338073536 | U181: =O182*'Qsol calculation'!Q181 -> -1.464642951 | V181: =O182*'Qsol calculation'!R181 -> 0.1380118916 | W181: =O182*'Qsol calculation'!S181 -> 1.464642951 | X181: =O182*'Qsol calculation'!T181 -> 1.338073536 | Y181: =O182*'Qsol calculation'!U181 -> -0.08949809114 | AA181: 0.08949809114 | AB181: 0 | AC181: 0 | AD181: 0 | AE181: 0.1380118916 | AF181: 1.464642951 | AG181: 1.338073536 | AH181: 0 | AJ181: =N181*(1+COS(VCP!$N$22))/2 -> 112.4650257 | AL181: 112.5545238 | AM181: 112.4650257 | AN181: 112.4650257 | AO181: 112.4650257 | AP181: 112.6030376 | AQ181: 113.9296686 | AR181: 113.8030992 | AS181: 112.4650257 | AV181: =IF(AL181>VCP!$E$29,AL181*VCP!$E$28,AL181) -> 67.53271427 | AW181: =IF(AM181>VCP!$E$29,AM181*VCP!$E$28,AM181) -> 67.47901541 | AX181: =IF(AN181>VCP!$E$29,AN181*VCP!$E$28,AN181) -> 67.47901541 | AY181: =IF(AO181>VCP!$E$29,AO181*VCP!$E$28,AO181) -> 67.47901541 | AZ181: =IF(AP181>VCP!$E$29,AP181*VCP!$E$28,AP181) -> 67.56182255 | BA181: =IF(AQ181>VCP!$E$29,AQ181*VCP!$E$28,AQ181) -> 68.35780118 | BB181: =IF(AR181>VCP!$E$29,AR181*VCP!$E$28,AR181) -> 68.28185953 | BC181: =IF(AS181>VCP!$E$29,AS181*VCP!$E$28,AS181) -> 67.47901541
A182: 180 | B182: 5 | C182: 3.75 | D182: 2.3 | E182: 83 | F182: 3.1 | G182: 190 | H182: 620 | I182: 124 | L182: =IF($K$2=0,D182*ATAN(0.151977*(E182+8.313659)^0.5)+ATAN(D182+E182)-ATAN(E182-1.676331)+0.00391838*(E182)^(3/2)*ATAN(0.023101*E182)-4.686035,'Weather data'!C182) -> 3.75 | M182: 0.2 | N182: 121.768 | O182: 2.232 | R182: =O183*'Qsol calculation'!N182 -> 0.6575176872 | S182: =O183*'Qsol calculation'!O182 -> -2.036162662 | T182: =O183*'Qsol calculation'!P182 -> -0.9748492104 | U182: =O183*'Qsol calculation'!Q182 -> -1.904719641 | V182: =O183*'Qsol calculation'!R182 -> 0.1706173561 | W182: =O183*'Qsol calculation'!S182 -> 1.904719641 | X182: =O183*'Qsol calculation'!T182 -> 0.9748492104 | Y182: =O183*'Qsol calculation'!U182 -> -0.6575176872 | AA182: 0.6575176872 | AB182: 0 | AC182: 0 | AD182: 0 | AE182: 0.1706173561 | AF182: 1.904719641 | AG182: 0.9748492104 | AH182: 0 | AJ182: =N182*(1+COS(VCP!$N$22))/2 -> 107.2632697 | AL182: 107.9207874 | AM182: 107.2632697 | AN182: 107.2632697 | AO182: 107.2632697 | AP182: 107.433887 | AQ182: 109.1679893 | AR182: 108.2381189 | AS182: 107.2632697 | AV182: =IF(AL182>VCP!$E$29,AL182*VCP!$E$28,AL182) -> 64.75247242 | AW182: =IF(AM182>VCP!$E$29,AM182*VCP!$E$28,AM182) -> 64.35796181 | AX182: =IF(AN182>VCP!$E$29,AN182*VCP!$E$28,AN182) -> 64.35796181 | AY182: =IF(AO182>VCP!$E$29,AO182*VCP!$E$28,AO182) -> 64.35796181 | AZ182: =IF(AP182>VCP!$E$29,AP182*VCP!$E$28,AP182) -> 64.46033222 | BA182: =IF(AQ182>VCP!$E$29,AQ182*VCP!$E$28,AQ182) -> 65.50079359 | BB182: =IF(AR182>VCP!$E$29,AR182*VCP!$E$28,AR182) -> 64.94287133 | BC182: =IF(AS182>VCP!$E$29,AS182*VCP!$E$28,AS182) -> 64.35796181
A183: 181 | B183: 4.8 | C183: 3.7814817 | D183: 2.7 | E183: 86 | F183: 3.4 | G183: 190 | H183: 643 | I183: 130 | L183: =IF($K$2=0,D183*ATAN(0.151977*(E183+8.313659)^0.5)+ATAN(D183+E183)-ATAN(E183-1.676331)+0.00391838*(E183)^(3/2)*ATAN(0.023101*E183)-4.686035,'Weather data'!C183) -> 3.7814817 | M183: 0.2021772939 | N183: 127.6345257 | O183: 2.365474339 | R183: =O184*'Qsol calculation'!N183 -> 1.04127181 | S183: =O184*'Qsol calculation'!O183 -> -1.66535252 | T183: =O184*'Qsol calculation'!P183 -> -0.4412917016 | U183: =O184*'Qsol calculation'!Q183 -> -1.913872418 | V183: =O184*'Qsol calculation'!R183 -> 0.2037082169 | W183: =O184*'Qsol calculation'!S183 -> 1.913872418 | X183: =O184*'Qsol calculation'!T183 -> 0.4412917016 | Y183: =O184*'Qsol calculation'!U183 -> -1.04127181 | AA183: 1.04127181 | AB183: 0 | AC183: 0 | AD183: 0 | AE183: 0.2037082169 | AF183: 1.913872418 | AG183: 0.4412917016 | AH183: 0 | AJ183: =N183*(1+COS(VCP!$N$22))/2 -> 112.430988 | AL183: 113.4722598 | AM183: 112.430988 | AN183: 112.430988 | AO183: 112.430988 | AP183: 112.6346962 | AQ183: 114.3448604 | AR183: 112.8722797 | AS183: 112.430988 | AV183: =IF(AL183>VCP!$E$29,AL183*VCP!$E$28,AL183) -> 68.08335588 | AW183: =IF(AM183>VCP!$E$29,AM183*VCP!$E$28,AM183) -> 67.4585928 | AX183: =IF(AN183>VCP!$E$29,AN183*VCP!$E$28,AN183) -> 67.4585928 | AY183: =IF(AO183>VCP!$E$29,AO183*VCP!$E$28,AO183) -> 67.4585928 | AZ183: =IF(AP183>VCP!$E$29,AP183*VCP!$E$28,AP183) -> 67.58081773 | BA183: =IF(AQ183>VCP!$E$29,AQ183*VCP!$E$28,AQ183) -> 68.60691625 | BB183: =IF(AR183>VCP!$E$29,AR183*VCP!$E$28,AR183) -> 67.72336782 | BC183: =IF(AS183>VCP!$E$29,AS183*VCP!$E$28,AS183) -> 67.4585928
A184: 182 | B184: 4.6 | C184: 3.8592594 | D184: 3 | E184: 90 | F184: 3.8 | G184: 190 | H184: 598 | I184: 118 | L184: =IF($K$2=0,D184*ATAN(0.151977*(E184+8.313659)^0.5)+ATAN(D184+E184)-ATAN(E184-1.676331)+0.00391838*(E184)^(3/2)*ATAN(0.023101*E184)-4.686035,'Weather data'!C184) -> 3.8592594 | M184: 0.1973244147 | N184: 115.9044147 | O184: 2.095585284 | R184: =O185*'Qsol calculation'!N184 -> 0.9941827934 | S184: =O185*'Qsol calculation'!O184 -> -1.01196943 | T184: =O185*'Qsol calculation'!P184 -> -0.01257705112 | U184: =O185*'Qsol calculation'!Q184 -> -1.418563841 | V184: =O185*'Qsol calculation'!R184 -> 0.1973413454 | W184: =O185*'Qsol calculation'!S184 -> 1.418563841 | X184: =O185*'Qsol calculation'!T184 -> 0.01257705112 | Y184: =O185*'Qsol calculation'!U184 -> -0.9941827934 | AA184: 0.9941827934 | AB184: 0 | AC184: 0 | AD184: 0 | AE184: 0.1973413454 | AF184: 1.418563841 | AG184: 0.01257705112 | AH184: 0 | AJ184: =N184*(1+COS(VCP!$N$22))/2 -> 102.0981415 | AL184: 103.0923243 | AM184: 102.0981415 | AN184: 102.0981415 | AO184: 102.0981415 | AP184: 102.2954828 | AQ184: 103.5167053 | AR184: 102.1107185 | AS184: 102.0981415 | AV184: =IF(AL184>VCP!$E$29,AL184*VCP!$E$28,AL184) -> 61.85539457 | AW184: =IF(AM184>VCP!$E$29,AM184*VCP!$E$28,AM184) -> 61.25888489 | AX184: =IF(AN184>VCP!$E$29,AN184*VCP!$E$28,AN184) -> 61.25888489 | AY184: =IF(AO184>VCP!$E$29,AO184*VCP!$E$28,AO184) -> 61.25888489 | AZ184: =IF(AP184>VCP!$E$29,AP184*VCP!$E$28,AP184) -> 61.3772897 | BA184: =IF(AQ184>VCP!$E$29,AQ184*VCP!$E$28,AQ184) -> 62.1100232 | BB184: =IF(AR184>VCP!$E$29,AR184*VCP!$E$28,AR184) -> 61.26643112 | BC184: =IF(AS184>VCP!$E$29,AS184*VCP!$E$28,AS184) -> 61.25888489
A185: 183 | B185: 4.4 | C185: 3.937039 | D185: 3.4 | E185: 93 | F185: 4.1 | G185: 220 | H185: 489 | I185: 89 | L185: =IF($K$2=0,D185*ATAN(0.151977*(E185+8.313659)^0.5)+ATAN(D185+E185)-ATAN(E185-1.676331)+0.00391838*(E185)^(3/2)*ATAN(0.023101*E185)-4.686035,'Weather data'!C185) -> 3.937039 | M185: 0.18200409 | N185: 87.54214724 | O185: 1.457852761 | R185: =O186*'Qsol calculation'!N185 -> 0.5506523967 | S185: =O186*'Qsol calculation'!O185 -> -0.3798359031 | T185: =O186*'Qsol calculation'!P185 -> 0.120785501 | U185: =O186*'Qsol calculation'!Q185 -> -0.6579545866 | V185: =O186*'Qsol calculation'!R185 -> 0.1234774889 | W185: =O186*'Qsol calculation'!S185 -> 0.6579545866 | X185: =O186*'Qsol calculation'!T185 -> -0.120785501 | Y185: =O186*'Qsol calculation'!U185 -> -0.5506523967 | AA185: 0.5506523967 | AB185: 0 | AC185: 0.120785501 | AD185: 0 | AE185: 0.1234774889 | AF185: 0.6579545866 | AG185: 0 | AH185: 0 | AJ185: =N185*(1+COS(VCP!$N$22))/2 -> 77.11432353 | AL185: 77.66497592 | AM185: 77.11432353 | AN185: 77.23510903 | AO185: 77.11432353 | AP185: 77.23780102 | AQ185: 77.77227811 | AR185: 77.11432353 | AS185: 77.11432353 | AV185: =IF(AL185>VCP!$E$29,AL185*VCP!$E$28,AL185) -> 46.59898555 | AW185: =IF(AM185>VCP!$E$29,AM185*VCP!$E$28,AM185) -> 46.26859412 | AX185: =IF(AN185>VCP!$E$29,AN185*VCP!$E$28,AN185) -> 46.34106542 | AY185: =IF(AO185>VCP!$E$29,AO185*VCP!$E$28,AO185) -> 46.26859412 | AZ185: =IF(AP185>VCP!$E$29,AP185*VCP!$E$28,AP185) -> 46.34268061 | BA185: =IF(AQ185>VCP!$E$29,AQ185*VCP!$E$28,AQ185) -> 46.66336687 | BB185: =IF(AR185>VCP!$E$29,AR185*VCP!$E$28,AR185) -> 46.26859412 | BC185: =IF(AS185>VCP!$E$29,AS185*VCP!$E$28,AS185) -> 46.26859412
A186: 184 | B186: 5 | C186: 4.4444447 | D186: 4 | E186: 93 | F186: 5.1 | G186: 220 | H186: 322 | I186: 49 | L186: =IF($K$2=0,D186*ATAN(0.151977*(E186+8.313659)^0.5)+ATAN(D186+E186)-ATAN(E186-1.676331)+0.00391838*(E186)^(3/2)*ATAN(0.023101*E186)-4.686035,'Weather data'!C186) -> 4.4444447 | M186: 0.152173913 | N186: 48.32891304 | O186: 0.6710869565 | R186: =O187*'Qsol calculation'!N186 -> 0.05985804138 | S186: =O187*'Qsol calculation'!O186 -> -0.02776694589 | T186: =O187*'Qsol calculation'!P186 -> 0.02269183124 | U186: =O187*'Qsol calculation'!Q186 -> -0.0619602227 | V186: =O187*'Qsol calculation'!R186 -> 0.0158915174 | W186: =O187*'Qsol calculation'!S186 -> 0.0619602227 | X186: =O187*'Qsol calculation'!T186 -> -0.02269183124 | Y186: =O187*'Qsol calculation'!U186 -> -0.05985804138 | AA186: 0.05985804138 | AB186: 0 | AC186: 0.02269183124 | AD186: 0 | AE186: 0.0158915174 | AF186: 0.0619602227 | AG186: 0 | AH186: 0 | AJ186: =N186*(1+COS(VCP!$N$22))/2 -> 42.57208161 | AL186: 42.63193965 | AM186: 42.57208161 | AN186: 42.59477344 | AO186: 42.57208161 | AP186: 42.58797312 | AQ186: 42.63404183 | AR186: 42.57208161 | AS186: 42.57208161 | AV186: =IF(AL186>VCP!$E$29,AL186*VCP!$E$28,AL186) -> 25.57916379 | AW186: =IF(AM186>VCP!$E$29,AM186*VCP!$E$28,AM186) -> 25.54324896 | AX186: =IF(AN186>VCP!$E$29,AN186*VCP!$E$28,AN186) -> 25.55686406 | AY186: =IF(AO186>VCP!$E$29,AO186*VCP!$E$28,AO186) -> 25.54324896 | AZ186: =IF(AP186>VCP!$E$29,AP186*VCP!$E$28,AP186) -> 25.55278387 | BA186: =IF(AQ186>VCP!$E$29,AQ186*VCP!$E$28,AQ186) -> 25.5804251 | BB186: =IF(AR186>VCP!$E$29,AR186*VCP!$E$28,AR186) -> 25.54324896 | BC186: =IF(AS186>VCP!$E$29,AS186*VCP!$E$28,AS186) -> 25.54324896
A187: 185 | B187: 5 | C187: 4.537038 | D187: 4.2 | E187: 94 | F187: 4.1 | G187: 220 | H187: 110 | I187: 9 | L187: =IF($K$2=0,D187*ATAN(0.151977*(E187+8.313659)^0.5)+ATAN(D187+E187)-ATAN(E187-1.676331)+0.00391838*(E187)^(3/2)*ATAN(0.023101*E187)-4.686035,'Weather data'!C187) -> 4.537038 | M187: 0.08181818182 | N187: 8.933727273 | O187: 0.06627272727 | R187: =O188*'Qsol calculation'!N187 -> 0 | S187: =O188*'Qsol calculation'!O187 -> 0 | T187: =O188*'Qsol calculation'!P187 -> 0 | U187: =O188*'Qsol calculation'!Q187 -> 0 | V187: =O188*'Qsol calculation'!R187 -> 0 | W187: =O188*'Qsol calculation'!S187 -> 0 | X187: =O188*'Qsol calculation'!T187 -> 0 | Y187: =O188*'Qsol calculation'!U187 -> 0 | AA187: 0 | AB187: 0 | AC187: 0 | AD187: 0 | AE187: 0 | AF187: 0 | AG187: 0 | AH187: 0 | AJ187: =N187*(1+COS(VCP!$N$22))/2 -> 7.86956177 | AL187: 7.86956177 | AM187: 7.86956177 | AN187: 7.86956177 | AO187: 7.86956177 | AP187: 7.86956177 | AQ187: 7.86956177 | AR187: 7.86956177 | AS187: 7.86956177 | AV187: =IF(AL187>VCP!$E$29,AL187*VCP!$E$28,AL187) -> 7.86956177 | AW187: =IF(AM187>VCP!$E$29,AM187*VCP!$E$28,AM187) -> 7.86956177 | AX187: =IF(AN187>VCP!$E$29,AN187*VCP!$E$28,AN187) -> 7.86956177 | AY187: =IF(AO187>VCP!$E$29,AO187*VCP!$E$28,AO187) -> 7.86956177 | AZ187: =IF(AP187>VCP!$E$29,AP187*VCP!$E$28,AP187) -> 7.86956177 | BA187: =IF(AQ187>VCP!$E$29,AQ187*VCP!$E$28,AQ187) -> 7.86956177 | BB187: =IF(AR187>VCP!$E$29,AR187*VCP!$E$28,AR187) -> 7.86956177 | BC187: =IF(AS187>VCP!$E$29,AS187*VCP!$E$28,AS187) -> 7.86956177
A188: 186 | B188: 5 | C188: 4.8148155 | D188: 4.5 | E188: 97 | F188: 3.1 | G188: 180 | H188: 0 | I188: 0 | L188: =IF($K$2=0,D188*ATAN(0.151977*(E188+8.313659)^0.5)+ATAN(D188+E188)-ATAN(E188-1.676331)+0.00391838*(E188)^(3/2)*ATAN(0.023101*E188)-4.686035,'Weather data'!C188) -> 4.8148155 | M188: 0 | N188: 0 | O188: 0 | R188: =O189*'Qsol calculation'!N188 -> 0 | S188: =O189*'Qsol calculation'!O188 -> 0 | T188: =O189*'Qsol calculation'!P188 -> 0 | U188: =O189*'Qsol calculation'!Q188 -> 0 | V188: =O189*'Qsol calculation'!R188 -> 0 | W188: =O189*'Qsol calculation'!S188 -> 0 | X188: =O189*'Qsol calculation'!T188 -> 0 | Y188: =O189*'Qsol calculation'!U188 -> 0 | AA188: 0 | AB188: 0 | AC188: 0 | AD188: 0 | AE188: 0 | AF188: 0 | AG188: 0 | AH188: 0 | AJ188: =N188*(1+COS(VCP!$N$22))/2 -> 0 | AL188: 0 | AM188: 0 | AN188: 0 | AO188: 0 | AP188: 0 | AQ188: 0 | AR188: 0 | AS188: 0 | AV188: =IF(AL188>VCP!$E$29,AL188*VCP!$E$28,AL188) -> 0 | AW188: =IF(AM188>VCP!$E$29,AM188*VCP!$E$28,AM188) -> 0 | AX188: =IF(AN188>VCP!$E$29,AN188*VCP!$E$28,AN188) -> 0 | AY188: =IF(AO188>VCP!$E$29,AO188*VCP!$E$28,AO188) -> 0 | AZ188: =IF(AP188>VCP!$E$29,AP188*VCP!$E$28,AP188) -> 0 | BA188: =IF(AQ188>VCP!$E$29,AQ188*VCP!$E$28,AQ188) -> 0 | BB188: =IF(AR188>VCP!$E$29,AR188*VCP!$E$28,AR188) -> 0 | BC188: =IF(AS188>VCP!$E$29,AS188*VCP!$E$28,AS188) -> 0
A189: 187 | B189: 5.1 | C189: 4.822222 | D189: 4.5 | E189: 96 | F189: 3.1 | G189: 180 | H189: 0 | I189: 0 | L189: =IF($K$2=0,D189*ATAN(0.151977*(E189+8.313659)^0.5)+ATAN(D189+E189)-ATAN(E189-1.676331)+0.00391838*(E189)^(3/2)*ATAN(0.023101*E189)-4.686035,'Weather data'!C189) -> 4.822222 | M189: 0 | N189: 0 | O189: 0 | R189: =O190*'Qsol calculation'!N189 -> 0 | S189: =O190*'Qsol calculation'!O189 -> 0 | T189: =O190*'Qsol calculation'!P189 -> 0 | U189: =O190*'Qsol calculation'!Q189 -> 0 | V189: =O190*'Qsol calculation'!R189 -> 0 | W189: =O190*'Qsol calculation'!S189 -> 0 | X189: =O190*'Qsol calculation'!T189 -> 0 | Y189: =O190*'Qsol calculation'!U189 -> 0 | AA189: 0 | AB189: 0 | AC189: 0 | AD189: 0 | AE189: 0 | AF189: 0 | AG189: 0 | AH189: 0 | AJ189: =N189*(1+COS(VCP!$N$22))/2 -> 0 | AL189: 0 | AM189: 0 | AN189: 0 | AO189: 0 | AP189: 0 | AQ189: 0 | AR189: 0 | AS189: 0 | AV189: =IF(AL189>VCP!$E$29,AL189*VCP!$E$28,AL189) -> 0 | AW189: =IF(AM189>VCP!$E$29,AM189*VCP!$E$28,AM189) -> 0 | AX189: =IF(AN189>VCP!$E$29,AN189*VCP!$E$28,AN189) -> 0 | AY189: =IF(AO189>VCP!$E$29,AO189*VCP!$E$28,AO189) -> 0 | AZ189: =IF(AP189>VCP!$E$29,AP189*VCP!$E$28,AP189) -> 0 | BA189: =IF(AQ189>VCP!$E$29,AQ189*VCP!$E$28,AQ189) -> 0 | BB189: =IF(AR189>VCP!$E$29,AR189*VCP!$E$28,AR189) -> 0 | BC189: =IF(AS189>VCP!$E$29,AS189*VCP!$E$28,AS189) -> 0
A190: 188 | B190: 5.1 | C190: 4.822222 | D190: 4.6 | E190: 96 | F190: 3.1 | G190: 180 | H190: 0 | I190: 0 | L190: =IF($K$2=0,D190*ATAN(0.151977*(E190+8.313659)^0.5)+ATAN(D190+E190)-ATAN(E190-1.676331)+0.00391838*(E190)^(3/2)*ATAN(0.023101*E190)-4.686035,'Weather data'!C190) -> 4.822222 | M190: 0 | N190: 0 | O190: 0 | R190: =O191*'Qsol calculation'!N190 -> 0 | S190: =O191*'Qsol calculation'!O190 -> 0 | T190: =O191*'Qsol calculation'!P190 -> 0 | U190: =O191*'Qsol calculation'!Q190 -> 0 | V190: =O191*'Qsol calculation'!R190 -> 0 | W190: =O191*'Qsol calculation'!S190 -> 0 | X190: =O191*'Qsol calculation'!T190 -> 0 | Y190: =O191*'Qsol calculation'!U190 -> 0 | AA190: 0 | AB190: 0 | AC190: 0 | AD190: 0 | AE190: 0 | AF190: 0 | AG190: 0 | AH190: 0 | AJ190: =N190*(1+COS(VCP!$N$22))/2 -> 0 | AL190: 0 | AM190: 0 | AN190: 0 | AO190: 0 | AP190: 0 | AQ190: 0 | AR190: 0 | AS190: 0 | AV190: =IF(AL190>VCP!$E$29,AL190*VCP!$E$28,AL190) -> 0 | AW190: =IF(AM190>VCP!$E$29,AM190*VCP!$E$28,AM190) -> 0 | AX190: =IF(AN190>VCP!$E$29,AN190*VCP!$E$28,AN190) -> 0 | AY190: =IF(AO190>VCP!$E$29,AO190*VCP!$E$28,AO190) -> 0 | AZ190: =IF(AP190>VCP!$E$29,AP190*VCP!$E$28,AP190) -> 0 | BA190: =IF(AQ190>VCP!$E$29,AQ190*VCP!$E$28,AQ190) -> 0 | BB190: =IF(AR190>VCP!$E$29,AR190*VCP!$E$28,AR190) -> 0 | BC190: =IF(AS190>VCP!$E$29,AS190*VCP!$E$28,AS190) -> 0
A191: 189 | B191: 5.2 | C191: 4.9222226 | D191: 4.6 | E191: 96 | F191: 3.1 | G191: 190 | H191: 0 | I191: 0 | L191: =IF($K$2=0,D191*ATAN(0.151977*(E191+8.313659)^0.5)+ATAN(D191+E191)-ATAN(E191-1.676331)+0.00391838*(E191)^(3/2)*ATAN(0.023101*E191)-4.686035,'Weather data'!C191) -> 4.9222226 | M191: 0 | N191: 0 | O191: 0 | R191: =O192*'Qsol calculation'!N191 -> 0 | S191: =O192*'Qsol calculation'!O191 -> 0 | T191: =O192*'Qsol calculation'!P191 -> 0 | U191: =O192*'Qsol calculation'!Q191 -> 0 | V191: =O192*'Qsol calculation'!R191 -> 0 | W191: =O192*'Qsol calculation'!S191 -> 0 | X191: =O192*'Qsol calculation'!T191 -> 0 | Y191: =O192*'Qsol calculation'!U191 -> 0 | AA191: 0 | AB191: 0 | AC191: 0 | AD191: 0 | AE191: 0 | AF191: 0 | AG191: 0 | AH191: 0 | AJ191: =N191*(1+COS(VCP!$N$22))/2 -> 0 | AL191: 0 | AM191: 0 | AN191: 0 | AO191: 0 | AP191: 0 | AQ191: 0 | AR191: 0 | AS191: 0 | AV191: =IF(AL191>VCP!$E$29,AL191*VCP!$E$28,AL191) -> 0 | AW191: =IF(AM191>VCP!$E$29,AM191*VCP!$E$28,AM191) -> 0 | AX191: =IF(AN191>VCP!$E$29,AN191*VCP!$E$28,AN191) -> 0 | AY191: =IF(AO191>VCP!$E$29,AO191*VCP!$E$28,AO191) -> 0 | AZ191: =IF(AP191>VCP!$E$29,AP191*VCP!$E$28,AP191) -> 0 | BA191: =IF(AQ191>VCP!$E$29,AQ191*VCP!$E$28,AQ191) -> 0 | BB191: =IF(AR191>VCP!$E$29,AR191*VCP!$E$28,AR191) -> 0 | BC191: =IF(AS191>VCP!$E$29,AS191*VCP!$E$28,AS191) -> 0
A192: 190 | B192: 6.1 | C192: 5.8222218 | D192: 5.5 | E192: 96 | F192: 3.1 | G192: 190 | H192: 0 | I192: 0 | L192: =IF($K$2=0,D192*ATAN(0.151977*(E192+8.313659)^0.5)+ATAN(D192+E192)-ATAN(E192-1.676331)+0.00391838*(E192)^(3/2)*ATAN(0.023101*E192)-4.686035,'Weather data'!C192) -> 5.8222218 | M192: 0 | N192: 0 | O192: 0 | R192: =O193*'Qsol calculation'!N192 -> 0 | S192: =O193*'Qsol calculation'!O192 -> 0 | T192: =O193*'Qsol calculation'!P192 -> 0 | U192: =O193*'Qsol calculation'!Q192 -> 0 | V192: =O193*'Qsol calculation'!R192 -> 0 | W192: =O193*'Qsol calculation'!S192 -> 0 | X192: =O193*'Qsol calculation'!T192 -> 0 | Y192: =O193*'Qsol calculation'!U192 -> 0 | AA192: 0 | AB192: 0 | AC192: 0 | AD192: 0 | AE192: 0 | AF192: 0 | AG192: 0 | AH192: 0 | AJ192: =N192*(1+COS(VCP!$N$22))/2 -> 0 | AL192: 0 | AM192: 0 | AN192: 0 | AO192: 0 | AP192: 0 | AQ192: 0 | AR192: 0 | AS192: 0 | AV192: =IF(AL192>VCP!$E$29,AL192*VCP!$E$28,AL192) -> 0 | AW192: =IF(AM192>VCP!$E$29,AM192*VCP!$E$28,AM192) -> 0 | AX192: =IF(AN192>VCP!$E$29,AN192*VCP!$E$28,AN192) -> 0 | AY192: =IF(AO192>VCP!$E$29,AO192*VCP!$E$28,AO192) -> 0 | AZ192: =IF(AP192>VCP!$E$29,AP192*VCP!$E$28,AP192) -> 0 | BA192: =IF(AQ192>VCP!$E$29,AQ192*VCP!$E$28,AQ192) -> 0 | BB192: =IF(AR192>VCP!$E$29,AR192*VCP!$E$28,AR192) -> 0 | BC192: =IF(AS192>VCP!$E$29,AS192*VCP!$E$28,AS192) -> 0
A193: 191 | B193: 7.1 | C193: 6.6833324 | D193: 6.3 | E193: 95 | F193: 3.1 | G193: 190 | H193: 0 | I193: 0 | L193: =IF($K$2=0,D193*ATAN(0.151977*(E193+8.313659)^0.5)+ATAN(D193+E193)-ATAN(E193-1.676331)+0.00391838*(E193)^(3/2)*ATAN(0.023101*E193)-4.686035,'Weather data'!C193) -> 6.6833324 | M193: 0 | N193: 0 | O193: 0 | R193: =O194*'Qsol calculation'!N193 -> 0 | S193: =O194*'Qsol calculation'!O193 -> 0 | T193: =O194*'Qsol calculation'!P193 -> 0 | U193: =O194*'Qsol calculation'!Q193 -> 0 | V193: =O194*'Qsol calculation'!R193 -> 0 | W193: =O194*'Qsol calculation'!S193 -> 0 | X193: =O194*'Qsol calculation'!T193 -> 0 | Y193: =O194*'Qsol calculation'!U193 -> 0 | AA193: 0 | AB193: 0 | AC193: 0 | AD193: 0 | AE193: 0 | AF193: 0 | AG193: 0 | AH193: 0 | AJ193: =N193*(1+COS(VCP!$N$22))/2 -> 0 | AL193: 0 | AM193: 0 | AN193: 0 | AO193: 0 | AP193: 0 | AQ193: 0 | AR193: 0 | AS193: 0 | AV193: =IF(AL193>VCP!$E$29,AL193*VCP!$E$28,AL193) -> 0 | AW193: =IF(AM193>VCP!$E$29,AM193*VCP!$E$28,AM193) -> 0 | AX193: =IF(AN193>VCP!$E$29,AN193*VCP!$E$28,AN193) -> 0 | AY193: =IF(AO193>VCP!$E$29,AO193*VCP!$E$28,AO193) -> 0 | AZ193: =IF(AP193>VCP!$E$29,AP193*VCP!$E$28,AP193) -> 0 | BA193: =IF(AQ193>VCP!$E$29,AQ193*VCP!$E$28,AQ193) -> 0 | BB193: =IF(AR193>VCP!$E$29,AR193*VCP!$E$28,AR193) -> 0 | BC193: =IF(AS193>VCP!$E$29,AS193*VCP!$E$28,AS193) -> 0
A194: 192 | B194: 8 | C194: 7.5370383 | D194: 7.1 | E194: 94 | F194: 3.1 | G194: 240 | H194: 0 | I194: 0 | L194: =IF($K$2=0,D194*ATAN(0.151977*(E194+8.313659)^0.5)+ATAN(D194+E194)-ATAN(E194-1.676331)+0.00391838*(E194)^(3/2)*ATAN(0.023101*E194)-4.686035,'Weather data'!C194) -> 7.5370383 | M194: =IF(IFERROR(I194/H194,0)>1,0,IFERROR(I194/H194,0)) -> 0 | N194: =IF(M194<=0.22,((1-0.09*M194)*I194),(0.9511-0.1604*M194+(4.388*(M194)^2)-(16.638*(M194)^3)+(12.336*(M194)^(4)))*I194) -> 0 | O194: =I194-N194 -> 0 | R194: =O195*'Qsol calculation'!N194 -> 0 | S194: =O195*'Qsol calculation'!O194 -> 0 | T194: =O195*'Qsol calculation'!P194 -> 0 | U194: =O195*'Qsol calculation'!Q194 -> 0 | V194: =O195*'Qsol calculation'!R194 -> 0 | W194: =O195*'Qsol calculation'!S194 -> 0 | X194: =O195*'Qsol calculation'!T194 -> 0 | Y194: =O195*'Qsol calculation'!U194 -> 0 | AA194: 0 | AB194: 0 | AC194: 0 | AD194: 0 | AE194: 0 | AF194: 0 | AG194: 0 | AH194: 0 | AJ194: =N194*(1+COS(VCP!$N$22))/2 -> 0 | AL194: =AA194+AJ194 -> 0 | AM194: =AB194+AJ194 -> 0 | AN194: =AC194+AJ194 -> 0 | AO194: =AD194+AJ194 -> 0 | AP194: =AE194+AJ194 -> 0 | AQ194: =AF194+AJ194 -> 0 | AR194: =AG194+AJ194 -> 0 | AS194: =AH194+AJ194 -> 0 | AV194: =IF(AL194>VCP!$E$29,AL194*VCP!$E$28,AL194) -> 0 | AW194: =IF(AM194>VCP!$E$29,AM194*VCP!$E$28,AM194) -> 0 | AX194: =IF(AN194>VCP!$E$29,AN194*VCP!$E$28,AN194) -> 0 | AY194: =IF(AO194>VCP!$E$29,AO194*VCP!$E$28,AO194) -> 0 | AZ194: =IF(AP194>VCP!$E$29,AP194*VCP!$E$28,AP194) -> 0 | BA194: =IF(AQ194>VCP!$E$29,AQ194*VCP!$E$28,AQ194) -> 0 | BB194: =IF(AR194>VCP!$E$29,AR194*VCP!$E$28,AR194) -> 0 | BC194: =IF(AS194>VCP!$E$29,AS194*VCP!$E$28,AS194) -> 0
A195: 193 | B195: 8.3 | C195: 7.8370395 | D195: 7.4 | E195: 94 | F195: 4.5 | G195: 240 | H195: 0 | I195: 0 | L195: =IF($K$2=0,D195*ATAN(0.151977*(E195+8.313659)^0.5)+ATAN(D195+E195)-ATAN(E195-1.676331)+0.00391838*(E195)^(3/2)*ATAN(0.023101*E195)-4.686035,'Weather data'!C195) -> 7.8370395 | M195: 0 | N195: 0 | O195: 0 | R195: =O196*'Qsol calculation'!N195 -> 0 | S195: =O196*'Qsol calculation'!O195 -> 0 | T195: =O196*'Qsol calculation'!P195 -> 0 | U195: =O196*'Qsol calculation'!Q195 -> 0 | V195: =O196*'Qsol calculation'!R195 -> 0 | W195: =O196*'Qsol calculation'!S195 -> 0 | X195: =O196*'Qsol calculation'!T195 -> 0 | Y195: =O196*'Qsol calculation'!U195 -> 0 | AA195: =IF(R195<=0,0,R195) -> 0 | AB195: =IF(S195<=0,0,S195) -> 0 | AC195: =IF(T195<=0,0,T195) -> 0 | AD195: =IF(U195<=0,0,U195) -> 0 | AE195: =IF(V195<=0,0,V195) -> 0 | AF195: =IF(W195<=0,0,W195) -> 0 | AG195: =IF(X195<=0,0,X195) -> 0 | AH195: =IF(Y195<=0,0,Y195) -> 0 | AJ195: =N195*(1+COS(VCP!$N$22))/2 -> 0 | AL195: 0 | AM195: 0 | AN195: 0 | AO195: 0 | AP195: 0 | AQ195: 0 | AR195: 0 | AS195: 0 | AV195: =IF(AL195>VCP!$E$29,AL195*VCP!$E$28,AL195) -> 0 | AW195: =IF(AM195>VCP!$E$29,AM195*VCP!$E$28,AM195) -> 0 | AX195: =IF(AN195>VCP!$E$29,AN195*VCP!$E$28,AN195) -> 0 | AY195: =IF(AO195>VCP!$E$29,AO195*VCP!$E$28,AO195) -> 0 | AZ195: =IF(AP195>VCP!$E$29,AP195*VCP!$E$28,AP195) -> 0 | BA195: =IF(AQ195>VCP!$E$29,AQ195*VCP!$E$28,AQ195) -> 0 | BB195: =IF(AR195>VCP!$E$29,AR195*VCP!$E$28,AR195) -> 0 | BC195: =IF(AS195>VCP!$E$29,AS195*VCP!$E$28,AS195) -> 0
A196: 194 | B196: 8.7 | C196: 8.144444 | D196: 7.6 | E196: 93 | F196: 5.8 | G196: 240 | H196: 0 | I196: 0 | L196: =IF($K$2=0,D196*ATAN(0.151977*(E196+8.313659)^0.5)+ATAN(D196+E196)-ATAN(E196-1.676331)+0.00391838*(E196)^(3/2)*ATAN(0.023101*E196)-4.686035,'Weather data'!C196) -> 8.144444 | M196: 0 | N196: 0 | O196: 0 | R196: =O197*'Qsol calculation'!N196 -> 0 | S196: =O197*'Qsol calculation'!O196 -> 0 | T196: =O197*'Qsol calculation'!P196 -> 0 | U196: =O197*'Qsol calculation'!Q196 -> 0 | V196: =O197*'Qsol calculation'!R196 -> 0 | W196: =O197*'Qsol calculation'!S196 -> 0 | X196: =O197*'Qsol calculation'!T196 -> 0 | Y196: =O197*'Qsol calculation'!U196 -> 0 | AA196: 0 | AB196: 0 | AC196: 0 | AD196: 0 | AE196: 0 | AF196: 0 | AG196: 0 | AH196: 0 | AJ196: =N196*(1+COS(VCP!$N$22))/2 -> 0 | AL196: 0 | AM196: 0 | AN196: 0 | AO196: 0 | AP196: 0 | AQ196: 0 | AR196: 0 | AS196: 0 | AV196: =IF(AL196>VCP!$E$29,AL196*VCP!$E$28,AL196) -> 0 | AW196: =IF(AM196>VCP!$E$29,AM196*VCP!$E$28,AM196) -> 0 | AX196: =IF(AN196>VCP!$E$29,AN196*VCP!$E$28,AN196) -> 0 | AY196: =IF(AO196>VCP!$E$29,AO196*VCP!$E$28,AO196) -> 0 | AZ196: =IF(AP196>VCP!$E$29,AP196*VCP!$E$28,AP196) -> 0 | BA196: =IF(AQ196>VCP!$E$29,AQ196*VCP!$E$28,AQ196) -> 0 | BB196: =IF(AR196>VCP!$E$29,AR196*VCP!$E$28,AR196) -> 0 | BC196: =IF(AS196>VCP!$E$29,AS196*VCP!$E$28,AS196) -> 0
A197: 195 | B197: 9 | C197: 8.305555 | D197: 7.8 | E197: 92 | F197: 7.2 | G197: 250 | H197: 0 | I197: 0 | L197: =IF($K$2=0,D197*ATAN(0.151977*(E197+8.313659)^0.5)+ATAN(D197+E197)-ATAN(E197-1.676331)+0.00391838*(E197)^(3/2)*ATAN(0.023101*E197)-4.686035,'Weather data'!C197) -> 8.305555 | M197: 0 | N197: 0 | O197: 0 | R197: =O198*'Qsol calculation'!N197 -> 0 | S197: =O198*'Qsol calculation'!O197 -> 0 | T197: =O198*'Qsol calculation'!P197 -> 0 | U197: =O198*'Qsol calculation'!Q197 -> 0 | V197: =O198*'Qsol calculation'!R197 -> 0 | W197: =O198*'Qsol calculation'!S197 -> 0 | X197: =O198*'Qsol calculation'!T197 -> 0 | Y197: =O198*'Qsol calculation'!U197 -> 0 | AA197: 0 | AB197: 0 | AC197: 0 | AD197: 0 | AE197: 0 | AF197: 0 | AG197: 0 | AH197: 0 | AJ197: =N197*(1+COS(VCP!$N$22))/2 -> 0 | AL197: 0 | AM197: 0 | AN197: 0 | AO197: 0 | AP197: 0 | AQ197: 0 | AR197: 0 | AS197: 0 | AV197: =IF(AL197>VCP!$E$29,AL197*VCP!$E$28,AL197) -> 0 | AW197: =IF(AM197>VCP!$E$29,AM197*VCP!$E$28,AM197) -> 0 | AX197: =IF(AN197>VCP!$E$29,AN197*VCP!$E$28,AN197) -> 0 | AY197: =IF(AO197>VCP!$E$29,AO197*VCP!$E$28,AO197) -> 0 | AZ197: =IF(AP197>VCP!$E$29,AP197*VCP!$E$28,AP197) -> 0 | BA197: =IF(AQ197>VCP!$E$29,AQ197*VCP!$E$28,AQ197) -> 0 | BB197: =IF(AR197>VCP!$E$29,AR197*VCP!$E$28,AR197) -> 0 | BC197: =IF(AS197>VCP!$E$29,AS197*VCP!$E$28,AS197) -> 0
A198: 196 | B198: 9.2 | C198: 8.255554 | D198: 7.5 | E198: 89 | F198: 6.8 | G198: 250 | H198: 0 | I198: 0 | L198: =IF($K$2=0,D198*ATAN(0.151977*(E198+8.313659)^0.5)+ATAN(D198+E198)-ATAN(E198-1.676331)+0.00391838*(E198)^(3/2)*ATAN(0.023101*E198)-4.686035,'Weather data'!C198) -> 8.255554 | M198: 0 | N198: 0 | O198: 0 | R198: =O199*'Qsol calculation'!N198 -> 0 | S198: =O199*'Qsol calculation'!O198 -> 0 | T198: =O199*'Qsol calculation'!P198 -> 0 | U198: =O199*'Qsol calculation'!Q198 -> 0 | V198: =O199*'Qsol calculation'!R198 -> 0 | W198: =O199*'Qsol calculation'!S198 -> 0 | X198: =O199*'Qsol calculation'!T198 -> 0 | Y198: =O199*'Qsol calculation'!U198 -> 0 | AA198: 0 | AB198: 0 | AC198: 0 | AD198: 0 | AE198: 0 | AF198: 0 | AG198: 0 | AH198: 0 | AJ198: =N198*(1+COS(VCP!$N$22))/2 -> 0 | AL198: 0 | AM198: 0 | AN198: 0 | AO198: 0 | AP198: 0 | AQ198: 0 | AR198: 0 | AS198: 0 | AV198: =IF(AL198>VCP!$E$29,AL198*VCP!$E$28,AL198) -> 0 | AW198: =IF(AM198>VCP!$E$29,AM198*VCP!$E$28,AM198) -> 0 | AX198: =IF(AN198>VCP!$E$29,AN198*VCP!$E$28,AN198) -> 0 | AY198: =IF(AO198>VCP!$E$29,AO198*VCP!$E$28,AO198) -> 0 | AZ198: =IF(AP198>VCP!$E$29,AP198*VCP!$E$28,AP198) -> 0 | BA198: =IF(AQ198>VCP!$E$29,AQ198*VCP!$E$28,AQ198) -> 0 | BB198: =IF(AR198>VCP!$E$29,AR198*VCP!$E$28,AR198) -> 0 | BC198: =IF(AS198>VCP!$E$29,AS198*VCP!$E$28,AS198) -> 0
A199: 197 | B199: 9.4 | C199: 8.177776 | D199: 7.2 | E199: 86 | F199: 6.4 | G199: 250 | H199: 0 | I199: 0 | L199: =IF($K$2=0,D199*ATAN(0.151977*(E199+8.313659)^0.5)+ATAN(D199+E199)-ATAN(E199-1.676331)+0.00391838*(E199)^(3/2)*ATAN(0.023101*E199)-4.686035,'Weather data'!C199) -> 8.177776 | M199: 0 | N199: 0 | O199: 0 | R199: =O200*'Qsol calculation'!N199 -> 0 | S199: =O200*'Qsol calculation'!O199 -> 0 | T199: =O200*'Qsol calculation'!P199 -> 0 | U199: =O200*'Qsol calculation'!Q199 -> 0 | V199: =O200*'Qsol calculation'!R199 -> 0 | W199: =O200*'Qsol calculation'!S199 -> 0 | X199: =O200*'Qsol calculation'!T199 -> 0 | Y199: =O200*'Qsol calculation'!U199 -> 0 | AA199: 0 | AB199: 0 | AC199: 0 | AD199: 0 | AE199: 0 | AF199: 0 | AG199: 0 | AH199: 0 | AJ199: =N199*(1+COS(VCP!$N$22))/2 -> 0 | AL199: 0 | AM199: 0 | AN199: 0 | AO199: 0 | AP199: 0 | AQ199: 0 | AR199: 0 | AS199: 0 | AV199: =IF(AL199>VCP!$E$29,AL199*VCP!$E$28,AL199) -> 0 | AW199: =IF(AM199>VCP!$E$29,AM199*VCP!$E$28,AM199) -> 0 | AX199: =IF(AN199>VCP!$E$29,AN199*VCP!$E$28,AN199) -> 0 | AY199: =IF(AO199>VCP!$E$29,AO199*VCP!$E$28,AO199) -> 0 | AZ199: =IF(AP199>VCP!$E$29,AP199*VCP!$E$28,AP199) -> 0 | BA199: =IF(AQ199>VCP!$E$29,AQ199*VCP!$E$28,AQ199) -> 0 | BB199: =IF(AR199>VCP!$E$29,AR199*VCP!$E$28,AR199) -> 0 | BC199: =IF(AS199>VCP!$E$29,AS199*VCP!$E$28,AS199) -> 0
A200: 198 | B200: 9.6 | C200: 8.21111 | D200: 6.8 | E200: 83 | F200: 5.9 | G200: 250 | H200: 0 | I200: 0 | L200: =IF($K$2=0,D200*ATAN(0.151977*(E200+8.313659)^0.5)+ATAN(D200+E200)-ATAN(E200-1.676331)+0.00391838*(E200)^(3/2)*ATAN(0.023101*E200)-4.686035,'Weather data'!C200) -> 8.21111 | M200: 0 | N200: 0 | O200: 0 | R200: =O201*'Qsol calculation'!N200 -> 0 | S200: =O201*'Qsol calculation'!O200 -> 0 | T200: =O201*'Qsol calculation'!P200 -> 0 | U200: =O201*'Qsol calculation'!Q200 -> 0 | V200: =O201*'Qsol calculation'!R200 -> 0 | W200: =O201*'Qsol calculation'!S200 -> 0 | X200: =O201*'Qsol calculation'!T200 -> 0 | Y200: =O201*'Qsol calculation'!U200 -> 0 | AA200: 0 | AB200: 0 | AC200: 0 | AD200: 0 | AE200: 0 | AF200: 0 | AG200: 0 | AH200: 0 | AJ200: =N200*(1+COS(VCP!$N$22))/2 -> 0 | AL200: 0 | AM200: 0 | AN200: 0 | AO200: 0 | AP200: 0 | AQ200: 0 | AR200: 0 | AS200: 0 | AV200: =IF(AL200>VCP!$E$29,AL200*VCP!$E$28,AL200) -> 0 | AW200: =IF(AM200>VCP!$E$29,AM200*VCP!$E$28,AM200) -> 0 | AX200: =IF(AN200>VCP!$E$29,AN200*VCP!$E$28,AN200) -> 0 | AY200: =IF(AO200>VCP!$E$29,AO200*VCP!$E$28,AO200) -> 0 | AZ200: =IF(AP200>VCP!$E$29,AP200*VCP!$E$28,AP200) -> 0 | BA200: =IF(AQ200>VCP!$E$29,AQ200*VCP!$E$28,AQ200) -> 0 | BB200: =IF(AR200>VCP!$E$29,AR200*VCP!$E$28,AR200) -> 0 | BC200: =IF(AS200>VCP!$E$29,AS200*VCP!$E$28,AS200) -> 0
... 925 more rows

Sheet VCP
D2: Ventilative cooling potential analysis | O2: =N2*VCP!$E$21*VCP!$E$288 -> 0
D3: Developed within the IEA - EBC Annex 62 - "Ventilative cooling"
D4: Created by: Eurac Research (co-funded by Stiftung Südtiroler Sparkasse), supported by Politecnico di Torino for evaporative cooling potential evaluation (co-founded by RTDgrant 59_ATEN_RSG16CHG)
D5: V1.0
C7: Location | N7: Air properties | S7: Temperature range for heating clothing ≈ 1 clo
C8: City | E8: Madrid | N8: ρ | O8: 1.2 | P8: kg/m³ | R8: Building type | S8: min | T8: max | V8: Comfort category | Y8: ventilation rates
C9: Country | E9: Spain | N9: Cp | O9: 1000 | P9: J/kgK | R9: Apartment building | S9: =IF($E$22="category I",21,IF($E$22="category II",20,IF($E$22="category III",18,""))) -> 20 | T9: =IF($E$22="category I",25,IF($E$22="category II",25,IF($E$22="category III",25,""))) -> 25 | V9: category I | W9: 2 | Y9: 1/h
C10: Latitude | E10: 40.38 | F10: ° | R10: Daycare center | S10: =IF($E$22="category I",21,IF($E$22="category II",20,IF($E$22="category III",18,""))) -> 20 | T10: =IF($E$22="category I",25,IF($E$22="category II",25,IF($E$22="category III",25,""))) -> 25 | V10: category II | W10: 3 | Y10: kg/s-m²
C11: Longitude | E11: -3.716667 | F11: ° | R11: Department store | S11: =IF($E$22="category I",17.5,IF($E$22="category II",16,IF($E$22="category III",15,""))) -> 16 | T11: =IF($E$22="category I",20.5,IF($E$22="category II",22,IF($E$22="category III",23,""))) -> 22 | V11: category III | W11: 4 | Y11: m³/h
C12: Time zone (respect GMT) | E12: 1 | F12: hr | R12: Detached house | S12: =IF($E$22="category I",21,IF($E$22="category II",20,IF($E$22="category III",18,""))) -> 20 | T12: =IF($E$22="category I",25,IF($E$22="category II",25,IF($E$22="category III",25,""))) -> 25 | W12: =IF(E22=V9,W9,IF(E22=V10,W10,IF(E22=V11,3))) -> 3
R13: Hospital | S13: =IF($E$22="category I",21,IF($E$22="category II",20,IF($E$22="category III",18,""))) -> 20 | T13: =IF($E$22="category I",25,IF($E$22="category II",25,IF($E$22="category III",25,""))) -> 25
R14: Hotel | S14: =IF($E$22="category I",21,IF($E$22="category II",20,IF($E$22="category III",18,""))) -> 20 | T14: =IF($E$22="category I",25,IF($E$22="category II",25,IF($E$22="category III",25,""))) -> 25
R15: Office building | S15: =IF($E$22="category I",21,IF($E$22="category II",20,IF($E$22="category III",19,""))) -> 20 | T15: 24
C16: Building data | R16: Restaurant | S16: =IF($E$22="category I",21,IF($E$22="category II",20,IF($E$22="category III",19,""))) -> 20 | T16: =IF($E$22="category I",23,IF($E$22="category II",24,IF($E$22="category III",25,""))) -> 24
C17: Building type | E17: Apartment building | R17: School | S17: =IF($E$22="category I",21,IF($E$22="category II",20,IF($E$22="category III",19,""))) -> 20 | T17: =IF($E$22="category I",23,IF($E$22="category II",24,IF($E$22="category III",25,""))) -> 24
C18: Ceiling to floor height | D18: H | E18: 2.7 | F18: m | H18: Room volume | I18: V | J18: =E18*E20 -> 75.411 | K18: m³ | R18: Sport, terminal, theatre | S18: =IF($E$22="category I",19,IF($E$22="category II",17.5,IF($E$22="category III",16.5,""))) -> 17.5 | T18: =IF($E$22="category I",21,IF($E$22="category II",22.5,IF($E$22="category III",23.5,""))) -> 22.5
C19: Envelope area | D19: A | E19: 19.6 | F19: m²
C20: Floor area | D20: S | E20: 27.93 | F20: m²
C21: Fenestration area | D21: W | E21: 7.84 | F21: m² | G21: S | H21: Fenestration area orientation | I21: 90 | J21: ° Inclination | N21: =RADIANS(I21) -> 1.570796327 | O21: RAD | P21: surface inclination
C22: Comfort requirement | E22: category II | N22: =RADIANS(E10) -> 0.704763952 | O22: RAD | P22: latitude
AI24: Required airflow rates in VC mode [2]
C25: Technical specifications | AI25: average | AK25: st. dev.
C26: U-value of the opaque envelope | D26: Uo | E26: 0.27 | F26: W/m²K | H26: Avg. envelope U-value | I26: Uavg | J26: =(E26*(E19-E21)+E27*E21)/E19 -> 0.61 | K26: W/m²K | AI26: =VCPcalculation!AO14 -> 3.464381177 | AJ26: ± | AK26: =VCPcalculation!AP14 -> 1.762756263 | AL26: ach
C27: U-value of the fenestration | D27: Uw | E27: 1.12 | F27: W/m²K
C28: g value of the glazing system | D28: g | E28: 0.6 | F28: -
C29: Shading control setpoint | D29: Shd | E29: 40 | F29: W/m²
C30: Min. required ventilation rates | D30: ṁmin | E30: 1 | F30: l/s-m² | I30: ṁmin | J30: =IF(K30="kg/s-m²",E30*0.001*O8,IF(K30="m³/h",E30*3.6*E20,IF(K30="1/h",E30*3.6/E18,""))) -> 1.333333333 | K30: 1/h | N30: ṁmin | O30: =E30*0.001*O8 -> 0.0012 | P30: kg/s-m²
C32: Lighting power density | D32: Qlight | E32: 2.864303616 | F32: W/m²
C33: Electric equipment power density | D33: Qel_equip | E33: 3.58037952 | F33: W/m² | N33: Ti-hsp | O33: =LOOKUP(E17,R9:R18,S9:S18) -> 20 | P33: °C | Q33: =CONVERT(O33,"C","K") -> 293.15 | R33: K
C34: Occupancy density | D34: Qpeople | E34: 9.31 | F34: m²/pers | H34: Avg. total internal gains | I34: Qint | J34: =LOOKUP(E17,Profiles!C29:L29,Profiles!C54:L54) -> 12.08676453 | K34: W/m² | N34: To-hbp | O34: =CONVERT(Q34,"K","C") -> 12.57601748 | P34: °C | Q34: =Q33-(J34*E20)/(O9*O30*E20+J26*E19) -> 285.7260175 | R34: K
N35: Ti-csp | O35: =LOOKUP(E17,R9:R18,T9:T18) -> 25 | P35: °C | Q35: =CONVERT(O35,"C","K") -> 298.15 | R35: K

Sheet VCPcalculation (hidden)
A1: Day | B1: Date | C1: Time | D1: Time | E1: Time | F1: Tdb [C] | G1: RH [%] | H1: Tdp [°C] | I1: Twb [°C] | J1: GHR [W/m²] | K1: Daily mean Tdb[°C] | L1: Torm [°C] | M1: Lower comfort zone limit | N1: Upper comfort zone limit | O1: Qsol [W/m²] | P1: Qin [W/m²] | Q1: To-hbp [°C] | R1: Tdec [°C] | T1: required cooling ventilation rate [kg/s-m²] | U1: required ACH [1/h] | V1: Night cooling activation | W1: qnight [W/m²-ACH] | X1: Nighttime CD | AE1: VC mode [0]: ventilative cooling not required | AF1: VC mode [1]: potential comfort hrs by direct ventilative cooling with minimum airflow rates | AG1: VC mode [2]: potential comfort hrs by direct ventilative cooling with increased airflow rates | AH1: VC mode [3]: potential comfort hrs with evaporative cooling | AI1: VC mode [4]: residual discomfort hrs | AJ1: Nighttime ventilation activation | AK1: CD [K] | AL1: Cooling potential [W/m²-ACH] | AM1: Monthly average of diurnal temperature swing | AN1: Monthly average of horizontal global radiation | AO1: Average direct ventilative cooling ACH | AP1: St.dev. direct ventilative cooling ACH
A2: =DAY(B2) -> 1 | B2: 2011-01-01 | C2: 01:00:00 | D2: 1 | E2: 0.04166666667 | F2: ='Weather data'!B2 -> 9.7 | G2: ='Weather data'!E2 -> 85 | H2: ='Weather data'!D2 -> 7.4 | I2: ='Weather data'!L2 -> 8.403704 | J2: ='Weather data'!I2 -> 0 | K2: =AVERAGE(F2:F25) -> 9.604166667 | L2: =(K8761+0.8*K8737+0.6*K8713+0.5*K8689+0.4*K8665+0.3*K8641+0.2*K8617)/3.8 -> 8.542653509 | M2: =IF(L2>15,0.33*L2+18.8-VCP!$W$12,LOOKUP(VCP!$E$17,VCP!$R$9:$R$18,VCP!$S$9:$S$18)) -> 20 | N2: =IF(L2>10,0.33*L2+18.8+VCP!$W$12,LOOKUP(VCP!$E$17,VCP!$R$9:$R$18,VCP!$T$9:$T$18)) -> 25 | O2: ='avg calculation'!D2*VCP!$E$21*VCP!$E$28/VCP!$E$20 -> 0 | P2: =LOOKUP(VCP!$E$17,Profiles!$C$29:$L$29,Profiles!C31:L31) -> 17.9018976 | Q2: =VCP!$O$33-((O2+P2)*VCP!$E$20)/(VCP!$O$9*VCP!$O$30*VCP!$E$20+VCP!$J$26*VCP!$E$19) -> 9.004222379 | R2: =F2-0.75*(F2-I2) -> 8.727778 | S2: =IF(AND(E2>=$AB$4,E2<$AB$3),IF(F2<Q2,0,IF(AND(F2>=Q2,F2<(Q2+N2-M2)),1,IF(AND(F2>=(Q2+N2-M2),F2<(N2-3)),2,IF(AND(F2>=(N2-3),AND(F2>R2,R2<(N2-3),I2<$AA$8)),3,4)))),"") ->  | T2: =IF(S2=1,VCP!$O$30,IF(S2=2,((P2+O2)/(VCP!$O$9*(VCPcalculation!N2-VCPcalculation!F2))),"")) ->  | U2: =IF(OR(S2=3,S2=0,S2=""),"",(T2*3600/VCP!$O$8)/VCP!$E$18) ->  | V2: =IF(((C2>=$AA$4)*AND(C2<$AA$3)),0,IF(AND('avg calculation'!F2>($AA$5*2),F2<N2),1,0)) -> 0 | W2: =IF(V2=1, VCP!$E$18*VCP!$O$8/3600*VCP!$O$9*(N2-F2),"-") -> - | X2: =IF(V2=1,(N2-F2),0) -> 0 | AA2: time control | AD2: jan | AE2: =COUNTIF($S$2:$S$745,"=0") -> 333 | AF2: =COUNTIF($S$2:$S$745,"=1") -> 102 | AG2: =COUNTIF($S$2:$S$745,"=2") -> 30 | AH2: =COUNTIF($S$2:$S$745,"=3") -> 0 | AI2: =COUNTIF($S$2:$S$745,"=4") -> 0 | AJ2: =COUNTIF($V$2:$V$745,"=1") -> 0 | AK2: =SUM(X2:X745) -> 0 | AL2: ='avg calculation'!AE2 -> 0 | AM2: ='avg calculation'!AC2 -> 3.973004115 | AN2: ='avg calculation'!AD2 -> 23.96313669 | AO2: ='avg calculation'!AF2 -> 2.204946559 | AP2: ='avg calculation'!AG2 -> 0.2879597638
A3: =DAY(B3) -> 1 | B3: 2011-01-01T01:00:00 | C3: 02:00:00 | D3: 2 | E3: 0.08333333333 | F3: ='Weather data'!B3 -> 9.7 | G3: ='Weather data'!E3 -> 82 | H3: ='Weather data'!D3 -> 6.9 | I3: ='Weather data'!L3 -> 8.125926 | J3: ='Weather data'!I3 -> 0 | K3: =K2 -> 9.604166667 | L3: =L2 -> 8.542653509 | M3: =IF(L3>15,0.33*L3+18.8-VCP!$W$12,LOOKUP(VCP!$E$17,VCP!$R$9:$R$18,VCP!$S$9:$S$18)) -> 20 | N3: =IF(L3>10,0.33*L3+18.8+VCP!$W$12,LOOKUP(VCP!$E$17,VCP!$R$9:$R$18,VCP!$T$9:$T$18)) -> 25 | O3: ='avg calculation'!D3*VCP!$E$21*VCP!$E$28/VCP!$E$20 -> 0 | P3: =LOOKUP(VCP!$E$17,Profiles!$C$29:$L$29,Profiles!C32:L32) -> 17.9018976 | Q3: =VCP!$O$33-((O3+P3)*VCP!$E$20)/(VCP!$O$9*VCP!$O$30*VCP!$E$20+VCP!$J$26*VCP!$E$19) -> 9.004222379 | R3: =F3-0.75*(F3-I3) -> 8.5194445 | S3: =IF(AND(E3>=$AB$4,E3<$AB$3),IF(F3<Q3,0,IF(AND(F3>=Q3,F3<(Q3+N3-M3)),1,IF(AND(F3>=(Q3+N3-M3),F3<(N3-3)),2,IF(AND(F3>=(N3-3),AND(F3>R3,R3<(N3-3),I3<$AA$8)),3,4)))),"") ->  | T3: =IF(S3=1,VCP!$O$30,IF(S3=2,((P3+O3)/(VCP!$O$9*(VCPcalculation!N3-VCPcalculation!F3))),"")) ->  | U3: =IF(OR(S3=3,S3=0,S3=""),"",(T3*3600/VCP!$O$8)/VCP!$E$18) ->  | V3: =IF(((C3>=$AA$4)*AND(C3<$AA$3)),0,IF(AND('avg calculation'!F3>($AA$5*2),F3<N3),1,0)) -> 0 | W3: =IF(V3=1, VCP!$E$18*VCP!$O$8/3600*VCP!$O$9*(N3-F3),"-") -> - | X3: 0 | Z3: on | AA3: =LOOKUP(VCP!E17,Profiles!P29:Y29,Profiles!P30:Y30) -> 22:00:00 | AB3: =IF(AA3=0,1,AA3) -> 0.9166666667 | AD3: feb | AE3: =COUNTIF($S$746:$S$1417,"=0") -> 209 | AF3: =COUNTIF($S$746:$S$1417,"=1") -> 94 | AG3: =COUNTIF($S$746:$S$1417,"=2") -> 117 | AH3: =COUNTIF($S$746:$S$1417,"=3") -> 0 | AI3: =COUNTIF($S$746:$S$1417,"=4") -> 0 | AJ3: =COUNTIF($V$746:$V$1417,"=1") -> 0 | AK3: =SUM(X746:X1417) -> 0 | AL3: ='avg calculation'!AE3 -> 0 | AM3: ='avg calculation'!AC3 -> 4.193589744 | AN3: ='avg calculation'!AD3 -> 32.73844724 | AO3: ='avg calculation'!AF3 -> 2.382306073 | AP3: ='avg calculation'!AG3 -> 0.5087961443
A4: 1 | B4: 2011-01-01T01:59:59.990 | C4: 03:00:00 | D4: 3 | E4: 0.125 | F4: ='Weather data'!B4 -> 9.5 | G4: ='Weather data'!E4 -> 80 | H4: ='Weather data'!D4 -> 6.2 | I4: ='Weather data'!L4 -> 7.8333325 | J4: ='Weather data'!I4 -> 0 | K4: =K3 -> 9.604166667 | L4: 8.542653509 | M4: =IF(L4>15,0.33*L4+18.8-VCP!$W$12,LOOKUP(VCP!$E$17,VCP!$R$9:$R$18,VCP!$S$9:$S$18)) -> 20 | N4: =IF(L4>10,0.33*L4+18.8+VCP!$W$12,LOOKUP(VCP!$E$17,VCP!$R$9:$R$18,VCP!$T$9:$T$18)) -> 25 | O4: ='avg calculation'!D4*VCP!$E$21*VCP!$E$28/VCP!$E$20 -> 0 | P4: =LOOKUP(VCP!$E$17,Profiles!$C$29:$L$29,Profiles!C33:L33) -> 17.9018976 | Q4: =VCP!$O$33-((O4+P4)*VCP!$E$20)/(VCP!$O$9*VCP!$O$30*VCP!$E$20+VCP!$J$26*VCP!$E$19) -> 9.004222379 | R4: 8.249999375 | T4: =IF(S4=1,VCP!$O$30,IF(S4=2,((P4+O4)/(VCP!$O$9*(VCPcalculation!N4-VCPcalculation!F4))),"")) ->  | U4: =IF(OR(S4=3,S4=0,S4=""),"",(T4*3600/VCP!$O$8)/VCP!$E$18) ->  | V4: =IF(((C4>=$AA$4)*AND(C4<$AA$3)),0,IF(AND('avg calculation'!F4>($AA$5*2),F4<N4),1,0)) -> 0 | W4: =IF(V4=1, VCP!$E$18*VCP!$O$8/3600*VCP!$O$9*(N4-F4),"-") -> - | X4: 0 | Z4: off | AA4: =LOOKUP(VCP!E17,Profiles!P29:Y29,Profiles!P31:Y31) -> 07:00:00 | AB4: =IF(AA4=1,0,AA4) -> 0.2916666667 | AD4: mar | AE4: =COUNTIF($S$1418:$S$2161,"=0") -> 150 | AF4: =COUNTIF($S$1418:$S$2161,"=1") -> 104 | AG4: =COUNTIF($S$1418:$S$2161,"=2") -> 203 | AH4: =COUNTIF($S$1418:$S$2161,"=3") -> 8 | AI4: =COUNTIF($S$1418:$S$2161,"=4") -> 0 | AJ4: =COUNTIF($V$1418:$V$2161,"=1") -> 0 | AK4: =SUM(X1418:X2161) -> 0 | AL4: ='avg calculation'!AE4 -> 0 | AM4: ='avg calculation'!AC4 -> 4.661777778 | AN4: ='avg calculation'!AD4 -> 38.14226557 | AO4: ='avg calculation'!AF4 -> 2.999996222 | AP4: ='avg calculation'!AG4 -> 1.150889854
A5: 1 | B5: 2011-01-01T02:59:59.985 | C5: 04:00:00 | D5: 4 | E5: 0.1666666667 | F5: ='Weather data'!B5 -> 9.2 | G5: ='Weather data'!E5 -> 77 | H5: ='Weather data'!D5 -> 5.4 | I5: ='Weather data'!L5 -> 7.255554 | J5: ='Weather data'!I5 -> 0 | K5: 9.604166667 | L5: 8.542653509 | M5: =IF(L5>15,0.33*L5+18.8-VCP!$W$12,LOOKUP(VCP!$E$17,VCP!$R$9:$R$18,VCP!$S$9:$S$18)) -> 20 | N5: =IF(L5>10,0.33*L5+18.8+VCP!$W$12,LOOKUP(VCP!$E$17,VCP!$R$9:$R$18,VCP!$T$9:$T$18)) -> 25 | O5: ='avg calculation'!D5*VCP!$E$21*VCP!$E$28/VCP!$E$20 -> 0 | P5: =LOOKUP(VCP!$E$17,Profiles!$C$29:$L$29,Profiles!C34:L34) -> 17.9018976 | Q5: =VCP!$O$33-((O5+P5)*VCP!$E$20)/(VCP!$O$9*VCP!$O$30*VCP!$E$20+VCP!$J$26*VCP!$E$19) -> 9.004222379 | R5: 7.7416655 | T5: =IF(S5=1,VCP!$O$30,IF(S5=2,((P5+O5)/(VCP!$O$9*(VCPcalculation!N5-VCPcalculation!F5))),"")) ->  | U5: =IF(OR(S5=3,S5=0,S5=""),"",(T5*3600/VCP!$O$8)/VCP!$E$18) ->  | V5: =IF(((C5>=$AA$4)*AND(C5<$AA$3)),0,IF(AND('avg calculation'!F5>($AA$5*2),F5<N5),1,0)) -> 0 | W5: =IF(V5=1, VCP!$E$18*VCP!$O$8/3600*VCP!$O$9*(N5-F5),"-") -> - | X5: 0 | Z5: nr of occupied hrs | AA5: =LOOKUP(VCP!$E$17,Profiles!$C$29:$L$29,Profiles!P32:Y32) -> 15 | AD5: apr | AE5: =COUNTIF($S$2162:$S$2881,"=0") -> 87 | AF5: =COUNTIF($S$2162:$S$2881,"=1") -> 94 | AG5: =COUNTIF($S$2162:$S$2881,"=2") -> 236 | AH5: =COUNTIF($S$2162:$S$2881,"=3") -> 33 | AI5: =COUNTIF($S$2162:$S$2881,"=4") -> 0 | AJ5: =COUNTIF($V$2162:$V$2881,"=1") -> 30 | AK5: =SUM(X2162:X2881) -> 314.2886432 | AL5: ='avg calculation'!AE5 -> 10.67504001 | AM5: ='avg calculation'!AC5 -> 4.903259259 | AN5: ='avg calculation'!AD5 -> 50.35515306 | AO5: ='avg calculation'!AF5 -> 3.229410767 | AP5: ='avg calculation'!AG5 -> 1.228583632
